Workbook

Sheet MENÙ
A1: DATI GENERALI
F3: =iDG!B12 -> Amministratore | N3: Condominio Palazzo Duck
F4: =iDG!B13 -> dott. Pico de Paperis | N4: Viale dei Platani 1 | AC4: 2026-12-31
F5: =iDG!B14 -> Viale degli Alberi Fioriti 22 | N5: 99999 PAPEROPOLI (PP) | AE5: Codice Condominio | AG5: Esercizio
F6: =iDG!B15 & " " & iDG!B16 & " (" & iDG!B17 & ")" -> 99999 PAPEROPOLI (PP) | M6: 99999990799 | P6: =iDG!B38 -> palduck@ggggmail.com | AE6: =iDG!B41 -> PalDuck | AG6: =iDG!B97 -> 2024
E8: Il GIORNALE CONTABILE è aggiornato al | AD8: Data di elaborazione
F9: 06/06/2024 | AE9: 31/12/2024
P11: AMMINISTRATORE e CONDOMINIO
F14: AMMINISTRATORE | K14: CONDOMINIO | Z14: CONFIGURAZIONE DELLE STAMPE
O16: 0
O17: 0
P26: ESERCIZIO
F29: ESERCIZIO | K29: ELAB. INIZIO ESERCIZIO | P29: ELAB. IN CORSO ESERCIZIO | U29: ELABORAZIONI FISCALI | Z29: ELABORAZIONI SUSSIDIARIE | AE29: STAMPE IN PDF
U35: SITUAZIONI CONTABILI
K44: COMPILAZIONI
P54: ALTRE FUNZIONI
F57: GUIDE | K57: ESPORTAZIONE e IMPORTAZIONE DATI | U57: ELAB. STRAORDINARIE | Z57: ELAB. COMPLEMENTARI | AE57: FINE UTILIZZO PROCEDURA

Sheet iDG (hidden)
B1: È consentito variare i valori delle sole celle con sfondo bianco. I dati delle righe con i testi in rosso scuro devono essere necessariamente forniti.
B5: =iDG!B32 -> Condominio Palazzo Duck
B10: VALORE | C10: FORMATO | D10: DESCRIZIONE E SIGNIFICATO
B11: DATI RELATIVI ALL' AMMINISTRATORE
B12: Amministratore | C12: Testo | D12: Caratteristica di chi amministra, ovvero "in qualità di"
B13: dott. Pico de Paperis | C13: Testo | D13: Titolo professionale, Cognome e Nome o Ragione Sociale
B14: Viale degli Alberi Fioriti 22 | C14: Testo | D14: Indirizzo
B15: 99999 | C15: Testo | D15: CAP
B16: PAPEROPOLI | C16: Testo | D16: Città
B17: PP | C17: Testo | D17: Provincia
C18: Testo | D18: Telefono fisso
B19: cell. 300-0707007 | C19: Testo | D19: Cellulare
C20: Testo | D20: Indirizzo e-mail
C21: Testo | D21: Indirizzo pec
C22: Immagine | D22: Immagine della firma Dimensione dell'immagine: L x H = 7,70 cm x 2,70 cm in cm stampati, che corrisponde per una risoluzione di 37,80 pixel/cm a L x H = 290 pixel x 100 pixel.
B23: La procedura produce, fra le altre, delle comunicazioni che normalmente prima di essere recapitate devono essere firmate dall'amministratore. Questo può essere fatto apponendo una firma manuale dopo la stampa oppure producendo le comunicazioni direttamente con l'immagine della firma già apposta. Per realizzare questo occorre, preventivamente, inserire l'immagine della firma sui moduli che la prevedono. I moduli sono i documenti base utilizzati dalla procedura per produrre i documenti effettivi.
B24: Per inserire l'immagine della firma su tutti i moduli che la prevedono è possibile seguire il seguente procedimento: • Si scannerizza un foglio cartaceo sul quale l'amministratore ha apposto la sua firma ottendo così un file contenente l'immagine della firma. • Tramite un programma di elaborazione immagini tipo PAINT.NET, si ritaglia l'immagine della firma e eventualmente la si ridimensiona in modo che sia contenuta in un rettangolo di 7,70 x 2,70 cm di lato. Poi si rende lo sfondo trasparente e infine si salva l'immagine della firma in un file il cui formato permette la trasparenza dello sfondo, quale il formato png. • Si inserisce nella cella B22 l'immagine della firma con il comando INSERISCI IMMAGINE DA QUESTO DISPOSITIVO e scegliendo il file .png nel quale la firma è stata salvata. • Dopo averla inserita occorre dare un nome all' immagine, e questo nome deve essere necessariamente "firma". Per farlo si seleziona l'immagine cliccandoci sopra e si scrive "firma" nella Casella Nome di EXCEL ( è la prima casella della barra delle formule, ovvero quella che normalmente riporta il nome dell'elemento selezionato o della cella attiva, scrivendo solo "firma" senza le virgolette) • Dopo aver scritto il nome occorre necessariamente premere INVIO (non basta il clic con il mouse), assegnando così il nome "firma" all'immagine selezionata. • Si clicca sul pulsante "RIPORTA FIRMA SUI MODULI". Nel caso in cui potrebbero esserci delle vecchie firme sui moduli è bene eliminarle cliccando sul pulsante "ELIMINA FIRMA SUI MODULI"
B31: DATI GENERALI del CONDOMINIO
B32: Condominio Palazzo Duck | C32: Testo | D32: Nome ufficiale del Condominio ( Agenzia delle Entrate)
B33: Viale dei Platani 1 | C33: Testo | D33: Indirizzo di Ubicazione del condominio
B34: 99999 | C34: Testo | D34: C.A.P.
B35: PAPEROPOLI | C35: Testo | D35: Città
B36: PP | C36: Testo | D36: Provincia
B37: 99999990799 | C37: Testo | D37: Codice Fiscale del Condominio
B38: palduck@ggggmail.com | C38: Testo | D38: Indirizzo e-mail del Condominio
C39: Testo | D39: Indirizzo pec del Condominio
C40: Testo | D40: Sito WEB
B41: PalDuck | C41: Testo | D41: Codice del Condominio (attribuito dall'utilizzatore) | E41: Max 12 caratteri
B42: IT20J0760104400004010772334 | C42: Testo | D42: IBAN del conto corrente condominiale
B43: Condominio Palazzo Duck | C43: Testo | D43: Intestazione del conto corrente condominiale | E43: Max 68 caratteri
B51: DENOMINAZIONI DELLE TABELLE MILLESIMALI CONDOMINIALI DA UTILIZZARE NELLA RIPARTIZIONE DELLE SPESE
B52: Proprietà | C52: Testo | D52: Tabella A | E52: Max 24 caratteri
B53: Scala | C53: Testo | D53: Tabella B | E53: Max 24 caratteri
B54: Ascensore | C54: Testo | D54: Tabella C | E54: Max 24 caratteri
B55: Abitazioni | C55: Testo | D55: Tabella D | E55: Max 24 caratteri
B56: Negozi | C56: Testo | D56: Tabella E | E56: Max 24 caratteri
C57: Testo | D57: Tabella F | E57: Max 24 caratteri
C58: Testo | D58: Tabella G | E58: Max 24 caratteri
C59: Testo | D59: Tabella H | E59: Max 24 caratteri
C60: Testo | D60: Tabella I | E60: Max 24 caratteri
C61: Testo | D61: Tabella J | E61: Max 24 caratteri
B62: DATA E MODALITÀ DI APPROVAZIONE DELLE TABELLE MILLESIMALI
B63: 2021-09-07 | C63: Data | D63: Data di approvazione delle TABELLE MILLESIMALI
B64: Delibera Assembleare | C64: Testo | D64: Modalità di approvazione delle tabelle
B71: DATI CATASTALI UNITÀ IMMOBILIARE DI PROPRIETÀ CONDOMINIALE
C72: Testo | D72: Codice catastale Comune
C73: Testo | D73: Foglio
C74: Testo | D74: Particella
C75: Testo | D75: Sub
C76: Testo | D76: Zona
C77: Testo | D77: Categoria
C78: Testo | D78: Classe
C79: Testo | D79: Consistenza
C80: Testo | D80: Rendita
C81: Testo | D81: Indirizzo catastale
C82: Testo | D82: Piano
B86: CODICI IDENTIFICATIVI DELLE GESTIONI SPECIALI E DEI FONDI CHE SI DESIDERA INTEGRARE NELLA GESTIONE ORDINARIA
B87: PROSPETTI | C87: Testo | D87: Denominazione Gestione Speciale e/o Fondo n. 1 | E87: Max 24 caratteri
C88: Testo | D88: Denominazione Gestione Speciale e/o Fondo n. 2 | E88: Max 24 caratteri
C89: Testo | D89: Denominazione Gestione Speciale e/o Fondo n. 3 | E89: Max 24 caratteri
C90: Testo | D90: Denominazione Gestione Speciale e/o Fondo n. 4 | E90: Max 24 caratteri
C91: Testo | D91: Denominazione Gestione Speciale e/o Fondo n. 5 | E91: Max 24 caratteri
B96: DATI GENERALI DELL' ESERCIZIO CONTABILE
B97: 2024 | C97: Testo | D97: Esercizio condominiale (o anno) gestito
B98: 01/01/2024-31/12/2024 | C98: Testo | D98: Date inizio e fine esercizio
B100: 20/05/2024 | C100: Testo | D100: Data di approvazione del BILANCIO PREVENTIVO e PIANO DEI CONTI per l'Esercizio
B106: DATE DI SCADENZA DEI PAGAMENTI DELLE QUOTE E DELLE RATE | E106: TIPO DI RATA
B107: 2024-06-30 | C107: Data | D107: Scadenza pagamento Conguaglio a debito per l'esercizio precedente
B108: 2024-01-10 | C108: Data | D108: Scadenza pagamento 1a Rata | E108: TRIMESTRALE
B109: 2024-04-10 | C109: Data | D109: Scadenza pagamento 2a Rata | E109: TRIMESTRALE
B110: 2024-06-10 | C110: Data | D110: Scadenza pagamento 3a Rata | E110: TRIMESTRALE
B111: 2024-10-10 | C111: Data | D111: Scadenza pagamento 4a Rata | E111: TRIMESTRALE
C112: Data | D112: Scadenza pagamento 5a Rata
C113: Data | D113: Scadenza pagamento 6a Rata
C114: Data | D114: Scadenza pagamento 7a Rata
C115: Data | D115: Scadenza pagamento 8a Rata
C116: Data | D116: Scadenza pagamento 9a Rata
C117: Data | D117: Scadenza pagamento 10a Rata
C118: Data | D118: Scadenza pagamento 11a Rata
C119: Data | D119: Scadenza pagamento 12a Rata
B126: CRITERIO PER RESTITUZIONE AI CONDOMINI DEL CREDITO LORO DERIVANTE DALL' ESERCIZIO PRECEDENTE
B127: 2 - FRAZIONATO DALLA SECONDA RATA | C127: Testo | D127: 1 - IL CREDITO È SCONTATO PER INTERO A PARTIRE DALLA PRIMA RATA 2 - IL CREDITO È FRAZIONATO E SCONTATO DALLA SECONDA RATA
B131: DILAZIONI NEL VERSAMENTO DELLE QUOTE APPROVATE E CONCESSE DALL' ASSEMBLEA
B132: 90 | C132: Numero | D132: Numero di giorni di dilazione per pagamento rate
B133: 30 | C133: Numero | D133: Numero di giorni di dilazione per pagamento conguagli
B136: TESTI delle DICITURE per le INTESTAZIONI e PIÈ DI PAGINA dei fogli da stampare
B137: Condominio " PALAZZO DUCK " | C137: Testo | D137: Dicitura riportata nella Intestazione dei fogli stampati | E137: Max. 60 caratteri
B138: Condominio Pal. DUCK | C138: Testo | D138: Dicitura riportata nel Piè di Pagina dei fogli stampati | E138: Max. 25 caratteri
B141: OPZIONI A SCELTA DEL'UTILIZZATORE NELLA CREAZIONE DEI FILE PDF DELLE COMUNICAZIONI
B142: 0 | C142: Testo | D142: NUMERO DI FILE DA CREARE 0 - per creare un file della comunicazione per ogni condomino. 1 - per creare un unico file contenente la comunicazione per tutti i condomini.
B143: 0 | C143: Testo | D143: ELIMINAZIONE DEL FILE EXCEL DELLA COMUNICAZIONE 0 - per eliminare il file EXCEL utilizzato per creare il PDF. 1 - per mantenere il file EXCEL utilizzato per creare il PDF.
B144: Tabella A | C144: Testo | D144: TABELLA DEI MILLESIMI DA RIPORTARE NEI DATI DEL DESTINATARIO DELLA COMUNICAZIONE [Nel caso di comunicazione generica, la comunicazione sarà redatta solo per i condomini che hanno millesimi diversi da zero nella tabella a fianco indicata]
B145: 1 | C145: Testo | D145: SCRITTURA DELLA DATA DI STAMPA SULLA COPERTINA FASCICOLI 0 - per non riportare la data di stampa sulla copertina. 1 - per riportare la data di stampa sulla copertina.
B146: 0 | C146: Testo | D146: FASCICOLO DEI CONDOMINI 0 - stampa ad uso interno amministrazione (con dati di contatto per i singoli condomini). 1 - stampa destinata ai condomini (senza dati di contatto per i singoli condomini).
B147: 3 | C147: Testo | D147: FASCICOLO TABELLE MILLESIMALI 1 - Stampa Tabelle Millesimali per Condomini. 2 - Stampa Tabelle Millesimali per Unità Immobiliari e per Condomini. 3 - Stampa Tabelle Millesimali per Unità Funzionali, per Unità Immobiliari e per Condomini.
B148: 0 | C148: Testo | D148: PAGINE INTERNE FASCICOLI 0 - stampa pagine interne del fascicolo PDF in bianco e nero. 1 - stampa pagine interne del fascicolo PDF a colori.
B149: 0 | C149: Testo | D149: PROSPETTI DEI RIPARTI 0 - stampe senza le colonne di suddivisione delle quote fra proprietario e inquilino 1 - stampe con le colonne di suddivisione delle quote fra proprietario e inquilino
B150: 1 | C150: Testo | D150: FASCICOLI BILANCIO PREVENTIVO E RENDICONTO Il prospetto dei riparti da inserire è 0 - solo quello senza i millesimi 1 - solo quello con i millesimi 2 - entrambi

Sheet iUF (hidden)
B1: È consentito variare i valori delle sole celle con sfondo bianco. I dati delle colonne con colore del testo rosso scuro devono essere necessariamente forniti. | M1: 0
B2: Per aggiungere ulteriori unità funzionali occorre scoprire le righe nascoste e scrivere i relativi dati.
B5: =iDG!B32 -> Condominio Palazzo Duck
B7: UNITÀ FUNZIONALI
B9: CODICI IDENTIFICATIVI CONDOMINIALI | F9: UBICAZIONE REALE | L9: DESTINAZIONE
B10: Unità Funzionale Condominiale | C10: Unità Immobiliare cui appartiene | D10: Condomino proprietario | F10: Odonimo | G10: Civico | H10: Edificio | I10: Scala | J10: Piano | K10: Interno | L10: Utilizzazione reale
B11: UF01 | C11: U05 | D11: C05 | E11: Viale dei Platani | F11: Viale dei Platani | G11: 1 | H11: D | I11: D | J11: -1 | L11: Cantina
B12: UF02 | C12: U06 | D12: C05 | E12: Viale dei Platani | F12: Viale dei Platani | G12: 1 | H12: D | I12: D | J12: -1 | L12: Cantina
B13: UF03 | C13: U07 | D13: C06 | E13: Viale dei Platani | F13: Viale dei Platani | G13: 1 | H13: D | I13: D | J13: -1 | L13: Cantina
B14: UF04 | C14: U07 | D14: C06 | E14: Viale dei Platani | F14: Viale dei Platani | G14: 1 | H14: D | I14: D | J14: -1 | L14: Cantina
B15: UF05 | C15: U07 | D15: C06 | E15: Viale dei Platani | F15: Viale dei Platani | G15: 1 | H15: D | I15: D | J15: -1 | L15: Autoclave
B16: UF06 | C16: U07 | D16: C06 | E16: Viale dei Platani | F16: Viale dei Platani | G16: 1 | H16: D | I16: D | J16: -1 | L16: Autoclave
B17: UF07 | C17: U05 | D17: C05 | E17: Viale dei Platani | F17: Viale dei Platani | G17: 1 | H17: D | I17: D | J17: -1 | L17: Autoclave
B18: UF08 | C18: U06 | D18: C05 | E18: Viale dei Platani | F18: Viale dei Platani | G18: 1 | H18: D | I18: D | J18: -1 | L18: Autoclave
B19: UF09 | C19: U08 | D19: C06 | E19: Via degli Alberi di Pesco | F19: Via degli Alberi di Pesco | G19: 3D | H19: D | I19: D | J19: -1 | L19: Garage
B20: UF10 | C20: U09 | D20: C05 | E20: Via degli Alberi di Pesco | F20: Via degli Alberi di Pesco | G20: 3D | H20: D | I20: D | J20: -1 | L20: Garage
B21: UF11 | C21: U01 | D21: C01 | E21: Via degli Alberi di Ciliegio | F21: Via degli Alberi di Ciliegio | G21: 90 | H21: D | I21: D | J21: 0 | L21: Negozio
B22: UF12 | C22: U02 | D22: C02 | E22: Via degli Alberi di Ciliegio | F22: Via degli Alberi di Ciliegio | G22: 92 | H22: D | I22: D | J22: 0 | L22: Negozio
B23: UF13 | C23: U03 | D23: C03 | E23: Via degli Alberi di Ciliegio | F23: Via degli Alberi di Ciliegio | G23: 94 | H23: D | I23: D | J23: 0 | L23: Negozio
B24: UF14 | C24: U04 | D24: C04 | E24: Via degli Alberi di Ciliegio | F24: Via degli Alberi di Ciliegio | G24: 96 | H24: D | I24: D | J24: 0 | L24: Negozio
B25: UF15 | C25: U07 | D25: C06 | E25: Viale dei Platani | F25: Viale dei Platani | G25: 1 | H25: D | I25: D | J25: 0 | L25: Ripostiglio
B26: UF16 | C26: U05 | D26: C05 | E26: Viale dei Platani | F26: Viale dei Platani | G26: 1 | H26: D | I26: D | J26: 0 | L26: Ripostiglio
B27: UF17 | C27: U05 | D27: C05 | E27: Viale dei Platani | F27: Viale dei Platani | G27: 1 | H27: D | I27: D | J27: 1 | L27: Abitazione
B28: UF18 | C28: U06 | D28: C05 | E28: Viale dei Platani | F28: Viale dei Platani | G28: 1 | H28: D | I28: D | J28: 1 | L28: Abitazione
B29: UF19 | C29: U07 | D29: C06 | E29: Viale dei Platani | F29: Viale dei Platani | G29: 1 | H29: D | I29: D | J29: 2 | L29: Abitazione
B30: UF20 | C30: U07 | D30: C06 | E30: Viale dei Platani | F30: Viale dei Platani | G30: 1 | H30: D | I30: D | J30: 3 | L30: Mansarda
B31: UF21 | C31: U07 | D31: C06 | E31: Viale dei Platani | F31: Viale dei Platani | G31: 1 | H31: D | I31: D | J31: -1 | L31: Sottoscala
B32: UF22
B33: UF23
B34: UF24
B35: UF25
B36: UF26
B37: UF27
B38: UF28
B39: UF29
B40: UF30
B41: UF31
B42: UF32
B43: UF33
B44: UF34
B45: UF35
B46: UF36
B47: UF37
B48: UF38
B49: UF39
B50: UF40
B51: UF41
B52: UF42
B53: UF43
B54: UF44
B55: UF45
B56: UF46
B57: UF47
B58: UF48
B59: UF49
B60: UF50
B61: UF51
B62: UF52
B63: UF53
B64: UF54
B65: UF55
B66: UF56
B67: UF57
B68: UF58
B69: UF59
B70: UF60
B71: UF61
B72: UF62
B73: UF63
B74: UF64
B75: UF65
B76: UF66
B77: UF67
B78: UF68
B79: UF69
B80: UF70
B81: UF71
B82: UF72
B83: UF73
B84: UF74
B85: UF75
B86: UF76
B87: UF77
B88: UF78
B89: UF79
B90: UF80
B91: UF81
B92: UF82
B93: UF83
B94: UF84
B95: UF85
B96: UF86
B97: UF87
B98: UF88
B99: UF89
B100: UF90
B101: UF91
B102: UF92
B103: UF93
B104: UF94
B105: UF95
B106: UF96
B107: UF97
B108: UF98
B109: UF99
A110: 0 | M110: 0

Sheet iUI (hidden)
B1: È consentito variare i valori delle sole celle con sfondo bianco.
B2: I dati delle colonne con colore del testo rosso scuro devono essere necessariamente forniti.
B3: Per aggiungere ulteriori unità catastali occorre scoprire le righe nascoste e scrivere i relativi dati.
B5: =iDG!B32 -> Condominio Palazzo Duck
B7: UNITÀ IMMOBILIARI o CATASTALI
B9: CODICI IDENTIFICATIVI CONDOMINIALI | F9: PROPRIETÀ | G9: IDENTIFICATIVI CATASTALI | Q9: UBICAZIONE CATASTALE | X9: DESTINAZIONE CATASTALE
B10: Unità Immobiliare o Catastale | C10: Unità Funzionali costituenti | D10: Condomino Proprietario | F10: Condomino | G10: Codice Catastale Comune | H10: Foglio | I10: Particella | J10: Subalterno | K10: Zona Censuaria | L10: Categoria | M10: Classe | N10: Consistenza (vani) | O10: Consistenza (mq) | P10: Rendita (euro) | Q10: Comune | R10: Odonimo | S10: Civico | T10: Edificio | U10: Scala | V10: Piano | W10: Interno | X10: Utilizzazione Catastale
B11: U01 | C11: UF11 | D11: =IF(G11<>"",IFERROR(VLOOKUP(B11,iUF!$C$11:$D$109,2,FALSE),""),"") -> C01 | F11: =IF(D11<>"",IFERROR(VLOOKUP(D11,iCONDOMINI!$B$11:$C$109,2,FALSE),""),"") -> Paperoga | G11: C999 | H11: 77 | I11: 121 | J11: 2 | K11: 1 | L11: C/1 | M11: 2 | O11: 43 | P11: 872.76 | Q11: PAPEROPOLI | R11: Via degli Alberi Di Ciliegio | S11: 122 | V11: PT | X11: NEGOZIO
B12: U02 | C12: UF12 | D12: =IF(G12<>"",IFERROR(VLOOKUP(B12,iUF!$C$11:$D$109,2,FALSE),""),"") -> C02 | F12: =IF(D12<>"",IFERROR(VLOOKUP(D12,iCONDOMINI!$B$11:$C$109,2,FALSE),""),"") -> Ciccio | G12: C999 | H12: 77 | I12: 121 | J12: 3 | K12: 1 | L12: C/1 | M12: 2 | O12: 30 | P12: 608.9 | Q12: PAPEROPOLI | R12: Via degli Alberi Di Ciliegio | S12: 120 | V12: PT | X12: NEGOZIO
B13: U03 | C13: UF13 | D13: =IF(G13<>"",IFERROR(VLOOKUP(B13,iUF!$C$11:$D$109,2,FALSE),""),"") -> C03 | E13: 81.52000427 | F13: =IF(D13<>"",IFERROR(VLOOKUP(D13,iCONDOMINI!$B$11:$C$109,2,FALSE),""),"") -> Gastone | G13: C999 | H13: 77 | I13: 121 | J13: 4 | K13: 1 | L13: C/1 | M13: 2 | O13: 60 | P13: 1217.81 | Q13: PAPEROPOLI | R13: Via degli Alberi Di Ciliegio | S13: 118 | V13: PT | X13: NEGOZIO
B14: U04 | C14: UF14 | D14: =IF(G14<>"",IFERROR(VLOOKUP(B14,iUF!$C$11:$D$109,2,FALSE),""),"") -> C04 | F14: =IF(D14<>"",IFERROR(VLOOKUP(D14,iCONDOMINI!$B$11:$C$109,2,FALSE),""),"") -> I tre nipotini | G14: C999 | H14: 77 | I14: 121 | J14: 5 | K14: 1 | L14: C/1 | M14: 3 | O14: 81 | P14: 1915.95 | Q14: PAPEROPOLI | R14: Via degli Alberi Di Ciliegio | S14: 116 | V14: PT | X14: NEGOZIO
B15: U05 | C15: UF01+UF07+UF16+UF17 | D15: =IF(G15<>"",IFERROR(VLOOKUP(B15,iUF!$C$11:$D$109,2,FALSE),""),"") -> C05 | F15: =IF(D15<>"",IFERROR(VLOOKUP(D15,iCONDOMINI!$B$11:$C$109,2,FALSE),""),"") -> Nonna Papera | G15: C999 | H15: 77 | I15: 121 | J15: 6 | K15: 1 | L15: A/2 | M15: 2 | N15: 7,5 | P15: 619.75 | Q15: PAPEROPOLI | R15: Viale dei Platani | S15: 1 | V15: P1 | W15: 1 | X15: APPARTAMENTO
B16: U06 | C16: UF02+UF08+UF18 | D16: =IF(G16<>"",IFERROR(VLOOKUP(B16,iUF!$C$11:$D$109,2,FALSE),""),"") -> C05 | F16: =IF(D16<>"",IFERROR(VLOOKUP(D16,iCONDOMINI!$B$11:$C$109,2,FALSE),""),"") -> Nonna Papera | G16: C999 | H16: 77 | I16: 121 | J16: 7 | K16: 1 | L16: A/2 | M16: 2 | N16: 6 | P16: 495.8 | Q16: PAPEROPOLI | R16: Viale dei Platani | S16: 1 | V16: P1 | W16: 2 | X16: APPARTAMENTO
B17: U07 | C17: UF03+UF04+UF05+UF06+UF15+ UF19+UF20+UF21 | D17: =IF(G17<>"",IFERROR(VLOOKUP(B17,iUF!$C$11:$D$109,2,FALSE),""),"") -> C06 | F17: =IF(D17<>"",IFERROR(VLOOKUP(D17,iCONDOMINI!$B$11:$C$109,2,FALSE),""),"") -> Fidanzati Paperino-Paperina | G17: C999 | H17: 77 | I17: 121 | J17: 8 | K17: 1 | L17: A/2 | M17: 3 | N17: 14,5 | P17: 1422.84 | Q17: PAPEROPOLI | R17: Viale dei Platani | S17: 1 | V17: P2 | W17: 3 | X17: APPARTAMENTO
B18: U08 | C18: UF09 | D18: =IF(G18<>"",IFERROR(VLOOKUP(B18,iUF!$C$11:$D$109,2,FALSE),""),"") -> C06 | F18: =IF(D18<>"",IFERROR(VLOOKUP(D18,iCONDOMINI!$B$11:$C$109,2,FALSE),""),"") -> Fidanzati Paperino-Paperina | G18: C999 | H18: 77 | I18: 121 | J18: 9 | K18: 1 | L18: C/6 | M18: 4 | O18: 43 | P18: 99.93 | Q18: PAPEROPOLI | R18: Via degli Alberi di Pesco | S18: 3A | V18: S1 | X18: GARAGE
B19: U09 | C19: UF10 | D19: =IF(G19<>"",IFERROR(VLOOKUP(B19,iUF!$C$11:$D$109,2,FALSE),""),"") -> C05 | F19: =IF(D19<>"",IFERROR(VLOOKUP(D19,iCONDOMINI!$B$11:$C$109,2,FALSE),""),"") -> Nonna Papera | G19: C999 | H19: 77 | I19: 121 | J19: 10 | K19: 1 | L19: C/6 | M19: 4 | O19: 45 | P19: 104.58 | Q19: PAPEROPOLI | R19: Via degli Alberi di Pesco | S19: 3A | V19: S1 | X19: GARAGE
B20: U10 | D20: =IF(G20<>"",IFERROR(VLOOKUP(B20,iUF!$C$11:$D$109,2,FALSE),""),"") ->  | F20: =IF(D20<>"",IFERROR(VLOOKUP(D20,iCONDOMINI!$B$11:$C$109,2,FALSE),""),"") -> 
B21: U11 | D21: =IF(G21<>"",IFERROR(VLOOKUP(B21,iUF!$C$11:$D$109,2,FALSE),""),"") ->  | F21: =IF(D21<>"",IFERROR(VLOOKUP(D21,iCONDOMINI!$B$11:$C$109,2,FALSE),""),"") -> 
B22: U12 | D22: =IF(G22<>"",IFERROR(VLOOKUP(B22,iUF!$C$11:$D$109,2,FALSE),""),"") ->  | F22: =IF(D22<>"",IFERROR(VLOOKUP(D22,iCONDOMINI!$B$11:$C$109,2,FALSE),""),"") -> 
B23: U13 | D23: =IF(G23<>"",IFERROR(VLOOKUP(B23,iUF!$C$11:$D$109,2,FALSE),""),"") ->  | F23: =IF(D23<>"",IFERROR(VLOOKUP(D23,iCONDOMINI!$B$11:$C$109,2,FALSE),""),"") -> 
B24: U14 | D24: =IF(G24<>"",IFERROR(VLOOKUP(B24,iUF!$C$11:$D$109,2,FALSE),""),"") ->  | F24: =IF(D24<>"",IFERROR(VLOOKUP(D24,iCONDOMINI!$B$11:$C$109,2,FALSE),""),"") -> 
B25: U15 | D25: =IF(G25<>"",IFERROR(VLOOKUP(B25,iUF!$C$11:$D$109,2,FALSE),""),"") ->  | F25: =IF(D25<>"",IFERROR(VLOOKUP(D25,iCONDOMINI!$B$11:$C$109,2,FALSE),""),"") -> 
B26: U16 | D26: =IF(G26<>"",IFERROR(VLOOKUP(B26,iUF!$C$11:$D$109,2,FALSE),""),"") ->  | F26: =IF(D26<>"",IFERROR(VLOOKUP(D26,iCONDOMINI!$B$11:$C$109,2,FALSE),""),"") -> 
B27: U17 | D27: =IF(G27<>"",IFERROR(VLOOKUP(B27,iUF!$C$11:$D$109,2,FALSE),""),"") ->  | F27: =IF(D27<>"",IFERROR(VLOOKUP(D27,iCONDOMINI!$B$11:$C$109,2,FALSE),""),"") -> 
B28: U18 | D28: =IF(G28<>"",IFERROR(VLOOKUP(B28,iUF!$C$11:$D$109,2,FALSE),""),"") ->  | F28: =IF(D28<>"",IFERROR(VLOOKUP(D28,iCONDOMINI!$B$11:$C$109,2,FALSE),""),"") -> 
B29: U19 | D29: =IF(G29<>"",IFERROR(VLOOKUP(B29,iUF!$C$11:$D$109,2,FALSE),""),"") ->  | F29: =IF(D29<>"",IFERROR(VLOOKUP(D29,iCONDOMINI!$B$11:$C$109,2,FALSE),""),"") -> 
B30: U20 | D30: =IF(G30<>"",IFERROR(VLOOKUP(B30,iUF!$C$11:$D$109,2,FALSE),""),"") ->  | F30: =IF(D30<>"",IFERROR(VLOOKUP(D30,iCONDOMINI!$B$11:$C$109,2,FALSE),""),"") -> 
B31: U21 | D31: =IF(G31<>"",IFERROR(VLOOKUP(B31,iUF!$C$11:$D$109,2,FALSE),""),"") ->  | F31: =IF(D31<>"",IFERROR(VLOOKUP(D31,iCONDOMINI!$B$11:$C$109,2,FALSE),""),"") -> 
B32: U22 | D32: =IF(G32<>"",IFERROR(VLOOKUP(B32,iUF!$C$11:$D$109,2,FALSE),""),"") ->  | F32: =IF(D32<>"",IFERROR(VLOOKUP(D32,iCONDOMINI!$B$11:$C$109,2,FALSE),""),"") -> 
B33: U23 | D33: =IF(G33<>"",IFERROR(VLOOKUP(B33,iUF!$C$11:$D$109,2,FALSE),""),"") ->  | F33: =IF(D33<>"",IFERROR(VLOOKUP(D33,iCONDOMINI!$B$11:$C$109,2,FALSE),""),"") -> 
B34: U24 | D34: =IF(G34<>"",IFERROR(VLOOKUP(B34,iUF!$C$11:$D$109,2,FALSE),""),"") ->  | F34: =IF(D34<>"",IFERROR(VLOOKUP(D34,iCONDOMINI!$B$11:$C$109,2,FALSE),""),"") -> 
B35: U25 | D35: =IF(G35<>"",IFERROR(VLOOKUP(B35,iUF!$C$11:$D$109,2,FALSE),""),"") ->  | F35: =IF(D35<>"",IFERROR(VLOOKUP(D35,iCONDOMINI!$B$11:$C$109,2,FALSE),""),"") -> 
B36: U26 | D36: =IF(G36<>"",IFERROR(VLOOKUP(B36,iUF!$C$11:$D$109,2,FALSE),""),"") ->  | F36: =IF(D36<>"",IFERROR(VLOOKUP(D36,iCONDOMINI!$B$11:$C$109,2,FALSE),""),"") -> 
B37: U27 | D37: =IF(G37<>"",IFERROR(VLOOKUP(B37,iUF!$C$11:$D$109,2,FALSE),""),"") ->  | F37: =IF(D37<>"",IFERROR(VLOOKUP(D37,iCONDOMINI!$B$11:$C$109,2,FALSE),""),"") -> 
B38: U28 | D38: =IF(G38<>"",IFERROR(VLOOKUP(B38,iUF!$C$11:$D$109,2,FALSE),""),"") ->  | F38: =IF(D38<>"",IFERROR(VLOOKUP(D38,iCONDOMINI!$B$11:$C$109,2,FALSE),""),"") -> 
B39: U29 | D39: =IF(G39<>"",IFERROR(VLOOKUP(B39,iUF!$C$11:$D$109,2,FALSE),""),"") ->  | F39: =IF(D39<>"",IFERROR(VLOOKUP(D39,iCONDOMINI!$B$11:$C$109,2,FALSE),""),"") -> 
B40: U30 | D40: =IF(G40<>"",IFERROR(VLOOKUP(B40,iUF!$C$11:$D$109,2,FALSE),""),"") ->  | F40: =IF(D40<>"",IFERROR(VLOOKUP(D40,iCONDOMINI!$B$11:$C$109,2,FALSE),""),"") -> 
B41: U31 | D41: =IF(G41<>"",IFERROR(VLOOKUP(B41,iUF!$C$11:$D$109,2,FALSE),""),"") ->  | F41: =IF(D41<>"",IFERROR(VLOOKUP(D41,iCONDOMINI!$B$11:$C$109,2,FALSE),""),"") -> 
B42: U32 | D42: =IF(G42<>"",IFERROR(VLOOKUP(B42,iUF!$C$11:$D$109,2,FALSE),""),"") ->  | F42: =IF(D42<>"",IFERROR(VLOOKUP(D42,iCONDOMINI!$B$11:$C$109,2,FALSE),""),"") -> 
B43: U33 | D43: =IF(G43<>"",IFERROR(VLOOKUP(B43,iUF!$C$11:$D$109,2,FALSE),""),"") ->  | F43: =IF(D43<>"",IFERROR(VLOOKUP(D43,iCONDOMINI!$B$11:$C$109,2,FALSE),""),"") -> 
B44: U34 | D44: =IF(G44<>"",IFERROR(VLOOKUP(B44,iUF!$C$11:$D$109,2,FALSE),""),"") ->  | F44: =IF(D44<>"",IFERROR(VLOOKUP(D44,iCONDOMINI!$B$11:$C$109,2,FALSE),""),"") -> 
B45: U35 | D45: =IF(G45<>"",IFERROR(VLOOKUP(B45,iUF!$C$11:$D$109,2,FALSE),""),"") ->  | F45: =IF(D45<>"",IFERROR(VLOOKUP(D45,iCONDOMINI!$B$11:$C$109,2,FALSE),""),"") -> 
B46: U36 | D46: =IF(G46<>"",IFERROR(VLOOKUP(B46,iUF!$C$11:$D$109,2,FALSE),""),"") ->  | F46: =IF(D46<>"",IFERROR(VLOOKUP(D46,iCONDOMINI!$B$11:$C$109,2,FALSE),""),"") -> 
B47: U37 | D47: =IF(G47<>"",IFERROR(VLOOKUP(B47,iUF!$C$11:$D$109,2,FALSE),""),"") ->  | F47: =IF(D47<>"",IFERROR(VLOOKUP(D47,iCONDOMINI!$B$11:$C$109,2,FALSE),""),"") -> 
B48: U38 | D48: =IF(G48<>"",IFERROR(VLOOKUP(B48,iUF!$C$11:$D$109,2,FALSE),""),"") ->  | F48: =IF(D48<>"",IFERROR(VLOOKUP(D48,iCONDOMINI!$B$11:$C$109,2,FALSE),""),"") -> 
B49: U39 | D49: =IF(G49<>"",IFERROR(VLOOKUP(B49,iUF!$C$11:$D$109,2,FALSE),""),"") ->  | F49: =IF(D49<>"",IFERROR(VLOOKUP(D49,iCONDOMINI!$B$11:$C$109,2,FALSE),""),"") -> 
B50: U40 | D50: =IF(G50<>"",IFERROR(VLOOKUP(B50,iUF!$C$11:$D$109,2,FALSE),""),"") ->  | F50: =IF(D50<>"",IFERROR(VLOOKUP(D50,iCONDOMINI!$B$11:$C$109,2,FALSE),""),"") -> 
B51: U41 | D51: =IF(G51<>"",IFERROR(VLOOKUP(B51,iUF!$C$11:$D$109,2,FALSE),""),"") ->  | F51: =IF(D51<>"",IFERROR(VLOOKUP(D51,iCONDOMINI!$B$11:$C$109,2,FALSE),""),"") -> 
B52: U42 | D52: =IF(G52<>"",IFERROR(VLOOKUP(B52,iUF!$C$11:$D$109,2,FALSE),""),"") ->  | F52: =IF(D52<>"",IFERROR(VLOOKUP(D52,iCONDOMINI!$B$11:$C$109,2,FALSE),""),"") -> 
B53: U43 | D53: =IF(G53<>"",IFERROR(VLOOKUP(B53,iUF!$C$11:$D$109,2,FALSE),""),"") ->  | F53: =IF(D53<>"",IFERROR(VLOOKUP(D53,iCONDOMINI!$B$11:$C$109,2,FALSE),""),"") -> 
B54: U44 | D54: =IF(G54<>"",IFERROR(VLOOKUP(B54,iUF!$C$11:$D$109,2,FALSE),""),"") ->  | F54: =IF(D54<>"",IFERROR(VLOOKUP(D54,iCONDOMINI!$B$11:$C$109,2,FALSE),""),"") -> 
B55: U45 | D55: =IF(G55<>"",IFERROR(VLOOKUP(B55,iUF!$C$11:$D$109,2,FALSE),""),"") ->  | F55: =IF(D55<>"",IFERROR(VLOOKUP(D55,iCONDOMINI!$B$11:$C$109,2,FALSE),""),"") -> 
B56: U46 | D56: =IF(G56<>"",IFERROR(VLOOKUP(B56,iUF!$C$11:$D$109,2,FALSE),""),"") ->  | F56: =IF(D56<>"",IFERROR(VLOOKUP(D56,iCONDOMINI!$B$11:$C$109,2,FALSE),""),"") -> 
B57: U47 | D57: =IF(G57<>"",IFERROR(VLOOKUP(B57,iUF!$C$11:$D$109,2,FALSE),""),"") ->  | F57: =IF(D57<>"",IFERROR(VLOOKUP(D57,iCONDOMINI!$B$11:$C$109,2,FALSE),""),"") -> 
B58: U48 | D58: =IF(G58<>"",IFERROR(VLOOKUP(B58,iUF!$C$11:$D$109,2,FALSE),""),"") ->  | F58: =IF(D58<>"",IFERROR(VLOOKUP(D58,iCONDOMINI!$B$11:$C$109,2,FALSE),""),"") -> 
B59: U49 | D59: =IF(G59<>"",IFERROR(VLOOKUP(B59,iUF!$C$11:$D$109,2,FALSE),""),"") ->  | F59: =IF(D59<>"",IFERROR(VLOOKUP(D59,iCONDOMINI!$B$11:$C$109,2,FALSE),""),"") -> 
B60: U50 | D60: =IF(G60<>"",IFERROR(VLOOKUP(B60,iUF!$C$11:$D$109,2,FALSE),""),"") ->  | F60: =IF(D60<>"",IFERROR(VLOOKUP(D60,iCONDOMINI!$B$11:$C$109,2,FALSE),""),"") -> 
B61: U51 | D61: =IF(G61<>"",IFERROR(VLOOKUP(B61,iUF!$C$11:$D$109,2,FALSE),""),"") ->  | F61: =IF(D61<>"",IFERROR(VLOOKUP(D61,iCONDOMINI!$B$11:$C$109,2,FALSE),""),"") -> 
B62: U52 | D62: =IF(G62<>"",IFERROR(VLOOKUP(B62,iUF!$C$11:$D$109,2,FALSE),""),"") ->  | F62: =IF(D62<>"",IFERROR(VLOOKUP(D62,iCONDOMINI!$B$11:$C$109,2,FALSE),""),"") -> 
B63: U53 | D63: =IF(G63<>"",IFERROR(VLOOKUP(B63,iUF!$C$11:$D$109,2,FALSE),""),"") ->  | F63: =IF(D63<>"",IFERROR(VLOOKUP(D63,iCONDOMINI!$B$11:$C$109,2,FALSE),""),"") -> 
B64: U54 | D64: =IF(G64<>"",IFERROR(VLOOKUP(B64,iUF!$C$11:$D$109,2,FALSE),""),"") ->  | F64: =IF(D64<>"",IFERROR(VLOOKUP(D64,iCONDOMINI!$B$11:$C$109,2,FALSE),""),"") -> 
B65: U55 | D65: =IF(G65<>"",IFERROR(VLOOKUP(B65,iUF!$C$11:$D$109,2,FALSE),""),"") ->  | F65: =IF(D65<>"",IFERROR(VLOOKUP(D65,iCONDOMINI!$B$11:$C$109,2,FALSE),""),"") -> 
B66: U56 | D66: =IF(G66<>"",IFERROR(VLOOKUP(B66,iUF!$C$11:$D$109,2,FALSE),""),"") ->  | F66: =IF(D66<>"",IFERROR(VLOOKUP(D66,iCONDOMINI!$B$11:$C$109,2,FALSE),""),"") -> 
B67: U57 | D67: =IF(G67<>"",IFERROR(VLOOKUP(B67,iUF!$C$11:$D$109,2,FALSE),""),"") ->  | F67: =IF(D67<>"",IFERROR(VLOOKUP(D67,iCONDOMINI!$B$11:$C$109,2,FALSE),""),"") -> 
B68: U58 | D68: =IF(G68<>"",IFERROR(VLOOKUP(B68,iUF!$C$11:$D$109,2,FALSE),""),"") ->  | F68: =IF(D68<>"",IFERROR(VLOOKUP(D68,iCONDOMINI!$B$11:$C$109,2,FALSE),""),"") -> 
B69: U59 | D69: =IF(G69<>"",IFERROR(VLOOKUP(B69,iUF!$C$11:$D$109,2,FALSE),""),"") ->  | F69: =IF(D69<>"",IFERROR(VLOOKUP(D69,iCONDOMINI!$B$11:$C$109,2,FALSE),""),"") -> 
B70: U60 | D70: =IF(G70<>"",IFERROR(VLOOKUP(B70,iUF!$C$11:$D$109,2,FALSE),""),"") ->  | F70: =IF(D70<>"",IFERROR(VLOOKUP(D70,iCONDOMINI!$B$11:$C$109,2,FALSE),""),"") -> 
B71: U61 | D71: =IF(G71<>"",IFERROR(VLOOKUP(B71,iUF!$C$11:$D$109,2,FALSE),""),"") ->  | F71: =IF(D71<>"",IFERROR(VLOOKUP(D71,iCONDOMINI!$B$11:$C$109,2,FALSE),""),"") -> 
B72: U62 | D72: =IF(G72<>"",IFERROR(VLOOKUP(B72,iUF!$C$11:$D$109,2,FALSE),""),"") ->  | F72: =IF(D72<>"",IFERROR(VLOOKUP(D72,iCONDOMINI!$B$11:$C$109,2,FALSE),""),"") -> 
B73: U63 | D73: =IF(G73<>"",IFERROR(VLOOKUP(B73,iUF!$C$11:$D$109,2,FALSE),""),"") ->  | F73: =IF(D73<>"",IFERROR(VLOOKUP(D73,iCONDOMINI!$B$11:$C$109,2,FALSE),""),"") -> 
B74: U64 | D74: =IF(G74<>"",IFERROR(VLOOKUP(B74,iUF!$C$11:$D$109,2,FALSE),""),"") ->  | F74: =IF(D74<>"",IFERROR(VLOOKUP(D74,iCONDOMINI!$B$11:$C$109,2,FALSE),""),"") -> 
B75: U65 | D75: =IF(G75<>"",IFERROR(VLOOKUP(B75,iUF!$C$11:$D$109,2,FALSE),""),"") ->  | F75: =IF(D75<>"",IFERROR(VLOOKUP(D75,iCONDOMINI!$B$11:$C$109,2,FALSE),""),"") -> 
B76: U66 | D76: =IF(G76<>"",IFERROR(VLOOKUP(B76,iUF!$C$11:$D$109,2,FALSE),""),"") ->  | F76: =IF(D76<>"",IFERROR(VLOOKUP(D76,iCONDOMINI!$B$11:$C$109,2,FALSE),""),"") -> 
B77: U67 | D77: =IF(G77<>"",IFERROR(VLOOKUP(B77,iUF!$C$11:$D$109,2,FALSE),""),"") ->  | F77: =IF(D77<>"",IFERROR(VLOOKUP(D77,iCONDOMINI!$B$11:$C$109,2,FALSE),""),"") -> 
B78: U68 | D78: =IF(G78<>"",IFERROR(VLOOKUP(B78,iUF!$C$11:$D$109,2,FALSE),""),"") ->  | F78: =IF(D78<>"",IFERROR(VLOOKUP(D78,iCONDOMINI!$B$11:$C$109,2,FALSE),""),"") -> 
B79: U69 | D79: =IF(G79<>"",IFERROR(VLOOKUP(B79,iUF!$C$11:$D$109,2,FALSE),""),"") ->  | F79: =IF(D79<>"",IFERROR(VLOOKUP(D79,iCONDOMINI!$B$11:$C$109,2,FALSE),""),"") -> 
B80: U70 | D80: =IF(G80<>"",IFERROR(VLOOKUP(B80,iUF!$C$11:$D$109,2,FALSE),""),"") ->  | F80: =IF(D80<>"",IFERROR(VLOOKUP(D80,iCONDOMINI!$B$11:$C$109,2,FALSE),""),"") -> 
B81: U71 | D81: =IF(G81<>"",IFERROR(VLOOKUP(B81,iUF!$C$11:$D$109,2,FALSE),""),"") ->  | F81: =IF(D81<>"",IFERROR(VLOOKUP(D81,iCONDOMINI!$B$11:$C$109,2,FALSE),""),"") -> 
B82: U72 | D82: =IF(G82<>"",IFERROR(VLOOKUP(B82,iUF!$C$11:$D$109,2,FALSE),""),"") ->  | F82: =IF(D82<>"",IFERROR(VLOOKUP(D82,iCONDOMINI!$B$11:$C$109,2,FALSE),""),"") -> 
B83: U73 | D83: =IF(G83<>"",IFERROR(VLOOKUP(B83,iUF!$C$11:$D$109,2,FALSE),""),"") ->  | F83: =IF(D83<>"",IFERROR(VLOOKUP(D83,iCONDOMINI!$B$11:$C$109,2,FALSE),""),"") -> 
B84: U74 | D84: =IF(G84<>"",IFERROR(VLOOKUP(B84,iUF!$C$11:$D$109,2,FALSE),""),"") ->  | F84: =IF(D84<>"",IFERROR(VLOOKUP(D84,iCONDOMINI!$B$11:$C$109,2,FALSE),""),"") -> 
B85: U75 | D85: =IF(G85<>"",IFERROR(VLOOKUP(B85,iUF!$C$11:$D$109,2,FALSE),""),"") ->  | F85: =IF(D85<>"",IFERROR(VLOOKUP(D85,iCONDOMINI!$B$11:$C$109,2,FALSE),""),"") -> 
B86: U76 | D86: =IF(G86<>"",IFERROR(VLOOKUP(B86,iUF!$C$11:$D$109,2,FALSE),""),"") ->  | F86: =IF(D86<>"",IFERROR(VLOOKUP(D86,iCONDOMINI!$B$11:$C$109,2,FALSE),""),"") -> 
B87: U77 | D87: =IF(G87<>"",IFERROR(VLOOKUP(B87,iUF!$C$11:$D$109,2,FALSE),""),"") ->  | F87: =IF(D87<>"",IFERROR(VLOOKUP(D87,iCONDOMINI!$B$11:$C$109,2,FALSE),""),"") -> 
B88: U78 | D88: =IF(G88<>"",IFERROR(VLOOKUP(B88,iUF!$C$11:$D$109,2,FALSE),""),"") ->  | F88: =IF(D88<>"",IFERROR(VLOOKUP(D88,iCONDOMINI!$B$11:$C$109,2,FALSE),""),"") -> 
B89: U79 | D89: =IF(G89<>"",IFERROR(VLOOKUP(B89,iUF!$C$11:$D$109,2,FALSE),""),"") ->  | F89: =IF(D89<>"",IFERROR(VLOOKUP(D89,iCONDOMINI!$B$11:$C$109,2,FALSE),""),"") -> 
B90: U80 | D90: =IF(G90<>"",IFERROR(VLOOKUP(B90,iUF!$C$11:$D$109,2,FALSE),""),"") ->  | F90: =IF(D90<>"",IFERROR(VLOOKUP(D90,iCONDOMINI!$B$11:$C$109,2,FALSE),""),"") -> 
B91: U81 | D91: =IF(G91<>"",IFERROR(VLOOKUP(B91,iUF!$C$11:$D$109,2,FALSE),""),"") ->  | F91: =IF(D91<>"",IFERROR(VLOOKUP(D91,iCONDOMINI!$B$11:$C$109,2,FALSE),""),"") -> 
B92: U82 | D92: =IF(G92<>"",IFERROR(VLOOKUP(B92,iUF!$C$11:$D$109,2,FALSE),""),"") ->  | F92: =IF(D92<>"",IFERROR(VLOOKUP(D92,iCONDOMINI!$B$11:$C$109,2,FALSE),""),"") -> 
B93: U83 | D93: =IF(G93<>"",IFERROR(VLOOKUP(B93,iUF!$C$11:$D$109,2,FALSE),""),"") ->  | F93: =IF(D93<>"",IFERROR(VLOOKUP(D93,iCONDOMINI!$B$11:$C$109,2,FALSE),""),"") -> 
B94: U84 | D94: =IF(G94<>"",IFERROR(VLOOKUP(B94,iUF!$C$11:$D$109,2,FALSE),""),"") ->  | F94: =IF(D94<>"",IFERROR(VLOOKUP(D94,iCONDOMINI!$B$11:$C$109,2,FALSE),""),"") -> 
B95: U85 | D95: =IF(G95<>"",IFERROR(VLOOKUP(B95,iUF!$C$11:$D$109,2,FALSE),""),"") ->  | F95: =IF(D95<>"",IFERROR(VLOOKUP(D95,iCONDOMINI!$B$11:$C$109,2,FALSE),""),"") -> 
B96: U86 | D96: =IF(G96<>"",IFERROR(VLOOKUP(B96,iUF!$C$11:$D$109,2,FALSE),""),"") ->  | F96: =IF(D96<>"",IFERROR(VLOOKUP(D96,iCONDOMINI!$B$11:$C$109,2,FALSE),""),"") -> 
B97: U87 | D97: =IF(G97<>"",IFERROR(VLOOKUP(B97,iUF!$C$11:$D$109,2,FALSE),""),"") ->  | F97: =IF(D97<>"",IFERROR(VLOOKUP(D97,iCONDOMINI!$B$11:$C$109,2,FALSE),""),"") -> 
B98: U88 | D98: =IF(G98<>"",IFERROR(VLOOKUP(B98,iUF!$C$11:$D$109,2,FALSE),""),"") ->  | F98: =IF(D98<>"",IFERROR(VLOOKUP(D98,iCONDOMINI!$B$11:$C$109,2,FALSE),""),"") -> 
B99: U89 | D99: =IF(G99<>"",IFERROR(VLOOKUP(B99,iUF!$C$11:$D$109,2,FALSE),""),"") ->  | F99: =IF(D99<>"",IFERROR(VLOOKUP(D99,iCONDOMINI!$B$11:$C$109,2,FALSE),""),"") -> 
B100: U90 | D100: =IF(G100<>"",IFERROR(VLOOKUP(B100,iUF!$C$11:$D$109,2,FALSE),""),"") ->  | F100: =IF(D100<>"",IFERROR(VLOOKUP(D100,iCONDOMINI!$B$11:$C$109,2,FALSE),""),"") -> 
B101: U91 | D101: =IF(G101<>"",IFERROR(VLOOKUP(B101,iUF!$C$11:$D$109,2,FALSE),""),"") ->  | F101: =IF(D101<>"",IFERROR(VLOOKUP(D101,iCONDOMINI!$B$11:$C$109,2,FALSE),""),"") -> 
B102: U92 | D102: =IF(G102<>"",IFERROR(VLOOKUP(B102,iUF!$C$11:$D$109,2,FALSE),""),"") ->  | F102: =IF(D102<>"",IFERROR(VLOOKUP(D102,iCONDOMINI!$B$11:$C$109,2,FALSE),""),"") -> 
B103: U93 | D103: =IF(G103<>"",IFERROR(VLOOKUP(B103,iUF!$C$11:$D$109,2,FALSE),""),"") ->  | F103: =IF(D103<>"",IFERROR(VLOOKUP(D103,iCONDOMINI!$B$11:$C$109,2,FALSE),""),"") -> 
B104: U94 | D104: =IF(G104<>"",IFERROR(VLOOKUP(B104,iUF!$C$11:$D$109,2,FALSE),""),"") ->  | F104: =IF(D104<>"",IFERROR(VLOOKUP(D104,iCONDOMINI!$B$11:$C$109,2,FALSE),""),"") -> 
B105: U95 | D105: =IF(G105<>"",IFERROR(VLOOKUP(B105,iUF!$C$11:$D$109,2,FALSE),""),"") ->  | F105: =IF(D105<>"",IFERROR(VLOOKUP(D105,iCONDOMINI!$B$11:$C$109,2,FALSE),""),"") -> 
B106: U96 | D106: =IF(G106<>"",IFERROR(VLOOKUP(B106,iUF!$C$11:$D$109,2,FALSE),""),"") ->  | F106: =IF(D106<>"",IFERROR(VLOOKUP(D106,iCONDOMINI!$B$11:$C$109,2,FALSE),""),"") -> 
B107: U97 | D107: =IF(G107<>"",IFERROR(VLOOKUP(B107,iUF!$C$11:$D$109,2,FALSE),""),"") ->  | F107: =IF(D107<>"",IFERROR(VLOOKUP(D107,iCONDOMINI!$B$11:$C$109,2,FALSE),""),"") -> 
B108: U98 | D108: =IF(G108<>"",IFERROR(VLOOKUP(B108,iUF!$C$11:$D$109,2,FALSE),""),"") ->  | F108: =IF(D108<>"",IFERROR(VLOOKUP(D108,iCONDOMINI!$B$11:$C$109,2,FALSE),""),"") -> 
B109: U99 | D109: =IF(G109<>"",IFERROR(VLOOKUP(B109,iUF!$C$11:$D$109,2,FALSE),""),"") ->  | F109: =IF(D109<>"",IFERROR(VLOOKUP(D109,iCONDOMINI!$B$11:$C$109,2,FALSE),""),"") -> 

Sheet iCONDOMINI (hidden)
B1: È consentito variare i valori delle sole celle con sfondo bianco. I dati delle colonne con colore del testo rosso scuro devono essere necessariamente forniti.
B2: Per aggiungere ulteriori condomini occorre scoprire le righe nascoste e scrivere i relativi dati.
B3: Per aggiungere altri comproprietari occorre scoprire le colonne nascoste e scrivere i relativi dati.
B5: =iDG!B32 -> Condominio Palazzo Duck
C8: CONDOMINI | N8: 1° PROPRIETARIO o INTESTATARIO | X8: 2° PROPRIETARIO o INTESTATARIO | AH8: 3° PROPRIETARIO o INTESTATARIO | AR8: 4° PROPRIETARIO o INTESTATARIO | BB8: 5° PROPRIETARIO o INTESTATARIO | BL8: 6° PROPRIETARIO o INTESTATARIO
B9: CODICE | C9: DATI IDENTIFICATIVI | E9: DATI DI CONTATTO | N9: % | P9: NOME | Q9: DATI FISCALI | V9: DATI DI CONTATTO | X9: % | Z9: NOME | AA9: DATI FISCALI | AF9: DATI DI CONTATTO | AH9: % | AJ9: NOME | AK9: DATI FISCALI | AP9: DATI DI CONTATTO | AR9: % | AT9: NOME | AU9: DATI FISCALI | AZ9: DATI DI CONTATTO | BB9: % | BD9: NOME | BE9: DATI FISCALI | BJ9: DATI DI CONTATTO | BL9: % | BN9: NOME | BO9: DATI FISCALI | BT9: DATI DI CONTATTO
B10: COND. | C10: DENOMINAZIONE | D10: G | E10: REFERENTE | F10: INDIRIZZO | G10: CAP | H10: CITTÀ | I10: PROV. | J10: TELEFONO | K10: CELLULLARE | L10: INDIRIZZO EMAIL | M10: INDIRIZZO PEC | N10: PROP. | P10: PROPRIO o COMMERCIALE | Q10: C.F. | R10: DOMICILIO FISCALE | S10: CAP | T10: CITTÀ | U10: Prov. | V10: TEL./CELL. | W10: INDIRIZZO EMAIL | X10: PROP. | Z10: PROPRIO o COMMERCIALE | AA10: C.F. | AB10: DOMICILIO FISCALE | AC10: CAP | AD10: CITTÀ | AE10: Prov. | AF10: TEL./CELL. | AG10: INDIRIZZO EMAIL | AH10: PROP. | AJ10: PROPRIO o COMMERCIALE | AK10: C.F. | AL10: DOMICILIO FISCALE | AM10: CAP | AN10: CITTÀ | AO10: Prov. | AP10: TEL./CELL. | AQ10: INDIRIZZO EMAIL | AR10: PROP. | AT10: PROPRIO o COMMERCIALE | AU10: C.F. | AV10: DOMICILIO FISCALE | AW10: CAP | AX10: CITTÀ | AY10: Prov. | AZ10: TEL./CELL. | BA10: INDIRIZZO EMAIL | BB10: PROP. | BD10: PROPRIO o COMMERCIALE | BE10: C.F. | BF10: DOMICILIO FISCALE | BG10: CAP | BH10: CITTÀ | BI10: Prov. | BJ10: TEL./CELL. | BK10: INDIRIZZO EMAIL | BL10: PROP. | BN10: PROPRIO o COMMERCIALE | BO10: C.F. | BP10: DOMICILIO FISCALE | BQ10: CAP | BR10: CITTÀ | BS10: Prov. | BT10: TEL./CELL. | BU10: INDIRIZZO EMAIL
B11: C01 | C11: Paperoga | D11: M | E11: Fethry Duck | F11: Via degli Alberi Spogli, 1 | G11: 99999 | H11: PAPEROPOLI | I11: PP | N11: 100 | O11: Fethry Duck | P11: DKCFTRN66L30C999N | Q11: Via degli Alberi Spogli, 1 | R11: 99999 | S11: PAPEROPOLI | T11: PP | AF11: 0
B12: C02 | C12: Ciccio | D12: M | E12: Gus Goose | F12: Via degli Alberi Spogli, 2 | G12: 99999 | H12: PAPEROPOLI | I12: PP | N12: 100 | O12: Gus Goose | P12: GSOGSU43R21C999Z | Q12: Via degli Alberi Spogli, 2 | R12: 99999 | S12: PAPEROPOLI | T12: PP | AF12: 0
B13: C03 | C13: Gastone | D13: M | E13: Gladstone Glander | F13: Via degli Alberi Spogli, 3 | G13: 99999 | H13: PAPEROPOLI | I13: PP | N13: 100 | O13: Gladstone Glander | P13: GLNGLD009H06C999H | Q13: Via degli Alberi Spogli, 3 | R13: 99999 | S13: PAPEROPOLI | T13: PP | AF13: 0
B14: C04 | C14: I tre nipotini | D14: P | E14: Huey Duck | F14: Via degli Alberi Spogli, 4 | G14: 99999 | H14: PAPEROPOLI | I14: PP | N14: 33.34 | O14: Huey Duck | P14: DCKHYU43M55C9992S | Q14: Via degli Alberi Spogli, 4 | R14: 99999 | S14: PAPEROPOLI | T14: PP | W14: 33.33 | X14: Dewey Duck | Y14: DCKDWY43M55C9992BS | Z14: Via degli Alberi Spogli, 4 | AA14: 99999 | AB14: PAPEROPOLI | AC14: PP | AF14: 33.33 | AG14: Louie Duck | AH14: DCKLUI43M55C9992C | AI14: Via degli Alberi Spogli, 4 | AJ14: 99999 | AK14: PAPEROPOLI | AL14: PP
B15: C05 | C15: Nonna Papera | D15: F | E15: Elvira Coot | F15: Viale dei Platani, 1 | G15: 99999 | H15: PAPEROPOLI | I15: PP | N15: 100 | O15: Elvira Coot | P15: CTOLVR60C53C999R | Q15: Viale dei Platani, 1 | R15: 99999 | S15: PAPEROPOLI | T15: PP | AF15: 0
B16: C06 | C16: Fidanzati Paperino-Paperina | D16: T | E16: Donald Duck | F16: Viale dei Platani, 1 | G16: 99999 | H16: PAPEROPOLI | I16: PP | N16: 25 | O16: Donald Duck | P16: DKCDNL47L30C999Y | Q16: Viale dei Platani, 1 | R16: 99999 | S16: PAPEROPOLI | T16: PP | W16: 75 | X16: Daisy Duck | Y16: DKCDSY56C55C999K | Z16: Viale dei Platani, 1 | AA16: 99999 | AB16: PAPEROPOLI | AC16: PP | AF16: 0
B17: C07
B18: C08
B19: C09
B20: C10
B21: C11
B22: C12
B23: C13
B24: C14
B25: C15
B26: C16
B27: C17
B28: C18
B29: C19
B30: C20
B31: C21
B32: C22
B33: C23
B34: C24
B35: C25
B36: C26
B37: C27
B38: C28
B39: C29
B40: C30
B41: C31
B42: C32
B43: C33
B44: C34
B45: C35
B46: C36
B47: C37
B48: C38
B49: C39
B50: C40
B51: C41
B52: C42
B53: C43
B54: C44
B55: C45
B56: C46
B57: C47
B58: C48
B59: C49
B60: C50
B61: C51
B62: C52
B63: C53
B64: C54
B65: C55
B66: C56
B67: C57
B68: C58
B69: C59
B70: C60
B71: C61
B72: C62
B73: C63
B74: C64
B75: C65
B76: C66
B77: C67
B78: C68
B79: C69
B80: C70
B81: C71
B82: C72
B83: C73
B84: C74
B85: C75
B86: C76
B87: C77
B88: C78
B89: C79
B90: C80
B91: C81
B92: C82
B93: C83
B94: C84
B95: C85
B96: C86
B97: C87
B98: C88
B99: C89
B100: C90
B101: C91
B102: C92
B103: C93
B104: C94
B105: C95
B106: C96
B107: C97
B108: C98
B109: C99

Sheet iTABUF (hidden)
B1: È consentito variare i valori delle sole celle con sfondo bianco. I dati delle colonne con i testi in rosso scuro devono essere necessariamente forniti. | N1: 0
B5: =iDG!B32 -> Condominio Palazzo Duck
B8: TABELLE MILLESIMALI per UNITÀ FUNZIONALI
B9: Codice Unità Funzionale | C9: Codice Unità Immobiliare cui appartiene | D9: Tabella A | E9: Tabella B | F9: Tabella C | G9: Tabella D | H9: Tabella E | I9: Tabella F | J9: Tabella G | K9: Tabella H | L9: Tabella I | M9: Tabella J
D10: =iDG!$B52 -> Proprietà | E10: =iDG!$B53 -> Scala | F10: =iDG!$B54 -> Ascensore | G10: =iDG!$B55 -> Abitazioni | H10: =iDG!$B56 -> Negozi | I10: =iDG!$B57 -> 0 | J10: =iDG!$B58 -> 0 | K10: =iDG!$B59 -> 0 | L10: =iDG!$B60 -> 0 | M10: =iDG!$B61 -> 0
B11: =iUF!B11 -> UF01 | C11: =IF(iUF!C11<>"",iUF!C11,"") -> U05 | D11: 8.988 | E11: 22.538 | F11: 22.538 | G11: 13.315
B12: =iUF!B12 -> UF02 | C12: =IF(iUF!C12<>"",iUF!C12,"") -> U06 | D12: 6.087 | E12: 15.263 | F12: 15.263 | G12: 9.017
B13: =iUF!B13 -> UF03 | C13: =IF(iUF!C13<>"",iUF!C13,"") -> U07 | D13: 8.613 | E13: 21.596 | F13: 21.596 | G13: 12.759
B14: =iUF!B14 -> UF04 | C14: =IF(iUF!C14<>"",iUF!C14,"") -> U07 | D14: 10.718 | E14: 26.875 | F14: 26.875 | G14: 15.878
B15: =iUF!B15 -> UF05 | C15: =IF(iUF!C15<>"",iUF!C15,"") -> U07 | D15: 0.548 | E15: 1.374 | F15: 1.374 | G15: 0.812
B16: =iUF!B16 -> UF06 | C16: =IF(iUF!C16<>"",iUF!C16,"") -> U07 | D16: 0.548 | E16: 1.374 | F16: 1.374 | G16: 0.812
B17: =iUF!B17 -> UF07 | C17: =IF(iUF!C17<>"",iUF!C17,"") -> U05 | D17: 0.548 | E17: 1.374 | F17: 1.374 | G17: 0.812
B18: =iUF!B18 -> UF08 | C18: =IF(iUF!C18<>"",iUF!C18,"") -> U06 | D18: 0.548 | E18: 1.374 | F18: 1.374 | G18: 0.812
B19: =iUF!B19 -> UF09 | C19: =IF(iUF!C19<>"",iUF!C19,"") -> U08 | D19: 13.184 | E19: 33.057 | F19: 33.057 | G19: 19.53
B20: =iUF!B20 -> UF10 | C20: =IF(iUF!C20<>"",iUF!C20,"") -> U09 | D20: 22.138 | E20: 55.509 | F20: 55.509 | G20: 32.795
B21: =iUF!B21 -> UF11 | C21: =IF(iUF!C21<>"",iUF!C21,"") -> U01 | D21: 52.392 | H21: 161.221
B22: =iUF!B22 -> UF12 | C22: =IF(iUF!C22<>"",iUF!C22,"") -> U02 | D22: 35.477 | H22: 109.17
B23: =iUF!B23 -> UF13 | C23: =IF(iUF!C23<>"",iUF!C23,"") -> U03 | D23: 100.439 | H23: 309.069
B24: =iUF!B24 -> UF14 | C24: =IF(iUF!C24<>"",iUF!C24,"") -> U04 | D24: 136.664 | H24: 420.54
B25: =iUF!B25 -> UF15 | C25: =IF(iUF!C25<>"",iUF!C25,"") -> U07 | D25: 2.556 | E25: 1.894 | F25: 1.894 | G25: 3.787
B26: =iUF!B26 -> UF16 | C26: =IF(iUF!C26<>"",iUF!C26,"") -> U05 | D26: 2.556 | E26: 1.894 | F26: 1.894 | G26: 3.787
B27: =iUF!B27 -> UF17 | C27: =IF(iUF!C27<>"",iUF!C27,"") -> U05 | D27: 171.877 | E27: 204.804 | F27: 204.804 | G27: 254.623
B28: =iUF!B28 -> UF18 | C28: =IF(iUF!C28<>"",iUF!C28,"") -> U06 | D28: 115.065 | E28: 137.108 | F28: 137.108 | G28: 170.46
B29: =iUF!B29 -> UF19 | C29: =IF(iUF!C29<>"",iUF!C29,"") -> U07 | D29: 305.251 | E29: 464.816 | F29: 464.816 | G29: 452.204
B30: =iUF!B30 -> UF20 | C30: =IF(iUF!C30<>"",iUF!C30,"") -> U07 | D30: 5.486 | E30: 8.354 | F30: 8.354 | G30: 8.127
B31: =iUF!B31 -> UF21 | C31: =IF(iUF!C31<>"",iUF!C31,"") -> U07 | D31: 0.317 | E31: 0.796 | F31: 0.796 | G31: 0.47
B32: =iUF!B32 -> UF22 | C32: =IF(iUF!C32<>"",iUF!C32,"") -> 
B33: =iUF!B33 -> UF23 | C33: =IF(iUF!C33<>"",iUF!C33,"") -> 
B34: =iUF!B34 -> UF24 | C34: =IF(iUF!C34<>"",iUF!C34,"") -> 
B35: =iUF!B35 -> UF25 | C35: =IF(iUF!C35<>"",iUF!C35,"") -> 
B36: =iUF!B36 -> UF26 | C36: =IF(iUF!C36<>"",iUF!C36,"") -> 
B37: =iUF!B37 -> UF27 | C37: =IF(iUF!C37<>"",iUF!C37,"") -> 
B38: =iUF!B38 -> UF28 | C38: =IF(iUF!C38<>"",iUF!C38,"") -> 
B39: =iUF!B39 -> UF29 | C39: =IF(iUF!C39<>"",iUF!C39,"") -> 
B40: =iUF!B40 -> UF30 | C40: =IF(iUF!C40<>"",iUF!C40,"") -> 
B41: =iUF!B41 -> UF31 | C41: =IF(iUF!C41<>"",iUF!C41,"") -> 
B42: =iUF!B42 -> UF32 | C42: =IF(iUF!C42<>"",iUF!C42,"") -> 
B43: =iUF!B43 -> UF33 | C43: =IF(iUF!C43<>"",iUF!C43,"") -> 
B44: =iUF!B44 -> UF34 | C44: =IF(iUF!C44<>"",iUF!C44,"") -> 
B45: =iUF!B45 -> UF35 | C45: =IF(iUF!C45<>"",iUF!C45,"") -> 
B46: =iUF!B46 -> UF36 | C46: =IF(iUF!C46<>"",iUF!C46,"") -> 
B47: =iUF!B47 -> UF37 | C47: =IF(iUF!C47<>"",iUF!C47,"") -> 
B48: =iUF!B48 -> UF38 | C48: =IF(iUF!C48<>"",iUF!C48,"") -> 
B49: =iUF!B49 -> UF39 | C49: =IF(iUF!C49<>"",iUF!C49,"") -> 
B50: =iUF!B50 -> UF40 | C50: =IF(iUF!C50<>"",iUF!C50,"") -> 
B51: =iUF!B51 -> UF41 | C51: =IF(iUF!C51<>"",iUF!C51,"") -> 
B52: =iUF!B52 -> UF42 | C52: =IF(iUF!C52<>"",iUF!C52,"") -> 
B53: =iUF!B53 -> UF43 | C53: =IF(iUF!C53<>"",iUF!C53,"") -> 
B54: =iUF!B54 -> UF44 | C54: =IF(iUF!C54<>"",iUF!C54,"") -> 
B55: =iUF!B55 -> UF45 | C55: =IF(iUF!C55<>"",iUF!C55,"") -> 
B56: =iUF!B56 -> UF46 | C56: =IF(iUF!C56<>"",iUF!C56,"") -> 
B57: =iUF!B57 -> UF47 | C57: =IF(iUF!C57<>"",iUF!C57,"") -> 
B58: =iUF!B58 -> UF48 | C58: =IF(iUF!C58<>"",iUF!C58,"") -> 
B59: =iUF!B59 -> UF49 | C59: =IF(iUF!C59<>"",iUF!C59,"") -> 
B60: =iUF!B60 -> UF50 | C60: =IF(iUF!C60<>"",iUF!C60,"") -> 
B61: =iUF!B61 -> UF51 | C61: =IF(iUF!C61<>"",iUF!C61,"") -> 
B62: =iUF!B62 -> UF52 | C62: =IF(iUF!C62<>"",iUF!C62,"") -> 
B63: =iUF!B63 -> UF53 | C63: =IF(iUF!C63<>"",iUF!C63,"") -> 
B64: =iUF!B64 -> UF54 | C64: =IF(iUF!C64<>"",iUF!C64,"") -> 
B65: =iUF!B65 -> UF55 | C65: =IF(iUF!C65<>"",iUF!C65,"") -> 
B66: =iUF!B66 -> UF56 | C66: =IF(iUF!C66<>"",iUF!C66,"") -> 
B67: =iUF!B67 -> UF57 | C67: =IF(iUF!C67<>"",iUF!C67,"") -> 
B68: =iUF!B68 -> UF58 | C68: =IF(iUF!C68<>"",iUF!C68,"") -> 
B69: =iUF!B69 -> UF59 | C69: =IF(iUF!C69<>"",iUF!C69,"") -> 
B70: =iUF!B70 -> UF60 | C70: =IF(iUF!C70<>"",iUF!C70,"") -> 
B71: =iUF!B71 -> UF61 | C71: =IF(iUF!C71<>"",iUF!C71,"") -> 
B72: =iUF!B72 -> UF62 | C72: =IF(iUF!C72<>"",iUF!C72,"") -> 
B73: =iUF!B73 -> UF63 | C73: =IF(iUF!C73<>"",iUF!C73,"") -> 
B74: =iUF!B74 -> UF64 | C74: =IF(iUF!C74<>"",iUF!C74,"") -> 
B75: =iUF!B75 -> UF65 | C75: =IF(iUF!C75<>"",iUF!C75,"") -> 
B76: =iUF!B76 -> UF66 | C76: =IF(iUF!C76<>"",iUF!C76,"") -> 
B77: =iUF!B77 -> UF67 | C77: =IF(iUF!C77<>"",iUF!C77,"") -> 
B78: =iUF!B78 -> UF68 | C78: =IF(iUF!C78<>"",iUF!C78,"") -> 
B79: =iUF!B79 -> UF69 | C79: =IF(iUF!C79<>"",iUF!C79,"") -> 
B80: =iUF!B80 -> UF70 | C80: =IF(iUF!C80<>"",iUF!C80,"") -> 
B81: =iUF!B81 -> UF71 | C81: =IF(iUF!C81<>"",iUF!C81,"") -> 
B82: =iUF!B82 -> UF72 | C82: =IF(iUF!C82<>"",iUF!C82,"") -> 
B83: =iUF!B83 -> UF73 | C83: =IF(iUF!C83<>"",iUF!C83,"") -> 
B84: =iUF!B84 -> UF74 | C84: =IF(iUF!C84<>"",iUF!C84,"") -> 
B85: =iUF!B85 -> UF75 | C85: =IF(iUF!C85<>"",iUF!C85,"") -> 
B86: =iUF!B86 -> UF76 | C86: =IF(iUF!C86<>"",iUF!C86,"") -> 
B87: =iUF!B87 -> UF77 | C87: =IF(iUF!C87<>"",iUF!C87,"") -> 
B88: =iUF!B88 -> UF78 | C88: =IF(iUF!C88<>"",iUF!C88,"") -> 
B89: =iUF!B89 -> UF79 | C89: =IF(iUF!C89<>"",iUF!C89,"") -> 
B90: =iUF!B90 -> UF80 | C90: =IF(iUF!C90<>"",iUF!C90,"") -> 
B91: =iUF!B91 -> UF81 | C91: =IF(iUF!C91<>"",iUF!C91,"") -> 
B92: =iUF!B92 -> UF82 | C92: =IF(iUF!C92<>"",iUF!C92,"") -> 
B93: =iUF!B93 -> UF83 | C93: =IF(iUF!C93<>"",iUF!C93,"") -> 
B94: =iUF!B94 -> UF84 | C94: =IF(iUF!C94<>"",iUF!C94,"") -> 
B95: =iUF!B95 -> UF85 | C95: =IF(iUF!C95<>"",iUF!C95,"") -> 
B96: =iUF!B96 -> UF86 | C96: =IF(iUF!C96<>"",iUF!C96,"") -> 
B97: =iUF!B97 -> UF87 | C97: =IF(iUF!C97<>"",iUF!C97,"") -> 
B98: =iUF!B98 -> UF88 | C98: =IF(iUF!C98<>"",iUF!C98,"") -> 
B99: =iUF!B99 -> UF89 | C99: =IF(iUF!C99<>"",iUF!C99,"") -> 
B100: =iUF!B100 -> UF90 | C100: =IF(iUF!C100<>"",iUF!C100,"") -> 
B101: =iUF!B101 -> UF91 | C101: =IF(iUF!C101<>"",iUF!C101,"") -> 
B102: =iUF!B102 -> UF92 | C102: =IF(iUF!C102<>"",iUF!C102,"") -> 
B103: =iUF!B103 -> UF93 | C103: =IF(iUF!C103<>"",iUF!C103,"") -> 
B104: =iUF!B104 -> UF94 | C104: =IF(iUF!C104<>"",iUF!C104,"") -> 
B105: =iUF!B105 -> UF95 | C105: =IF(iUF!C105<>"",iUF!C105,"") -> 
B106: =iUF!B106 -> UF96 | C106: =IF(iUF!C106<>"",iUF!C106,"") -> 
B107: =iUF!B107 -> UF97 | C107: =IF(iUF!C107<>"",iUF!C107,"") -> 
B108: =iUF!B108 -> UF98 | C108: =IF(iUF!C108<>"",iUF!C108,"") -> 
B109: =iUF!B109 -> UF99 | C109: =IF(iUF!C109<>"",iUF!C109,"") -> 
C110: TOTALI | D110: =SUM(D11:D109) -> 1000 | E110: =SUM(E11:E109) -> 1000 | F110: 1000 | G110: 1000 | H110: 1000 | I110: 0 | J110: 0 | K110: 0 | L110: 0 | M110: 0
N111: 0

Sheet iPCU (hidden)
B1: È consentito variare i valori delle sole celle con sfondo bianco. | G1: 0
B5: =iDG!B32 -> Condominio Palazzo Duck
B6: PIANO GENERALE DEI CONTI
B7: PIANO DELLE SPESE E DELLE USCITE
B8: SEZIONI, CAPITOLI e VOCI | C8: CODICE CONTO | D8: TABELLA RIPARTO | E8: PERCENTUALE SUDDIVISIONE
E9: PROPRIETARI | F9: INQUILINI
B10: SPESE | C10: S
B11: SPESE GENERALI | C11: S.01
B12: COMPETENZE BANCARIE (Oneri,Commissioni, interessi, ecc) | C12: S.01.01 | D12: A | E12: 1 | F12: =IF(D12<>"",1-E12,0) -> 0
B13: CANCELLERIA | C13: S.01.02 | D13: A | E13: 1 | F13: =IF(D13<>"",1-E13,0) -> 0
B14: POSTALI, TELEGRAFICHE, TELEFONICHE E WEB | C14: S.01.03 | D14: A | E14: 1 | F14: 0
B15: DIRITTI BOLLI TASSE | C15: S.01.04 | D15: A | E15: 1 | F15: 0
B16: SPESE PER ADEMPIMENTI FISCALI | C16: S.01.05 | D16: A | E16: 1 | F16: 0
B17: COMPENSI AMMINISTRATORE | C17: S.01.06 | D17: A | E17: 1 | F17: 0
B18: COMPENSI A TERZI (consulenti, ...) | C18: S.01.07 | D18: A | E18: 1 | F18: 0
B19: SPESE LEGALI, CONTRATTUALI e RECUPERO CREDITI | C19: S.01.08 | D19: A | E19: 1 | F19: 0
B20: ASSICURAZIONE FABBRICATO | C20: S.01.09 | D20: A | E20: 1 | F20: 0
B21: ALTRE SPESE GENERALI | C21: S.01.10 | D21: A | E21: 1 | F21: 0
C22: S.01.11 | F22: 0
C23: S.01.12 | F23: 0
C24: S.01.13 | F24: 0
C25: S.01.14 | F25: 0
C26: S.01.15 | F26: 0
B27: PULIZIE | C27: S.02
B28: PULIZIE SCALE: PERSONALE | C28: S.02.01 | D28: B | F28: =IF(D28<>"",1-E28,0) -> 1
B29: PULIZIE SCALE: ATTREZZI E PRODOTTI | C29: S.02.02 | D29: B | F29: =IF(D29<>"",1-E29,0) -> 1
B30: MANUTENZIONE ORDINARIA SCALE | C30: S.02.03 | D30: B | F30: 1
B31: ALTRE SPESE DOCUMENTATE | C31: S.02.04 | D31: B | F31: 1
C32: S.02.05 | F32: 0
C33: S.02.06 | F33: 0
C34: S.02.07 | F34: 0
C35: S.02.08 | F35: 0
C36: S.02.09 | F36: 0
C37: S.02.10 | F37: 0
B38: ASCENSORE | C38: S.03
B39: CONTRATTO MANUTENZIONE ASCENSORE | C39: S.03.01 | D39: C | F39: =IF(D39<>"",1-E39,0) -> 1
B40: VERIFICA PERIODICA ASCENSORE | C40: S.03.02 | D40: C | F40: =IF(D40<>"",1-E40,0) -> 1
B41: RIPARAZIONI ASCENSORE | C41: S.03.03 | D41: C | F41: 1
B42: ADEGUAMENTO ASCENSORE | C42: S.03.04 | D42: C | F42: 1
B43: ALTRE SPESE DOCUMENTATE | C43: S.03.05 | D43: C | F43: 1
C44: S.03.06 | F44: 0
C45: S.03.07 | F45: 0
C46: S.03.08 | F46: 0
C47: S.03.09 | F47: 0
C48: S.03.10 | F48: 0
B49: CONSUMI DI ENERGIA E ACQUA | C49: S.04
B50: ENERGIA ILLUMINAZIONE | C50: S.04.01 | D50: B | F50: =IF(D50<>"",1-E50,0) -> 1
B51: ENERGIA ALIMENTAZIONE ASCENSORE | C51: S.04.02 | D51: C | F51: =IF(D51<>"",1-E51,0) -> 1
B52: ENERGIA ALIMENTAZIONE IMPIANTO TV | C52: S.04.03 | D52: F | F52: 1
C53: S.04.04 | F53: 0
C54: S.04.05 | F54: 0
C55: S.04.06 | F55: 0
C56: S.04.07 | F56: 0
C57: S.04.08 | F57: 0
C58: S.04.09 | F58: 0
C59: S.04.10 | F59: 0
B60: IMPIANTI TV e CITOFONICO | C60: S.05
B61: MANUTENZIONE E RIPARAZIONE CITOFONO | C61: S.05.01 | D61: G | F61: =IF(D61<>"",1-E61,0) -> 1
B62: ALTRE SPESE DOCUMENTATE SU CITOFONO | C62: S.05.02 | D62: G | E62: 1 | F62: =IF(D62<>"",1-E62,0) -> 0
B63: MANUTENZIONE E RIPARAZIONE IMPIANTO TV | C63: S.05.03 | D63: F | F63: 1
B64: ALTRE SPESE DOCUMENTATE SU IMPIANTO TV | C64: S.05.04 | D64: F | E64: 1 | F64: 0
C65: S.05.05 | F65: 0
C66: S.05.06 | F66: 0
C67: S.05.07 | F67: 0
C68: S.05.08 | F68: 0
C69: S.05.09 | F69: 0
C70: S.05.10 | F70: 0
B71: MANUTENZIONI ORDINARIE EDILI | C71: S.06
B72: MANUTENZIONI ORDINARIE PARTI COMUNI INTERO EDIFICIO | C72: S.06.01 | D72: A | F72: =IF(D72<>"",1-E72,0) -> 1
B73: MANUTENZIONI ORDINARIE PARTI COMUNI ABITAZIONI | C73: S.06.02 | D73: D | F73: =IF(D73<>"",1-E73,0) -> 1
B74: MANUTENZIONI ORDINARIE PARTI COMUNI NEGOZI | C74: S.06.03 | D74: E | F74: =IF(D74<>"",1-E74,0) -> 1
C75: S.06.04 | F75: =IF(D75<>"",1-E75,0) -> 0
C76: S.06.05 | F76: =IF(D76<>"",1-E76,0) -> 0
B77: MANUTENZIONI STRAORDINARIE EDILI | C77: S.07
B78: MANUTENZIONI STRAORDINARIE PARTI COMUNI INTERO EDIFICIO | C78: S.07.01 | D78: A | E78: 1 | F78: =IF(D78<>"",1-E78,0) -> 0
B79: MANUTENZIONI STRAORDINARIE PARTI COMUNI ABITAZIONI | C79: S.07.02 | D79: D | E79: 1 | F79: =IF(D79<>"",1-E79,0) -> 0
B80: MANUTENZIONI STRAORDINARIE PARTI COMUNI NEGOZI | C80: S.07.03 | D80: E | E80: 1 | F80: =IF(D80<>"",1-E80,0) -> 0
C81: S.07.04 | F81: =IF(D81<>"",1-E81,0) -> 0
C82: S.07.05 | F82: =IF(D82<>"",1-E82,0) -> 0
B83: USCITE PER COSTITUZIONE DEPOSITI PRESSO TERZI e PRESTITI A TERZI | C83: L
B84: DEPOSITI CAUZIONALI | C84: L.01.01 | D84: A
B85: ACQUISTO VOUCHER LAVORI | C85: L.01.02 | D85: A
B86: PRESTITI A TERZI | C86: L.01.03 | D86: A
C87: L.01.04
C88: L.01.05
B89: SPESE PERSONALI CONDOMINI o ASSEGNATE DIRETTAMENTE AI CONDOMINI | C89: P
B90: =IF(iCONDOMINI!C11<>"",iCONDOMINI!C11,"") -> Paperoga | C90: P.01.01
B91: =IF(iCONDOMINI!C12<>"",iCONDOMINI!C12,"") -> Ciccio | C91: P.01.02
B92: =IF(iCONDOMINI!C13<>"",iCONDOMINI!C13,"") -> Gastone | C92: P.01.03
B93: =IF(iCONDOMINI!C14<>"",iCONDOMINI!C14,"") -> I tre nipotini | C93: P.01.04
B94: =IF(iCONDOMINI!C15<>"",iCONDOMINI!C15,"") -> Nonna Papera | C94: P.01.05
B95: =IF(iCONDOMINI!C16<>"",iCONDOMINI!C16,"") -> Fidanzati Paperino-Paperina | C95: P.01.06
B96: =IF(iCONDOMINI!C17<>"",iCONDOMINI!C17,"") ->  | C96: P.01.07
B97: =IF(iCONDOMINI!C18<>"",iCONDOMINI!C18,"") ->  | C97: P.01.08
B98: =IF(iCONDOMINI!C19<>"",iCONDOMINI!C19,"") ->  | C98: P.01.09
B99: =IF(iCONDOMINI!C20<>"",iCONDOMINI!C20,"") ->  | C99: P.01.10
B100: =IF(iCONDOMINI!C21<>"",iCONDOMINI!C21,"") ->  | C100: P.01.11
B101: =IF(iCONDOMINI!C22<>"",iCONDOMINI!C22,"") ->  | C101: P.01.12
B102: =IF(iCONDOMINI!C23<>"",iCONDOMINI!C23,"") ->  | C102: P.01.13
B103: =IF(iCONDOMINI!C24<>"",iCONDOMINI!C24,"") ->  | C103: P.01.14
B104: =IF(iCONDOMINI!C25<>"",iCONDOMINI!C25,"") ->  | C104: P.01.15
B105: =IF(iCONDOMINI!C26<>"",iCONDOMINI!C26,"") ->  | C105: P.01.16
B106: =IF(iCONDOMINI!C27<>"",iCONDOMINI!C27,"") ->  | C106: P.01.17
B107: =IF(iCONDOMINI!C28<>"",iCONDOMINI!C28,"") ->  | C107: P.01.18
B108: =IF(iCONDOMINI!C29<>"",iCONDOMINI!C29,"") ->  | C108: P.01.19
B109: =IF(iCONDOMINI!C30<>"",iCONDOMINI!C30,"") ->  | C109: P.01.20
B110: =IF(iCONDOMINI!C31<>"",iCONDOMINI!C31,"") ->  | C110: P.01.21
B111: =IF(iCONDOMINI!C32<>"",iCONDOMINI!C32,"") ->  | C111: P.01.22
B112: =IF(iCONDOMINI!C33<>"",iCONDOMINI!C33,"") ->  | C112: P.01.23
B113: =IF(iCONDOMINI!C34<>"",iCONDOMINI!C34,"") ->  | C113: P.01.24
B114: =IF(iCONDOMINI!C35<>"",iCONDOMINI!C35,"") ->  | C114: P.01.25
B115: =IF(iCONDOMINI!C36<>"",iCONDOMINI!C36,"") ->  | C115: P.01.26
B116: =IF(iCONDOMINI!C37<>"",iCONDOMINI!C37,"") ->  | C116: P.01.27
B117: =IF(iCONDOMINI!C38<>"",iCONDOMINI!C38,"") ->  | C117: P.01.28
B118: =IF(iCONDOMINI!C39<>"",iCONDOMINI!C39,"") ->  | C118: P.01.29
B119: =IF(iCONDOMINI!C40<>"",iCONDOMINI!C40,"") ->  | C119: P.01.30
B120: =IF(iCONDOMINI!C41<>"",iCONDOMINI!C41,"") ->  | C120: P.01.31
B121: =IF(iCONDOMINI!C42<>"",iCONDOMINI!C42,"") ->  | C121: P.01.32
B122: =IF(iCONDOMINI!C43<>"",iCONDOMINI!C43,"") ->  | C122: P.01.33
B123: =IF(iCONDOMINI!C44<>"",iCONDOMINI!C44,"") ->  | C123: P.01.34
B124: =IF(iCONDOMINI!C45<>"",iCONDOMINI!C45,"") ->  | C124: P.01.35
B125: =IF(iCONDOMINI!C46<>"",iCONDOMINI!C46,"") ->  | C125: P.01.36
B126: =IF(iCONDOMINI!C47<>"",iCONDOMINI!C47,"") ->  | C126: P.01.37
B127: =IF(iCONDOMINI!C48<>"",iCONDOMINI!C48,"") ->  | C127: P.01.38
B128: =IF(iCONDOMINI!C49<>"",iCONDOMINI!C49,"") ->  | C128: P.01.39
B129: =IF(iCONDOMINI!C50<>"",iCONDOMINI!C50,"") ->  | C129: P.01.40
B130: =IF(iCONDOMINI!C51<>"",iCONDOMINI!C51,"") ->  | C130: P.01.41
B131: =IF(iCONDOMINI!C52<>"",iCONDOMINI!C52,"") ->  | C131: P.01.42
B132: =IF(iCONDOMINI!C53<>"",iCONDOMINI!C53,"") ->  | C132: P.01.43
B133: =IF(iCONDOMINI!C54<>"",iCONDOMINI!C54,"") ->  | C133: P.01.44
B134: =IF(iCONDOMINI!C55<>"",iCONDOMINI!C55,"") ->  | C134: P.01.45
B135: =IF(iCONDOMINI!C56<>"",iCONDOMINI!C56,"") ->  | C135: P.01.46
B136: =IF(iCONDOMINI!C57<>"",iCONDOMINI!C57,"") ->  | C136: P.01.47
B137: =IF(iCONDOMINI!C58<>"",iCONDOMINI!C58,"") ->  | C137: P.01.48
B138: =IF(iCONDOMINI!C59<>"",iCONDOMINI!C59,"") ->  | C138: P.01.49
B139: =IF(iCONDOMINI!C60<>"",iCONDOMINI!C60,"") ->  | C139: P.01.50
B140: =IF(iCONDOMINI!C61<>"",iCONDOMINI!C61,"") ->  | C140: P.01.51
B141: =IF(iCONDOMINI!C62<>"",iCONDOMINI!C62,"") ->  | C141: P.01.52
B142: =IF(iCONDOMINI!C63<>"",iCONDOMINI!C63,"") ->  | C142: P.01.53
B143: =IF(iCONDOMINI!C64<>"",iCONDOMINI!C64,"") ->  | C143: P.01.54
B144: =IF(iCONDOMINI!C65<>"",iCONDOMINI!C65,"") ->  | C144: P.01.55
B145: =IF(iCONDOMINI!C66<>"",iCONDOMINI!C66,"") ->  | C145: P.01.56
B146: =IF(iCONDOMINI!C67<>"",iCONDOMINI!C67,"") ->  | C146: P.01.57
B147: =IF(iCONDOMINI!C68<>"",iCONDOMINI!C68,"") ->  | C147: P.01.58
B148: =IF(iCONDOMINI!C69<>"",iCONDOMINI!C69,"") ->  | C148: P.01.59
B149: =IF(iCONDOMINI!C70<>"",iCONDOMINI!C70,"") ->  | C149: P.01.60
B150: =IF(iCONDOMINI!C71<>"",iCONDOMINI!C71,"") ->  | C150: P.01.61
B151: =IF(iCONDOMINI!C72<>"",iCONDOMINI!C72,"") ->  | C151: P.01.62
B152: =IF(iCONDOMINI!C73<>"",iCONDOMINI!C73,"") ->  | C152: P.01.63
B153: =IF(iCONDOMINI!C74<>"",iCONDOMINI!C74,"") ->  | C153: P.01.64
B154: =IF(iCONDOMINI!C75<>"",iCONDOMINI!C75,"") ->  | C154: P.01.65
B155: =IF(iCONDOMINI!C76<>"",iCONDOMINI!C76,"") ->  | C155: P.01.66
B156: =IF(iCONDOMINI!C77<>"",iCONDOMINI!C77,"") ->  | C156: P.01.67
B157: =IF(iCONDOMINI!C78<>"",iCONDOMINI!C78,"") ->  | C157: P.01.68
B158: =IF(iCONDOMINI!C79<>"",iCONDOMINI!C79,"") ->  | C158: P.01.69
B159: =IF(iCONDOMINI!C80<>"",iCONDOMINI!C80,"") ->  | C159: P.01.70
B160: =IF(iCONDOMINI!C81<>"",iCONDOMINI!C81,"") ->  | C160: P.01.71
B161: =IF(iCONDOMINI!C82<>"",iCONDOMINI!C82,"") ->  | C161: P.01.72
B162: =IF(iCONDOMINI!C83<>"",iCONDOMINI!C83,"") ->  | C162: P.01.73
B163: =IF(iCONDOMINI!C84<>"",iCONDOMINI!C84,"") ->  | C163: P.01.74
B164: =IF(iCONDOMINI!C85<>"",iCONDOMINI!C85,"") ->  | C164: P.01.75
B165: =IF(iCONDOMINI!C86<>"",iCONDOMINI!C86,"") ->  | C165: P.01.76
B166: =IF(iCONDOMINI!C87<>"",iCONDOMINI!C87,"") ->  | C166: P.01.77
B167: =IF(iCONDOMINI!C88<>"",iCONDOMINI!C88,"") ->  | C167: P.01.78
B168: =IF(iCONDOMINI!C89<>"",iCONDOMINI!C89,"") ->  | C168: P.01.79
B169: =IF(iCONDOMINI!C90<>"",iCONDOMINI!C90,"") ->  | C169: P.01.80
B170: =IF(iCONDOMINI!C91<>"",iCONDOMINI!C91,"") ->  | C170: P.01.81
B171: =IF(iCONDOMINI!C92<>"",iCONDOMINI!C92,"") ->  | C171: P.01.82
B172: =IF(iCONDOMINI!C93<>"",iCONDOMINI!C93,"") ->  | C172: P.01.83
B173: =IF(iCONDOMINI!C94<>"",iCONDOMINI!C94,"") ->  | C173: P.01.84
B174: =IF(iCONDOMINI!C95<>"",iCONDOMINI!C95,"") ->  | C174: P.01.85
B175: =IF(iCONDOMINI!C96<>"",iCONDOMINI!C96,"") ->  | C175: P.01.86
B176: =IF(iCONDOMINI!C97<>"",iCONDOMINI!C97,"") ->  | C176: P.01.87
B177: =IF(iCONDOMINI!C98<>"",iCONDOMINI!C98,"") ->  | C177: P.01.88
B178: =IF(iCONDOMINI!C99<>"",iCONDOMINI!C99,"") ->  | C178: P.01.89
B179: =IF(iCONDOMINI!C100<>"",iCONDOMINI!C100,"") ->  | C179: P.01.90
B180: =IF(iCONDOMINI!C101<>"",iCONDOMINI!C101,"") ->  | C180: P.01.91
B181: =IF(iCONDOMINI!C102<>"",iCONDOMINI!C102,"") ->  | C181: P.01.92
B182: =IF(iCONDOMINI!C103<>"",iCONDOMINI!C103,"") ->  | C182: P.01.93
B183: =IF(iCONDOMINI!C104<>"",iCONDOMINI!C104,"") ->  | C183: P.01.94
B184: =IF(iCONDOMINI!C105<>"",iCONDOMINI!C105,"") ->  | C184: P.01.95
B185: =IF(iCONDOMINI!C106<>"",iCONDOMINI!C106,"") ->  | C185: P.01.96
B186: =IF(iCONDOMINI!C107<>"",iCONDOMINI!C107,"") ->  | C186: P.01.97
B187: =IF(iCONDOMINI!C108<>"",iCONDOMINI!C108,"") ->  | C187: P.01.98
B188: =IF(iCONDOMINI!C109<>"",iCONDOMINI!C109,"") ->  | C188: P.01.99
B189: RESTITUZIONI, RIMBORSI e PAGAMENTI DEBITI | C189: U
B190: Restituzioni a Condomini versamenti in eccesso per l'esercizio precedente | C190: U.01.01.NC
B191: Restituzione Prestiti | C191: U.01.02
B192: Pagamenti Debiti v/s Terzi Privati, Erario e Enti Pubblici | C192: U.01.03
B193: Versamenti Ritenute d'Acconto relative a debiti esercizi precedenti | C193: U.01.04
C194: U.01.05
B195: PRESTITI A GESTIONI SPECIALI SEPARATE e FONDI | C195: R
B196: =IF(LEN(iDG!B87)>0,CONCATENATE("Prestito a GESTIONE SPECIALE ","""",iDG!B87,""""),"") -> Prestito a GESTIONE SPECIALE "PROSPETTI" | C196: R.01.01
B197: =IF(LEN(iDG!B88)>0,CONCATENATE("Prestito a GESTIONE SPECIALE ","""",iDG!B88,""""),"") ->  | C197: R.01.02
B198: =IF(LEN(iDG!B89)>0,CONCATENATE("Prestito a GESTIONE SPECIALE ","""",iDG!B89,""""),"") ->  | C198: R.01.03
B199: =IF(LEN(iDG!B90)>0,CONCATENATE("Prestito a GESTIONE SPECIALE ","""",iDG!B90,""""),"") ->  | C199: R.01.04
B200: =IF(LEN(iDG!B91)>0,CONCATENATE("Prestito a GESTIONE SPECIALE ","""",iDG!B91,""""),"") ->  | C200: R.01.05
B201: USCITE PER CONTO DI GESTIONI SPECIALI SEPARATI e FONDI | C201: G
B202: =IF(LEN(iDG!B87)>0,CONCATENATE("Uscite per conto di GESTIONE SPECIALE ", """",iDG!B87,""""),"") -> Uscite per conto di GESTIONE SPECIALE "PROSPETTI" | C202: G.01.01
B203: =IF(LEN(iDG!B88)>0,CONCATENATE("Uscite per conto di GESTIONE SPECIALE ", """",iDG!B88,""""),"") ->  | C203: G.01.02
... 4 more rows

Sheet iPCE (hidden)
B1: È consentito variare i valori delle sole celle con sfondo bianco. | F1: 0
B5: =iDG!B32 -> Condominio Palazzo Duck
B7: PIANO GENERALE DEI CONTI
B8: PIANO DELLE RISCOSSIONI, DELLE ENTRATE E DEGLI INCASSI
B9: SEZIONI, CAPITOLI e VOCI | C9: CODICI CONTO
B10: RISCOSSIONE CONTRIBUTI CONDOMINIALI (GESTIONE ORDINARIA) | C10: Q.01 QUOTE Esercizio in corso | D10: Q.02 CONGUAGLIO Esercizio precedente | E10: Q.03 ARRETRATI
B11: =iCONDOMINI!C11 -> Paperoga | C11: Q.01.01 | D11: Q.02.01 | E11: Q.03.01
B12: =iCONDOMINI!C12 -> Ciccio | C12: Q.01.02 | D12: Q.02.02 | E12: Q.03.02
B13: =iCONDOMINI!C13 -> Gastone | C13: Q.01.03 | D13: Q.02.03 | E13: Q.03.03
B14: =iCONDOMINI!C14 -> I tre nipotini | C14: Q.01.04 | D14: Q.02.04 | E14: Q.03.04
B15: =iCONDOMINI!C15 -> Nonna Papera | C15: Q.01.05 | D15: Q.02.05 | E15: Q.03.05
B16: =iCONDOMINI!C16 -> Fidanzati Paperino-Paperina | C16: Q.01.06 | D16: Q.02.06 | E16: Q.03.06
B17: =iCONDOMINI!C17 -> 0 | C17: Q.01.07 | D17: Q.02.07 | E17: Q.03.07
B18: =iCONDOMINI!C18 -> 0 | C18: Q.01.08 | D18: Q.02.08 | E18: Q.03.08
B19: =iCONDOMINI!C19 -> 0 | C19: Q.01.09 | D19: Q.02.09 | E19: Q.03.09
B20: =iCONDOMINI!C20 -> 0 | C20: Q.01.10 | D20: Q.02.10 | E20: Q.03.10
B21: =iCONDOMINI!C21 -> 0 | C21: Q.01.11 | D21: Q.02.11 | E21: Q.03.11
B22: =iCONDOMINI!C22 -> 0 | C22: Q.01.12 | D22: Q.02.12 | E22: Q.03.12
B23: =iCONDOMINI!C23 -> 0 | C23: Q.01.13 | D23: Q.02.13 | E23: Q.03.13
B24: =iCONDOMINI!C24 -> 0 | C24: Q.01.14 | D24: Q.02.14 | E24: Q.03.14
B25: =iCONDOMINI!C25 -> 0 | C25: Q.01.15 | D25: Q.02.15 | E25: Q.03.15
B26: =iCONDOMINI!C26 -> 0 | C26: Q.01.16 | D26: Q.02.16 | E26: Q.03.16
B27: =iCONDOMINI!C27 -> 0 | C27: Q.01.17 | D27: Q.02.17 | E27: Q.03.17
B28: =iCONDOMINI!C28 -> 0 | C28: Q.01.18 | D28: Q.02.18 | E28: Q.03.18
B29: =iCONDOMINI!C29 -> 0 | C29: Q.01.19 | D29: Q.02.19 | E29: Q.03.19
B30: =iCONDOMINI!C30 -> 0 | C30: Q.01.20 | D30: Q.02.20 | E30: Q.03.20
B31: =iCONDOMINI!C31 -> 0 | C31: Q.01.21 | D31: Q.02.21 | E31: Q.03.21
B32: =iCONDOMINI!C32 -> 0 | C32: Q.01.22 | D32: Q.02.22 | E32: Q.03.22
B33: =iCONDOMINI!C33 -> 0 | C33: Q.01.23 | D33: Q.02.23 | E33: Q.03.23
B34: =iCONDOMINI!C34 -> 0 | C34: Q.01.24 | D34: Q.02.24 | E34: Q.03.24
B35: =iCONDOMINI!C35 -> 0 | C35: Q.01.25 | D35: Q.02.25 | E35: Q.03.25
B36: =iCONDOMINI!C36 -> 0 | C36: Q.01.26 | D36: Q.02.26 | E36: Q.03.26
B37: =iCONDOMINI!C37 -> 0 | C37: Q.01.27 | D37: Q.02.27 | E37: Q.03.27
B38: =iCONDOMINI!C38 -> 0 | C38: Q.01.28 | D38: Q.02.28 | E38: Q.03.28
B39: =iCONDOMINI!C39 -> 0 | C39: Q.01.29 | D39: Q.02.29 | E39: Q.03.29
B40: =iCONDOMINI!C40 -> 0 | C40: Q.01.30 | D40: Q.02.30 | E40: Q.03.30
B41: =iCONDOMINI!C41 -> 0 | C41: Q.01.31 | D41: Q.02.31 | E41: Q.03.31
B42: =iCONDOMINI!C42 -> 0 | C42: Q.01.32 | D42: Q.02.32 | E42: Q.03.32
B43: =iCONDOMINI!C43 -> 0 | C43: Q.01.33 | D43: Q.02.33 | E43: Q.03.33
B44: =iCONDOMINI!C44 -> 0 | C44: Q.01.34 | D44: Q.02.34 | E44: Q.03.34
B45: =iCONDOMINI!C45 -> 0 | C45: Q.01.35 | D45: Q.02.35 | E45: Q.03.35
B46: =iCONDOMINI!C46 -> 0 | C46: Q.01.36 | D46: Q.02.36 | E46: Q.03.36
B47: =iCONDOMINI!C47 -> 0 | C47: Q.01.37 | D47: Q.02.37 | E47: Q.03.37
B48: =iCONDOMINI!C48 -> 0 | C48: Q.01.38 | D48: Q.02.38 | E48: Q.03.38
B49: =iCONDOMINI!C49 -> 0 | C49: Q.01.39 | D49: Q.02.39 | E49: Q.03.39
B50: =iCONDOMINI!C50 -> 0 | C50: Q.01.40 | D50: Q.02.40 | E50: Q.03.40
B51: =iCONDOMINI!C51 -> 0 | C51: Q.01.41 | D51: Q.02.41 | E51: Q.03.41
B52: =iCONDOMINI!C52 -> 0 | C52: Q.01.42 | D52: Q.02.42 | E52: Q.03.42
B53: =iCONDOMINI!C53 -> 0 | C53: Q.01.43 | D53: Q.02.43 | E53: Q.03.43
B54: =iCONDOMINI!C54 -> 0 | C54: Q.01.44 | D54: Q.02.44 | E54: Q.03.44
B55: =iCONDOMINI!C55 -> 0 | C55: Q.01.45 | D55: Q.02.45 | E55: Q.03.45
B56: =iCONDOMINI!C56 -> 0 | C56: Q.01.46 | D56: Q.02.46 | E56: Q.03.46
B57: =iCONDOMINI!C57 -> 0 | C57: Q.01.47 | D57: Q.02.47 | E57: Q.03.47
B58: =iCONDOMINI!C58 -> 0 | C58: Q.01.48 | D58: Q.02.48 | E58: Q.03.48
B59: =iCONDOMINI!C59 -> 0 | C59: Q.01.49 | D59: Q.02.49 | E59: Q.03.49
B60: =iCONDOMINI!C60 -> 0 | C60: Q.01.50 | D60: Q.02.50 | E60: Q.03.50
B61: =iCONDOMINI!C61 -> 0 | C61: Q.01.51 | D61: Q.02.51 | E61: Q.03.51
B62: =iCONDOMINI!C62 -> 0 | C62: Q.01.52 | D62: Q.02.52 | E62: Q.03.52
B63: =iCONDOMINI!C63 -> 0 | C63: Q.01.53 | D63: Q.02.53 | E63: Q.03.53
B64: =iCONDOMINI!C64 -> 0 | C64: Q.01.54 | D64: Q.02.54 | E64: Q.03.54
B65: =iCONDOMINI!C65 -> 0 | C65: Q.01.55 | D65: Q.02.55 | E65: Q.03.55
B66: =iCONDOMINI!C66 -> 0 | C66: Q.01.56 | D66: Q.02.56 | E66: Q.03.56
B67: =iCONDOMINI!C67 -> 0 | C67: Q.01.57 | D67: Q.02.57 | E67: Q.03.57
B68: =iCONDOMINI!C68 -> 0 | C68: Q.01.58 | D68: Q.02.58 | E68: Q.03.58
B69: =iCONDOMINI!C69 -> 0 | C69: Q.01.59 | D69: Q.02.59 | E69: Q.03.59
B70: =iCONDOMINI!C70 -> 0 | C70: Q.01.60 | D70: Q.02.60 | E70: Q.03.60
B71: =iCONDOMINI!C71 -> 0 | C71: Q.01.61 | D71: Q.02.61 | E71: Q.03.61
B72: =iCONDOMINI!C72 -> 0 | C72: Q.01.62 | D72: Q.02.62 | E72: Q.03.62
B73: =iCONDOMINI!C73 -> 0 | C73: Q.01.63 | D73: Q.02.63 | E73: Q.03.63
B74: =iCONDOMINI!C74 -> 0 | C74: Q.01.64 | D74: Q.02.64 | E74: Q.03.64
B75: =iCONDOMINI!C75 -> 0 | C75: Q.01.65 | D75: Q.02.65 | E75: Q.03.65
B76: =iCONDOMINI!C76 -> 0 | C76: Q.01.66 | D76: Q.02.66 | E76: Q.03.66
B77: =iCONDOMINI!C77 -> 0 | C77: Q.01.67 | D77: Q.02.67 | E77: Q.03.67
B78: =iCONDOMINI!C78 -> 0 | C78: Q.01.68 | D78: Q.02.68 | E78: Q.03.68
B79: =iCONDOMINI!C79 -> 0 | C79: Q.01.69 | D79: Q.02.69 | E79: Q.03.69
B80: =iCONDOMINI!C80 -> 0 | C80: Q.01.70 | D80: Q.02.70 | E80: Q.03.70
B81: =iCONDOMINI!C81 -> 0 | C81: Q.01.71 | D81: Q.02.71 | E81: Q.03.71
B82: =iCONDOMINI!C82 -> 0 | C82: Q.01.72 | D82: Q.02.72 | E82: Q.03.72
B83: =iCONDOMINI!C83 -> 0 | C83: Q.01.73 | D83: Q.02.73 | E83: Q.03.73
B84: =iCONDOMINI!C84 -> 0 | C84: Q.01.74 | D84: Q.02.74 | E84: Q.03.74
B85: =iCONDOMINI!C85 -> 0 | C85: Q.01.75 | D85: Q.02.75 | E85: Q.03.75
B86: =iCONDOMINI!C86 -> 0 | C86: Q.01.76 | D86: Q.02.76 | E86: Q.03.76
B87: =iCONDOMINI!C87 -> 0 | C87: Q.01.77 | D87: Q.02.77 | E87: Q.03.77
B88: =iCONDOMINI!C88 -> 0 | C88: Q.01.78 | D88: Q.02.78 | E88: Q.03.78
B89: =iCONDOMINI!C89 -> 0 | C89: Q.01.79 | D89: Q.02.79 | E89: Q.03.79
B90: =iCONDOMINI!C90 -> 0 | C90: Q.01.80 | D90: Q.02.80 | E90: Q.03.80
B91: =iCONDOMINI!C91 -> 0 | C91: Q.01.81 | D91: Q.02.81 | E91: Q.03.81
B92: =iCONDOMINI!C92 -> 0 | C92: Q.01.82 | D92: Q.02.82 | E92: Q.03.82
B93: =iCONDOMINI!C93 -> 0 | C93: Q.01.83 | D93: Q.02.83 | E93: Q.03.83
B94: =iCONDOMINI!C94 -> 0 | C94: Q.01.84 | D94: Q.02.84 | E94: Q.03.84
B95: =iCONDOMINI!C95 -> 0 | C95: Q.01.85 | D95: Q.02.85 | E95: Q.03.85
B96: =iCONDOMINI!C96 -> 0 | C96: Q.01.86 | D96: Q.02.86 | E96: Q.03.86
B97: =iCONDOMINI!C97 -> 0 | C97: Q.01.87 | D97: Q.02.87 | E97: Q.03.87
B98: =iCONDOMINI!C98 -> 0 | C98: Q.01.88 | D98: Q.02.88 | E98: Q.03.88
B99: =iCONDOMINI!C99 -> 0 | C99: Q.01.89 | D99: Q.02.89 | E99: Q.03.89
B100: =iCONDOMINI!C100 -> 0 | C100: Q.01.90 | D100: Q.02.90 | E100: Q.03.90
B101: =iCONDOMINI!C101 -> 0 | C101: Q.01.91 | D101: Q.02.91 | E101: Q.03.91
B102: =iCONDOMINI!C102 -> 0 | C102: Q.01.92 | D102: Q.02.92 | E102: Q.03.92
B103: =iCONDOMINI!C103 -> 0 | C103: Q.01.93 | D103: Q.02.93 | E103: Q.03.93
B104: =iCONDOMINI!C104 -> 0 | C104: Q.01.94 | D104: Q.02.94 | E104: Q.03.94
B105: =iCONDOMINI!C105 -> 0 | C105: Q.01.95 | D105: Q.02.95 | E105: Q.03.95
B106: =iCONDOMINI!C106 -> 0 | C106: Q.01.96 | D106: Q.02.96 | E106: Q.03.96
B107: =iCONDOMINI!C107 -> 0 | C107: Q.01.97 | D107: Q.02.97 | E107: Q.03.97
B108: =iCONDOMINI!C108 -> 0 | C108: Q.01.98 | D108: Q.02.98 | E108: Q.03.98
B109: =iCONDOMINI!C109 -> 0 | C109: Q.01.99 | D109: Q.02.99 | E109: Q.03.99
B110: ABBUONI SU SPESE GESTIONE ORDINARIA | C110: A
B111: =IF(iDG!B52<>"",TRIM("Abbuoni su spese già ripartite con " &iDG!D52),"") -> Abbuoni su spese già ripartite con Tabella A | C111: A.01.01
B112: =IF(iDG!B53<>"",TRIM("Abbuoni su spese già ripartite con " &iDG!D53),"") -> Abbuoni su spese già ripartite con Tabella B | C112: A.01.02
B113: =IF(iDG!B54<>"",TRIM("Abbuoni su spese già ripartite con " &iDG!D54),"") -> Abbuoni su spese già ripartite con Tabella C | C113: A.01.03
B114: =IF(iDG!B55<>"",TRIM("Abbuoni su spese già ripartite con " &iDG!D55),"") -> Abbuoni su spese già ripartite con Tabella D | C114: A.01.04
B115: =IF(iDG!B56<>"",TRIM("Abbuoni su spese già ripartite con " &iDG!D56),"") -> Abbuoni su spese già ripartite con Tabella E | C115: A.01.05
B116: =IF(iDG!B57<>"",TRIM("Abbuoni su spese già ripartite con " &iDG!D57),"") ->  | C116: A.01.06
B117: =IF(iDG!B58<>"",TRIM("Abbuoni su spese già ripartite con " &iDG!D58),"") ->  | C117: A.01.07
B118: =IF(iDG!B59<>"",TRIM("Abbuoni su spese già ripartite con " &iDG!D59),"") ->  | C118: A.01.08
B119: =IF(iDG!B60<>"",TRIM("Abbuoni su spese già ripartite con " &iDG!D60),"") ->  | C119: A.01.09
B120: =IF(iDG!B61<>"",TRIM("Abbuoni su spese già ripartite con " &iDG!D61),"") ->  | C120: A.01.10
B121: RENDITE e PROVENTI DIVERSI (Queste Entrate saranno ripartire fra i condomini secondo la tabella A) | C121: E
B122: Proventi da Sanzioni a condomini | C122: E.01.01
B123: Rendite Patrimoniali da beni comuni censibili (fitti, ...) | C123: E.01.02
B124: Rendite Finanziarie (interessi attivi, ...) | C124: E.01.03
B125: Donazioni ricevute dal Condominio | C125: E.01.04
B126: Proventi da Attività commerciali e produttive marginali | C126: E.01.05
B127: Entrate varie | C127: E.01.06
C128: E.01.07
C129: E.01.08
C130: E.01.09
C131: E.01.10
B132: RISCOSSIONE QUOTE (GESTIONI SPECIALI SEPARATE o FONDI) | C132: F
B133: =IF(LEN(iDG!B87)>0,CONCATENATE("Riscossione su cassa di quote della GESTIONE SPECIALE ","""",iDG!B87,""""),"") -> Riscossione su cassa di quote della GESTIONE SPECIALE "PROSPETTI" | C133: F.01.01
B134: =IF(LEN(iDG!B87)>0,CONCATENATE("Riscossione su conto corrente di quote della GESTIONE SPECIALE ","""", iDG!B87,""""),"") -> Riscossione su conto corrente di quote della GESTIONE SPECIALE "PROSPETTI" | C134: F.01.02
B135: =IF(LEN(iDG!B88)>0,CONCATENATE("Riscossione su cassa di quote della GESTIONE SPECIALE ","""",iDG!B88,""""),"") ->  | C135: F.02.01
B136: =IF(LEN(iDG!B88)>0,CONCATENATE("Riscossione su conto corrente di quote della GESTIONE SPECIALE ","""", iDG!B88,""""),"") ->  | C136: F.02.02
B137: =IF(LEN(iDG!B89)>0,CONCATENATE("Riscossione su cassa di quote della GESTIONE SPECIALE ","""",iDG!B89,""""),"") ->  | C137: F.03.01
B138: =IF(LEN(iDG!B89)>0,CONCATENATE("Riscossione su conto corrente di quote della GESTIONE SPECIALE ","""", iDG!B89,""""),"") ->  | C138: F.03.02
B139: =IF(LEN(iDG!B90)>0,CONCATENATE("Riscossione su cassa di quote della GESTIONE SPECIALE ","""",iDG!B90,""""),"") ->  | C139: F.04.01
B140: =IF(LEN(iDG!B90)>0,CONCATENATE("Riscossione su conto corrente di quote della GESTIONE SPECIALE ","""", iDG!B90,""""),"") ->  | C140: F.04.02
B141: =IF(LEN(iDG!B91)>0,CONCATENATE("Riscossione su cassa di quote della GESTIONE SPECIALE ","""",iDG!B91,""""),"") ->  | C141: F.05.01
B142: =IF(LEN(iDG!B91)>0,CONCATENATE("Riscossione su conto corrente di quote della GESTIONE SPECIALE ","""", iDG!B91,""""),"") ->  | C142: F.05.02
B143: FINANZIAMENTI RICEVUTI IN PRESTITO e ALTRE PARTITE DI GIRO | C143: V
B144: Anticipazione di cassa da Amministratore | C144: V.01.01
B145: Prestiti ricevuti da terzi | C145: V.01.02
C146: V.01.03
C147: V.01.04
C148: V.01.05
B149: FINANZIAMENTI ALLA GESTIONE ORDINARIA IN PRESTITO da GESTIONI SPECIALI | C149: W
B150: =IF(LEN(iDG!B87)>0,CONCATENATE("Finanziamento in prestito dalla GESTIONE SPECIALE ","""",iDG!B87,""""),"") -> Finanziamento in prestito dalla GESTIONE SPECIALE "PROSPETTI" | C150: W.01.01
B151: =IF(LEN(iDG!B88)>0,CONCATENATE("Finanziamento in prestito dalla GESTIONE SPECIALE ","""",iDG!B88,""""),"") ->  | C151: W.01.02
B152: =IF(LEN(iDG!B89)>0,CONCATENATE("Finanziamento in prestito dalla GESTIONE SPECIALE ","""",iDG!B89,""""),"") ->  | C152: W.01.03
B153: =IF(LEN(iDG!B90)>0,CONCATENATE("Finanziamento in prestito dalla GESTIONE SPECIALE ","""",iDG!B90,""""),"") ->  | C153: W.01.04
B154: =IF(LEN(iDG!B91)>0,CONCATENATE("Finanziamento in prestito dalla GESTIONE SPECIALE ","""",iDG!B91,""""),"") ->  | C154: W.01.05
B155: ENTRATE VARIE e RESTITUZIONI SU SPESE GIÀ RIPARTITE IN ESERCIZI PRECEDENTI | C155: K
B156: =IF(iDG!B52<>"",TRIM("Entrate da ripartire con " &iDG!D52),"") -> Entrate da ripartire con Tabella A | C156: K.01.01
B157: =IF(iDG!B53<>"",TRIM("Entrate da ripartire con " &iDG!D53),"") -> Entrate da ripartire con Tabella B | C157: K.01.02
B158: =IF(iDG!B54<>"",TRIM("Entrate da ripartire con " &iDG!D54),"") -> Entrate da ripartire con Tabella C | C158: K.01.03
B159: =IF(iDG!B55<>"",TRIM("Entrate da ripartire con " &iDG!D55),"") -> Entrate da ripartire con Tabella D | C159: K.01.04
B160: =IF(iDG!B56<>"",TRIM("Entrate da ripartire con " &iDG!D56),"") -> Entrate da ripartire con Tabella E | C160: K.01.05
B161: =IF(iDG!B57<>"",TRIM("Entrate da ripartire con " &iDG!D57),"") ->  | C161: K.01.06
B162: =IF(iDG!B58<>"",TRIM("Entrate da ripartire con " &iDG!D58),"") ->  | C162: K.01.07
B163: =IF(iDG!B59<>"",TRIM("Entrate da ripartire con " &iDG!D59),"") ->  | C163: K.01.08
B164: =IF(iDG!B60<>"",TRIM("Entrate da ripartire con " &iDG!D60),"") ->  | C164: K.01.09
B165: =IF(iDG!B61<>"",TRIM("Entrate da ripartire con " &iDG!D61),"") ->  | C165: K.01.10
B166: 0 | F166: 0

Sheet iPCDC (hidden)
B1: È consentito variare i valori delle sole celle con sfondo bianco. | H1: 0
B5: =iDG!B32 -> Condominio Palazzo Duck
B8: PIANO GENERALE DEI CONTI
B9: PIANO DEI CREDITI | E9: PIANO DEI DEBITI
B10: CAPITOLI e VOCI | C10: CODICE CONTO | E10: CAPITOLI e VOCI | F10: CODICI CONTO
B11: da DEPOSITI di DENARO presso Terzi | C11: C.01
B12: =iPCU!B84 -> DEPOSITI CAUZIONALI | C12: C.01.01.YY
B13: =iPCU!B85 -> ACQUISTO VOUCHER LAVORI | C13: C.01.02.YY
B14: =iPCU!B86 -> PRESTITI A TERZI | C14: C.01.03.YY
B15: =iPCU!B87 -> 0 | C15: C.01.04.YY | E15: =B15 -> 0
B16: =iPCU!B88 -> 0 | C16: C.01.05.YY | E16: =B16 -> 0
B17: da TERZI PRIVATI | C17: C.02 | E17: v/s TERZI PRIVATI | F17: D.02
B18: da FORNITORI | C18: C.02.01.YY | E18: v/s FORNITORI per FATTURE RICEVUTE | F18: D.02.01.YY
B19: da DEBITORI DIVERSI | C19: C.02.02.YY | E19: v/s FORNITORI per AVVISI DI FATTURA RICEVUTI | F19: D.02.02.YY
B20: da CANONI e FITTI | C20: C.02.03.YY | E20: v/s FORNITORI per IMPEGNI DI SPESA | F20: D.02.03.YY
C21: C.02.04.YY | E21: v/s TERZI per PRESTITI RICEVUTI | F21: D.02.04.YY
C22: C.02.05.YY | E22: v/s CREDITORI DIVERSI | F22: D.02.05.YY
B23: da TERZI PUBBLICI | C23: C.03 | E23: v/s TERZI PUBBLICI | F23: D.03
B24: da ERARIO | C24: C.03.01.YY | E24: v/s ERARIO per RITENUTE ACCONTO SU SPESE | F24: D.03.01.YY
B25: da altri Enti Pubblici | C25: C.03.02.YY | E25: v/s ERARIO per TRIBUTI | F25: D.03.02.YY
C26: C.03.03.YY | E26: v/s ERARIO per R.A. SU PAGAMENTI DEBITI | F26: D.03.03.YY
C27: C.03.04.YY | E27: v/s ENTI PUBBLICI per Tributi e Tasse | F27: D.03.04.YY
C28: C.03.05.YY | F28: D.03.05.YY
B29: da CONDOMINI | C29: C.04 | E29: v/s CONDOMINI | F29: D.04 | G29: D.05
B30: =iCONDOMINI!C11 -> Paperoga | C30: C.04.01.YY | E30: =iCONDOMINI!C11 -> Paperoga | F30: D.04.01 | G30: D.05.01
B31: =iCONDOMINI!C12 -> Ciccio | C31: C.04.02.YY | E31: =iCONDOMINI!C12 -> Ciccio | F31: D.04.02 | G31: D.05.02
B32: =iCONDOMINI!C13 -> Gastone | C32: C.04.03.YY | E32: =iCONDOMINI!C13 -> Gastone | F32: D.04.03 | G32: D.05.03
B33: =iCONDOMINI!C14 -> I tre nipotini | C33: C.04.04.YY | E33: =iCONDOMINI!C14 -> I tre nipotini | F33: D.04.04 | G33: D.05.04
B34: =iCONDOMINI!C15 -> Nonna Papera | C34: C.04.05.YY | E34: =iCONDOMINI!C15 -> Nonna Papera | F34: D.04.05 | G34: D.05.05
B35: =iCONDOMINI!C16 -> Fidanzati Paperino-Paperina | C35: C.04.06.YY | E35: =iCONDOMINI!C16 -> Fidanzati Paperino-Paperina | F35: D.04.06 | G35: D.05.06
B36: =iCONDOMINI!C17 -> 0 | C36: C.04.07.YY | E36: =iCONDOMINI!C17 -> 0 | F36: D.04.07 | G36: D.05.07
B37: =iCONDOMINI!C18 -> 0 | C37: C.04.08.YY | E37: =iCONDOMINI!C18 -> 0 | F37: D.04.08 | G37: D.05.08
B38: =iCONDOMINI!C19 -> 0 | C38: C.04.09.YY | E38: =iCONDOMINI!C19 -> 0 | F38: D.04.09 | G38: D.05.09
B39: =iCONDOMINI!C20 -> 0 | C39: C.04.10.YY | E39: =iCONDOMINI!C20 -> 0 | F39: D.04.10 | G39: D.05.10
B40: =iCONDOMINI!C21 -> 0 | C40: C.04.11.YY | E40: =iCONDOMINI!C21 -> 0 | F40: D.04.11 | G40: D.05.11
B41: =iCONDOMINI!C22 -> 0 | C41: C.04.12.YY | E41: =iCONDOMINI!C22 -> 0 | F41: D.04.12 | G41: D.05.12
B42: =iCONDOMINI!C23 -> 0 | C42: C.04.13.YY | E42: =iCONDOMINI!C23 -> 0 | F42: D.04.13 | G42: D.05.13
B43: =iCONDOMINI!C24 -> 0 | C43: C.04.14.YY | E43: =iCONDOMINI!C24 -> 0 | F43: D.04.14 | G43: D.05.14
B44: =iCONDOMINI!C25 -> 0 | C44: C.04.15.YY | E44: =iCONDOMINI!C25 -> 0 | F44: D.04.15 | G44: D.05.15
B45: =iCONDOMINI!C26 -> 0 | C45: C.04.16.YY | E45: =iCONDOMINI!C26 -> 0 | F45: D.04.16 | G45: D.05.16
B46: =iCONDOMINI!C27 -> 0 | C46: C.04.17.YY | E46: =iCONDOMINI!C27 -> 0 | F46: D.04.17 | G46: D.05.17
B47: =iCONDOMINI!C28 -> 0 | C47: C.04.18.YY | E47: =iCONDOMINI!C28 -> 0 | F47: D.04.18 | G47: D.05.18
B48: =iCONDOMINI!C29 -> 0 | C48: C.04.19.YY | E48: =iCONDOMINI!C29 -> 0 | F48: D.04.19 | G48: D.05.19
B49: =iCONDOMINI!C30 -> 0 | C49: C.04.20.YY | E49: =iCONDOMINI!C30 -> 0 | F49: D.04.20 | G49: D.05.20
B50: =iCONDOMINI!C31 -> 0 | C50: C.04.21.YY | E50: =iCONDOMINI!C31 -> 0 | F50: D.04.21 | G50: D.05.21
B51: =iCONDOMINI!C32 -> 0 | C51: C.04.22.YY | E51: =iCONDOMINI!C32 -> 0 | F51: D.04.22 | G51: D.05.22
B52: =iCONDOMINI!C33 -> 0 | C52: C.04.23.YY | E52: =iCONDOMINI!C33 -> 0 | F52: D.04.23 | G52: D.05.23
B53: =iCONDOMINI!C34 -> 0 | C53: C.04.24.YY | E53: =iCONDOMINI!C34 -> 0 | F53: D.04.24 | G53: D.05.24
B54: =iCONDOMINI!C35 -> 0 | C54: C.04.25.YY | E54: =iCONDOMINI!C35 -> 0 | F54: D.04.25 | G54: D.05.25
B55: =iCONDOMINI!C36 -> 0 | C55: C.04.26.YY | E55: =iCONDOMINI!C36 -> 0 | F55: D.04.26 | G55: D.05.26
B56: =iCONDOMINI!C37 -> 0 | C56: C.04.27.YY | E56: =iCONDOMINI!C37 -> 0 | F56: D.04.27 | G56: D.05.27
B57: =iCONDOMINI!C38 -> 0 | C57: C.04.28.YY | E57: =iCONDOMINI!C38 -> 0 | F57: D.04.28 | G57: D.05.28
B58: =iCONDOMINI!C39 -> 0 | C58: C.04.29.YY | E58: =iCONDOMINI!C39 -> 0 | F58: D.04.29 | G58: D.05.29
B59: =iCONDOMINI!C40 -> 0 | C59: C.04.30.YY | E59: =iCONDOMINI!C40 -> 0 | F59: D.04.30 | G59: D.05.30
B60: =iCONDOMINI!C41 -> 0 | C60: C.04.31.YY | E60: =iCONDOMINI!C41 -> 0 | F60: D.04.31 | G60: D.05.31
B61: =iCONDOMINI!C42 -> 0 | C61: C.04.32.YY | E61: =iCONDOMINI!C42 -> 0 | F61: D.04.32 | G61: D.05.32
B62: =iCONDOMINI!C43 -> 0 | C62: C.04.33.YY | E62: =iCONDOMINI!C43 -> 0 | F62: D.04.33 | G62: D.05.33
B63: =iCONDOMINI!C44 -> 0 | C63: C.04.34.YY | E63: =iCONDOMINI!C44 -> 0 | F63: D.04.34 | G63: D.05.34
B64: =iCONDOMINI!C45 -> 0 | C64: C.04.35.YY | E64: =iCONDOMINI!C45 -> 0 | F64: D.04.35 | G64: D.05.35
B65: =iCONDOMINI!C46 -> 0 | C65: C.04.36.YY | E65: =iCONDOMINI!C46 -> 0 | F65: D.04.36 | G65: D.05.36
B66: =iCONDOMINI!C47 -> 0 | C66: C.04.37.YY | E66: =iCONDOMINI!C47 -> 0 | F66: D.04.37 | G66: D.05.37
B67: =iCONDOMINI!C48 -> 0 | C67: C.04.38.YY | E67: =iCONDOMINI!C48 -> 0 | F67: D.04.38 | G67: D.05.38
B68: =iCONDOMINI!C49 -> 0 | C68: C.04.39.YY | E68: =iCONDOMINI!C49 -> 0 | F68: D.04.39 | G68: D.05.39
B69: =iCONDOMINI!C50 -> 0 | C69: C.04.40.YY | E69: =iCONDOMINI!C50 -> 0 | F69: D.04.40 | G69: D.05.40
B70: =iCONDOMINI!C51 -> 0 | C70: C.04.41.YY | E70: =iCONDOMINI!C51 -> 0 | F70: D.04.41 | G70: D.05.41
B71: =iCONDOMINI!C52 -> 0 | C71: C.04.42.YY | E71: =iCONDOMINI!C52 -> 0 | F71: D.04.42 | G71: D.05.42
B72: =iCONDOMINI!C53 -> 0 | C72: C.04.43.YY | E72: =iCONDOMINI!C53 -> 0 | F72: D.04.43 | G72: D.05.43
B73: =iCONDOMINI!C54 -> 0 | C73: C.04.44.YY | E73: =iCONDOMINI!C54 -> 0 | F73: D.04.44 | G73: D.05.44
B74: =iCONDOMINI!C55 -> 0 | C74: C.04.45.YY | E74: =iCONDOMINI!C55 -> 0 | F74: D.04.45 | G74: D.05.45
B75: =iCONDOMINI!C56 -> 0 | C75: C.04.46.YY | E75: =iCONDOMINI!C56 -> 0 | F75: D.04.46 | G75: D.05.46
B76: =iCONDOMINI!C57 -> 0 | C76: C.04.47.YY | E76: =iCONDOMINI!C57 -> 0 | F76: D.04.47 | G76: D.05.47
B77: =iCONDOMINI!C58 -> 0 | C77: C.04.48.YY | E77: =iCONDOMINI!C58 -> 0 | F77: D.04.48 | G77: D.05.48
B78: =iCONDOMINI!C59 -> 0 | C78: C.04.49.YY | E78: =iCONDOMINI!C59 -> 0 | F78: D.04.49 | G78: D.05.49
B79: =iCONDOMINI!C60 -> 0 | C79: C.04.50.YY | E79: =iCONDOMINI!C60 -> 0 | F79: D.04.50 | G79: D.05.50
B80: =iCONDOMINI!C61 -> 0 | C80: C.04.51.YY | E80: =iCONDOMINI!C61 -> 0 | F80: D.04.51 | G80: D.05.51
B81: =iCONDOMINI!C62 -> 0 | C81: C.04.52.YY | E81: =iCONDOMINI!C62 -> 0 | F81: D.04.52 | G81: D.05.52
B82: =iCONDOMINI!C63 -> 0 | C82: C.04.53.YY | E82: =iCONDOMINI!C63 -> 0 | F82: D.04.53 | G82: D.05.53
B83: =iCONDOMINI!C64 -> 0 | C83: C.04.54.YY | E83: =iCONDOMINI!C64 -> 0 | F83: D.04.54 | G83: D.05.54
B84: =iCONDOMINI!C65 -> 0 | C84: C.04.55.YY | E84: =iCONDOMINI!C65 -> 0 | F84: D.04.55 | G84: D.05.55
B85: =iCONDOMINI!C66 -> 0 | C85: C.04.56.YY | E85: =iCONDOMINI!C66 -> 0 | F85: D.04.56 | G85: D.05.56
B86: =iCONDOMINI!C67 -> 0 | C86: C.04.57.YY | E86: =iCONDOMINI!C67 -> 0 | F86: D.04.57 | G86: D.05.57
B87: =iCONDOMINI!C68 -> 0 | C87: C.04.58.YY | E87: =iCONDOMINI!C68 -> 0 | F87: D.04.58 | G87: D.05.58
B88: =iCONDOMINI!C69 -> 0 | C88: C.04.59.YY | E88: =iCONDOMINI!C69 -> 0 | F88: D.04.59 | G88: D.05.59
B89: =iCONDOMINI!C70 -> 0 | C89: C.04.60.YY | E89: =iCONDOMINI!C70 -> 0 | F89: D.04.60 | G89: D.05.60
B90: =iCONDOMINI!C71 -> 0 | C90: C.04.61.YY | E90: =iCONDOMINI!C71 -> 0 | F90: D.04.61 | G90: D.05.61
B91: =iCONDOMINI!C72 -> 0 | C91: C.04.62.YY | E91: =iCONDOMINI!C72 -> 0 | F91: D.04.62 | G91: D.05.62
B92: =iCONDOMINI!C73 -> 0 | C92: C.04.63.YY | E92: =iCONDOMINI!C73 -> 0 | F92: D.04.63 | G92: D.05.63
B93: =iCONDOMINI!C74 -> 0 | C93: C.04.64.YY | E93: =iCONDOMINI!C74 -> 0 | F93: D.04.64 | G93: D.05.64
B94: =iCONDOMINI!C75 -> 0 | C94: C.04.65.YY | E94: =iCONDOMINI!C75 -> 0 | F94: D.04.65 | G94: D.05.65
B95: =iCONDOMINI!C76 -> 0 | C95: C.04.66.YY | E95: =iCONDOMINI!C76 -> 0 | F95: D.04.66 | G95: D.05.66
B96: =iCONDOMINI!C77 -> 0 | C96: C.04.67.YY | E96: =iCONDOMINI!C77 -> 0 | F96: D.04.67 | G96: D.05.67
B97: =iCONDOMINI!C78 -> 0 | C97: C.04.68.YY | E97: =iCONDOMINI!C78 -> 0 | F97: D.04.68 | G97: D.05.68
B98: =iCONDOMINI!C79 -> 0 | C98: C.04.69.YY | E98: =iCONDOMINI!C79 -> 0 | F98: D.04.69 | G98: D.05.69
B99: =iCONDOMINI!C80 -> 0 | C99: C.04.70.YY | E99: =iCONDOMINI!C80 -> 0 | F99: D.04.70 | G99: D.05.70
B100: =iCONDOMINI!C81 -> 0 | C100: C.04.71.YY | E100: =iCONDOMINI!C81 -> 0 | F100: D.04.71 | G100: D.05.71
B101: =iCONDOMINI!C82 -> 0 | C101: C.04.72.YY | E101: =iCONDOMINI!C82 -> 0 | F101: D.04.72 | G101: D.05.72
B102: =iCONDOMINI!C83 -> 0 | C102: C.04.73.YY | E102: =iCONDOMINI!C83 -> 0 | F102: D.04.73 | G102: D.05.73
B103: =iCONDOMINI!C84 -> 0 | C103: C.04.74.YY | E103: =iCONDOMINI!C84 -> 0 | F103: D.04.74 | G103: D.05.74
B104: =iCONDOMINI!C85 -> 0 | C104: C.04.75.YY | E104: =iCONDOMINI!C85 -> 0 | F104: D.04.75 | G104: D.05.75
B105: =iCONDOMINI!C86 -> 0 | C105: C.04.76.YY | E105: =iCONDOMINI!C86 -> 0 | F105: D.04.76 | G105: D.05.76
B106: =iCONDOMINI!C87 -> 0 | C106: C.04.77.YY | E106: =iCONDOMINI!C87 -> 0 | F106: D.04.77 | G106: D.05.77
B107: =iCONDOMINI!C88 -> 0 | C107: C.04.78.YY | E107: =iCONDOMINI!C88 -> 0 | F107: D.04.78 | G107: D.05.78
B108: =iCONDOMINI!C89 -> 0 | C108: C.04.79.YY | E108: =iCONDOMINI!C89 -> 0 | F108: D.04.79 | G108: D.05.79
B109: =iCONDOMINI!C90 -> 0 | C109: C.04.80.YY | E109: =iCONDOMINI!C90 -> 0 | F109: D.04.80 | G109: D.05.80
B110: =iCONDOMINI!C91 -> 0 | C110: C.04.81.YY | E110: =iCONDOMINI!C91 -> 0 | F110: D.04.81 | G110: D.05.81
B111: =iCONDOMINI!C92 -> 0 | C111: C.04.82.YY | E111: =iCONDOMINI!C92 -> 0 | F111: D.04.82 | G111: D.05.82
B112: =iCONDOMINI!C93 -> 0 | C112: C.04.83.YY | E112: =iCONDOMINI!C93 -> 0 | F112: D.04.83 | G112: D.05.83
B113: =iCONDOMINI!C94 -> 0 | C113: C.04.84.YY | E113: =iCONDOMINI!C94 -> 0 | F113: D.04.84 | G113: D.05.84
B114: =iCONDOMINI!C95 -> 0 | C114: C.04.85.YY | E114: =iCONDOMINI!C95 -> 0 | F114: D.04.85 | G114: D.05.85
B115: =iCONDOMINI!C96 -> 0 | C115: C.04.86.YY | E115: =iCONDOMINI!C96 -> 0 | F115: D.04.86 | G115: D.05.86
B116: =iCONDOMINI!C97 -> 0 | C116: C.04.87.YY | E116: =iCONDOMINI!C97 -> 0 | F116: D.04.87 | G116: D.05.87
B117: =iCONDOMINI!C98 -> 0 | C117: C.04.88.YY | E117: =iCONDOMINI!C98 -> 0 | F117: D.04.88 | G117: D.05.88
B118: =iCONDOMINI!C99 -> 0 | C118: C.04.89.YY | E118: =iCONDOMINI!C99 -> 0 | F118: D.04.89 | G118: D.05.89
B119: =iCONDOMINI!C100 -> 0 | C119: C.04.90.YY | E119: =iCONDOMINI!C100 -> 0 | F119: D.04.90 | G119: D.05.90
B120: =iCONDOMINI!C101 -> 0 | C120: C.04.91.YY | E120: =iCONDOMINI!C101 -> 0 | F120: D.04.91 | G120: D.05.91
B121: =iCONDOMINI!C102 -> 0 | C121: C.04.92.YY | E121: =iCONDOMINI!C102 -> 0 | F121: D.04.92 | G121: D.05.92
B122: =iCONDOMINI!C103 -> 0 | C122: C.04.93.YY | E122: =iCONDOMINI!C103 -> 0 | F122: D.04.93 | G122: D.05.93
B123: =iCONDOMINI!C104 -> 0 | C123: C.04.94.YY | E123: =iCONDOMINI!C104 -> 0 | F123: D.04.94 | G123: D.05.94
B124: =iCONDOMINI!C105 -> 0 | C124: C.04.95.YY | E124: =iCONDOMINI!C105 -> 0 | F124: D.04.95 | G124: D.05.95
B125: =iCONDOMINI!C106 -> 0 | C125: C.04.96.YY | E125: =iCONDOMINI!C106 -> 0 | F125: D.04.96 | G125: D.05.96
B126: =iCONDOMINI!C107 -> 0 | C126: C.04.97.YY | E126: =iCONDOMINI!C107 -> 0 | F126: D.04.97 | G126: D.05.97
B127: =iCONDOMINI!C108 -> 0 | C127: C.04.98.YY | E127: =iCONDOMINI!C108 -> 0 | F127: D.04.98 | G127: D.05.98
B128: =iCONDOMINI!C109 -> 0 | C128: C.04.99.YY | E128: =iCONDOMINI!C109 -> 0 | F128: D.04.99 | G128: D.05.99
B129: da GESTIONI SPECIALI SEPARATE E FONDI | C129: C.06 | E129: v/s GESTIONI SPECIALI SEPARATE e FONDI | F129: D.06
B130: =IF(iDG!B87<>"",CONCATENATE("Da GESTIONE SPECIALE ","""", iDG!B87,""""),"") -> Da GESTIONE SPECIALE "PROSPETTI" | C130: C.06.01 | E130: =IF(iDG!B87<>"",CONCATENATE("v/s GESTIONE SPECIALE ","""",iDG!B87,""""),"") -> v/s GESTIONE SPECIALE "PROSPETTI" | F130: D.06.01
B131: =IF(iDG!B88<>"",CONCATENATE("Da GESTIONE SPECIALE ","""", iDG!B88,""""),"") ->  | C131: C.06.02 | E131: =IF(iDG!B88<>"","v/s " & iDG!B88,"") ->  | F131: D.06.02
B132: =IF(iDG!B89<>"",CONCATENATE("Da GESTIONE SPECIALE ","""", iDG!B89,""""),"") ->  | C132: C.06.03 | E132: =IF(iDG!B89<>"","v/s " & iDG!B89,"") ->  | F132: D.06.03
B133: =IF(iDG!B90<>"",CONCATENATE("Da GESTIONE SPECIALE ","""", iDG!B90,""""),"") ->  | C133: C.06.04 | E133: =IF(iDG!B90<>"","v/s " & iDG!B90,"") ->  | F133: D.06.04
B134: =IF(iDG!B91<>"",CONCATENATE("Da GESTIONE SPECIALE ","""", iDG!B91,""""),"") ->  | C134: C.06.05 | E134: =IF(iDG!B91<>"","v/s " & iDG!B91,"") ->  | F134: D.06.05
B135: 0 | H135: 0

Sheet iPCF (hidden)
B1: Non avendo celle con sfondo bianco, il prospetto non può essere direttamante variato.
B5: =iDG!B32 -> Condominio Palazzo Duck
B8: PIANO GENERALE DEI CONTI
B9: PIANO DEI CONTI FISCALI
B10: TIPO DI OPERAZIONE CON RILEVANZA FISCALE | C10: CODICE CONTO | D10: Parametri variabili
B11: Trattenuta della Ritenuta d'Acconto (R.A.) all'atto del pagamento del compenso al fornitore (codice F-nf), per il quale è prevista tale trattenuta sulla somma erogata a favore dell'ERARIO. Il documento contabile può essere sia fattura che ricevuta. | C11: H.Pww.nf | D11: ww: percentuale R.A nf : numero fornitore
B12: Versamento all' Erario della Ritenuta d'Acconto (R.A.) ovvero dell'importo trattenuto a favore dell'ERARIO nel pagamento del fornitore (codice F-nf). | C12: H.Rww.nf | D12: ww: percentuale R.A nf : numero fornitore
B14: Valori di nf : da 01 a 20 [ il valore max di 20 è dovuto al numero massimo di fornitori soggetti a R.A. del foglio iTERZI ]
B15: Valori di ww : 00 - 04 - 20 [valori da Legge dello Stato]

Sheet iTERZI (hidden)
B1: È consentito variare i valori delle sole celle con sfondo bianco. | L1: 0
B5: =iDG!B32 -> Condominio Palazzo Duck
B7: TERZI AL CONDOMINIO: PERSONE FISICHE E GIURIDICHE IN RAPPORTI ECONOMICI E/O FINANZIARI CON IL CONDOMINIO (sono esclusi i condomini)
B9: n. | C9: Cognome/ Ditta | D9: Nome/ Forma societaria | E9: Codice Fiscale | F9: Sesso | G9: Data nascita | H9: Comune di nascita | I9: Prov. nascita | J9: Domicilio fiscale | K9: Codice
B10: ESECUTORI DI LAVORI, DI PRESTAZIONI E DI SERVIZI (Soggetti privati ai quali devono essere attestate le somme loro erogate dal Condominio tramite Certificazione Unica) | K10: F
B11: 1 | C11: IL PAPERO ASCENSORI | D11: srl | E11: 03766640794 | J11: Via A. Pippo, 8 - 99999 PAPEROPOLI (TP) | K11: F-01
B12: 2 | C12: CAVOLO CERTIFICAZIONI | D12: SpA | E12: 01358590390 | J12: Via Mdelle Rose, 33 - 99990 TOPOLINEA (TT) | K12: F-02
B13: 3 | C13: Rokcerduck | D13: srl | E13: 02258110390 | J13: Via Dell'Oceano Pacifico, 16 - 99990 TOPOLINIA (TT) | K13: F-03
B14: 4 | K14: F-04
B15: 5 | K15: F-05
B16: 6 | K16: F-06
B17: 7 | K17: F-07
B18: 8 | K18: F-08
B19: 9 | K19: F-09
B20: 10 | K20: F-10
B21: 11 | K21: F-11
B22: 12 | K22: F-12
B23: 13 | K23: F-13
B24: 14 | K24: F-14
B25: 15 | K25: F-15
B26: 16 | K26: F-16
B27: 17 | K27: F-17
B28: 18 | K28: F-18
B29: 19 | K29: F-19
B30: 20 | K30: F-20
B31: FORNITORI DI BENI, DI SERVIZI PUBBLICI ED UTENZE (Soggetti privati o pubblici ai quali non devono essere attestate le somme loro erogate dal Condominio tramite Certificazione Unica) | K31: C
B32: 1 | C32: PAPERO ENERGIA | D32: SpA | K32: C-01
B33: 2 | K33: C-02
B34: 3 | K34: C-03
B35: 4 | K35: C-04
B36: 5 | K36: C-05
B37: 6 | K37: C-06
B38: 7 | K38: C-07
B39: 8 | K39: C-08
B40: 9 | K40: C-09
B41: 10 | K41: C-10
B42: CREDITORI PUBBLICI (per IMPOSTE E TASSE NON PAGATE) | K42: A
B43: 1 | C43: ERARIO | K43: A-01
B44: 2 | K44: A-02
B45: 3 | K45: A-03
B46: 4 | K46: A-04
B47: 5 | K47: A-05
B48: CREDITORI PRIVATI | K48: Z
B49: 1 | C49: Amministratore (per anticipo di cassa) | K49: Z-01
B50: 2 | K50: Z-02
B51: 3 | K51: Z-03
B52: 4 | K52: Z-04
B53: 5 | K53: Z-05
B54: CREDITORI DI GIRO (GESTIONI SPECIALI e FONDI dello stesso condominio) | K54: G
B55: 1 | C55: =IF(ISBLANK(iDG!B87),"","Fondo " & iDG!B87) -> Fondo PROSPETTI | K55: G-01
B56: 2 | C56: =IF(ISBLANK(iDG!B88),"",iDG!B88) ->  | K56: G-02
B57: 3 | C57: =IF(ISBLANK(iDG!B89),"",iDG!B89) ->  | K57: G-03
B58: 4 | C58: =IF(ISBLANK(iDG!B90),"",iDG!B90) ->  | K58: G-04
B59: 5 | C59: =IF(ISBLANK(iDG!B91),"",iDG!B91) ->  | K59: G-05
B60: DEBITORI TERZI (per Somme condominiali depositate presso di loro) | K60: D
B61: 1 | C61: PAPERO ENERGIA | D61: SpA | K61: D-01
B62: 2 | K62: D-02
B63: 3 | K63: D-03
B64: 4 | K64: D-04
B65: 5 | K65: D-05
B66: DEBITORI PRIVATI | K66: P
B67: 1 | K67: P-01
B68: 2 | K68: P-02
B69: 3 | K69: P-03
B70: 4 | K70: P-04
B71: 5 | K71: P-05
B72: DEBITORI PUBBLICI (per IMPOSTE e TASSE versate in eccesso) | K72: E
B73: 1 | C73: ERARIO | K73: E-01
B74: 2 | K74: E-02
B75: 3 | K75: E-03
B76: 4 | K76: E-04
B77: 5 | K77: E-05
B78: DEBITORI DI GIRO (GESTIONI SPECIALI e FONDI dello stesso condominio) | K78: S
B79: 1 | C79: =C55 -> Fondo PROSPETTI | K79: S-01
B80: 2 | C80: =C56 ->  | K80: S-02
B81: 3 | C81: =C57 ->  | K81: S-03
B82: 4 | C82: =C58 ->  | K82: S-04
B83: 5 | C83: =C59 ->  | K83: S-05
L84: 0

Sheet iFONDI (hidden)
B1: È consentito variare i valori delle sole celle con sfondo bianco.
B5: =iDG!B32 -> Condominio Palazzo Duck
B9: QUADRO RIASSUNTIVO DEGLI STATI PATRIMONIALI DELLE GESTIONI SPECIALE e/o FONDI
B10: ="ESERCIZIO " & iDG!B97 -> ESERCIZIO 2024
B11: ATTIVITÀ | G11: PASSIVITÀ
B12: n° | C12: CODICE FONDO | D12: INIZIO ESERCIZIO | E12: IN CORSO o FINE ESERCIZIO | G12: n° | H12: CODICE FONDO | I12: INIZIO ESERCIZIO | J12: IN CORSO o FINE ESERCIZIO
B13: 1 | C13: =IF(iDG!B87<>"",iDG!B87,"") -> PROSPETTI | D13: =SUM(D14:D18) -> 10607.85 | E13: =SUM(E14:E18) -> 1624.06 | G13: 1 | H13: =C13 -> PROSPETTI | I13: =SUM(I14:I18) -> 10607.85 | J13: =SUM(J14:J18) -> 1624.06
C14: DISPONIBILITÀ LIQUIDA IN CASSA
C15: DISPONIBILITÀ LIQUIDA SUL CONTO CORRENTE | D15: 8890.72 | H15: PASSIVITÀ SUL CONTO CORRENTE
C16: CREDITI da CONDOMINI | D16: 1717.13 | E16: 1624.06 | H16: DEBITI v/s CONDOMINI | I16: 10607.85
C17: CREDITI da GESTIONE ORDINARIA | H17: DEBITI v/s GESTIONE ORDINARIA
C18: CREDITI da TERZI | H18: DEBITI v/s TERZI | J18: 1624.06
B19: 2 | C19: =IF(iDG!B88<>"",iDG!B88,"") ->  | D19: =SUM(D20:D24) -> 0 | E19: =SUM(E20:E24) -> 0 | G19: 2 | H19: =C19 ->  | I19: =SUM(I20:I24) -> 0 | J19: =SUM(J20:J24) -> 0
C20: DISPONIBILITÀ LIQUIDA IN CASSA
C21: DISPONIBILITÀ LIQUIDA SUL CONTO CORRENTE | H21: PASSIVITÀ SUL CONTO CORRENTE
C22: CREDITI da CONDOMINI | H22: DEBITI v/s CONDOMINI
C23: CREDITI da GESTIONE ORDINARIA | H23: DEBITI v/s GESTIONE ORDINARIA
C24: CREDITI da TERZI | H24: DEBITI v/s TERZI
B25: 3 | C25: =IF(iDG!B89<>"",iDG!B89,"") ->  | D25: =SUM(D26:D30) -> 0 | E25: =SUM(E26:E30) -> 0 | G25: 3 | H25: =C25 ->  | I25: =SUM(I26:I30) -> 0 | J25: =SUM(J26:J30) -> 0
C26: DISPONIBILITÀ LIQUIDA IN CASSA
C27: DISPONIBILITÀ LIQUIDA SUL CONTO CORRENTE | H27: PASSIVITÀ SUL CONTO CORRENTE
C28: CREDITI da CONDOMINI | H28: DEBITI v/s CONDOMINI
C29: CREDITI da GESTIONE ORDINARIA | H29: DEBITI v/s GESTIONE ORDINARIA
C30: CREDITI da TERZI | H30: DEBITI v/s TERZI
B31: 4 | C31: =IF(iDG!B90<>"",iDG!B90,"") ->  | D31: =SUM(D32:D36) -> 0 | E31: =SUM(E32:E36) -> 0 | G31: 4 | H31: =C31 ->  | I31: =SUM(I32:I36) -> 0 | J31: =SUM(J32:J36) -> 0
C32: DISPONIBILITÀ LIQUIDA IN CASSA
C33: DISPONIBILITÀ LIQUIDA SUL CONTO CORRENTE | H33: PASSIVITÀ SUL CONTO CORRENTE
C34: CREDITI da CONDOMINI | H34: DEBITI v/s CONDOMINI
C35: CREDITI da GESTIONE ORDINARIA | H35: DEBITI v/s GESTIONE ORDINARIA
C36: CREDITI da TERZI | H36: DEBITI v/s TERZI
B37: 5 | C37: =IF(iDG!B91<>"",iDG!B91,"") ->  | D37: =SUM(D38:D42) -> 0 | E37: =SUM(E38:E42) -> 0 | G37: 5 | H37: =C37 ->  | I37: =SUM(I38:I42) -> 0 | J37: =SUM(J38:J42) -> 0
C38: DISPONIBILITÀ LIQUIDA IN CASSA
C39: DISPONIBILITÀ LIQUIDA SUL CONTO CORRENTE | H39: PASSIVITÀ SUL CONTO CORRENTE
C40: CREDITI da CONDOMINI | H40: DEBITI v/s CONDOMINI
C41: CREDITI da GESTIONE ORDINARIA | H41: DEBITI v/s GESTIONE ORDINARIA
C42: CREDITI da TERZI | H42: DEBITI v/s TERZI
B43: TOTALE ATTIVITÀ GESTIONI SPECIALI E FONDI | D43: =D13+D19+D25+D31+D37 -> 10607.85 | E43: =E13+E19+E25+E31+E37 -> 1624.06 | G43: TOTALE PASSIVITÀ GESTIONI SPECIALI E FONDI | I43: =I13+I19+I25+I31+I37 -> 10607.85 | J43: =J13+J19+J25+J31+J37 -> 1624.06

Sheet iFondiCD (hidden)
B1: È consentito variare i valori delle sole celle con sfondo bianco.
B4: =iDG!B32 -> Condominio Palazzo Duck
B5: QUADRO RIASSUNTIVO DEGLI STATI PATRIMONIALI DELLE GESTIONI SPECIALE e/o FONDI
B6: ="ESERCIZIO " & iDG!B97 -> ESERCIZIO 2024
B7: PROSPETTO dei CREDITI e DEBITI DEI CONDOMINI
B8: GESTIONE SPECIALE o FONDO | C8: =IF(iDG!B87<>"",iDG!B87,"") -> PROSPETTI | G8: =IF(iDG!B88<>"",iDG!B88,"") ->  | K8: =IF(iDG!B89<>"",iDG!B89,"") ->  | O8: =IF(iDG!B90<>"",iDG!B90,"") ->  | S8: =IF(iDG!B91<>"",iDG!B91,"") -> 
B9: CONDOMINO | C9: INIZIO ESERCIZIO | E9: IN CORSO o FINE ESERCIZIO | G9: INIZIO ESERCIZIO | I9: IN CORSO o FINE ESERCIZIO | K9: INIZIO ESERCIZIO | M9: IN CORSO o FINE ESERCIZIO | O9: INIZIO ESERCIZIO | Q9: IN CORSO o FINE ESERCIZIO | S9: INIZIO ESERCIZIO | U9: IN CORSO o FINE ESERCIZIO
C10: CREDITI | D10: DEBITI | E10: CREDITI | F10: DEBITI
B11: =iCONDOMINI!C11 -> Paperoga | C11: 1086.98 | E11: 1624.06
B12: =iCONDOMINI!C12 -> Ciccio | C12: 0 | D12: 645.37
B13: =iCONDOMINI!C13 -> Gastone | C13: 630.15
B14: =iCONDOMINI!C14 -> I tre nipotini | D14: 3452.62
B15: =iCONDOMINI!C15 -> Nonna Papera | D15: 5961.44
B16: =iCONDOMINI!C16 -> Fidanzati Paperino-Paperina
B17: =iCONDOMINI!C17 -> 0
B18: =iCONDOMINI!C18 -> 0
B19: =iCONDOMINI!C19 -> 0
B20: =iCONDOMINI!C20 -> 0
B21: =iCONDOMINI!C21 -> 0
B22: =iCONDOMINI!C22 -> 0
B23: =iCONDOMINI!C23 -> 0
B24: =iCONDOMINI!C24 -> 0
B25: =iCONDOMINI!C25 -> 0
B26: =iCONDOMINI!C26 -> 0
B27: =iCONDOMINI!C27 -> 0
B28: =iCONDOMINI!C28 -> 0
B29: =iCONDOMINI!C29 -> 0
B30: =iCONDOMINI!C30 -> 0
B31: =iCONDOMINI!C31 -> 0
B32: =iCONDOMINI!C32 -> 0
B33: =iCONDOMINI!C33 -> 0
B34: =iCONDOMINI!C34 -> 0
B35: =iCONDOMINI!C35 -> 0
B36: =iCONDOMINI!C36 -> 0
B37: =iCONDOMINI!C37 -> 0
B38: =iCONDOMINI!C38 -> 0
B39: =iCONDOMINI!C39 -> 0
B40: =iCONDOMINI!C40 -> 0
B41: =iCONDOMINI!C41 -> 0
B42: =iCONDOMINI!C42 -> 0
B43: =iCONDOMINI!C43 -> 0
B44: =iCONDOMINI!C44 -> 0
B45: =iCONDOMINI!C45 -> 0
B46: =iCONDOMINI!C46 -> 0
B47: =iCONDOMINI!C47 -> 0
B48: =iCONDOMINI!C48 -> 0
B49: =iCONDOMINI!C49 -> 0
B50: =iCONDOMINI!C50 -> 0
B51: =iCONDOMINI!C51 -> 0
B52: =iCONDOMINI!C52 -> 0
B53: =iCONDOMINI!C53 -> 0
B54: =iCONDOMINI!C54 -> 0
B55: =iCONDOMINI!C55 -> 0
B56: =iCONDOMINI!C56 -> 0
B57: =iCONDOMINI!C57 -> 0 | L57: =SUM(C57:K57) -> 0
B58: =iCONDOMINI!C58 -> 0 | L58: 0
B59: =iCONDOMINI!C59 -> 0 | L59: 0
B60: =iCONDOMINI!C60 -> 0 | L60: 0
B61: =iCONDOMINI!C61 -> 0 | L61: 0
B62: =iCONDOMINI!C62 -> 0 | L62: 0
B63: =iCONDOMINI!C63 -> 0 | L63: 0
B64: =iCONDOMINI!C64 -> 0 | L64: 0
B65: =iCONDOMINI!C65 -> 0 | L65: 0
B66: =iCONDOMINI!C66 -> 0 | L66: 0
B67: =iCONDOMINI!C67 -> 0 | L67: 0
B68: =iCONDOMINI!C68 -> 0 | L68: 0
B69: =iCONDOMINI!C69 -> 0 | L69: 0
B70: =iCONDOMINI!C70 -> 0 | L70: 0
B71: =iCONDOMINI!C71 -> 0 | L71: 0
B72: =iCONDOMINI!C72 -> 0 | L72: 0
B73: =iCONDOMINI!C73 -> 0 | L73: 0
B74: =iCONDOMINI!C74 -> 0 | L74: 0
B75: =iCONDOMINI!C75 -> 0 | L75: 0
B76: =iCONDOMINI!C76 -> 0 | L76: 0
B77: =iCONDOMINI!C77 -> 0 | L77: 0
B78: =iCONDOMINI!C78 -> 0 | L78: 0
B79: =iCONDOMINI!C79 -> 0 | L79: 0
B80: =iCONDOMINI!C80 -> 0 | L80: 0
B81: =iCONDOMINI!C81 -> 0 | L81: 0
B82: =iCONDOMINI!C82 -> 0 | L82: 0
B83: =iCONDOMINI!C83 -> 0 | L83: 0
B84: =iCONDOMINI!C84 -> 0 | L84: 0
B85: =iCONDOMINI!C85 -> 0 | L85: 0
B86: =iCONDOMINI!C86 -> 0 | L86: 0
B87: =iCONDOMINI!C87 -> 0 | L87: 0
B88: =iCONDOMINI!C88 -> 0 | L88: 0
B89: =iCONDOMINI!C89 -> 0 | L89: 0
B90: =iCONDOMINI!C90 -> 0 | L90: 0
B91: =iCONDOMINI!C91 -> 0 | L91: 0
B92: =iCONDOMINI!C92 -> 0 | L92: 0
B93: =iCONDOMINI!C93 -> 0 | L93: 0
B94: =iCONDOMINI!C94 -> 0 | L94: 0
B95: =iCONDOMINI!C95 -> 0 | L95: 0
B96: =iCONDOMINI!C96 -> 0 | L96: 0
B97: =iCONDOMINI!C97 -> 0 | L97: 0
B98: =iCONDOMINI!C98 -> 0 | L98: 0
B99: =iCONDOMINI!C99 -> 0 | L99: 0
B100: =iCONDOMINI!C100 -> 0 | L100: 0
B101: =iCONDOMINI!C101 -> 0 | L101: 0
B102: =iCONDOMINI!C102 -> 0 | L102: 0
B103: =iCONDOMINI!C103 -> 0 | L103: 0
B104: =iCONDOMINI!C104 -> 0 | L104: 0
B105: =iCONDOMINI!C105 -> 0 | L105: 0
B106: =iCONDOMINI!C106 -> 0 | L106: 0
B107: =iCONDOMINI!C107 -> 0 | L107: 0
B108: =iCONDOMINI!C108 -> 0 | L108: 0
B109: =iCONDOMINI!C109 -> 0 | L109: =SUM(C109:K109) -> 0
B110: TOTALI | C110: =SUM(C11:C109) -> 1717.13 | D110: =SUM(D11:D109) -> 10059.43 | E110: 1624.06 | F110: 0 | G110: 0 | H110: 0 | I110: 0 | J110: 0 | K110: 0 | L110: 0 | M110: 0 | N110: 0 | O110: 0 | P110: 0 | Q110: 0 | R110: 0 | S110: 0 | T110: 0 | U110: 0 | V110: 0

Sheet iUSCITE_P (hidden)
B1: È consentito variare i valori delle sole celle con sfondo bianco o con nessun riempimento. | G1: =SUMIFS(G12:G88,iPCU!F12:F88,">0") -> 2795 | H1: 0
B5: =iDG!B32 -> Condominio Palazzo Duck
B8: ="PREVENTIVO DELLE SPESE PER L'ESERCIZIO " & iDG!B97 -> PREVENTIVO DELLE SPESE PER L'ESERCIZIO 2024
B9: CAPITOLI e VOCI DI SPESA | C9: CODICE CONTO | D9: TABELLA RIPARTO | E9: IMPORTI | F9: SUDDIVISIONE
E10: PREVENTIV. | F10: PROPRIETARIO | G10: INQUILINO
B11: =iPCU!B11 -> SPESE GENERALI | D11: =iPCU!D11 -> 0 | E11: =SUMIFS(E12:E26,D12:D26,"=?") -> 1450
B12: =iPCU!B12 -> COMPETENZE BANCARIE (Oneri,Commissioni, interessi, ecc) | C12: =iPCU!C12 -> S.01.01 | D12: =iPCU!D12 -> A | E12: 250 | F12: =E12*iPCU!E12 -> 250 | G12: =E12*iPCU!F12 -> 0
B13: =iPCU!B13 -> CANCELLERIA | C13: =iPCU!C13 -> S.01.02 | D13: =iPCU!D13 -> A | E13: 10 | F13: =E13*iPCU!E13 -> 10 | G13: =E13*iPCU!F13 -> 0
B14: =iPCU!B14 -> POSTALI, TELEGRAFICHE, TELEFONICHE E WEB | C14: =iPCU!C14 -> S.01.03 | D14: =iPCU!D14 -> A | E14: 20 | F14: =E14*iPCU!E14 -> 20 | G14: =E14*iPCU!F14 -> 0
B15: =iPCU!B15 -> DIRITTI BOLLI TASSE | C15: =iPCU!C15 -> S.01.04 | D15: =iPCU!D15 -> A | E15: 20 | F15: =E15*iPCU!E15 -> 20 | G15: =E15*iPCU!F15 -> 0
B16: =iPCU!B16 -> SPESE PER ADEMPIMENTI FISCALI | C16: =iPCU!C16 -> S.01.05 | D16: =iPCU!D16 -> A | E16: 120 | F16: =E16*iPCU!E16 -> 120 | G16: =E16*iPCU!F16 -> 0
B17: =iPCU!B17 -> COMPENSI AMMINISTRATORE | C17: =iPCU!C17 -> S.01.06 | D17: =iPCU!D17 -> A | E17: 500 | F17: =E17*iPCU!E17 -> 500 | G17: =E17*iPCU!F17 -> 0
B18: =iPCU!B18 -> COMPENSI A TERZI (consulenti, ...) | C18: =iPCU!C18 -> S.01.07 | D18: =iPCU!D18 -> A | E18: 5 | F18: =E18*iPCU!E18 -> 5 | G18: =E18*iPCU!F18 -> 0
B19: =iPCU!B19 -> SPESE LEGALI, CONTRATTUALI e RECUPERO CREDITI | C19: =iPCU!C19 -> S.01.08 | D19: =iPCU!D19 -> A | E19: 500 | F19: =E19*iPCU!E19 -> 500 | G19: =E19*iPCU!F19 -> 0
B20: =iPCU!B20 -> ASSICURAZIONE FABBRICATO | C20: =iPCU!C20 -> S.01.09 | D20: =iPCU!D20 -> A | E20: 5 | F20: =E20*iPCU!E20 -> 5 | G20: =E20*iPCU!F20 -> 0
B21: =iPCU!B21 -> ALTRE SPESE GENERALI | C21: =iPCU!C21 -> S.01.10 | D21: =iPCU!D21 -> A | E21: 20 | F21: =E21*iPCU!E21 -> 20 | G21: =E21*iPCU!F21 -> 0
B22: =iPCU!B22 -> 0 | C22: =iPCU!C22 -> S.01.11 | D22: =iPCU!D22 -> 0 | E22: 0 | F22: =E22*iPCU!E22 -> 0 | G22: =E22*iPCU!F22 -> 0
B23: =iPCU!B23 -> 0 | C23: =iPCU!C23 -> S.01.12 | D23: =iPCU!D23 -> 0 | E23: 0 | F23: =E23*iPCU!E23 -> 0 | G23: =E23*iPCU!F23 -> 0
B24: =iPCU!B24 -> 0 | C24: =iPCU!C24 -> S.01.13 | D24: =iPCU!D24 -> 0 | E24: 0 | F24: =E24*iPCU!E24 -> 0 | G24: =E24*iPCU!F24 -> 0
B25: =iPCU!B25 -> 0 | C25: =iPCU!C25 -> S.01.14 | D25: =iPCU!D25 -> 0 | E25: 0 | F25: =E25*iPCU!E25 -> 0 | G25: =E25*iPCU!F25 -> 0
B26: =iPCU!B26 -> 0 | C26: =iPCU!C26 -> S.01.15 | D26: =iPCU!D26 -> 0 | E26: 0 | F26: =E26*iPCU!E26 -> 0 | G26: =E26*iPCU!F26 -> 0
B27: =iPCU!B27 -> PULIZIE | D27: =iPCU!D27 -> 0 | E27: =SUMIFS(E28:E37,D28:D37,"=?") -> 75 | F27: 0 | G27: 0
B28: =iPCU!B28 -> PULIZIE SCALE: PERSONALE | C28: =iPCU!C28 -> S.02.01 | D28: =iPCU!D28 -> B | E28: 5 | F28: =E28*iPCU!E28 -> 0 | G28: =E28*iPCU!F28 -> 5
B29: =iPCU!B29 -> PULIZIE SCALE: ATTREZZI E PRODOTTI | C29: =iPCU!C29 -> S.02.02 | D29: =iPCU!D29 -> B | E29: 10 | F29: =E29*iPCU!E29 -> 0 | G29: =E29*iPCU!F29 -> 10
B30: =iPCU!B30 -> MANUTENZIONE ORDINARIA SCALE | C30: =iPCU!C30 -> S.02.03 | D30: =iPCU!D30 -> B | E30: 50 | F30: =E30*iPCU!E30 -> 0 | G30: =E30*iPCU!F30 -> 50
B31: =iPCU!B31 -> ALTRE SPESE DOCUMENTATE | C31: =iPCU!C31 -> S.02.04 | D31: =iPCU!D31 -> B | E31: 10 | F31: =E31*iPCU!E31 -> 0 | G31: =E31*iPCU!F31 -> 10
B32: =iPCU!B32 -> 0 | C32: =iPCU!C32 -> S.02.05 | D32: =iPCU!D32 ->  | E32: 0 | F32: =E32*iPCU!E32 -> 0 | G32: =E32*iPCU!F32 -> 0
B33: =iPCU!B33 -> 0 | C33: =iPCU!C33 -> S.02.06 | D33: =iPCU!D33 ->  | E33: 0 | F33: =E33*iPCU!E33 -> 0 | G33: =E33*iPCU!F33 -> 0
B34: =iPCU!B34 -> 0 | C34: =iPCU!C34 -> S.02.07 | D34: =iPCU!D34 ->  | E34: 0 | F34: =E34*iPCU!E34 -> 0 | G34: =E34*iPCU!F34 -> 0
B35: =iPCU!B35 -> 0 | C35: =iPCU!C35 -> S.02.08 | D35: =iPCU!D35 ->  | E35: 0 | F35: =E35*iPCU!E35 -> 0 | G35: =E35*iPCU!F35 -> 0
B36: =iPCU!B36 -> 0 | C36: =iPCU!C36 -> S.02.09 | D36: =iPCU!D36 ->  | E36: 0 | F36: =E36*iPCU!E36 -> 0 | G36: =E36*iPCU!F36 -> 0
B37: =iPCU!B37 -> 0 | C37: =iPCU!C37 -> S.02.10 | D37: =iPCU!D37 ->  | E37: 0 | F37: =E37*iPCU!E37 -> 0 | G37: =E37*iPCU!F37 -> 0
B38: =iPCU!B38 -> ASCENSORE | D38: =iPCU!D38 -> 0 | E38: =SUMIFS(E39:E48,D39:D48,"=?") -> 1020
B39: =iPCU!B39 -> CONTRATTO MANUTENZIONE ASCENSORE | C39: =iPCU!C39 -> S.03.01 | D39: =iPCU!D39 -> C | E39: 700 | F39: =E39*iPCU!E39 -> 0 | G39: =E39*iPCU!F39 -> 700
B40: =iPCU!B40 -> VERIFICA PERIODICA ASCENSORE | C40: =iPCU!C40 -> S.03.02 | D40: =iPCU!D40 -> C | E40: 200 | F40: =E40*iPCU!E40 -> 0 | G40: =E40*iPCU!F40 -> 200
B41: =iPCU!B41 -> RIPARAZIONI ASCENSORE | C41: =iPCU!C41 -> S.03.03 | D41: =iPCU!D41 -> C | E41: 100 | F41: =E41*iPCU!E41 -> 0 | G41: =E41*iPCU!F41 -> 100
B42: =iPCU!B42 -> ADEGUAMENTO ASCENSORE | C42: =iPCU!C42 -> S.03.04 | D42: =iPCU!D42 -> C | E42: 10 | F42: =E42*iPCU!E42 -> 0 | G42: =E42*iPCU!F42 -> 10
B43: =iPCU!B43 -> ALTRE SPESE DOCUMENTATE | C43: =iPCU!C43 -> S.03.05 | D43: =iPCU!D43 -> C | E43: 10 | F43: =E43*iPCU!E43 -> 0 | G43: =E43*iPCU!F43 -> 10
B44: =iPCU!B44 -> 0 | C44: =iPCU!C44 -> S.03.06 | D44: =iPCU!D44 -> 0 | E44: 0 | F44: =E44*iPCU!E44 -> 0 | G44: =E44*iPCU!F44 -> 0
B45: =iPCU!B45 -> 0 | C45: =iPCU!C45 -> S.03.07 | D45: =iPCU!D45 -> 0 | E45: 0 | F45: =E45*iPCU!E45 -> 0 | G45: =E45*iPCU!F45 -> 0
B46: =iPCU!B46 -> 0 | C46: =iPCU!C46 -> S.03.08 | D46: =iPCU!D46 -> 0 | E46: 0 | F46: =E46*iPCU!E46 -> 0 | G46: =E46*iPCU!F46 -> 0
B47: =iPCU!B47 -> 0 | C47: =iPCU!C47 -> S.03.09 | D47: =iPCU!D47 -> 0 | E47: 0 | F47: =E47*iPCU!E47 -> 0 | G47: =E47*iPCU!F47 -> 0
B48: =iPCU!B48 -> 0 | C48: =iPCU!C48 -> S.03.10 | D48: =iPCU!D48 -> 0 | E48: 0 | F48: =E48*iPCU!E48 -> 0 | G48: =E48*iPCU!F48 -> 0
B49: =iPCU!B49 -> CONSUMI DI ENERGIA E ACQUA | D49: =iPCU!D49 -> 0 | E49: =SUMIFS(E50:E59,D50:D59,"=?") -> 1530
B50: =iPCU!B50 -> ENERGIA ILLUMINAZIONE | C50: =iPCU!C50 -> S.04.01 | D50: =iPCU!D50 -> B | E50: 320 | F50: =E50*iPCU!E50 -> 0 | G50: =E50*iPCU!F50 -> 320
B51: =iPCU!B51 -> ENERGIA ALIMENTAZIONE ASCENSORE | C51: =iPCU!C51 -> S.04.02 | D51: =iPCU!D51 -> C | E51: 1200 | F51: =E51*iPCU!E51 -> 0 | G51: =E51*iPCU!F51 -> 1200
B52: =iPCU!B52 -> ENERGIA ALIMENTAZIONE IMPIANTO TV | C52: =iPCU!C52 -> S.04.03 | D52: =iPCU!D52 -> F | E52: 10 | F52: =E52*iPCU!E52 -> 0 | G52: =E52*iPCU!F52 -> 10
B53: =iPCU!B53 -> 0 | C53: =iPCU!C53 -> S.04.04 | D53: =iPCU!D53 -> 0 | E53: 0 | F53: =E53*iPCU!E53 -> 0 | G53: =E53*iPCU!F53 -> 0
B54: =iPCU!B54 -> 0 | C54: =iPCU!C54 -> S.04.05 | D54: =iPCU!D54 -> 0 | E54: 0 | F54: =E54*iPCU!E54 -> 0 | G54: =E54*iPCU!F54 -> 0
B55: =iPCU!B55 -> 0 | C55: =iPCU!C55 -> S.04.06 | D55: =iPCU!D55 -> 0 | E55: 0 | F55: =E55*iPCU!E55 -> 0 | G55: =E55*iPCU!F55 -> 0
B56: =iPCU!B56 -> 0 | C56: =iPCU!C56 -> S.04.07 | D56: =iPCU!D56 -> 0 | E56: 0 | F56: =E56*iPCU!E56 -> 0 | G56: =E56*iPCU!F56 -> 0
B57: =iPCU!B57 -> 0 | C57: =iPCU!C57 -> S.04.08 | D57: =iPCU!D57 -> 0 | E57: 0 | F57: =E57*iPCU!E57 -> 0 | G57: =E57*iPCU!F57 -> 0
B58: =iPCU!B58 -> 0 | C58: =iPCU!C58 -> S.04.09 | D58: =iPCU!D58 -> 0 | E58: 0 | F58: =E58*iPCU!E58 -> 0 | G58: =E58*iPCU!F58 -> 0
B59: =iPCU!B59 -> 0 | C59: =iPCU!C59 -> S.04.10 | D59: =iPCU!D59 -> 0 | E59: 0 | F59: =E59*iPCU!E59 -> 0 | G59: =E59*iPCU!F59 -> 0
B60: =iPCU!B60 -> IMPIANTI TV e CITOFONICO | D60: =iPCU!D60 -> 0 | E60: =SUMIFS(E61:E70,D61:D70,"=?") -> 80
B61: =iPCU!B61 -> MANUTENZIONE E RIPARAZIONE CITOFONO | C61: =iPCU!C61 -> S.05.01 | D61: =iPCU!D61 -> G | E61: 10 | F61: =E61*iPCU!E61 -> 0 | G61: =E61*iPCU!F61 -> 10
B62: =iPCU!B62 -> ALTRE SPESE DOCUMENTATE SU CITOFONO | C62: =iPCU!C62 -> S.05.02 | D62: =iPCU!D62 -> G | E62: 10 | F62: =E62*iPCU!E62 -> 10 | G62: =E62*iPCU!F62 -> 0
B63: =iPCU!B63 -> MANUTENZIONE E RIPARAZIONE IMPIANTO TV | C63: =iPCU!C63 -> S.05.03 | D63: =iPCU!D63 -> F | E63: 30 | F63: =E63*iPCU!E63 -> 0 | G63: =E63*iPCU!F63 -> 30
B64: =iPCU!B64 -> ALTRE SPESE DOCUMENTATE SU IMPIANTO TV | C64: =iPCU!C64 -> S.05.04 | D64: =iPCU!D64 -> F | E64: 30 | F64: =E64*iPCU!E64 -> 30 | G64: =E64*iPCU!F64 -> 0
B65: =iPCU!B65 -> 0 | C65: =iPCU!C65 -> S.05.05 | D65: =iPCU!D65 -> 0 | E65: 0 | F65: =E65*iPCU!E65 -> 0 | G65: =E65*iPCU!F65 -> 0
B66: =iPCU!B66 -> 0 | C66: =iPCU!C66 -> S.05.06 | D66: =iPCU!D66 -> 0 | E66: 0 | F66: =E66*iPCU!E66 -> 0 | G66: =E66*iPCU!F66 -> 0
B67: =iPCU!B67 -> 0 | C67: =iPCU!C67 -> S.05.07 | D67: =iPCU!D67 -> 0 | E67: 0 | F67: =E67*iPCU!E67 -> 0 | G67: =E67*iPCU!F67 -> 0
B68: =iPCU!B68 -> 0 | C68: =iPCU!C68 -> S.05.08 | D68: =iPCU!D68 -> 0 | E68: 0 | F68: =E68*iPCU!E68 -> 0 | G68: =E68*iPCU!F68 -> 0
B69: =iPCU!B69 -> 0 | C69: =iPCU!C69 -> S.05.09 | D69: =iPCU!D69 -> 0 | E69: 0 | F69: =E69*iPCU!E69 -> 0 | G69: =E69*iPCU!F69 -> 0
B70: =iPCU!B70 -> 0 | C70: =iPCU!C70 -> S.05.10 | D70: =iPCU!D70 -> 0 | E70: 0 | F70: =E70*iPCU!E70 -> 0 | G70: =E70*iPCU!F70 -> 0
B71: =iPCU!B71 -> MANUTENZIONI ORDINARIE EDILI | D71: =iPCU!D71 -> 0 | E71: =SUMIFS(E72:E76,D72:D76,"=?") -> 130
B72: =iPCU!B72 -> MANUTENZIONI ORDINARIE PARTI COMUNI INTERO EDIFICIO | C72: =iPCU!C72 -> S.06.01 | D72: =iPCU!D72 -> A | E72: 100 | F72: =E72*iPCU!E72 -> 0 | G72: =E72*iPCU!F72 -> 100
B73: =iPCU!B73 -> MANUTENZIONI ORDINARIE PARTI COMUNI ABITAZIONI | C73: =iPCU!C73 -> S.06.02 | D73: =iPCU!D73 -> D | E73: 15 | F73: =E73*iPCU!E73 -> 0 | G73: =E73*iPCU!F73 -> 15
B74: =iPCU!B74 -> MANUTENZIONI ORDINARIE PARTI COMUNI NEGOZI | C74: =iPCU!C74 -> S.06.03 | D74: =iPCU!D74 -> E | E74: 15 | F74: =E74*iPCU!E74 -> 0 | G74: =E74*iPCU!F74 -> 15
B75: =iPCU!B75 -> 0 | C75: =iPCU!C75 -> S.06.04 | D75: =iPCU!D75 -> 0 | E75: 0 | F75: =E75*iPCU!E75 -> 0 | G75: =E75*iPCU!F75 -> 0
B76: =iPCU!B76 -> 0 | C76: =iPCU!C76 -> S.06.05 | D76: =iPCU!D76 -> 0 | E76: 0 | F76: =E76*iPCU!E76 -> 0 | G76: =E76*iPCU!F76 -> 0
B77: =iPCU!B77 -> MANUTENZIONI STRAORDINARIE EDILI | D77: =iPCU!D77 -> 0 | E77: =SUMIFS(E78:E82,D78:D82,"=?") -> 35
B78: =iPCU!B78 -> MANUTENZIONI STRAORDINARIE PARTI COMUNI INTERO EDIFICIO | C78: =iPCU!C78 -> S.07.01 | D78: =iPCU!D78 -> A | E78: 15 | F78: =E78*iPCU!E78 -> 15 | G78: =E78*iPCU!F78 -> 0
B79: =iPCU!B79 -> MANUTENZIONI STRAORDINARIE PARTI COMUNI ABITAZIONI | C79: =iPCU!C79 -> S.07.02 | D79: =iPCU!D79 -> D | E79: 10 | F79: =E79*iPCU!E79 -> 10 | G79: =E79*iPCU!F79 -> 0
B80: =iPCU!B80 -> MANUTENZIONI STRAORDINARIE PARTI COMUNI NEGOZI | C80: =iPCU!C80 -> S.07.03 | D80: =iPCU!D80 -> E | E80: 10 | F80: =E80*iPCU!E80 -> 10 | G80: =E80*iPCU!F80 -> 0
B81: =iPCU!B81 -> 0 | C81: =iPCU!C81 -> S.07.04 | D81: =iPCU!D81 -> 0 | E81: 0 | F81: =E81*iPCU!E81 -> 0 | G81: =E81*iPCU!F81 -> 0
B82: =iPCU!B82 -> 0 | C82: =iPCU!C82 -> S.07.05 | D82: =iPCU!D82 -> 0 | E82: 0 | F82: =E82*iPCU!E82 -> 0 | G82: =E82*iPCU!F82 -> 0
B83: =iPCU!B83 -> USCITE PER COSTITUZIONE DEPOSITI PRESSO TERZI e PRESTITI A TERZI | C83: =iPCU!C83 -> L | E83: =SUMIFS(E84:E88,D84:D88,"=?") -> 0
B84: =iPCU!B84 -> DEPOSITI CAUZIONALI | C84: =iPCU!C84 -> L.01.01 | D84: =iPCU!D84 -> A | F84: =E84*iPCU!E84 -> 0 | G84: =E84*iPCU!F84 -> 0
B85: =iPCU!B85 -> ACQUISTO VOUCHER LAVORI | C85: =iPCU!C85 -> L.01.02 | D85: =iPCU!D85 -> A | F85: =E85*iPCU!E85 -> 0 | G85: =E85*iPCU!F85 -> 0
B86: =iPCU!B86 -> PRESTITI A TERZI | C86: =iPCU!C86 -> L.01.03 | D86: =iPCU!D86 -> A | F86: =E86*iPCU!E86 -> 0 | G86: =E86*iPCU!F86 -> 0
B87: =iPCU!B87 -> 0 | C87: =iPCU!C87 -> L.01.04 | D87: =iPCU!D87 -> 0 | E87: 0 | F87: =E87*iPCU!E87 -> 0 | G87: =E87*iPCU!F87 -> 0
B88: =iPCU!B88 -> 0 | C88: =iPCU!C88 -> L.01.05 | D88: =iPCU!D88 -> 0 | E88: 0 | F88: =E88*iPCU!E88 -> 0 | G88: =E88*iPCU!F88 -> 0
B89: =iPCU!B201 -> USCITE PER CONTO DI GESTIONI SPECIALI SEPARATI e FONDI | C89: =iPCU!C201 -> G | F89: =E89*iPCU!E201 -> 0 | G89: =E89*iPCU!F201 -> 0
B90: =iPCU!B202 -> Uscite per conto di GESTIONE SPECIALE "PROSPETTI" | C90: =iPCU!C202 -> G.01.01 | E90: 0 | F90: =E90*iPCU!E202 -> 0 | G90: =E90*iPCU!F202 -> 0
B91: =iPCU!B203 ->  | C91: =iPCU!C203 -> G.01.02 | E91: 0 | F91: =E91*iPCU!E203 -> 0 | G91: =E91*iPCU!F203 -> 0
B92: =iPCU!B204 ->  | C92: =iPCU!C204 -> G.01.03 | E92: 0 | F92: =E92*iPCU!E204 -> 0 | G92: =E92*iPCU!F204 -> 0
B93: =iPCU!B205 ->  | C93: =iPCU!C205 -> G.01.04 | E93: 0 | F93: =E93*iPCU!E205 -> 0 | G93: =E93*iPCU!F205 -> 0
B94: =iPCU!B206 ->  | C94: =iPCU!C206 -> G.01.05 | E94: 0 | F94: =E94*iPCU!E206 -> 0 | G94: =E94*iPCU!F206 -> 0
B95: =iPCU!B89 -> SPESE PERSONALI CONDOMINI o ASSEGNATE DIRETTAMENTE AI CONDOMINI | C95: =iPCU!C89 -> P | E95: =SUM(E96:E194) -> 0 | F95: =SUM(F96:F194) -> 0 | G95: =SUM(G96:G194) -> 0
B96: =iPCU!B90 -> Paperoga | C96: =iPCU!C90 -> P.01.01 | F96: =E96*iPCU!E90 -> 0 | G96: =E96*iPCU!F90 -> 0
B97: =iPCU!B91 -> Ciccio | C97: =iPCU!C91 -> P.01.02 | F97: =E97*iPCU!E91 -> 0 | G97: =E97*iPCU!F91 -> 0
B98: =iPCU!B92 -> Gastone | C98: =iPCU!C92 -> P.01.03 | F98: =E98*iPCU!E92 -> 0 | G98: =E98*iPCU!F92 -> 0
B99: =iPCU!B93 -> I tre nipotini | C99: =iPCU!C93 -> P.01.04 | F99: =E99*iPCU!E93 -> 0 | G99: =E99*iPCU!F93 -> 0
B100: =iPCU!B94 -> Nonna Papera | C100: =iPCU!C94 -> P.01.05 | F100: =E100*iPCU!E94 -> 0 | G100: =E100*iPCU!F94 -> 0
B101: =iPCU!B95 -> Fidanzati Paperino-Paperina | C101: =iPCU!C95 -> P.01.06 | F101: =E101*iPCU!E95 -> 0 | G101: =E101*iPCU!F95 -> 0
B102: =iPCU!B96 ->  | C102: =iPCU!C96 -> P.01.07 | E102: 0 | F102: =E102*iPCU!E96 -> 0 | G102: =E102*iPCU!F96 -> 0
B103: =iPCU!B97 ->  | C103: =iPCU!C97 -> P.01.08 | E103: 0 | F103: =E103*iPCU!E97 -> 0 | G103: =E103*iPCU!F97 -> 0
B104: =iPCU!B98 ->  | C104: =iPCU!C98 -> P.01.09 | E104: 0 | F104: =E104*iPCU!E98 -> 0 | G104: =E104*iPCU!F98 -> 0
B105: =iPCU!B99 ->  | C105: =iPCU!C99 -> P.01.10 | E105: 0 | F105: =E105*iPCU!E99 -> 0 | G105: =E105*iPCU!F99 -> 0
B106: =iPCU!B100 ->  | C106: =iPCU!C100 -> P.01.11 | E106: 0 | F106: =E106*iPCU!E100 -> 0 | G106: =E106*iPCU!F100 -> 0
B107: =iPCU!B101 ->  | C107: =iPCU!C101 -> P.01.12 | E107: 0 | F107: =E107*iPCU!E101 -> 0 | G107: =E107*iPCU!F101 -> 0
B108: =iPCU!B102 ->  | C108: =iPCU!C102 -> P.01.13 | E108: 0 | F108: =E108*iPCU!E102 -> 0 | G108: =E108*iPCU!F102 -> 0
B109: =iPCU!B103 ->  | C109: =iPCU!C103 -> P.01.14 | E109: 0 | F109: =E109*iPCU!E103 -> 0 | G109: =E109*iPCU!F103 -> 0
B110: =iPCU!B104 ->  | C110: =iPCU!C104 -> P.01.15 | E110: 0 | F110: =E110*iPCU!E104 -> 0 | G110: =E110*iPCU!F104 -> 0
B111: =iPCU!B105 ->  | C111: =iPCU!C105 -> P.01.16 | E111: 0 | F111: =E111*iPCU!E105 -> 0 | G111: =E111*iPCU!F105 -> 0
B112: =iPCU!B106 ->  | C112: =iPCU!C106 -> P.01.17 | E112: 0 | F112: =E112*iPCU!E106 -> 0 | G112: =E112*iPCU!F106 -> 0
B113: =iPCU!B107 ->  | C113: =iPCU!C107 -> P.01.18 | E113: 0 | F113: =E113*iPCU!E107 -> 0 | G113: =E113*iPCU!F107 -> 0
B114: =iPCU!B108 ->  | C114: =iPCU!C108 -> P.01.19 | E114: 0 | F114: =E114*iPCU!E108 -> 0 | G114: =E114*iPCU!F108 -> 0
B115: =iPCU!B109 ->  | C115: =iPCU!C109 -> P.01.20 | E115: 0 | F115: =E115*iPCU!E109 -> 0 | G115: =E115*iPCU!F109 -> 0
B116: =iPCU!B110 ->  | C116: =iPCU!C110 -> P.01.21 | E116: 0 | F116: =E116*iPCU!E110 -> 0 | G116: =E116*iPCU!F110 -> 0
B117: =iPCU!B111 ->  | C117: =iPCU!C111 -> P.01.22 | E117: 0 | F117: =E117*iPCU!E111 -> 0 | G117: =E117*iPCU!F111 -> 0
B118: =iPCU!B112 ->  | C118: =iPCU!C112 -> P.01.23 | E118: 0 | F118: =E118*iPCU!E112 -> 0 | G118: =E118*iPCU!F112 -> 0
B119: =iPCU!B113 ->  | C119: =iPCU!C113 -> P.01.24 | E119: 0 | F119: =E119*iPCU!E113 -> 0 | G119: =E119*iPCU!F113 -> 0
B120: =iPCU!B114 ->  | C120: =iPCU!C114 -> P.01.25 | E120: 0 | F120: =E120*iPCU!E114 -> 0 | G120: =E120*iPCU!F114 -> 0
B121: =iPCU!B115 ->  | C121: =iPCU!C115 -> P.01.26 | E121: 0 | F121: =E121*iPCU!E115 -> 0 | G121: =E121*iPCU!F115 -> 0
B122: =iPCU!B116 ->  | C122: =iPCU!C116 -> P.01.27 | E122: 0 | F122: =E122*iPCU!E116 -> 0 | G122: =E122*iPCU!F116 -> 0
B123: =iPCU!B117 ->  | C123: =iPCU!C117 -> P.01.28 | E123: 0 | F123: =E123*iPCU!E117 -> 0 | G123: =E123*iPCU!F117 -> 0
B124: =iPCU!B118 ->  | C124: =iPCU!C118 -> P.01.29 | E124: 0 | F124: =E124*iPCU!E118 -> 0 | G124: =E124*iPCU!F118 -> 0
B125: =iPCU!B119 ->  | C125: =iPCU!C119 -> P.01.30 | E125: 0 | F125: =E125*iPCU!E119 -> 0 | G125: =E125*iPCU!F119 -> 0
B126: =iPCU!B120 ->  | C126: =iPCU!C120 -> P.01.31 | E126: 0 | F126: =E126*iPCU!E120 -> 0 | G126: =E126*iPCU!F120 -> 0
B127: =iPCU!B121 ->  | C127: =iPCU!C121 -> P.01.32 | E127: 0 | F127: =E127*iPCU!E121 -> 0 | G127: =E127*iPCU!F121 -> 0
B128: =iPCU!B122 ->  | C128: =iPCU!C122 -> P.01.33 | E128: 0 | F128: =E128*iPCU!E122 -> 0 | G128: =E128*iPCU!F122 -> 0
B129: =iPCU!B123 ->  | C129: =iPCU!C123 -> P.01.34 | E129: 0 | F129: =E129*iPCU!E123 -> 0 | G129: =E129*iPCU!F123 -> 0
B130: =iPCU!B124 ->  | C130: =iPCU!C124 -> P.01.35 | E130: 0 | F130: =E130*iPCU!E124 -> 0 | G130: =E130*iPCU!F124 -> 0
B131: =iPCU!B125 ->  | C131: =iPCU!C125 -> P.01.36 | E131: 0 | F131: =E131*iPCU!E125 -> 0 | G131: =E131*iPCU!F125 -> 0
B132: =iPCU!B126 ->  | C132: =iPCU!C126 -> P.01.37 | E132: 0 | F132: =E132*iPCU!E126 -> 0 | G132: =E132*iPCU!F126 -> 0
B133: =iPCU!B127 ->  | C133: =iPCU!C127 -> P.01.38 | E133: 0 | F133: =E133*iPCU!E127 -> 0 | G133: =E133*iPCU!F127 -> 0
B134: =iPCU!B128 ->  | C134: =iPCU!C128 -> P.01.39 | E134: 0 | F134: =E134*iPCU!E128 -> 0 | G134: =E134*iPCU!F128 -> 0
B135: =iPCU!B129 ->  | C135: =iPCU!C129 -> P.01.40 | E135: 0 | F135: =E135*iPCU!E129 -> 0 | G135: =E135*iPCU!F129 -> 0
B136: =iPCU!B130 ->  | C136: =iPCU!C130 -> P.01.41 | E136: 0 | F136: =E136*iPCU!E130 -> 0 | G136: =E136*iPCU!F130 -> 0
B137: =iPCU!B131 ->  | C137: =iPCU!C131 -> P.01.42 | E137: 0 | F137: =E137*iPCU!E131 -> 0 | G137: =E137*iPCU!F131 -> 0
B138: =iPCU!B132 ->  | C138: =iPCU!C132 -> P.01.43 | E138: 0 | F138: =E138*iPCU!E132 -> 0 | G138: =E138*iPCU!F132 -> 0
B139: =iPCU!B133 ->  | C139: =iPCU!C133 -> P.01.44 | E139: 0 | F139: =E139*iPCU!E133 -> 0 | G139: =E139*iPCU!F133 -> 0
B140: =iPCU!B134 ->  | C140: =iPCU!C134 -> P.01.45 | E140: 0 | F140: =E140*iPCU!E134 -> 0 | G140: =E140*iPCU!F134 -> 0
B141: =iPCU!B135 ->  | C141: =iPCU!C135 -> P.01.46 | E141: 0 | F141: =E141*iPCU!E135 -> 0 | G141: =E141*iPCU!F135 -> 0
B142: =iPCU!B136 ->  | C142: =iPCU!C136 -> P.01.47 | E142: 0 | F142: =E142*iPCU!E136 -> 0 | G142: =E142*iPCU!F136 -> 0
B143: =iPCU!B137 ->  | C143: =iPCU!C137 -> P.01.48 | E143: 0 | F143: =E143*iPCU!E137 -> 0 | G143: =E143*iPCU!F137 -> 0
B144: =iPCU!B138 ->  | C144: =iPCU!C138 -> P.01.49 | E144: 0 | F144: =E144*iPCU!E138 -> 0 | G144: =E144*iPCU!F138 -> 0
B145: =iPCU!B139 ->  | C145: =iPCU!C139 -> P.01.50 | E145: 0 | F145: =E145*iPCU!E139 -> 0 | G145: =E145*iPCU!F139 -> 0
B146: =iPCU!B140 ->  | C146: =iPCU!C140 -> P.01.51 | E146: 0 | F146: =E146*iPCU!E140 -> 0 | G146: =E146*iPCU!F140 -> 0
B147: =iPCU!B141 ->  | C147: =iPCU!C141 -> P.01.52 | E147: 0 | F147: =E147*iPCU!E141 -> 0 | G147: =E147*iPCU!F141 -> 0
B148: =iPCU!B142 ->  | C148: =iPCU!C142 -> P.01.53 | E148: 0 | F148: =E148*iPCU!E142 -> 0 | G148: =E148*iPCU!F142 -> 0
B149: =iPCU!B143 ->  | C149: =iPCU!C143 -> P.01.54 | E149: 0 | F149: =E149*iPCU!E143 -> 0 | G149: =E149*iPCU!F143 -> 0
B150: =iPCU!B144 ->  | C150: =iPCU!C144 -> P.01.55 | E150: 0 | F150: =E150*iPCU!E144 -> 0 | G150: =E150*iPCU!F144 -> 0
B151: =iPCU!B145 ->  | C151: =iPCU!C145 -> P.01.56 | E151: 0 | F151: =E151*iPCU!E145 -> 0 | G151: =E151*iPCU!F145 -> 0
B152: =iPCU!B146 ->  | C152: =iPCU!C146 -> P.01.57 | E152: 0 | F152: =E152*iPCU!E146 -> 0 | G152: =E152*iPCU!F146 -> 0
B153: =iPCU!B147 ->  | C153: =iPCU!C147 -> P.01.58 | E153: 0 | F153: =E153*iPCU!E147 -> 0 | G153: =E153*iPCU!F147 -> 0
B154: =iPCU!B148 ->  | C154: =iPCU!C148 -> P.01.59 | E154: 0 | F154: =E154*iPCU!E148 -> 0 | G154: =E154*iPCU!F148 -> 0
B155: =iPCU!B149 ->  | C155: =iPCU!C149 -> P.01.60 | E155: 0 | F155: =E155*iPCU!E149 -> 0 | G155: =E155*iPCU!F149 -> 0
B156: =iPCU!B150 ->  | C156: =iPCU!C150 -> P.01.61 | E156: 0 | F156: =E156*iPCU!E150 -> 0 | G156: =E156*iPCU!F150 -> 0
B157: =iPCU!B151 ->  | C157: =iPCU!C151 -> P.01.62 | E157: 0 | F157: =E157*iPCU!E151 -> 0 | G157: =E157*iPCU!F151 -> 0
B158: =iPCU!B152 ->  | C158: =iPCU!C152 -> P.01.63 | E158: 0 | F158: =E158*iPCU!E152 -> 0 | G158: =E158*iPCU!F152 -> 0
B159: =iPCU!B153 ->  | C159: =iPCU!C153 -> P.01.64 | E159: 0 | F159: =E159*iPCU!E153 -> 0 | G159: =E159*iPCU!F153 -> 0
B160: =iPCU!B154 ->  | C160: =iPCU!C154 -> P.01.65 | E160: 0 | F160: =E160*iPCU!E154 -> 0 | G160: =E160*iPCU!F154 -> 0
B161: =iPCU!B155 ->  | C161: =iPCU!C155 -> P.01.66 | E161: 0 | F161: =E161*iPCU!E155 -> 0 | G161: =E161*iPCU!F155 -> 0
B162: =iPCU!B156 ->  | C162: =iPCU!C156 -> P.01.67 | E162: 0 | F162: =E162*iPCU!E156 -> 0 | G162: =E162*iPCU!F156 -> 0
B163: =iPCU!B157 ->  | C163: =iPCU!C157 -> P.01.68 | E163: 0 | F163: =E163*iPCU!E157 -> 0 | G163: =E163*iPCU!F157 -> 0
B164: =iPCU!B158 ->  | C164: =iPCU!C158 -> P.01.69 | E164: 0 | F164: =E164*iPCU!E158 -> 0 | G164: =E164*iPCU!F158 -> 0
B165: =iPCU!B159 ->  | C165: =iPCU!C159 -> P.01.70 | E165: 0 | F165: =E165*iPCU!E159 -> 0 | G165: =E165*iPCU!F159 -> 0
B166: =iPCU!B160 ->  | C166: =iPCU!C160 -> P.01.71 | E166: 0 | F166: =E166*iPCU!E160 -> 0 | G166: =E166*iPCU!F160 -> 0
B167: =iPCU!B161 ->  | C167: =iPCU!C161 -> P.01.72 | E167: 0 | F167: =E167*iPCU!E161 -> 0 | G167: =E167*iPCU!F161 -> 0
B168: =iPCU!B162 ->  | C168: =iPCU!C162 -> P.01.73 | E168: 0 | F168: =E168*iPCU!E162 -> 0 | G168: =E168*iPCU!F162 -> 0
B169: =iPCU!B163 ->  | C169: =iPCU!C163 -> P.01.74 | E169: 0 | F169: =E169*iPCU!E163 -> 0 | G169: =E169*iPCU!F163 -> 0
B170: =iPCU!B164 ->  | C170: =iPCU!C164 -> P.01.75 | E170: 0 | F170: =E170*iPCU!E164 -> 0 | G170: =E170*iPCU!F164 -> 0
B171: =iPCU!B165 ->  | C171: =iPCU!C165 -> P.01.76 | E171: 0 | F171: =E171*iPCU!E165 -> 0 | G171: =E171*iPCU!F165 -> 0
B172: =iPCU!B166 ->  | C172: =iPCU!C166 -> P.01.77 | E172: 0 | F172: =E172*iPCU!E166 -> 0 | G172: =E172*iPCU!F166 -> 0
B173: =iPCU!B167 ->  | C173: =iPCU!C167 -> P.01.78 | E173: 0 | F173: =E173*iPCU!E167 -> 0 | G173: =E173*iPCU!F167 -> 0
B174: =iPCU!B168 ->  | C174: =iPCU!C168 -> P.01.79 | E174: 0 | F174: =E174*iPCU!E168 -> 0 | G174: =E174*iPCU!F168 -> 0
B175: =iPCU!B169 ->  | C175: =iPCU!C169 -> P.01.80 | E175: 0 | F175: =E175*iPCU!E169 -> 0 | G175: =E175*iPCU!F169 -> 0
B176: =iPCU!B170 ->  | C176: =iPCU!C170 -> P.01.81 | E176: 0 | F176: =E176*iPCU!E170 -> 0 | G176: =E176*iPCU!F170 -> 0
B177: =iPCU!B171 ->  | C177: =iPCU!C171 -> P.01.82 | E177: 0 | F177: =E177*iPCU!E171 -> 0 | G177: =E177*iPCU!F171 -> 0
B178: =iPCU!B172 ->  | C178: =iPCU!C172 -> P.01.83 | E178: 0 | F178: =E178*iPCU!E172 -> 0 | G178: =E178*iPCU!F172 -> 0
B179: =iPCU!B173 ->  | C179: =iPCU!C173 -> P.01.84 | E179: 0 | F179: =E179*iPCU!E173 -> 0 | G179: =E179*iPCU!F173 -> 0
B180: =iPCU!B174 ->  | C180: =iPCU!C174 -> P.01.85 | E180: 0 | F180: =E180*iPCU!E174 -> 0 | G180: =E180*iPCU!F174 -> 0
B181: =iPCU!B175 ->  | C181: =iPCU!C175 -> P.01.86 | E181: 0 | F181: =E181*iPCU!E175 -> 0 | G181: =E181*iPCU!F175 -> 0
B182: =iPCU!B176 ->  | C182: =iPCU!C176 -> P.01.87 | E182: 0 | F182: =E182*iPCU!E176 -> 0 | G182: =E182*iPCU!F176 -> 0
B183: =iPCU!B177 ->  | C183: =iPCU!C177 -> P.01.88 | E183: 0 | F183: =E183*iPCU!E177 -> 0 | G183: =E183*iPCU!F177 -> 0
B184: =iPCU!B178 ->  | C184: =iPCU!C178 -> P.01.89 | E184: 0 | F184: =E184*iPCU!E178 -> 0 | G184: =E184*iPCU!F178 -> 0
B185: =iPCU!B179 ->  | C185: =iPCU!C179 -> P.01.90 | E185: 0 | F185: =E185*iPCU!E179 -> 0 | G185: =E185*iPCU!F179 -> 0
B186: =iPCU!B180 ->  | C186: =iPCU!C180 -> P.01.91 | E186: 0 | F186: =E186*iPCU!E180 -> 0 | G186: =E186*iPCU!F180 -> 0
B187: =iPCU!B181 ->  | C187: =iPCU!C181 -> P.01.92 | E187: 0 | F187: =E187*iPCU!E181 -> 0 | G187: =E187*iPCU!F181 -> 0
B188: =iPCU!B182 ->  | C188: =iPCU!C182 -> P.01.93 | E188: 0 | F188: =E188*iPCU!E182 -> 0 | G188: =E188*iPCU!F182 -> 0
B189: =iPCU!B183 ->  | C189: =iPCU!C183 -> P.01.94 | E189: 0 | F189: =E189*iPCU!E183 -> 0 | G189: =E189*iPCU!F183 -> 0
B190: =iPCU!B184 ->  | C190: =iPCU!C184 -> P.01.95 | E190: 0 | F190: =E190*iPCU!E184 -> 0 | G190: =E190*iPCU!F184 -> 0
B191: =iPCU!B185 ->  | C191: =iPCU!C185 -> P.01.96 | E191: 0 | F191: =E191*iPCU!E185 -> 0 | G191: =E191*iPCU!F185 -> 0
B192: =iPCU!B186 ->  | C192: =iPCU!C186 -> P.01.97 | E192: 0 | F192: =E192*iPCU!E186 -> 0 | G192: =E192*iPCU!F186 -> 0
B193: =iPCU!B187 ->  | C193: =iPCU!C187 -> P.01.98 | E193: 0 | F193: =E193*iPCU!E187 -> 0 | G193: =E193*iPCU!F187 -> 0
B194: =iPCU!B188 ->  | C194: =iPCU!C188 -> P.01.99 | E194: 0 | F194: =E194*iPCU!E188 -> 0 | G194: =E194*iPCU!F188 -> 0
B195: SPESE PREVENTIVATE DA RIPARTIRE SECONDO LE TABELLE MILLESIMALI | E195: =SUMIFS(E11:E194,D11:D194,"=?") -> 4320 | F195: =SUM(F11:F194) -> 1525 | G195: =SUM(G11:G194) -> 2795
B196: SPESE PREVENTIVATE DA ASSEGNARE DIRETTAMENTE AI SINGOLI CONDOMINI | E196: =E95 -> 0 | F196: =F95 -> 0 | G196: =G95 -> 0 | H196: 0
B197: TOTALE SPESE PREVENTIVATE | E197: =SUM(E102:E196) -> 4320 | F197: =F96 -> 0 | G197: =G96 -> 0

Sheet iRP_DEPOSITI (hidden)
A1: 0 | B1: È consentito variare i valori delle sole celle con sfondo bianco.
B2: =iDG!B32 -> Condominio Palazzo Duck
B3: ="DEPOSITI CAUZIONALI" -> DEPOSITI CAUZIONALI
B4: ="al giorno " & TEXT(MENÙ!AE9,"gg-mmm-aaaa") -> al giorno 31-dic-2024
B5: n. | C5: DEPOSITARIO | D5: CAUSALE | E5: IMPORTO DEPOSITATO
B6: 1
B7: 2
B8: 3
B9: 4
B10: 5
B11: 6
B12: 7
B13: 8
B14: 9
B15: 10
B16: 11
B17: 12
B18: 13
B19: 14
B20: 15
D21: TOTALE DEPOSITO | E21: =SUM(E6:E20) -> 0
B22: DEPOSITI CAUZIONALI
B23: ="al giorno 1-gen-" & iDG!B97 & " (inizio esercizio)" -> al giorno 1-gen-2024 (inizio esercizio)
B24: n. | C24: DEPOSITARIO | D24: CAUSALE | E24: IMPORTO DEPOSITATO
B25: 1
B26: 2
B27: 3
B28: 4
B29: 5
B30: 6
B31: 7
B32: 8
B33: 9
B34: 10
B35: 11
B36: 12
B37: 13
B38: 14
B39: 15
D40: TOTALE DEPOSITO | E40: =SUM(E25:E39) -> 0
A41: 0

Sheet iGIORNALE (hidden)
A1: 0 | O1: 0
A2: Le celle delle colonne H e K con sfondo in giallo contengono formule e non devono essere mai sovrascritte o variate. Nel caso appaiono con sfondo bianco, occorre ricopiare in esse la formula e per farlo basta selezionale l'ultima cella in giallo della colonna e trascinare verso il basso in modo da ricopiare la formula sulle celle in bianco. Le celle in giallo gialle visualizzano i risultati delle formule solo se nella corrispondente cella di colonna A è riportato un valore non nullo. Le celle di colonna M, se presentano uno sfondo celestino, contengono la formula ritenuta la più comune per associare l'importo di una entrata o uscita riportato al conto movimentato. La formula nelle celle della colonna M può essere variata o si può scrivere direttamente il valore, quando l'importo movimentato non corrisponde ad una entrata o uscita scritta sulla stessa riga. La formula originaria può sempre essere riscritta copiando solo la formula dalla cella M10.
A5: =iDG!B32 -> Condominio Palazzo Duck | R5: 57
F6: ATTENZIONE!!! I procedimenti guidati forniscono scritture attendibili solo se i prospetti contabili sono aggiornati. Prima di utilizzare una scrittura guidata è bene ricalcolare il rendiconto di esercizio e le scritture fiscali. | Q6: Calcolo importo singoli conti
A7: ="REGISTRO DELLE OPERAZIONI CONTABILI - ANNO " & iDG!B97 -> REGISTRO DELLE OPERAZIONI CONTABILI - ANNO 2024 | Q7: Conto | R7: Importo
A8: Reg. | B8: Data | E8: DESCRIZIONE OPERAZIONE (e/o STRINGA INFORMATIVA) | F8: CASSA | I8: CONTO CORRENTE | L8: MOVIMENTO | N8: Pezza giustificativa | Q8: ="D.03.01." & RIGHT(iDG!B97,2) -> D.03.01.24 | R8: =SUMIFS($M$11:M$1517,L$11:L$1517,Q8,M$11:M$1517,">0") -> 0
A9: n° | F9: ENTRATA | G9: USCITA | H9: SALDO | I9: ENTRATA | J9: USCITA | K9: SALDO | L9: CONTO | M9: IMPOR. | Q9: U.01.03 | R9: =SUMIFS($M$11:M$1517,L$11:L$1517,Q9) -> 0
A10: =COUNTA(A11:A1517) -> 81 | B10: g | C10: m | D10: a | E10: TOTALI | F10: =ROUND(SUM(F12:F1228),2) -> 20.5 | G10: =SUM(G12:G1228) -> 16.45 | H10: =F10-G10 -> 4.05 | I10: =ROUND(SUM(I12:I1228),2) -> 20301.22 | J10: =SUM(J12:J1228) -> 19458.73 | K10: =I10-J10 -> 842.49 | M10: =IF(LEN(L10)>0,F10+G10+I10+J10,"") ->  | N10: n°
A11: 0 | B11: 0 | C11: 0 | D11: 2024 | E11: =========== SCRITTURE DI APERTURA ESERCIZIO ========== (riporto valori da esercizio precedente)
A12: I | B12: 0 | C12: 0 | D12: 2024 | E12: LIQUIDITÀ
A13: l | B13: 0 | C13: 0 | D13: 2024 | E13: SITUAZIONE LIQUIDITÀ INIZIALE (Gestione Ordinaria) | F13: 20.5 | H13: =IF(A13<>"",IF(INDIRECT(ADDRESS(ROW()-1,8))="",ROUND(SUM(INDIRECT(ADDRESS(ROW()-2,8)),F13,-G13),2),ROUND(SUM(INDIRECT(ADDRESS(ROW()-1,8)),F13,-G13),2)),"") -> 20.5 | I13: 75.21 | K13: =IF(A13<>"",IF(INDIRECT(ADDRESS(ROW()-1,11))="",ROUND(SUM(INDIRECT(ADDRESS(ROW()-2,11)),I13,-J13),2),ROUND(SUM(INDIRECT(ADDRESS(ROW()-1,11)),I13,-J13),2)),"") -> 75.21
A14: l | B14: 0 | C14: 0 | D14: 2024 | E14: SITUAZIONE LIQUIDITÀ INIZIALE - Gestione speciale - 1 | F14: 0 | H14: 20.5 | I14: 8890.72 | K14: 8965.93
A15: l | B15: 0 | C15: 0 | D15: 2024 | E15: SITUAZIONE LIQUIDITÀ INIZIALE - Gestione speciale - 2 | F15: 0 | H15: 20.5 | I15: 0 | K15: 8965.93
A16: l | B16: 0 | C16: 0 | D16: 2024 | E16: SITUAZIONE LIQUIDITÀ INIZIALE - Gestione speciale - 3 | F16: 0 | H16: 20.5 | I16: 0 | K16: 8965.93
A17: l | B17: 0 | C17: 0 | D17: 2024 | E17: SITUAZIONE LIQUIDITÀ INIZIALE - Gestione speciale - 4 | F17: 0 | H17: 20.5 | I17: 0 | K17: 8965.93
A18: l | B18: 0 | C18: 0 | D18: 2024 | E18: SITUAZIONE LIQUIDITÀ INIZIALE - Gestione speciale - 5 | F18: 0 | H18: 20.5 | I18: 0 | K18: 8965.93
A19: c | B19: 0 | C19: 0 | D19: 2024 | E19: CREDITI | H19: 20.5 | K19: 8965.93
A20: c | B20: 0 | C20: 0 | D20: 2024 | E20: da CONDOMINI | H20: 20.5 | K20: 8965.93
A21: c | B21: 0 | C21: 0 | D21: 2024 | E21: ESERCIZIO 2021 | H21: 20.5 | K21: 8965.93
A22: c | B22: 0 | C22: 0 | D22: 2024 | E22: Ciccio | H22: 20.5 | K22: 8965.93 | L22: C.04.02.21 | M22: 7.210000038
A23: c | B23: 0 | C23: 0 | D23: 2024 | E23: ESERCIZIO 2022 | H23: 20.5 | K23: 8965.93
A24: c | B24: 0 | C24: 0 | D24: 2024 | E24: Ciccio | H24: 20.5 | K24: 8965.93 | L24: C.04.02.22 | M24: 4.900000095
A25: c | B25: 0 | C25: 0 | D25: 2024 | E25: ESERCIZIO 2023 | H25: 20.5 | K25: 8965.93
A26: c | B26: 0 | C26: 0 | D26: 2024 | E26: Paperoga | H26: 20.5 | K26: 8965.93 | L26: C.04.01.23 | M26: 83.70999908
A27: c | B27: 0 | C27: 0 | D27: 2024 | E27: Ciccio | H27: 20.5 | K27: 8965.93 | L27: C.04.02.23 | M27: 87.19000244
A28: c | B28: 0 | C28: 0 | D28: 2024 | E28: Gastone | H28: 20.5 | K28: 8965.93 | L28: C.04.03.23 | M28: 59.34999847
A29: c | B29: 0 | C29: 0 | D29: 2024 | E29: I tre nipotini | H29: 20.5 | K29: 8965.93 | L29: C.04.04.23 | M29: 81.15000153
A30: d | B30: 0 | C30: 0 | D30: 2024 | E30: DEBITI | H30: 20.5 | K30: 8965.93
A31: d | B31: 0 | C31: 0 | D31: 2024 | E31: v/s CONDOMINI (Quote versate in eccesso) | H31: 20.5 | K31: 8965.93
A32: d | B32: 0 | C32: 0 | D32: 2024 | E32: Nonna Papera | H32: 20.5 | K32: 8965.93 | L32: D.04.05 | M32: 119.4799805
A33: d | B33: 0 | C33: 0 | D33: 2024 | E33: Fidanzati Paperino-Paperina | H33: 20.5 | K33: 8965.93 | L33: D.04.06 | M33: 299.74
A34: s | B34: 1 | C34: 1 | D34: 2024 | E34: OPERAZIONI DI STORNO | H34: 20.5 | K34: 8965.93
A35: s | B35: 1 | C35: 1 | D35: 2024 | E35: Restituzione a Nonna Papera | H35: 20.5 | K35: 8965.93 | L35: U.01.01.05 | M35: 119.4799805
A36: s | B36: 1 | C36: 1 | D36: 2024 | E36: Nonna Papera # Versamento in conto quota esercizio 2024 per storno credito 2023 | H36: 20.5 | K36: 8965.93 | L36: Q.01.05 | M36: 119.4799805
A37: s | B37: 1 | C37: 1 | D37: 2024 | E37: Restituzione a Fidanzati Paperino-Paperina | H37: 20.5 | K37: 8965.93 | L37: U.01.01.06 | M37: 299.74
A38: s | B38: 1 | C38: 1 | D38: 2024 | E38: Fidanzati Paperino-Paperina # Versamento in conto quota esercizio 2024 per storno credito 2023 | H38: 20.5 | K38: 8965.93 | L38: Q.01.06 | M38: 299.74
A39: e | B39: 1 | C39: 1 | D39: 2024 | E39: === SCRITTURE RELATIVE ALL'ESERCIZIO IN CORSO === | H39: 20.5 | K39: 8965.93
A40: 1 | B40: 3 | C40: 1 | D40: 2024 | E40: Imposta di bollo per Conto BANCOPOSTA Business LINK (dicembre 2023) | H40: 20.5 | J40: 8.49 | K40: 8957.44 | L40: S.01.09 | M40: =IF(LEN(L40)>0,F40+G40+I40+J40,"") -> 8.49 | N40: 1
A41: 2 | B41: 15 | C41: 1 | D41: 2024 | E41: USCITE per FACCIATE - Bonifico a impresa EDIL ROCKERDUCK | H41: 20.5 | J41: 7823.68 | K41: 1133.76 | L41: G.01.01 | M41: 7823.68 | N41: 1
A42: 3 | B42: 16 | C42: 1 | D42: 2024 | E42: Canone Conto BANCOPOSTA Business LINK (dicembre 2023) | H42: 20.5 | J42: 12 | K42: 1121.76 | L42: S.01.09 | M42: 12 | N42: 1
A43: 4 | B43: 16 | C43: 1 | D43: 2024 | E43: Fidanzati Paperino-Paperina # Versamento tramite bonifico in conto quota esercizio in corso (2024) | H43: 20.5 | I43: 500 | K43: 1621.76 | L43: Q.01.06 | M43: 500 | N43: 1
A44: 5 | B44: 19 | C44: 1 | D44: 2024 | E44: Incasso per VERSAMENTO SU GESTIONE SPECIALE -FACCIATE- (conto corrente) (bonifico)- Fidanzati Paperino-Paperina | H44: 20.5 | I44: 1017.77 | K44: 2639.53 | L44: F.01.02 | M44: 1017.77 | N44: 1
A45: 6 | B45: 20 | C45: 1 | D45: 2024 | E45: USCITE per FACCIATE - Bonifico a Arch. Archimede Pitagorico | H45: 20.5 | J45: 500 | K45: 2139.53 | L45: G.01.01 | M45: 500 | N45: 1
A46: 7 | B46: 23 | C46: 1 | D46: 2024 | E46: Incasso per VERSAMENTO SU GESTIONE SPECIALE -FACCIATE- (conto corrente) (bonifico) - I tre nipotini | H46: 20.5 | I46: 1657.05 | K46: 3796.58 | L46: F.01.02 | M46: 1657.05 | N46: 1
A47: 8 | B47: 23 | C47: 1 | D47: 2024 | E47: Incasso per VERSAMENTO SU GESTIONE SPECIALE -FACCIATE- (conto corrente) (bonifico) - Gastone | H47: 20.5 | I47: 1287.68 | K47: 5084.26 | L47: F.01.02 | M47: 1287.68 | N47: 1
A48: 9 | B48: 24 | C48: 1 | D48: 2024 | E48: USCITE per FACCIATE - Bonifico a impresa EDIL ROCKERDUCK | H48: 20.5 | J48: 4202.44 | K48: 881.82 | L48: G.01.01 | M48: 4202.44 | N48: 1
A49: 10 | B49: 29 | C49: 1 | D49: 2024 | E49: Incasso per VERSAMENTO SU GESTIONE SPECIALE -FACCIATE- (conto corrente) (bollettino) - Paperoga | H49: 20.5 | I49: 241.32 | K49: 1123.14 | L49: F.01.02 | M49: 241.32 | N49: 1
A50: 11 | B50: 29 | C50: 1 | D50: 2024 | E50: Spese personali accredito bollettino conto corrente Paperoga | H50: 20.5 | J50: 0.34 | K50: 1122.8 | L50: P.01.01 | M50: 0.34 | N50: 1
A51: 12 | B51: 2 | C51: 2 | D51: 2024 | E51: Imposta di bollo per Conto BANCOPOSTA Business LINK (gennaio 2024) | H51: 20.5 | J51: 8.46 | K51: 1114.34 | L51: S.01.09 | M51: 8.46 | N51: 2
A52: 13 | B52: 2 | C52: 2 | D52: 2024 | E52: Bolletta PAPERO ENERGIA n. 2013787201(dic-2023) | H52: 20.5 | J52: 105.74 | K52: 1008.6 | N52: 2
A53: 13 | B53: 2 | C53: 2 | D53: 2024 | E53: ENERGIA ILLUMINAZIONE (20%) | H53: 20.5 | K53: 1008.6 | L53: S.04.01 | M53: 21.15 | N53: 2--3
A54: 13 | B54: 2 | C54: 2 | D54: 2024 | E54: ENERGIA ALIMENTAZIONE ASCENSORE | H54: 20.5 | K54: 1008.6 | L54: S.04.02 | M54: 84.59 | N54: 2--3
A55: 13 | B55: 2 | C55: 2 | D55: 2024 | E55: ENERGIA ALIMENTAZIONE IMPIANTO TV | H55: 20.5 | K55: 1008.6 | L55: S.04.03 | M55: 0 | N55: 2--3
A56: 14 | B56: 5 | C56: 2 | D56: 2024 | E56: Pagata Fattura Canone 13/24 IL PAPERO ASCENSORI srl 1° SEMESTRE Manutenzione Ascensore | H56: 20.5 | J56: 254.4 | K56: 754.2 | L56: S.03.01 | M56: 264 | N56: 2--4
A57: 14 | B57: 5 | C57: 2 | D57: 2024 | E57: 01 # F # 13/24 # 26-01-2024 # 00 | H57: 20.5 | K57: 754.2 | L57: H.P04.01 | M57: 240 | N57: 2--4
A58: 14 | B58: 5 | C58: 2 | D58: 2024 | E58: v/s ERARIO # R.A. su pag. fatt. IL PAPERO ASCENSORI 13/24 # 01 # A-01 # 05-02-2024 | H58: 20.5 | K58: 754.2 | L58: D.03.01.23 | M58: 9.6 | N58: 2--4
A59: 15 | B59: 5 | C59: 2 | D59: 2024 | E59: F24-Vers. R.A. su pag. fatt. IL PAPERO ASCENSORI 13/24 | H59: 20.5 | J59: 9.6 | K59: 744.6 | N59: 2--5
A60: 15 | B60: 5 | C60: 2 | D60: 2024 | E60: Si estingue il debito v/s ERARIO # 01 | H60: 20.5 | K60: 744.6 | L60: D.03.01.23 | M60: -9.6 | N60: 2--5
A61: 15 | B61: 5 | C61: 2 | D61: 2024 | E61: 01 # F # 13/24 # 26-01-2024 # 00 | H61: 20.5 | K61: 744.6 | L61: H.R04.01 | M61: 9.6 | N61: 2--5
A62: 16 | B62: 6 | C62: 2 | D62: 2024 | E62: Fidanzati Paperino-Paperina # Versamento tramite bonifico in conto quota esercizio in corso (2024) | H62: 20.5 | I62: 371.16 | K62: 1115.76 | L62: Q.01.06 | M62: =IF(LEN(L62)>0,F62+G62+I62+J62,"") -> 371.16 | N62: 2
A63: 17 | B63: 6 | C63: 2 | D63: 2024 | E63: Incasso per VERSAMENTO SU GESTIONE SPECIALE -FACCIATE- (conto corrente) (bonifico)- Fidanzati Paperino-Paperina | H63: 20.5 | I63: 128.84 | K63: 1244.6 | L63: F.01.02 | M63: 128.84 | N63: 2
A64: 18 | B64: 12 | C64: 2 | D64: 2024 | E64: Incasso per VERSAMENTO SU GESTIONE SPECIALE -FACCIATE- (conto corrente) (bonifico) - Nonna Papera | H64: 20.5 | I64: 3470.63 | K64: 4715.23 | L64: F.01.02 | M64: 3470.63 | N64: 2
A65: 19 | B65: 13 | C65: 2 | D65: 2024 | E65: USCITE per FACCIATE - Bonifico a impresa EDIL ROCKERDUCK | H65: 20.5 | J65: 4121.51 | K65: 593.72 | L65: G.01.01 | M65: 4121.51 | N65: 2
A66: 20 | B66: 20 | C66: 2 | D66: 2024 | E66: Canone Conto BANCOPOSTA Business LINK (gennaio 2024) | H66: 20.5 | J66: 12 | K66: 581.72 | L66: S.01.09 | M66: 12 | N66: 6
A67: 21 | B67: 2 | C67: 3 | D67: 2024 | E67: Imposta di bollo per Conto BANCOPOSTA Business LINK (febbraio 2024) | H67: 20.5 | J67: 7.92 | K67: 573.8 | L67: S.01.09 | M67: 7.92 | N67: 6
A68: 22 | B68: 5 | C68: 3 | D68: 2024 | E68: Incasso per VERSAMENTO SU GESTIONE SPECIALE -FACCIATE- (conto corrente) (bonifico) - I tre Nipotini | H68: 20.5 | I68: 1454.42 | K68: 2028.22 | L68: F.01.02 | M68: 1454.42 | N68: 6
A69: 23 | B69: 21 | C69: 3 | D69: 2024 | E69: Incasso per VERSAMENTO SU GESTIONE SPECIALE -FACCIATE- (conto corrente) (bonifico)- Fidanzati Paperino-Paperina | H69: 20.5 | I69: 400 | K69: 2428.22 | L69: F.01.02 | M69: 400 | N69: 6
A70: 24 | B70: 26 | C70: 3 | D70: 2024 | E70: USCITE per FACCIATE - Bonifico a ditta EURO METAL | H70: 20.5 | J70: 440 | K70: 1988.22 | L70: G.01.01 | M70: 440 | N70: 6
A71: 25 | B71: 27 | C71: 3 | D71: 2024 | E71: Canone Conto BANCOPOSTA Business LINK (febbraio 2024) | H71: 20.5 | J71: 12 | K71: 1976.22 | L71: S.01.09 | M71: 12 | N71: 6
A72: 26 | B72: 27 | C72: 3 | D72: 2024 | E72: Restituzione da GESTIONE SPECIALE -FACCIATE- (conto corrente) Nonna Papera | H72: 20.5 | J72: 6.42 | K72: 1969.8 | L72: F.01.02 | M72: -6.42
A73: 27 | B73: 31 | C73: 3 | D73: 2024 | E73: Nonna Papera # Versamento in conto quota esercizio in corso (2024) -storno da fondo facciate | H73: 20.5 | I73: 6.42 | K73: 1976.22 | L73: Q.01.05 | M73: 6.42
A74: 27 | B74: 2 | C74: 4 | D74: 2024 | E74: Bolletta PAPERO ENERGIA n. 2013995517(gen-feb-2024) | H74: 20.5 | J74: 212.62 | K74: 1763.6
A75: 27 | B75: 2 | C75: 4 | D75: 2024 | E75: ENERGIA ILLUMINAZIONE (20%) | H75: 20.5 | K75: 1763.6 | L75: S.04.01 | M75: 42.52 | N75: 7--8
A76: 27 | B76: 2 | C76: 4 | D76: 2024 | E76: ENERGIA ALIMENTAZIONE ASCENSORE | H76: 20.5 | K76: 1763.6 | L76: S.04.02 | M76: 170.1 | N76: 7--8
A77: 27 | B77: 2 | C77: 4 | D77: 2024 | E77: ENERGIA ALIMENTAZIONE IMPIANTO TV | H77: =IF(A77<>"",IF(INDIRECT(ADDRESS(ROW()-1,8))="",ROUND(SUM(INDIRECT(ADDRESS(ROW()-2,8)),F77,-G77),2),ROUND(SUM(INDIRECT(ADDRESS(ROW()-1,8)),F77,-G77),2)),"") -> 20.5 | K77: =IF(A77<>"",IF(INDIRECT(ADDRESS(ROW()-1,11))="",ROUND(SUM(INDIRECT(ADDRESS(ROW()-2,11)),I77,-J77),2),ROUND(SUM(INDIRECT(ADDRESS(ROW()-1,11)),I77,-J77),2)),"") -> 1763.6 | L77: S.04.03 | M77: 0 | N77: 7--8
A78: 28 | B78: 3 | C78: 4 | D78: 2024 | E78: Imposta di bollo per Conto BANCOPOSTA Business LINK (marzo 2024) | H78: 20.5 | J78: 8.46 | K78: 1755.14 | L78: S.01.09 | M78: =IF(LEN(L78)>0,F78+G78+I78+J78,"") -> 8.46 | N78: 7
A79: 29 | B79: 22 | C79: 4 | D79: 2024 | E79: Spese raccomandata di diffida pagamento contributi condominiali a Ciccio | G79: 6.8 | H79: 13.7 | K79: 1755.14 | L79: P.01.02 | M79: 6.8 | N79: 9
A80: 30 | B80: 23 | C80: 4 | D80: 2024 | E80: Canone Conto BANCOPOSTA Business LINK (marzo 2024) | H80: 13.7 | J80: 12 | K80: 1743.14 | L80: S.01.09 | M80: 12 | N80: 7
A81: 31 | B81: 3 | C81: 5 | D81: 2024 | E81: Imposta di bollo per Conto BANCOPOSTA Business LINK (aprile 2024) | H81: 13.7 | J81: 8.19 | K81: 1734.95 | L81: S.01.09 | M81: 8.19 | N81: 10
A82: 32 | B82: 24 | C82: 5 | D82: 2024 | E82: Canone Conto BANCOPOSTA Business LINK (aprile 2024) | H82: 13.7 | J82: 12 | K82: 1722.95 | L82: S.01.09 | M82: 12 | N82: 10
A83: 33 | B83: 27 | C83: 5 | D83: 2024 | E83: Spese raccomandata convocazione assemblea condominiale a Ciccio | G83: 9.65 | H83: 4.05 | K83: 1722.95 | L83: P.01.02 | M83: 9.65 | N83: 11
A84: 34 | B84: 30 | C84: 5 | D84: 2024 | E84: USCITE per FACCIATE - Bonifico a impresa EDIL ROCKERDUCK | H84: 4.05 | J84: 1454.38 | K84: 268.57 | L84: G.01.01 | M84: 1454.38 | N84: 10
A85: 35 | B85: 31 | C85: 5 | D85: 2024 | E85: Fidanzati Paperino-Paperina # Versamento tramite bonifico in conto quota esercizio in corso (2024) | H85: 4.05 | I85: 300 | K85: 568.57 | L85: Q.01.06 | M85: 300 | N85: 10
A86: 36 | B86: 3 | C86: 5 | D86: 2024 | E86: Imposta di bollo per Conto BANCOPOSTA Business LINK (maggio 2024) | H86: 4.05 | J86: 8.46 | K86: 560.11 | L86: S.01.09 | M86: 8.46
A87: 37 | B87: 5 | C87: 6 | D87: 2024 | E87: Bolletta PAPERO ENERGIA n. 2014186132(mar-apr-2024) | H87: 4.05 | J87: 217.62 | K87: 342.49
A88: 37 | B88: 5 | C88: 6 | D88: 2024 | E88: ENERGIA ILLUMINAZIONE (20%) | H88: 4.05 | K88: 342.49 | L88: S.04.01 | M88: 43.52 | N88: 12
A89: 37 | B89: 5 | C89: 6 | D89: 2024 | E89: ENERGIA ALIMENTAZIONE ASCENSORE | H89: 4.05 | K89: 342.49 | L89: S.04.02 | M89: 174.1 | N89: 12
A90: 37 | B90: 5 | C90: 6 | D90: 2024 | E90: ENERGIA ALIMENTAZIONE IMPIANTO TV | H90: 4.05 | K90: 342.49 | L90: S.04.03 | M90: 0 | N90: 12
A91: 38 | B91: 6 | C91: 6 | D91: 2024 | E91: Fidanzati Paperino-Paperina # Versamento tramite bonifico in conto quota esercizio in corso (2024) | H91: 4.05 | I91: 500 | K91: 842.49 | L91: Q.01.06 | M91: =IF(LEN(L91)>0,F91+G91+I91+J91,"") -> 500
H92: =IF(A92<>"",IF(INDIRECT(ADDRESS(ROW()-1,8))="",ROUND(SUM(INDIRECT(ADDRESS(ROW()-2,8)),F92,-G92),2),ROUND(SUM(INDIRECT(ADDRESS(ROW()-1,8)),F92,-G92),2)),"") ->  | K92: =IF(A92<>"",IF(INDIRECT(ADDRESS(ROW()-1,11))="",ROUND(SUM(INDIRECT(ADDRESS(ROW()-2,11)),I92,-J92),2),ROUND(SUM(INDIRECT(ADDRESS(ROW()-1,11)),I92,-J92),2)),"") -> 
H93: =IF(A93<>"",IF(INDIRECT(ADDRESS(ROW()-1,8))="",ROUND(SUM(INDIRECT(ADDRESS(ROW()-2,8)),F93,-G93),2),ROUND(SUM(INDIRECT(ADDRESS(ROW()-1,8)),F93,-G93),2)),"") ->  | K93: =IF(A93<>"",IF(INDIRECT(ADDRESS(ROW()-1,11))="",ROUND(SUM(INDIRECT(ADDRESS(ROW()-2,11)),I93,-J93),2),ROUND(SUM(INDIRECT(ADDRESS(ROW()-1,11)),I93,-J93),2)),"") -> 
H157: =IF(A157<>"",IF(INDIRECT(ADDRESS(ROW()-1,8))="",ROUND(SUM(INDIRECT(ADDRESS(ROW()-2,8)),F157,-G157),2),ROUND(SUM(INDIRECT(ADDRESS(ROW()-1,8)),F157,-G157),2)),"") ->  | K157: =IF(A157<>"",IF(INDIRECT(ADDRESS(ROW()-1,11))="",ROUND(SUM(INDIRECT(ADDRESS(ROW()-2,11)),I157,-J157),2),ROUND(SUM(INDIRECT(ADDRESS(ROW()-1,11)),I157,-J157),2)),"") -> 
H221: =IF(A221<>"",IF(INDIRECT(ADDRESS(ROW()-1,8))="",ROUND(SUM(INDIRECT(ADDRESS(ROW()-2,8)),F221,-G221),2),ROUND(SUM(INDIRECT(ADDRESS(ROW()-1,8)),F221,-G221),2)),"") ->  | K221: =IF(A221<>"",IF(INDIRECT(ADDRESS(ROW()-1,11))="",ROUND(SUM(INDIRECT(ADDRESS(ROW()-2,11)),I221,-J221),2),ROUND(SUM(INDIRECT(ADDRESS(ROW()-1,11)),I221,-J221),2)),"") -> 
H285: =IF(A285<>"",IF(INDIRECT(ADDRESS(ROW()-1,8))="",ROUND(SUM(INDIRECT(ADDRESS(ROW()-2,8)),F285,-G285),2),ROUND(SUM(INDIRECT(ADDRESS(ROW()-1,8)),F285,-G285),2)),"") ->  | K285: =IF(A285<>"",IF(INDIRECT(ADDRESS(ROW()-1,11))="",ROUND(SUM(INDIRECT(ADDRESS(ROW()-2,11)),I285,-J285),2),ROUND(SUM(INDIRECT(ADDRESS(ROW()-1,11)),I285,-J285),2)),"") -> 
H349: =IF(A349<>"",IF(INDIRECT(ADDRESS(ROW()-1,8))="",ROUND(SUM(INDIRECT(ADDRESS(ROW()-2,8)),F349,-G349),2),ROUND(SUM(INDIRECT(ADDRESS(ROW()-1,8)),F349,-G349),2)),"") ->  | K349: =IF(A349<>"",IF(INDIRECT(ADDRESS(ROW()-1,11))="",ROUND(SUM(INDIRECT(ADDRESS(ROW()-2,11)),I349,-J349),2),ROUND(SUM(INDIRECT(ADDRESS(ROW()-1,11)),I349,-J349),2)),"") -> 
H413: =IF(A413<>"",IF(INDIRECT(ADDRESS(ROW()-1,8))="",ROUND(SUM(INDIRECT(ADDRESS(ROW()-2,8)),F413,-G413),2),ROUND(SUM(INDIRECT(ADDRESS(ROW()-1,8)),F413,-G413),2)),"") ->  | K413: =IF(A413<>"",IF(INDIRECT(ADDRESS(ROW()-1,11))="",ROUND(SUM(INDIRECT(ADDRESS(ROW()-2,11)),I413,-J413),2),ROUND(SUM(INDIRECT(ADDRESS(ROW()-1,11)),I413,-J413),2)),"") -> 
H477: =IF(A477<>"",IF(INDIRECT(ADDRESS(ROW()-1,8))="",ROUND(SUM(INDIRECT(ADDRESS(ROW()-2,8)),F477,-G477),2),ROUND(SUM(INDIRECT(ADDRESS(ROW()-1,8)),F477,-G477),2)),"") ->  | K477: =IF(A477<>"",IF(INDIRECT(ADDRESS(ROW()-1,11))="",ROUND(SUM(INDIRECT(ADDRESS(ROW()-2,11)),I477,-J477),2),ROUND(SUM(INDIRECT(ADDRESS(ROW()-1,11)),I477,-J477),2)),"") -> 
K530: =IF(A530<>"",IF(INDIRECT(ADDRESS(ROW()-1,11))="",ROUND(SUM(INDIRECT(ADDRESS(ROW()-2,11)),I530,-J530),2),ROUND(SUM(INDIRECT(ADDRESS(ROW()-1,11)),I530,-J530),2)),"") -> 

Sheet cTABUI (hidden)
B1: Questo prospetto è interamente generato dalla procedura e non deve essere mai variato direttamente e manualmente dall'utilizzatore.
B5: =NomeCondominio() -> Condominio Palazzo Duck
B8: TABELLE MILLESIMALI per UNITÀ IMMOBILIARI
B9: Codice Unità Immobiliare | C9: U.F. Costituenti | D9: Codice Condomino Proprietario | E9: Denominazione Condomino | F9: Tabella A | G9: Tabella B | H9: Tabella C | I9: Tabella D | J9: Tabella E | K9: Tabella F | L9: Tabella G | M9: Tabella H | N9: Tabella I | O9: Tabella J | P9: Part | Q9: Sub | R9: Categ.
F10: =iDG!$B52 -> Proprietà | G10: =iDG!$B53 -> Scala | H10: =iDG!$B54 -> Ascensore | I10: =iDG!$B55 -> Abitazioni | J10: =iDG!$B56 -> Negozi | K10: =iDG!$B57 -> 0 | L10: =iDG!$B58 -> 0 | M10: =iDG!$B59 -> 0 | N10: =iDG!$B60 -> 0 | O10: =iDG!$B61 -> 0
B11: U01 | C11: UF11 | D11: =IF(iUI!D11<>"",iUI!D11,"") -> C01 | E11: =IF(iUI!F11<>"",iUI!F11,"") -> Paperoga | F11: =SUMIFS(iTABUF!$D$11:$D$109,iTABUF!$C$11:$C$109,B11) -> 52.392 | G11: =SUMIFS(iTABUF!$E$11:$E$109,iTABUF!$C$11:$C$109,B11) -> 0 | H11: =SUMIFS(iTABUF!$F$11:$F$109,iTABUF!$C$11:$C$109,B11) -> 0 | I11: =SUMIFS(iTABUF!$G$11:$G$109,iTABUF!$C$11:$C$109,B11) -> 0 | J11: =SUMIFS(iTABUF!$H$11:$H$109,iTABUF!$C$11:$C$109,B11) -> 161.221 | K11: =SUMIFS(iTABUF!$I$11:$I$109,iTABUF!$C$11:$C$109,B11) -> 0 | L11: =SUMIFS(iTABUF!$J$11:$J$109,iTABUF!$C$11:$C$109,B11) -> 0 | M11: =SUMIFS(iTABUF!$K$11:$K$109,iTABUF!$C$11:$C$109,B11) -> 0 | N11: =SUMIFS(iTABUF!$L$11:$L$109,iTABUF!$C$11:$C$109,B11) -> 0 | O11: =SUMIFS(iTABUF!$M$11:$M$109,iTABUF!$C$11:$C$109,B11) -> 0 | P11: =iUI!I11 -> 121 | Q11: =iUI!J11 -> 2 | R11: =iUI!L11 -> C/1
B12: U02 | C12: UF12 | D12: =IF(iUI!D12<>"",iUI!D12,"") -> C02 | E12: =IF(iUI!F12<>"",iUI!F12,"") -> Ciccio | F12: =SUMIFS(iTABUF!$D$11:$D$109,iTABUF!$C$11:$C$109,B12) -> 35.477 | G12: =SUMIFS(iTABUF!$E$11:$E$109,iTABUF!$C$11:$C$109,B12) -> 0 | H12: =SUMIFS(iTABUF!$F$11:$F$109,iTABUF!$C$11:$C$109,B12) -> 0 | I12: =SUMIFS(iTABUF!$G$11:$G$109,iTABUF!$C$11:$C$109,B12) -> 0 | J12: =SUMIFS(iTABUF!$H$11:$H$109,iTABUF!$C$11:$C$109,B12) -> 109.17 | K12: =SUMIFS(iTABUF!$I$11:$I$109,iTABUF!$C$11:$C$109,B12) -> 0 | L12: =SUMIFS(iTABUF!$J$11:$J$109,iTABUF!$C$11:$C$109,B12) -> 0 | M12: =SUMIFS(iTABUF!$K$11:$K$109,iTABUF!$C$11:$C$109,B12) -> 0 | N12: =SUMIFS(iTABUF!$L$11:$L$109,iTABUF!$C$11:$C$109,B12) -> 0 | O12: =SUMIFS(iTABUF!$M$11:$M$109,iTABUF!$C$11:$C$109,B12) -> 0 | P12: =iUI!I12 -> 121 | Q12: =iUI!J12 -> 3 | R12: =iUI!L12 -> C/1
B13: U03 | C13: UF13 | D13: =IF(iUI!D13<>"",iUI!D13,"") -> C03 | E13: =IF(iUI!F13<>"",iUI!F13,"") -> Gastone | F13: =SUMIFS(iTABUF!$D$11:$D$109,iTABUF!$C$11:$C$109,B13) -> 100.439 | G13: =SUMIFS(iTABUF!$E$11:$E$109,iTABUF!$C$11:$C$109,B13) -> 0 | H13: =SUMIFS(iTABUF!$F$11:$F$109,iTABUF!$C$11:$C$109,B13) -> 0 | I13: =SUMIFS(iTABUF!$G$11:$G$109,iTABUF!$C$11:$C$109,B13) -> 0 | J13: =SUMIFS(iTABUF!$H$11:$H$109,iTABUF!$C$11:$C$109,B13) -> 309.069 | K13: =SUMIFS(iTABUF!$I$11:$I$109,iTABUF!$C$11:$C$109,B13) -> 0 | L13: =SUMIFS(iTABUF!$J$11:$J$109,iTABUF!$C$11:$C$109,B13) -> 0 | M13: =SUMIFS(iTABUF!$K$11:$K$109,iTABUF!$C$11:$C$109,B13) -> 0 | N13: =SUMIFS(iTABUF!$L$11:$L$109,iTABUF!$C$11:$C$109,B13) -> 0 | O13: =SUMIFS(iTABUF!$M$11:$M$109,iTABUF!$C$11:$C$109,B13) -> 0 | P13: =iUI!I13 -> 121 | Q13: =iUI!J13 -> 4 | R13: =iUI!L13 -> C/1
B14: U04 | C14: UF14 | D14: =IF(iUI!D14<>"",iUI!D14,"") -> C04 | E14: =IF(iUI!F14<>"",iUI!F14,"") -> I tre nipotini | F14: =SUMIFS(iTABUF!$D$11:$D$109,iTABUF!$C$11:$C$109,B14) -> 136.664 | G14: =SUMIFS(iTABUF!$E$11:$E$109,iTABUF!$C$11:$C$109,B14) -> 0 | H14: =SUMIFS(iTABUF!$F$11:$F$109,iTABUF!$C$11:$C$109,B14) -> 0 | I14: =SUMIFS(iTABUF!$G$11:$G$109,iTABUF!$C$11:$C$109,B14) -> 0 | J14: =SUMIFS(iTABUF!$H$11:$H$109,iTABUF!$C$11:$C$109,B14) -> 420.54 | K14: =SUMIFS(iTABUF!$I$11:$I$109,iTABUF!$C$11:$C$109,B14) -> 0 | L14: =SUMIFS(iTABUF!$J$11:$J$109,iTABUF!$C$11:$C$109,B14) -> 0 | M14: =SUMIFS(iTABUF!$K$11:$K$109,iTABUF!$C$11:$C$109,B14) -> 0 | N14: =SUMIFS(iTABUF!$L$11:$L$109,iTABUF!$C$11:$C$109,B14) -> 0 | O14: =SUMIFS(iTABUF!$M$11:$M$109,iTABUF!$C$11:$C$109,B14) -> 0 | P14: =iUI!I14 -> 121 | Q14: =iUI!J14 -> 5 | R14: =iUI!L14 -> C/1
B15: U05 | C15: UF01+UF07+UF16+UF17 | D15: =IF(iUI!D15<>"",iUI!D15,"") -> C05 | E15: =IF(iUI!F15<>"",iUI!F15,"") -> Nonna Papera | F15: =SUMIFS(iTABUF!$D$11:$D$109,iTABUF!$C$11:$C$109,B15) -> 183.969 | G15: =SUMIFS(iTABUF!$E$11:$E$109,iTABUF!$C$11:$C$109,B15) -> 230.61 | H15: =SUMIFS(iTABUF!$F$11:$F$109,iTABUF!$C$11:$C$109,B15) -> 230.61 | I15: =SUMIFS(iTABUF!$G$11:$G$109,iTABUF!$C$11:$C$109,B15) -> 272.537 | J15: =SUMIFS(iTABUF!$H$11:$H$109,iTABUF!$C$11:$C$109,B15) -> 0 | K15: =SUMIFS(iTABUF!$I$11:$I$109,iTABUF!$C$11:$C$109,B15) -> 0 | L15: =SUMIFS(iTABUF!$J$11:$J$109,iTABUF!$C$11:$C$109,B15) -> 0 | M15: =SUMIFS(iTABUF!$K$11:$K$109,iTABUF!$C$11:$C$109,B15) -> 0 | N15: =SUMIFS(iTABUF!$L$11:$L$109,iTABUF!$C$11:$C$109,B15) -> 0 | O15: =SUMIFS(iTABUF!$M$11:$M$109,iTABUF!$C$11:$C$109,B15) -> 0 | P15: =iUI!I15 -> 121 | Q15: =iUI!J15 -> 6 | R15: =iUI!L15 -> A/2
B16: U06 | C16: UF02+UF08+UF18 | D16: =IF(iUI!D16<>"",iUI!D16,"") -> C05 | E16: =IF(iUI!F16<>"",iUI!F16,"") -> Nonna Papera | F16: =SUMIFS(iTABUF!$D$11:$D$109,iTABUF!$C$11:$C$109,B16) -> 121.7 | G16: =SUMIFS(iTABUF!$E$11:$E$109,iTABUF!$C$11:$C$109,B16) -> 153.745 | H16: =SUMIFS(iTABUF!$F$11:$F$109,iTABUF!$C$11:$C$109,B16) -> 153.745 | I16: =SUMIFS(iTABUF!$G$11:$G$109,iTABUF!$C$11:$C$109,B16) -> 180.289 | J16: =SUMIFS(iTABUF!$H$11:$H$109,iTABUF!$C$11:$C$109,B16) -> 0 | K16: =SUMIFS(iTABUF!$I$11:$I$109,iTABUF!$C$11:$C$109,B16) -> 0 | L16: =SUMIFS(iTABUF!$J$11:$J$109,iTABUF!$C$11:$C$109,B16) -> 0 | M16: =SUMIFS(iTABUF!$K$11:$K$109,iTABUF!$C$11:$C$109,B16) -> 0 | N16: =SUMIFS(iTABUF!$L$11:$L$109,iTABUF!$C$11:$C$109,B16) -> 0 | O16: =SUMIFS(iTABUF!$M$11:$M$109,iTABUF!$C$11:$C$109,B16) -> 0 | P16: =iUI!I16 -> 121 | Q16: =iUI!J16 -> 7 | R16: =iUI!L16 -> A/2
B17: U07 | C17: UF03+UF04+UF05+UF06+UF15+ UF19+UF20+UF21 | D17: =IF(iUI!D17<>"",iUI!D17,"") -> C06 | E17: =IF(iUI!F17<>"",iUI!F17,"") -> Fidanzati Paperino-Paperina | F17: =SUMIFS(iTABUF!$D$11:$D$109,iTABUF!$C$11:$C$109,B17) -> 334.037 | G17: =SUMIFS(iTABUF!$E$11:$E$109,iTABUF!$C$11:$C$109,B17) -> 527.079 | H17: =SUMIFS(iTABUF!$F$11:$F$109,iTABUF!$C$11:$C$109,B17) -> 527.079 | I17: =SUMIFS(iTABUF!$G$11:$G$109,iTABUF!$C$11:$C$109,B17) -> 494.849 | J17: =SUMIFS(iTABUF!$H$11:$H$109,iTABUF!$C$11:$C$109,B17) -> 0 | K17: =SUMIFS(iTABUF!$I$11:$I$109,iTABUF!$C$11:$C$109,B17) -> 0 | L17: =SUMIFS(iTABUF!$J$11:$J$109,iTABUF!$C$11:$C$109,B17) -> 0 | M17: =SUMIFS(iTABUF!$K$11:$K$109,iTABUF!$C$11:$C$109,B17) -> 0 | N17: =SUMIFS(iTABUF!$L$11:$L$109,iTABUF!$C$11:$C$109,B17) -> 0 | O17: =SUMIFS(iTABUF!$M$11:$M$109,iTABUF!$C$11:$C$109,B17) -> 0 | P17: =iUI!I17 -> 121 | Q17: =iUI!J17 -> 8 | R17: =iUI!L17 -> A/2
B18: U08 | C18: UF09 | D18: =IF(iUI!D18<>"",iUI!D18,"") -> C06 | E18: =IF(iUI!F18<>"",iUI!F18,"") -> Fidanzati Paperino-Paperina | F18: =SUMIFS(iTABUF!$D$11:$D$109,iTABUF!$C$11:$C$109,B18) -> 13.184 | G18: =SUMIFS(iTABUF!$E$11:$E$109,iTABUF!$C$11:$C$109,B18) -> 33.057 | H18: =SUMIFS(iTABUF!$F$11:$F$109,iTABUF!$C$11:$C$109,B18) -> 33.057 | I18: =SUMIFS(iTABUF!$G$11:$G$109,iTABUF!$C$11:$C$109,B18) -> 19.53 | J18: =SUMIFS(iTABUF!$H$11:$H$109,iTABUF!$C$11:$C$109,B18) -> 0 | K18: =SUMIFS(iTABUF!$I$11:$I$109,iTABUF!$C$11:$C$109,B18) -> 0 | L18: =SUMIFS(iTABUF!$J$11:$J$109,iTABUF!$C$11:$C$109,B18) -> 0 | M18: =SUMIFS(iTABUF!$K$11:$K$109,iTABUF!$C$11:$C$109,B18) -> 0 | N18: =SUMIFS(iTABUF!$L$11:$L$109,iTABUF!$C$11:$C$109,B18) -> 0 | O18: =SUMIFS(iTABUF!$M$11:$M$109,iTABUF!$C$11:$C$109,B18) -> 0 | P18: =iUI!I18 -> 121 | Q18: =iUI!J18 -> 9 | R18: =iUI!L18 -> C/6
B19: U09 | C19: UF10 | D19: =IF(iUI!D19<>"",iUI!D19,"") -> C05 | E19: =IF(iUI!F19<>"",iUI!F19,"") -> Nonna Papera | F19: =SUMIFS(iTABUF!$D$11:$D$109,iTABUF!$C$11:$C$109,B19) -> 22.138 | G19: =SUMIFS(iTABUF!$E$11:$E$109,iTABUF!$C$11:$C$109,B19) -> 55.509 | H19: =SUMIFS(iTABUF!$F$11:$F$109,iTABUF!$C$11:$C$109,B19) -> 55.509 | I19: =SUMIFS(iTABUF!$G$11:$G$109,iTABUF!$C$11:$C$109,B19) -> 32.795 | J19: =SUMIFS(iTABUF!$H$11:$H$109,iTABUF!$C$11:$C$109,B19) -> 0 | K19: =SUMIFS(iTABUF!$I$11:$I$109,iTABUF!$C$11:$C$109,B19) -> 0 | L19: =SUMIFS(iTABUF!$J$11:$J$109,iTABUF!$C$11:$C$109,B19) -> 0 | M19: =SUMIFS(iTABUF!$K$11:$K$109,iTABUF!$C$11:$C$109,B19) -> 0 | N19: =SUMIFS(iTABUF!$L$11:$L$109,iTABUF!$C$11:$C$109,B19) -> 0 | O19: =SUMIFS(iTABUF!$M$11:$M$109,iTABUF!$C$11:$C$109,B19) -> 0 | P19: =iUI!I19 -> 121 | Q19: =iUI!J19 -> 10 | R19: =iUI!L19 -> C/6
B20: U10 | D20: =IF(iUI!D20<>"",iUI!D20,"") ->  | E20: =IF(iUI!F20<>"",iUI!F20,"") ->  | F20: =SUMIFS(iTABUF!$D$11:$D$109,iTABUF!$C$11:$C$109,B20) -> 0 | G20: =SUMIFS(iTABUF!$E$11:$E$109,iTABUF!$C$11:$C$109,B20) -> 0 | H20: =SUMIFS(iTABUF!$F$11:$F$109,iTABUF!$C$11:$C$109,B20) -> 0 | I20: =SUMIFS(iTABUF!$G$11:$G$109,iTABUF!$C$11:$C$109,B20) -> 0 | J20: =SUMIFS(iTABUF!$H$11:$H$109,iTABUF!$C$11:$C$109,B20) -> 0 | K20: =SUMIFS(iTABUF!$I$11:$I$109,iTABUF!$C$11:$C$109,B20) -> 0 | L20: =SUMIFS(iTABUF!$J$11:$J$109,iTABUF!$C$11:$C$109,B20) -> 0 | M20: =SUMIFS(iTABUF!$K$11:$K$109,iTABUF!$C$11:$C$109,B20) -> 0 | N20: =SUMIFS(iTABUF!$L$11:$L$109,iTABUF!$C$11:$C$109,B20) -> 0 | O20: =SUMIFS(iTABUF!$M$11:$M$109,iTABUF!$C$11:$C$109,B20) -> 0 | P20: =iUI!I20 -> 0 | Q20: =iUI!J20 -> 0 | R20: =iUI!L20 -> 0
B21: U11 | D21: =IF(iUI!D21<>"",iUI!D21,"") ->  | E21: =IF(iUI!F21<>"",iUI!F21,"") ->  | F21: =SUMIFS(iTABUF!$D$11:$D$109,iTABUF!$C$11:$C$109,B21) -> 0 | G21: =SUMIFS(iTABUF!$E$11:$E$109,iTABUF!$C$11:$C$109,B21) -> 0 | H21: =SUMIFS(iTABUF!$F$11:$F$109,iTABUF!$C$11:$C$109,B21) -> 0 | I21: =SUMIFS(iTABUF!$G$11:$G$109,iTABUF!$C$11:$C$109,B21) -> 0 | J21: =SUMIFS(iTABUF!$H$11:$H$109,iTABUF!$C$11:$C$109,B21) -> 0 | K21: =SUMIFS(iTABUF!$I$11:$I$109,iTABUF!$C$11:$C$109,B21) -> 0 | L21: =SUMIFS(iTABUF!$J$11:$J$109,iTABUF!$C$11:$C$109,B21) -> 0 | M21: =SUMIFS(iTABUF!$K$11:$K$109,iTABUF!$C$11:$C$109,B21) -> 0 | N21: =SUMIFS(iTABUF!$L$11:$L$109,iTABUF!$C$11:$C$109,B21) -> 0 | O21: =SUMIFS(iTABUF!$M$11:$M$109,iTABUF!$C$11:$C$109,B21) -> 0 | P21: =iUI!I21 -> 0 | Q21: =iUI!J21 -> 0 | R21: =iUI!L21 -> 0
B22: U12 | D22: =IF(iUI!D22<>"",iUI!D22,"") ->  | E22: =IF(iUI!F22<>"",iUI!F22,"") ->  | F22: =SUMIFS(iTABUF!$D$11:$D$109,iTABUF!$C$11:$C$109,B22) -> 0 | G22: =SUMIFS(iTABUF!$E$11:$E$109,iTABUF!$C$11:$C$109,B22) -> 0 | H22: =SUMIFS(iTABUF!$F$11:$F$109,iTABUF!$C$11:$C$109,B22) -> 0 | I22: =SUMIFS(iTABUF!$G$11:$G$109,iTABUF!$C$11:$C$109,B22) -> 0 | J22: =SUMIFS(iTABUF!$H$11:$H$109,iTABUF!$C$11:$C$109,B22) -> 0 | K22: =SUMIFS(iTABUF!$I$11:$I$109,iTABUF!$C$11:$C$109,B22) -> 0 | L22: =SUMIFS(iTABUF!$J$11:$J$109,iTABUF!$C$11:$C$109,B22) -> 0 | M22: =SUMIFS(iTABUF!$K$11:$K$109,iTABUF!$C$11:$C$109,B22) -> 0 | N22: =SUMIFS(iTABUF!$L$11:$L$109,iTABUF!$C$11:$C$109,B22) -> 0 | O22: =SUMIFS(iTABUF!$M$11:$M$109,iTABUF!$C$11:$C$109,B22) -> 0 | P22: =iUI!I22 -> 0 | Q22: =iUI!J22 -> 0 | R22: =iUI!L22 -> 0
B23: U13 | D23: =IF(iUI!D23<>"",iUI!D23,"") ->  | E23: =IF(iUI!F23<>"",iUI!F23,"") ->  | F23: =SUMIFS(iTABUF!$D$11:$D$109,iTABUF!$C$11:$C$109,B23) -> 0 | G23: =SUMIFS(iTABUF!$E$11:$E$109,iTABUF!$C$11:$C$109,B23) -> 0 | H23: =SUMIFS(iTABUF!$F$11:$F$109,iTABUF!$C$11:$C$109,B23) -> 0 | I23: =SUMIFS(iTABUF!$G$11:$G$109,iTABUF!$C$11:$C$109,B23) -> 0 | J23: =SUMIFS(iTABUF!$H$11:$H$109,iTABUF!$C$11:$C$109,B23) -> 0 | K23: =SUMIFS(iTABUF!$I$11:$I$109,iTABUF!$C$11:$C$109,B23) -> 0 | L23: =SUMIFS(iTABUF!$J$11:$J$109,iTABUF!$C$11:$C$109,B23) -> 0 | M23: =SUMIFS(iTABUF!$K$11:$K$109,iTABUF!$C$11:$C$109,B23) -> 0 | N23: =SUMIFS(iTABUF!$L$11:$L$109,iTABUF!$C$11:$C$109,B23) -> 0 | O23: =SUMIFS(iTABUF!$M$11:$M$109,iTABUF!$C$11:$C$109,B23) -> 0 | P23: =iUI!I23 -> 0 | Q23: =iUI!J23 -> 0 | R23: =iUI!L23 -> 0
B24: U14 | D24: =IF(iUI!D24<>"",iUI!D24,"") ->  | E24: =IF(iUI!F24<>"",iUI!F24,"") ->  | F24: =SUMIFS(iTABUF!$D$11:$D$109,iTABUF!$C$11:$C$109,B24) -> 0 | G24: =SUMIFS(iTABUF!$E$11:$E$109,iTABUF!$C$11:$C$109,B24) -> 0 | H24: =SUMIFS(iTABUF!$F$11:$F$109,iTABUF!$C$11:$C$109,B24) -> 0 | I24: =SUMIFS(iTABUF!$G$11:$G$109,iTABUF!$C$11:$C$109,B24) -> 0 | J24: =SUMIFS(iTABUF!$H$11:$H$109,iTABUF!$C$11:$C$109,B24) -> 0 | K24: =SUMIFS(iTABUF!$I$11:$I$109,iTABUF!$C$11:$C$109,B24) -> 0 | L24: =SUMIFS(iTABUF!$J$11:$J$109,iTABUF!$C$11:$C$109,B24) -> 0 | M24: =SUMIFS(iTABUF!$K$11:$K$109,iTABUF!$C$11:$C$109,B24) -> 0 | N24: =SUMIFS(iTABUF!$L$11:$L$109,iTABUF!$C$11:$C$109,B24) -> 0 | O24: =SUMIFS(iTABUF!$M$11:$M$109,iTABUF!$C$11:$C$109,B24) -> 0 | P24: =iUI!I24 -> 0 | Q24: =iUI!J24 -> 0 | R24: =iUI!L24 -> 0
B25: U15 | D25: =IF(iUI!D25<>"",iUI!D25,"") ->  | E25: =IF(iUI!F25<>"",iUI!F25,"") ->  | F25: =SUMIFS(iTABUF!$D$11:$D$109,iTABUF!$C$11:$C$109,B25) -> 0 | G25: =SUMIFS(iTABUF!$E$11:$E$109,iTABUF!$C$11:$C$109,B25) -> 0 | H25: =SUMIFS(iTABUF!$F$11:$F$109,iTABUF!$C$11:$C$109,B25) -> 0 | I25: =SUMIFS(iTABUF!$G$11:$G$109,iTABUF!$C$11:$C$109,B25) -> 0 | J25: =SUMIFS(iTABUF!$H$11:$H$109,iTABUF!$C$11:$C$109,B25) -> 0 | K25: =SUMIFS(iTABUF!$I$11:$I$109,iTABUF!$C$11:$C$109,B25) -> 0 | L25: =SUMIFS(iTABUF!$J$11:$J$109,iTABUF!$C$11:$C$109,B25) -> 0 | M25: =SUMIFS(iTABUF!$K$11:$K$109,iTABUF!$C$11:$C$109,B25) -> 0 | N25: =SUMIFS(iTABUF!$L$11:$L$109,iTABUF!$C$11:$C$109,B25) -> 0 | O25: =SUMIFS(iTABUF!$M$11:$M$109,iTABUF!$C$11:$C$109,B25) -> 0 | P25: =iUI!I25 -> 0 | Q25: =iUI!J25 -> 0 | R25: =iUI!L25 -> 0
B26: U16 | D26: =IF(iUI!D26<>"",iUI!D26,"") ->  | E26: =IF(iUI!F26<>"",iUI!F26,"") ->  | F26: =SUMIFS(iTABUF!$D$11:$D$109,iTABUF!$C$11:$C$109,B26) -> 0 | G26: =SUMIFS(iTABUF!$E$11:$E$109,iTABUF!$C$11:$C$109,B26) -> 0 | H26: =SUMIFS(iTABUF!$F$11:$F$109,iTABUF!$C$11:$C$109,B26) -> 0 | I26: =SUMIFS(iTABUF!$G$11:$G$109,iTABUF!$C$11:$C$109,B26) -> 0 | J26: =SUMIFS(iTABUF!$H$11:$H$109,iTABUF!$C$11:$C$109,B26) -> 0 | K26: =SUMIFS(iTABUF!$I$11:$I$109,iTABUF!$C$11:$C$109,B26) -> 0 | L26: =SUMIFS(iTABUF!$J$11:$J$109,iTABUF!$C$11:$C$109,B26) -> 0 | M26: =SUMIFS(iTABUF!$K$11:$K$109,iTABUF!$C$11:$C$109,B26) -> 0 | N26: =SUMIFS(iTABUF!$L$11:$L$109,iTABUF!$C$11:$C$109,B26) -> 0 | O26: =SUMIFS(iTABUF!$M$11:$M$109,iTABUF!$C$11:$C$109,B26) -> 0 | P26: =iUI!I26 -> 0 | Q26: =iUI!J26 -> 0 | R26: =iUI!L26 -> 0
B27: U17 | D27: =IF(iUI!D27<>"",iUI!D27,"") ->  | E27: =IF(iUI!F27<>"",iUI!F27,"") ->  | F27: =SUMIFS(iTABUF!$D$11:$D$109,iTABUF!$C$11:$C$109,B27) -> 0 | G27: =SUMIFS(iTABUF!$E$11:$E$109,iTABUF!$C$11:$C$109,B27) -> 0 | H27: =SUMIFS(iTABUF!$F$11:$F$109,iTABUF!$C$11:$C$109,B27) -> 0 | I27: =SUMIFS(iTABUF!$G$11:$G$109,iTABUF!$C$11:$C$109,B27) -> 0 | J27: =SUMIFS(iTABUF!$H$11:$H$109,iTABUF!$C$11:$C$109,B27) -> 0 | K27: =SUMIFS(iTABUF!$I$11:$I$109,iTABUF!$C$11:$C$109,B27) -> 0 | L27: =SUMIFS(iTABUF!$J$11:$J$109,iTABUF!$C$11:$C$109,B27) -> 0 | M27: =SUMIFS(iTABUF!$K$11:$K$109,iTABUF!$C$11:$C$109,B27) -> 0 | N27: =SUMIFS(iTABUF!$L$11:$L$109,iTABUF!$C$11:$C$109,B27) -> 0 | O27: =SUMIFS(iTABUF!$M$11:$M$109,iTABUF!$C$11:$C$109,B27) -> 0 | P27: =iUI!I27 -> 0 | Q27: =iUI!J27 -> 0 | R27: =iUI!L27 -> 0
B28: U18 | D28: =IF(iUI!D28<>"",iUI!D28,"") ->  | E28: =IF(iUI!F28<>"",iUI!F28,"") ->  | F28: =SUMIFS(iTABUF!$D$11:$D$109,iTABUF!$C$11:$C$109,B28) -> 0 | G28: =SUMIFS(iTABUF!$E$11:$E$109,iTABUF!$C$11:$C$109,B28) -> 0 | H28: =SUMIFS(iTABUF!$F$11:$F$109,iTABUF!$C$11:$C$109,B28) -> 0 | I28: =SUMIFS(iTABUF!$G$11:$G$109,iTABUF!$C$11:$C$109,B28) -> 0 | J28: =SUMIFS(iTABUF!$H$11:$H$109,iTABUF!$C$11:$C$109,B28) -> 0 | K28: =SUMIFS(iTABUF!$I$11:$I$109,iTABUF!$C$11:$C$109,B28) -> 0 | L28: =SUMIFS(iTABUF!$J$11:$J$109,iTABUF!$C$11:$C$109,B28) -> 0 | M28: =SUMIFS(iTABUF!$K$11:$K$109,iTABUF!$C$11:$C$109,B28) -> 0 | N28: =SUMIFS(iTABUF!$L$11:$L$109,iTABUF!$C$11:$C$109,B28) -> 0 | O28: =SUMIFS(iTABUF!$M$11:$M$109,iTABUF!$C$11:$C$109,B28) -> 0 | P28: =iUI!I28 -> 0 | Q28: =iUI!J28 -> 0 | R28: =iUI!L28 -> 0
B29: U19 | D29: =IF(iUI!D29<>"",iUI!D29,"") ->  | E29: =IF(iUI!F29<>"",iUI!F29,"") ->  | F29: =SUMIFS(iTABUF!$D$11:$D$109,iTABUF!$C$11:$C$109,B29) -> 0 | G29: =SUMIFS(iTABUF!$E$11:$E$109,iTABUF!$C$11:$C$109,B29) -> 0 | H29: =SUMIFS(iTABUF!$F$11:$F$109,iTABUF!$C$11:$C$109,B29) -> 0 | I29: =SUMIFS(iTABUF!$G$11:$G$109,iTABUF!$C$11:$C$109,B29) -> 0 | J29: =SUMIFS(iTABUF!$H$11:$H$109,iTABUF!$C$11:$C$109,B29) -> 0 | K29: =SUMIFS(iTABUF!$I$11:$I$109,iTABUF!$C$11:$C$109,B29) -> 0 | L29: =SUMIFS(iTABUF!$J$11:$J$109,iTABUF!$C$11:$C$109,B29) -> 0 | M29: =SUMIFS(iTABUF!$K$11:$K$109,iTABUF!$C$11:$C$109,B29) -> 0 | N29: =SUMIFS(iTABUF!$L$11:$L$109,iTABUF!$C$11:$C$109,B29) -> 0 | O29: =SUMIFS(iTABUF!$M$11:$M$109,iTABUF!$C$11:$C$109,B29) -> 0 | P29: =iUI!I29 -> 0 | Q29: =iUI!J29 -> 0 | R29: =iUI!L29 -> 0
B30: U20 | D30: =IF(iUI!D30<>"",iUI!D30,"") ->  | E30: =IF(iUI!F30<>"",iUI!F30,"") ->  | F30: =SUMIFS(iTABUF!$D$11:$D$109,iTABUF!$C$11:$C$109,B30) -> 0 | G30: =SUMIFS(iTABUF!$E$11:$E$109,iTABUF!$C$11:$C$109,B30) -> 0 | H30: =SUMIFS(iTABUF!$F$11:$F$109,iTABUF!$C$11:$C$109,B30) -> 0 | I30: =SUMIFS(iTABUF!$G$11:$G$109,iTABUF!$C$11:$C$109,B30) -> 0 | J30: =SUMIFS(iTABUF!$H$11:$H$109,iTABUF!$C$11:$C$109,B30) -> 0 | K30: =SUMIFS(iTABUF!$I$11:$I$109,iTABUF!$C$11:$C$109,B30) -> 0 | L30: =SUMIFS(iTABUF!$J$11:$J$109,iTABUF!$C$11:$C$109,B30) -> 0 | M30: =SUMIFS(iTABUF!$K$11:$K$109,iTABUF!$C$11:$C$109,B30) -> 0 | N30: =SUMIFS(iTABUF!$L$11:$L$109,iTABUF!$C$11:$C$109,B30) -> 0 | O30: =SUMIFS(iTABUF!$M$11:$M$109,iTABUF!$C$11:$C$109,B30) -> 0 | P30: =iUI!I30 -> 0 | Q30: =iUI!J30 -> 0 | R30: =iUI!L30 -> 0
B31: U21 | D31: =IF(iUI!D31<>"",iUI!D31,"") ->  | E31: =IF(iUI!F31<>"",iUI!F31,"") ->  | F31: =SUMIFS(iTABUF!$D$11:$D$109,iTABUF!$C$11:$C$109,B31) -> 0 | G31: =SUMIFS(iTABUF!$E$11:$E$109,iTABUF!$C$11:$C$109,B31) -> 0 | H31: =SUMIFS(iTABUF!$F$11:$F$109,iTABUF!$C$11:$C$109,B31) -> 0 | I31: =SUMIFS(iTABUF!$G$11:$G$109,iTABUF!$C$11:$C$109,B31) -> 0 | J31: =SUMIFS(iTABUF!$H$11:$H$109,iTABUF!$C$11:$C$109,B31) -> 0 | K31: =SUMIFS(iTABUF!$I$11:$I$109,iTABUF!$C$11:$C$109,B31) -> 0 | L31: =SUMIFS(iTABUF!$J$11:$J$109,iTABUF!$C$11:$C$109,B31) -> 0 | M31: =SUMIFS(iTABUF!$K$11:$K$109,iTABUF!$C$11:$C$109,B31) -> 0 | N31: =SUMIFS(iTABUF!$L$11:$L$109,iTABUF!$C$11:$C$109,B31) -> 0 | O31: =SUMIFS(iTABUF!$M$11:$M$109,iTABUF!$C$11:$C$109,B31) -> 0 | P31: =iUI!I31 -> 0 | Q31: =iUI!J31 -> 0 | R31: =iUI!L31 -> 0
B32: U22 | D32: =IF(iUI!D32<>"",iUI!D32,"") ->  | E32: =IF(iUI!F32<>"",iUI!F32,"") ->  | F32: =SUMIFS(iTABUF!$D$11:$D$109,iTABUF!$C$11:$C$109,B32) -> 0 | G32: =SUMIFS(iTABUF!$E$11:$E$109,iTABUF!$C$11:$C$109,B32) -> 0 | H32: =SUMIFS(iTABUF!$F$11:$F$109,iTABUF!$C$11:$C$109,B32) -> 0 | I32: =SUMIFS(iTABUF!$G$11:$G$109,iTABUF!$C$11:$C$109,B32) -> 0 | J32: =SUMIFS(iTABUF!$H$11:$H$109,iTABUF!$C$11:$C$109,B32) -> 0 | K32: =SUMIFS(iTABUF!$I$11:$I$109,iTABUF!$C$11:$C$109,B32) -> 0 | L32: =SUMIFS(iTABUF!$J$11:$J$109,iTABUF!$C$11:$C$109,B32) -> 0 | M32: =SUMIFS(iTABUF!$K$11:$K$109,iTABUF!$C$11:$C$109,B32) -> 0 | N32: =SUMIFS(iTABUF!$L$11:$L$109,iTABUF!$C$11:$C$109,B32) -> 0 | O32: =SUMIFS(iTABUF!$M$11:$M$109,iTABUF!$C$11:$C$109,B32) -> 0 | P32: =iUI!I32 -> 0 | Q32: =iUI!J32 -> 0 | R32: =iUI!L32 -> 0
B33: U23 | D33: =IF(iUI!D33<>"",iUI!D33,"") ->  | E33: =IF(iUI!F33<>"",iUI!F33,"") ->  | F33: =SUMIFS(iTABUF!$D$11:$D$109,iTABUF!$C$11:$C$109,B33) -> 0 | G33: =SUMIFS(iTABUF!$E$11:$E$109,iTABUF!$C$11:$C$109,B33) -> 0 | H33: =SUMIFS(iTABUF!$F$11:$F$109,iTABUF!$C$11:$C$109,B33) -> 0 | I33: =SUMIFS(iTABUF!$G$11:$G$109,iTABUF!$C$11:$C$109,B33) -> 0 | J33: =SUMIFS(iTABUF!$H$11:$H$109,iTABUF!$C$11:$C$109,B33) -> 0 | K33: =SUMIFS(iTABUF!$I$11:$I$109,iTABUF!$C$11:$C$109,B33) -> 0 | L33: =SUMIFS(iTABUF!$J$11:$J$109,iTABUF!$C$11:$C$109,B33) -> 0 | M33: =SUMIFS(iTABUF!$K$11:$K$109,iTABUF!$C$11:$C$109,B33) -> 0 | N33: =SUMIFS(iTABUF!$L$11:$L$109,iTABUF!$C$11:$C$109,B33) -> 0 | O33: =SUMIFS(iTABUF!$M$11:$M$109,iTABUF!$C$11:$C$109,B33) -> 0 | P33: =iUI!I33 -> 0 | Q33: =iUI!J33 -> 0 | R33: =iUI!L33 -> 0
B34: U24 | D34: =IF(iUI!D34<>"",iUI!D34,"") ->  | E34: =IF(iUI!F34<>"",iUI!F34,"") ->  | F34: =SUMIFS(iTABUF!$D$11:$D$109,iTABUF!$C$11:$C$109,B34) -> 0 | G34: =SUMIFS(iTABUF!$E$11:$E$109,iTABUF!$C$11:$C$109,B34) -> 0 | H34: =SUMIFS(iTABUF!$F$11:$F$109,iTABUF!$C$11:$C$109,B34) -> 0 | I34: =SUMIFS(iTABUF!$G$11:$G$109,iTABUF!$C$11:$C$109,B34) -> 0 | J34: =SUMIFS(iTABUF!$H$11:$H$109,iTABUF!$C$11:$C$109,B34) -> 0 | K34: =SUMIFS(iTABUF!$I$11:$I$109,iTABUF!$C$11:$C$109,B34) -> 0 | L34: =SUMIFS(iTABUF!$J$11:$J$109,iTABUF!$C$11:$C$109,B34) -> 0 | M34: =SUMIFS(iTABUF!$K$11:$K$109,iTABUF!$C$11:$C$109,B34) -> 0 | N34: =SUMIFS(iTABUF!$L$11:$L$109,iTABUF!$C$11:$C$109,B34) -> 0 | O34: =SUMIFS(iTABUF!$M$11:$M$109,iTABUF!$C$11:$C$109,B34) -> 0 | P34: =iUI!I34 -> 0 | Q34: =iUI!J34 -> 0 | R34: =iUI!L34 -> 0
B35: U25 | D35: =IF(iUI!D35<>"",iUI!D35,"") ->  | E35: =IF(iUI!F35<>"",iUI!F35,"") ->  | F35: =SUMIFS(iTABUF!$D$11:$D$109,iTABUF!$C$11:$C$109,B35) -> 0 | G35: =SUMIFS(iTABUF!$E$11:$E$109,iTABUF!$C$11:$C$109,B35) -> 0 | H35: =SUMIFS(iTABUF!$F$11:$F$109,iTABUF!$C$11:$C$109,B35) -> 0 | I35: =SUMIFS(iTABUF!$G$11:$G$109,iTABUF!$C$11:$C$109,B35) -> 0 | J35: =SUMIFS(iTABUF!$H$11:$H$109,iTABUF!$C$11:$C$109,B35) -> 0 | K35: =SUMIFS(iTABUF!$I$11:$I$109,iTABUF!$C$11:$C$109,B35) -> 0 | L35: =SUMIFS(iTABUF!$J$11:$J$109,iTABUF!$C$11:$C$109,B35) -> 0 | M35: =SUMIFS(iTABUF!$K$11:$K$109,iTABUF!$C$11:$C$109,B35) -> 0 | N35: =SUMIFS(iTABUF!$L$11:$L$109,iTABUF!$C$11:$C$109,B35) -> 0 | O35: =SUMIFS(iTABUF!$M$11:$M$109,iTABUF!$C$11:$C$109,B35) -> 0 | P35: =iUI!I35 -> 0 | Q35: =iUI!J35 -> 0 | R35: =iUI!L35 -> 0
B36: U26 | D36: =IF(iUI!D36<>"",iUI!D36,"") ->  | E36: =IF(iUI!F36<>"",iUI!F36,"") ->  | F36: =SUMIFS(iTABUF!$D$11:$D$109,iTABUF!$C$11:$C$109,B36) -> 0 | G36: =SUMIFS(iTABUF!$E$11:$E$109,iTABUF!$C$11:$C$109,B36) -> 0 | H36: =SUMIFS(iTABUF!$F$11:$F$109,iTABUF!$C$11:$C$109,B36) -> 0 | I36: =SUMIFS(iTABUF!$G$11:$G$109,iTABUF!$C$11:$C$109,B36) -> 0 | J36: =SUMIFS(iTABUF!$H$11:$H$109,iTABUF!$C$11:$C$109,B36) -> 0 | K36: =SUMIFS(iTABUF!$I$11:$I$109,iTABUF!$C$11:$C$109,B36) -> 0 | L36: =SUMIFS(iTABUF!$J$11:$J$109,iTABUF!$C$11:$C$109,B36) -> 0 | M36: =SUMIFS(iTABUF!$K$11:$K$109,iTABUF!$C$11:$C$109,B36) -> 0 | N36: =SUMIFS(iTABUF!$L$11:$L$109,iTABUF!$C$11:$C$109,B36) -> 0 | O36: =SUMIFS(iTABUF!$M$11:$M$109,iTABUF!$C$11:$C$109,B36) -> 0 | P36: =iUI!I36 -> 0 | Q36: =iUI!J36 -> 0 | R36: =iUI!L36 -> 0
B37: U27 | D37: =IF(iUI!D37<>"",iUI!D37,"") ->  | E37: =IF(iUI!F37<>"",iUI!F37,"") ->  | F37: =SUMIFS(iTABUF!$D$11:$D$109,iTABUF!$C$11:$C$109,B37) -> 0 | G37: =SUMIFS(iTABUF!$E$11:$E$109,iTABUF!$C$11:$C$109,B37) -> 0 | H37: =SUMIFS(iTABUF!$F$11:$F$109,iTABUF!$C$11:$C$109,B37) -> 0 | I37: =SUMIFS(iTABUF!$G$11:$G$109,iTABUF!$C$11:$C$109,B37) -> 0 | J37: =SUMIFS(iTABUF!$H$11:$H$109,iTABUF!$C$11:$C$109,B37) -> 0 | K37: =SUMIFS(iTABUF!$I$11:$I$109,iTABUF!$C$11:$C$109,B37) -> 0 | L37: =SUMIFS(iTABUF!$J$11:$J$109,iTABUF!$C$11:$C$109,B37) -> 0 | M37: =SUMIFS(iTABUF!$K$11:$K$109,iTABUF!$C$11:$C$109,B37) -> 0 | N37: =SUMIFS(iTABUF!$L$11:$L$109,iTABUF!$C$11:$C$109,B37) -> 0 | O37: =SUMIFS(iTABUF!$M$11:$M$109,iTABUF!$C$11:$C$109,B37) -> 0 | P37: =iUI!I37 -> 0 | Q37: =iUI!J37 -> 0 | R37: =iUI!L37 -> 0
B38: U28 | D38: =IF(iUI!D38<>"",iUI!D38,"") ->  | E38: =IF(iUI!F38<>"",iUI!F38,"") ->  | F38: =SUMIFS(iTABUF!$D$11:$D$109,iTABUF!$C$11:$C$109,B38) -> 0 | G38: =SUMIFS(iTABUF!$E$11:$E$109,iTABUF!$C$11:$C$109,B38) -> 0 | H38: =SUMIFS(iTABUF!$F$11:$F$109,iTABUF!$C$11:$C$109,B38) -> 0 | I38: =SUMIFS(iTABUF!$G$11:$G$109,iTABUF!$C$11:$C$109,B38) -> 0 | J38: =SUMIFS(iTABUF!$H$11:$H$109,iTABUF!$C$11:$C$109,B38) -> 0 | K38: =SUMIFS(iTABUF!$I$11:$I$109,iTABUF!$C$11:$C$109,B38) -> 0 | L38: =SUMIFS(iTABUF!$J$11:$J$109,iTABUF!$C$11:$C$109,B38) -> 0 | M38: =SUMIFS(iTABUF!$K$11:$K$109,iTABUF!$C$11:$C$109,B38) -> 0 | N38: =SUMIFS(iTABUF!$L$11:$L$109,iTABUF!$C$11:$C$109,B38) -> 0 | O38: =SUMIFS(iTABUF!$M$11:$M$109,iTABUF!$C$11:$C$109,B38) -> 0 | P38: =iUI!I38 -> 0 | Q38: =iUI!J38 -> 0 | R38: =iUI!L38 -> 0
B39: U29 | D39: =IF(iUI!D39<>"",iUI!D39,"") ->  | E39: =IF(iUI!F39<>"",iUI!F39,"") ->  | F39: =SUMIFS(iTABUF!$D$11:$D$109,iTABUF!$C$11:$C$109,B39) -> 0 | G39: =SUMIFS(iTABUF!$E$11:$E$109,iTABUF!$C$11:$C$109,B39) -> 0 | H39: =SUMIFS(iTABUF!$F$11:$F$109,iTABUF!$C$11:$C$109,B39) -> 0 | I39: =SUMIFS(iTABUF!$G$11:$G$109,iTABUF!$C$11:$C$109,B39) -> 0 | J39: =SUMIFS(iTABUF!$H$11:$H$109,iTABUF!$C$11:$C$109,B39) -> 0 | K39: =SUMIFS(iTABUF!$I$11:$I$109,iTABUF!$C$11:$C$109,B39) -> 0 | L39: =SUMIFS(iTABUF!$J$11:$J$109,iTABUF!$C$11:$C$109,B39) -> 0 | M39: =SUMIFS(iTABUF!$K$11:$K$109,iTABUF!$C$11:$C$109,B39) -> 0 | N39: =SUMIFS(iTABUF!$L$11:$L$109,iTABUF!$C$11:$C$109,B39) -> 0 | O39: =SUMIFS(iTABUF!$M$11:$M$109,iTABUF!$C$11:$C$109,B39) -> 0 | P39: =iUI!I39 -> 0 | Q39: =iUI!J39 -> 0 | R39: =iUI!L39 -> 0
B40: U30 | D40: =IF(iUI!D40<>"",iUI!D40,"") ->  | E40: =IF(iUI!F40<>"",iUI!F40,"") ->  | F40: =SUMIFS(iTABUF!$D$11:$D$109,iTABUF!$C$11:$C$109,B40) -> 0 | G40: =SUMIFS(iTABUF!$E$11:$E$109,iTABUF!$C$11:$C$109,B40) -> 0 | H40: =SUMIFS(iTABUF!$F$11:$F$109,iTABUF!$C$11:$C$109,B40) -> 0 | I40: =SUMIFS(iTABUF!$G$11:$G$109,iTABUF!$C$11:$C$109,B40) -> 0 | J40: =SUMIFS(iTABUF!$H$11:$H$109,iTABUF!$C$11:$C$109,B40) -> 0 | K40: =SUMIFS(iTABUF!$I$11:$I$109,iTABUF!$C$11:$C$109,B40) -> 0 | L40: =SUMIFS(iTABUF!$J$11:$J$109,iTABUF!$C$11:$C$109,B40) -> 0 | M40: =SUMIFS(iTABUF!$K$11:$K$109,iTABUF!$C$11:$C$109,B40) -> 0 | N40: =SUMIFS(iTABUF!$L$11:$L$109,iTABUF!$C$11:$C$109,B40) -> 0 | O40: =SUMIFS(iTABUF!$M$11:$M$109,iTABUF!$C$11:$C$109,B40) -> 0 | P40: =iUI!I40 -> 0 | Q40: =iUI!J40 -> 0 | R40: =iUI!L40 -> 0
B41: U31 | D41: =IF(iUI!D41<>"",iUI!D41,"") ->  | E41: =IF(iUI!F41<>"",iUI!F41,"") ->  | F41: =SUMIFS(iTABUF!$D$11:$D$109,iTABUF!$C$11:$C$109,B41) -> 0 | G41: =SUMIFS(iTABUF!$E$11:$E$109,iTABUF!$C$11:$C$109,B41) -> 0 | H41: =SUMIFS(iTABUF!$F$11:$F$109,iTABUF!$C$11:$C$109,B41) -> 0 | I41: =SUMIFS(iTABUF!$G$11:$G$109,iTABUF!$C$11:$C$109,B41) -> 0 | J41: =SUMIFS(iTABUF!$H$11:$H$109,iTABUF!$C$11:$C$109,B41) -> 0 | K41: =SUMIFS(iTABUF!$I$11:$I$109,iTABUF!$C$11:$C$109,B41) -> 0 | L41: =SUMIFS(iTABUF!$J$11:$J$109,iTABUF!$C$11:$C$109,B41) -> 0 | M41: =SUMIFS(iTABUF!$K$11:$K$109,iTABUF!$C$11:$C$109,B41) -> 0 | N41: =SUMIFS(iTABUF!$L$11:$L$109,iTABUF!$C$11:$C$109,B41) -> 0 | O41: =SUMIFS(iTABUF!$M$11:$M$109,iTABUF!$C$11:$C$109,B41) -> 0 | P41: =iUI!I41 -> 0 | Q41: =iUI!J41 -> 0 | R41: =iUI!L41 -> 0
B42: U32 | D42: =IF(iUI!D42<>"",iUI!D42,"") ->  | E42: =IF(iUI!F42<>"",iUI!F42,"") ->  | F42: =SUMIFS(iTABUF!$D$11:$D$109,iTABUF!$C$11:$C$109,B42) -> 0 | G42: =SUMIFS(iTABUF!$E$11:$E$109,iTABUF!$C$11:$C$109,B42) -> 0 | H42: =SUMIFS(iTABUF!$F$11:$F$109,iTABUF!$C$11:$C$109,B42) -> 0 | I42: =SUMIFS(iTABUF!$G$11:$G$109,iTABUF!$C$11:$C$109,B42) -> 0 | J42: =SUMIFS(iTABUF!$H$11:$H$109,iTABUF!$C$11:$C$109,B42) -> 0 | K42: =SUMIFS(iTABUF!$I$11:$I$109,iTABUF!$C$11:$C$109,B42) -> 0 | L42: =SUMIFS(iTABUF!$J$11:$J$109,iTABUF!$C$11:$C$109,B42) -> 0 | M42: =SUMIFS(iTABUF!$K$11:$K$109,iTABUF!$C$11:$C$109,B42) -> 0 | N42: =SUMIFS(iTABUF!$L$11:$L$109,iTABUF!$C$11:$C$109,B42) -> 0 | O42: =SUMIFS(iTABUF!$M$11:$M$109,iTABUF!$C$11:$C$109,B42) -> 0 | P42: =iUI!I42 -> 0 | Q42: =iUI!J42 -> 0 | R42: =iUI!L42 -> 0
B43: U33 | D43: =IF(iUI!D43<>"",iUI!D43,"") ->  | E43: =IF(iUI!F43<>"",iUI!F43,"") ->  | F43: =SUMIFS(iTABUF!$D$11:$D$109,iTABUF!$C$11:$C$109,B43) -> 0 | G43: =SUMIFS(iTABUF!$E$11:$E$109,iTABUF!$C$11:$C$109,B43) -> 0 | H43: =SUMIFS(iTABUF!$F$11:$F$109,iTABUF!$C$11:$C$109,B43) -> 0 | I43: =SUMIFS(iTABUF!$G$11:$G$109,iTABUF!$C$11:$C$109,B43) -> 0 | J43: =SUMIFS(iTABUF!$H$11:$H$109,iTABUF!$C$11:$C$109,B43) -> 0 | K43: =SUMIFS(iTABUF!$I$11:$I$109,iTABUF!$C$11:$C$109,B43) -> 0 | L43: =SUMIFS(iTABUF!$J$11:$J$109,iTABUF!$C$11:$C$109,B43) -> 0 | M43: =SUMIFS(iTABUF!$K$11:$K$109,iTABUF!$C$11:$C$109,B43) -> 0 | N43: =SUMIFS(iTABUF!$L$11:$L$109,iTABUF!$C$11:$C$109,B43) -> 0 | O43: =SUMIFS(iTABUF!$M$11:$M$109,iTABUF!$C$11:$C$109,B43) -> 0 | P43: =iUI!I43 -> 0 | Q43: =iUI!J43 -> 0 | R43: =iUI!L43 -> 0
B44: U34 | D44: =IF(iUI!D44<>"",iUI!D44,"") ->  | E44: =IF(iUI!F44<>"",iUI!F44,"") ->  | F44: =SUMIFS(iTABUF!$D$11:$D$109,iTABUF!$C$11:$C$109,B44) -> 0 | G44: =SUMIFS(iTABUF!$E$11:$E$109,iTABUF!$C$11:$C$109,B44) -> 0 | H44: =SUMIFS(iTABUF!$F$11:$F$109,iTABUF!$C$11:$C$109,B44) -> 0 | I44: =SUMIFS(iTABUF!$G$11:$G$109,iTABUF!$C$11:$C$109,B44) -> 0 | J44: =SUMIFS(iTABUF!$H$11:$H$109,iTABUF!$C$11:$C$109,B44) -> 0 | K44: =SUMIFS(iTABUF!$I$11:$I$109,iTABUF!$C$11:$C$109,B44) -> 0 | L44: =SUMIFS(iTABUF!$J$11:$J$109,iTABUF!$C$11:$C$109,B44) -> 0 | M44: =SUMIFS(iTABUF!$K$11:$K$109,iTABUF!$C$11:$C$109,B44) -> 0 | N44: =SUMIFS(iTABUF!$L$11:$L$109,iTABUF!$C$11:$C$109,B44) -> 0 | O44: =SUMIFS(iTABUF!$M$11:$M$109,iTABUF!$C$11:$C$109,B44) -> 0 | P44: =iUI!I44 -> 0 | Q44: =iUI!J44 -> 0 | R44: =iUI!L44 -> 0
B45: U35 | D45: =IF(iUI!D45<>"",iUI!D45,"") ->  | E45: =IF(iUI!F45<>"",iUI!F45,"") ->  | F45: =SUMIFS(iTABUF!$D$11:$D$109,iTABUF!$C$11:$C$109,B45) -> 0 | G45: =SUMIFS(iTABUF!$E$11:$E$109,iTABUF!$C$11:$C$109,B45) -> 0 | H45: =SUMIFS(iTABUF!$F$11:$F$109,iTABUF!$C$11:$C$109,B45) -> 0 | I45: =SUMIFS(iTABUF!$G$11:$G$109,iTABUF!$C$11:$C$109,B45) -> 0 | J45: =SUMIFS(iTABUF!$H$11:$H$109,iTABUF!$C$11:$C$109,B45) -> 0 | K45: =SUMIFS(iTABUF!$I$11:$I$109,iTABUF!$C$11:$C$109,B45) -> 0 | L45: =SUMIFS(iTABUF!$J$11:$J$109,iTABUF!$C$11:$C$109,B45) -> 0 | M45: =SUMIFS(iTABUF!$K$11:$K$109,iTABUF!$C$11:$C$109,B45) -> 0 | N45: =SUMIFS(iTABUF!$L$11:$L$109,iTABUF!$C$11:$C$109,B45) -> 0 | O45: =SUMIFS(iTABUF!$M$11:$M$109,iTABUF!$C$11:$C$109,B45) -> 0 | P45: =iUI!I45 -> 0 | Q45: =iUI!J45 -> 0 | R45: =iUI!L45 -> 0
B46: U36 | D46: =IF(iUI!D46<>"",iUI!D46,"") ->  | E46: =IF(iUI!F46<>"",iUI!F46,"") ->  | F46: =SUMIFS(iTABUF!$D$11:$D$109,iTABUF!$C$11:$C$109,B46) -> 0 | G46: =SUMIFS(iTABUF!$E$11:$E$109,iTABUF!$C$11:$C$109,B46) -> 0 | H46: =SUMIFS(iTABUF!$F$11:$F$109,iTABUF!$C$11:$C$109,B46) -> 0 | I46: =SUMIFS(iTABUF!$G$11:$G$109,iTABUF!$C$11:$C$109,B46) -> 0 | J46: =SUMIFS(iTABUF!$H$11:$H$109,iTABUF!$C$11:$C$109,B46) -> 0 | K46: =SUMIFS(iTABUF!$I$11:$I$109,iTABUF!$C$11:$C$109,B46) -> 0 | L46: =SUMIFS(iTABUF!$J$11:$J$109,iTABUF!$C$11:$C$109,B46) -> 0 | M46: =SUMIFS(iTABUF!$K$11:$K$109,iTABUF!$C$11:$C$109,B46) -> 0 | N46: =SUMIFS(iTABUF!$L$11:$L$109,iTABUF!$C$11:$C$109,B46) -> 0 | O46: =SUMIFS(iTABUF!$M$11:$M$109,iTABUF!$C$11:$C$109,B46) -> 0 | P46: =iUI!I46 -> 0 | Q46: =iUI!J46 -> 0 | R46: =iUI!L46 -> 0
B47: U37 | D47: =IF(iUI!D47<>"",iUI!D47,"") ->  | E47: =IF(iUI!F47<>"",iUI!F47,"") ->  | F47: =SUMIFS(iTABUF!$D$11:$D$109,iTABUF!$C$11:$C$109,B47) -> 0 | G47: =SUMIFS(iTABUF!$E$11:$E$109,iTABUF!$C$11:$C$109,B47) -> 0 | H47: =SUMIFS(iTABUF!$F$11:$F$109,iTABUF!$C$11:$C$109,B47) -> 0 | I47: =SUMIFS(iTABUF!$G$11:$G$109,iTABUF!$C$11:$C$109,B47) -> 0 | J47: =SUMIFS(iTABUF!$H$11:$H$109,iTABUF!$C$11:$C$109,B47) -> 0 | K47: =SUMIFS(iTABUF!$I$11:$I$109,iTABUF!$C$11:$C$109,B47) -> 0 | L47: =SUMIFS(iTABUF!$J$11:$J$109,iTABUF!$C$11:$C$109,B47) -> 0 | M47: =SUMIFS(iTABUF!$K$11:$K$109,iTABUF!$C$11:$C$109,B47) -> 0 | N47: =SUMIFS(iTABUF!$L$11:$L$109,iTABUF!$C$11:$C$109,B47) -> 0 | O47: =SUMIFS(iTABUF!$M$11:$M$109,iTABUF!$C$11:$C$109,B47) -> 0 | P47: =iUI!I47 -> 0 | Q47: =iUI!J47 -> 0 | R47: =iUI!L47 -> 0
B48: U38 | D48: =IF(iUI!D48<>"",iUI!D48,"") ->  | E48: =IF(iUI!F48<>"",iUI!F48,"") ->  | F48: =SUMIFS(iTABUF!$D$11:$D$109,iTABUF!$C$11:$C$109,B48) -> 0 | G48: =SUMIFS(iTABUF!$E$11:$E$109,iTABUF!$C$11:$C$109,B48) -> 0 | H48: =SUMIFS(iTABUF!$F$11:$F$109,iTABUF!$C$11:$C$109,B48) -> 0 | I48: =SUMIFS(iTABUF!$G$11:$G$109,iTABUF!$C$11:$C$109,B48) -> 0 | J48: =SUMIFS(iTABUF!$H$11:$H$109,iTABUF!$C$11:$C$109,B48) -> 0 | K48: =SUMIFS(iTABUF!$I$11:$I$109,iTABUF!$C$11:$C$109,B48) -> 0 | L48: =SUMIFS(iTABUF!$J$11:$J$109,iTABUF!$C$11:$C$109,B48) -> 0 | M48: =SUMIFS(iTABUF!$K$11:$K$109,iTABUF!$C$11:$C$109,B48) -> 0 | N48: =SUMIFS(iTABUF!$L$11:$L$109,iTABUF!$C$11:$C$109,B48) -> 0 | O48: =SUMIFS(iTABUF!$M$11:$M$109,iTABUF!$C$11:$C$109,B48) -> 0 | P48: =iUI!I48 -> 0 | Q48: =iUI!J48 -> 0 | R48: =iUI!L48 -> 0
B49: U39 | D49: =IF(iUI!D49<>"",iUI!D49,"") ->  | E49: =IF(iUI!F49<>"",iUI!F49,"") ->  | F49: =SUMIFS(iTABUF!$D$11:$D$109,iTABUF!$C$11:$C$109,B49) -> 0 | G49: =SUMIFS(iTABUF!$E$11:$E$109,iTABUF!$C$11:$C$109,B49) -> 0 | H49: =SUMIFS(iTABUF!$F$11:$F$109,iTABUF!$C$11:$C$109,B49) -> 0 | I49: =SUMIFS(iTABUF!$G$11:$G$109,iTABUF!$C$11:$C$109,B49) -> 0 | J49: =SUMIFS(iTABUF!$H$11:$H$109,iTABUF!$C$11:$C$109,B49) -> 0 | K49: =SUMIFS(iTABUF!$I$11:$I$109,iTABUF!$C$11:$C$109,B49) -> 0 | L49: =SUMIFS(iTABUF!$J$11:$J$109,iTABUF!$C$11:$C$109,B49) -> 0 | M49: =SUMIFS(iTABUF!$K$11:$K$109,iTABUF!$C$11:$C$109,B49) -> 0 | N49: =SUMIFS(iTABUF!$L$11:$L$109,iTABUF!$C$11:$C$109,B49) -> 0 | O49: =SUMIFS(iTABUF!$M$11:$M$109,iTABUF!$C$11:$C$109,B49) -> 0 | P49: =iUI!I49 -> 0 | Q49: =iUI!J49 -> 0 | R49: =iUI!L49 -> 0
B50: U40 | D50: =IF(iUI!D50<>"",iUI!D50,"") ->  | E50: =IF(iUI!F50<>"",iUI!F50,"") ->  | F50: =SUMIFS(iTABUF!$D$11:$D$109,iTABUF!$C$11:$C$109,B50) -> 0 | G50: =SUMIFS(iTABUF!$E$11:$E$109,iTABUF!$C$11:$C$109,B50) -> 0 | H50: =SUMIFS(iTABUF!$F$11:$F$109,iTABUF!$C$11:$C$109,B50) -> 0 | I50: =SUMIFS(iTABUF!$G$11:$G$109,iTABUF!$C$11:$C$109,B50) -> 0 | J50: =SUMIFS(iTABUF!$H$11:$H$109,iTABUF!$C$11:$C$109,B50) -> 0 | K50: =SUMIFS(iTABUF!$I$11:$I$109,iTABUF!$C$11:$C$109,B50) -> 0 | L50: =SUMIFS(iTABUF!$J$11:$J$109,iTABUF!$C$11:$C$109,B50) -> 0 | M50: =SUMIFS(iTABUF!$K$11:$K$109,iTABUF!$C$11:$C$109,B50) -> 0 | N50: =SUMIFS(iTABUF!$L$11:$L$109,iTABUF!$C$11:$C$109,B50) -> 0 | O50: =SUMIFS(iTABUF!$M$11:$M$109,iTABUF!$C$11:$C$109,B50) -> 0 | P50: =iUI!I50 -> 0 | Q50: =iUI!J50 -> 0 | R50: =iUI!L50 -> 0
B51: U41 | D51: =IF(iUI!D51<>"",iUI!D51,"") ->  | E51: =IF(iUI!F51<>"",iUI!F51,"") ->  | F51: =SUMIFS(iTABUF!$D$11:$D$109,iTABUF!$C$11:$C$109,B51) -> 0 | G51: =SUMIFS(iTABUF!$E$11:$E$109,iTABUF!$C$11:$C$109,B51) -> 0 | H51: =SUMIFS(iTABUF!$F$11:$F$109,iTABUF!$C$11:$C$109,B51) -> 0 | I51: =SUMIFS(iTABUF!$G$11:$G$109,iTABUF!$C$11:$C$109,B51) -> 0 | J51: =SUMIFS(iTABUF!$H$11:$H$109,iTABUF!$C$11:$C$109,B51) -> 0 | K51: =SUMIFS(iTABUF!$I$11:$I$109,iTABUF!$C$11:$C$109,B51) -> 0 | L51: =SUMIFS(iTABUF!$J$11:$J$109,iTABUF!$C$11:$C$109,B51) -> 0 | M51: =SUMIFS(iTABUF!$K$11:$K$109,iTABUF!$C$11:$C$109,B51) -> 0 | N51: =SUMIFS(iTABUF!$L$11:$L$109,iTABUF!$C$11:$C$109,B51) -> 0 | O51: =SUMIFS(iTABUF!$M$11:$M$109,iTABUF!$C$11:$C$109,B51) -> 0 | P51: =iUI!I51 -> 0 | Q51: =iUI!J51 -> 0 | R51: =iUI!L51 -> 0
B52: U42 | D52: =IF(iUI!D52<>"",iUI!D52,"") ->  | E52: =IF(iUI!F52<>"",iUI!F52,"") ->  | F52: =SUMIFS(iTABUF!$D$11:$D$109,iTABUF!$C$11:$C$109,B52) -> 0 | G52: =SUMIFS(iTABUF!$E$11:$E$109,iTABUF!$C$11:$C$109,B52) -> 0 | H52: =SUMIFS(iTABUF!$F$11:$F$109,iTABUF!$C$11:$C$109,B52) -> 0 | I52: =SUMIFS(iTABUF!$G$11:$G$109,iTABUF!$C$11:$C$109,B52) -> 0 | J52: =SUMIFS(iTABUF!$H$11:$H$109,iTABUF!$C$11:$C$109,B52) -> 0 | K52: =SUMIFS(iTABUF!$I$11:$I$109,iTABUF!$C$11:$C$109,B52) -> 0 | L52: =SUMIFS(iTABUF!$J$11:$J$109,iTABUF!$C$11:$C$109,B52) -> 0 | M52: =SUMIFS(iTABUF!$K$11:$K$109,iTABUF!$C$11:$C$109,B52) -> 0 | N52: =SUMIFS(iTABUF!$L$11:$L$109,iTABUF!$C$11:$C$109,B52) -> 0 | O52: =SUMIFS(iTABUF!$M$11:$M$109,iTABUF!$C$11:$C$109,B52) -> 0 | P52: =iUI!I52 -> 0 | Q52: =iUI!J52 -> 0 | R52: =iUI!L52 -> 0
B53: U43 | D53: =IF(iUI!D53<>"",iUI!D53,"") ->  | E53: =IF(iUI!F53<>"",iUI!F53,"") ->  | F53: =SUMIFS(iTABUF!$D$11:$D$109,iTABUF!$C$11:$C$109,B53) -> 0 | G53: =SUMIFS(iTABUF!$E$11:$E$109,iTABUF!$C$11:$C$109,B53) -> 0 | H53: =SUMIFS(iTABUF!$F$11:$F$109,iTABUF!$C$11:$C$109,B53) -> 0 | I53: =SUMIFS(iTABUF!$G$11:$G$109,iTABUF!$C$11:$C$109,B53) -> 0 | J53: =SUMIFS(iTABUF!$H$11:$H$109,iTABUF!$C$11:$C$109,B53) -> 0 | K53: =SUMIFS(iTABUF!$I$11:$I$109,iTABUF!$C$11:$C$109,B53) -> 0 | L53: =SUMIFS(iTABUF!$J$11:$J$109,iTABUF!$C$11:$C$109,B53) -> 0 | M53: =SUMIFS(iTABUF!$K$11:$K$109,iTABUF!$C$11:$C$109,B53) -> 0 | N53: =SUMIFS(iTABUF!$L$11:$L$109,iTABUF!$C$11:$C$109,B53) -> 0 | O53: =SUMIFS(iTABUF!$M$11:$M$109,iTABUF!$C$11:$C$109,B53) -> 0 | P53: =iUI!I53 -> 0 | Q53: =iUI!J53 -> 0 | R53: =iUI!L53 -> 0
B54: U44 | D54: =IF(iUI!D54<>"",iUI!D54,"") ->  | E54: =IF(iUI!F54<>"",iUI!F54,"") ->  | F54: =SUMIFS(iTABUF!$D$11:$D$109,iTABUF!$C$11:$C$109,B54) -> 0 | G54: =SUMIFS(iTABUF!$E$11:$E$109,iTABUF!$C$11:$C$109,B54) -> 0 | H54: =SUMIFS(iTABUF!$F$11:$F$109,iTABUF!$C$11:$C$109,B54) -> 0 | I54: =SUMIFS(iTABUF!$G$11:$G$109,iTABUF!$C$11:$C$109,B54) -> 0 | J54: =SUMIFS(iTABUF!$H$11:$H$109,iTABUF!$C$11:$C$109,B54) -> 0 | K54: =SUMIFS(iTABUF!$I$11:$I$109,iTABUF!$C$11:$C$109,B54) -> 0 | L54: =SUMIFS(iTABUF!$J$11:$J$109,iTABUF!$C$11:$C$109,B54) -> 0 | M54: =SUMIFS(iTABUF!$K$11:$K$109,iTABUF!$C$11:$C$109,B54) -> 0 | N54: =SUMIFS(iTABUF!$L$11:$L$109,iTABUF!$C$11:$C$109,B54) -> 0 | O54: =SUMIFS(iTABUF!$M$11:$M$109,iTABUF!$C$11:$C$109,B54) -> 0 | P54: =iUI!I54 -> 0 | Q54: =iUI!J54 -> 0 | R54: =iUI!L54 -> 0
B55: U45 | D55: =IF(iUI!D55<>"",iUI!D55,"") ->  | E55: =IF(iUI!F55<>"",iUI!F55,"") ->  | F55: =SUMIFS(iTABUF!$D$11:$D$109,iTABUF!$C$11:$C$109,B55) -> 0 | G55: =SUMIFS(iTABUF!$E$11:$E$109,iTABUF!$C$11:$C$109,B55) -> 0 | H55: =SUMIFS(iTABUF!$F$11:$F$109,iTABUF!$C$11:$C$109,B55) -> 0 | I55: =SUMIFS(iTABUF!$G$11:$G$109,iTABUF!$C$11:$C$109,B55) -> 0 | J55: =SUMIFS(iTABUF!$H$11:$H$109,iTABUF!$C$11:$C$109,B55) -> 0 | K55: =SUMIFS(iTABUF!$I$11:$I$109,iTABUF!$C$11:$C$109,B55) -> 0 | L55: =SUMIFS(iTABUF!$J$11:$J$109,iTABUF!$C$11:$C$109,B55) -> 0 | M55: =SUMIFS(iTABUF!$K$11:$K$109,iTABUF!$C$11:$C$109,B55) -> 0 | N55: =SUMIFS(iTABUF!$L$11:$L$109,iTABUF!$C$11:$C$109,B55) -> 0 | O55: =SUMIFS(iTABUF!$M$11:$M$109,iTABUF!$C$11:$C$109,B55) -> 0 | P55: =iUI!I55 -> 0 | Q55: =iUI!J55 -> 0 | R55: =iUI!L55 -> 0
B56: U46 | D56: =IF(iUI!D56<>"",iUI!D56,"") ->  | E56: =IF(iUI!F56<>"",iUI!F56,"") ->  | F56: =SUMIFS(iTABUF!$D$11:$D$109,iTABUF!$C$11:$C$109,B56) -> 0 | G56: =SUMIFS(iTABUF!$E$11:$E$109,iTABUF!$C$11:$C$109,B56) -> 0 | H56: =SUMIFS(iTABUF!$F$11:$F$109,iTABUF!$C$11:$C$109,B56) -> 0 | I56: =SUMIFS(iTABUF!$G$11:$G$109,iTABUF!$C$11:$C$109,B56) -> 0 | J56: =SUMIFS(iTABUF!$H$11:$H$109,iTABUF!$C$11:$C$109,B56) -> 0 | K56: =SUMIFS(iTABUF!$I$11:$I$109,iTABUF!$C$11:$C$109,B56) -> 0 | L56: =SUMIFS(iTABUF!$J$11:$J$109,iTABUF!$C$11:$C$109,B56) -> 0 | M56: =SUMIFS(iTABUF!$K$11:$K$109,iTABUF!$C$11:$C$109,B56) -> 0 | N56: =SUMIFS(iTABUF!$L$11:$L$109,iTABUF!$C$11:$C$109,B56) -> 0 | O56: =SUMIFS(iTABUF!$M$11:$M$109,iTABUF!$C$11:$C$109,B56) -> 0 | P56: =iUI!I56 -> 0 | Q56: =iUI!J56 -> 0 | R56: =iUI!L56 -> 0
B57: U47 | D57: =IF(iUI!D57<>"",iUI!D57,"") ->  | E57: =IF(iUI!F57<>"",iUI!F57,"") ->  | F57: =SUMIFS(iTABUF!$D$11:$D$109,iTABUF!$C$11:$C$109,B57) -> 0 | G57: =SUMIFS(iTABUF!$E$11:$E$109,iTABUF!$C$11:$C$109,B57) -> 0 | H57: =SUMIFS(iTABUF!$F$11:$F$109,iTABUF!$C$11:$C$109,B57) -> 0 | I57: =SUMIFS(iTABUF!$G$11:$G$109,iTABUF!$C$11:$C$109,B57) -> 0 | J57: =SUMIFS(iTABUF!$H$11:$H$109,iTABUF!$C$11:$C$109,B57) -> 0 | K57: =SUMIFS(iTABUF!$I$11:$I$109,iTABUF!$C$11:$C$109,B57) -> 0 | L57: =SUMIFS(iTABUF!$J$11:$J$109,iTABUF!$C$11:$C$109,B57) -> 0 | M57: =SUMIFS(iTABUF!$K$11:$K$109,iTABUF!$C$11:$C$109,B57) -> 0 | N57: =SUMIFS(iTABUF!$L$11:$L$109,iTABUF!$C$11:$C$109,B57) -> 0 | O57: =SUMIFS(iTABUF!$M$11:$M$109,iTABUF!$C$11:$C$109,B57) -> 0 | P57: =iUI!I57 -> 0 | Q57: =iUI!J57 -> 0 | R57: =iUI!L57 -> 0
B58: U48 | D58: =IF(iUI!D58<>"",iUI!D58,"") ->  | E58: =IF(iUI!F58<>"",iUI!F58,"") ->  | F58: =SUMIFS(iTABUF!$D$11:$D$109,iTABUF!$C$11:$C$109,B58) -> 0 | G58: =SUMIFS(iTABUF!$E$11:$E$109,iTABUF!$C$11:$C$109,B58) -> 0 | H58: =SUMIFS(iTABUF!$F$11:$F$109,iTABUF!$C$11:$C$109,B58) -> 0 | I58: =SUMIFS(iTABUF!$G$11:$G$109,iTABUF!$C$11:$C$109,B58) -> 0 | J58: =SUMIFS(iTABUF!$H$11:$H$109,iTABUF!$C$11:$C$109,B58) -> 0 | K58: =SUMIFS(iTABUF!$I$11:$I$109,iTABUF!$C$11:$C$109,B58) -> 0 | L58: =SUMIFS(iTABUF!$J$11:$J$109,iTABUF!$C$11:$C$109,B58) -> 0 | M58: =SUMIFS(iTABUF!$K$11:$K$109,iTABUF!$C$11:$C$109,B58) -> 0 | N58: =SUMIFS(iTABUF!$L$11:$L$109,iTABUF!$C$11:$C$109,B58) -> 0 | O58: =SUMIFS(iTABUF!$M$11:$M$109,iTABUF!$C$11:$C$109,B58) -> 0 | P58: =iUI!I58 -> 0 | Q58: =iUI!J58 -> 0 | R58: =iUI!L58 -> 0
B59: U49 | D59: =IF(iUI!D59<>"",iUI!D59,"") ->  | E59: =IF(iUI!F59<>"",iUI!F59,"") ->  | F59: =SUMIFS(iTABUF!$D$11:$D$109,iTABUF!$C$11:$C$109,B59) -> 0 | G59: =SUMIFS(iTABUF!$E$11:$E$109,iTABUF!$C$11:$C$109,B59) -> 0 | H59: =SUMIFS(iTABUF!$F$11:$F$109,iTABUF!$C$11:$C$109,B59) -> 0 | I59: =SUMIFS(iTABUF!$G$11:$G$109,iTABUF!$C$11:$C$109,B59) -> 0 | J59: =SUMIFS(iTABUF!$H$11:$H$109,iTABUF!$C$11:$C$109,B59) -> 0 | K59: =SUMIFS(iTABUF!$I$11:$I$109,iTABUF!$C$11:$C$109,B59) -> 0 | L59: =SUMIFS(iTABUF!$J$11:$J$109,iTABUF!$C$11:$C$109,B59) -> 0 | M59: =SUMIFS(iTABUF!$K$11:$K$109,iTABUF!$C$11:$C$109,B59) -> 0 | N59: =SUMIFS(iTABUF!$L$11:$L$109,iTABUF!$C$11:$C$109,B59) -> 0 | O59: =SUMIFS(iTABUF!$M$11:$M$109,iTABUF!$C$11:$C$109,B59) -> 0 | P59: =iUI!I59 -> 0 | Q59: =iUI!J59 -> 0 | R59: =iUI!L59 -> 0
B60: U50 | D60: =IF(iUI!D60<>"",iUI!D60,"") ->  | E60: =IF(iUI!F60<>"",iUI!F60,"") ->  | F60: =SUMIFS(iTABUF!$D$11:$D$109,iTABUF!$C$11:$C$109,B60) -> 0 | G60: =SUMIFS(iTABUF!$E$11:$E$109,iTABUF!$C$11:$C$109,B60) -> 0 | H60: =SUMIFS(iTABUF!$F$11:$F$109,iTABUF!$C$11:$C$109,B60) -> 0 | I60: =SUMIFS(iTABUF!$G$11:$G$109,iTABUF!$C$11:$C$109,B60) -> 0 | J60: =SUMIFS(iTABUF!$H$11:$H$109,iTABUF!$C$11:$C$109,B60) -> 0 | K60: =SUMIFS(iTABUF!$I$11:$I$109,iTABUF!$C$11:$C$109,B60) -> 0 | L60: =SUMIFS(iTABUF!$J$11:$J$109,iTABUF!$C$11:$C$109,B60) -> 0 | M60: =SUMIFS(iTABUF!$K$11:$K$109,iTABUF!$C$11:$C$109,B60) -> 0 | N60: =SUMIFS(iTABUF!$L$11:$L$109,iTABUF!$C$11:$C$109,B60) -> 0 | O60: =SUMIFS(iTABUF!$M$11:$M$109,iTABUF!$C$11:$C$109,B60) -> 0 | P60: =iUI!I60 -> 0 | Q60: =iUI!J60 -> 0 | R60: =iUI!L60 -> 0
B61: U51 | D61: =IF(iUI!D61<>"",iUI!D61,"") ->  | E61: =IF(iUI!F61<>"",iUI!F61,"") ->  | F61: =SUMIFS(iTABUF!$D$11:$D$109,iTABUF!$C$11:$C$109,B61) -> 0 | G61: =SUMIFS(iTABUF!$E$11:$E$109,iTABUF!$C$11:$C$109,B61) -> 0 | H61: =SUMIFS(iTABUF!$F$11:$F$109,iTABUF!$C$11:$C$109,B61) -> 0 | I61: =SUMIFS(iTABUF!$G$11:$G$109,iTABUF!$C$11:$C$109,B61) -> 0 | J61: =SUMIFS(iTABUF!$H$11:$H$109,iTABUF!$C$11:$C$109,B61) -> 0 | K61: =SUMIFS(iTABUF!$I$11:$I$109,iTABUF!$C$11:$C$109,B61) -> 0 | L61: =SUMIFS(iTABUF!$J$11:$J$109,iTABUF!$C$11:$C$109,B61) -> 0 | M61: =SUMIFS(iTABUF!$K$11:$K$109,iTABUF!$C$11:$C$109,B61) -> 0 | N61: =SUMIFS(iTABUF!$L$11:$L$109,iTABUF!$C$11:$C$109,B61) -> 0 | O61: =SUMIFS(iTABUF!$M$11:$M$109,iTABUF!$C$11:$C$109,B61) -> 0 | P61: =iUI!I61 -> 0 | Q61: =iUI!J61 -> 0 | R61: =iUI!L61 -> 0
B62: U52 | D62: =IF(iUI!D62<>"",iUI!D62,"") ->  | E62: =IF(iUI!F62<>"",iUI!F62,"") ->  | F62: =SUMIFS(iTABUF!$D$11:$D$109,iTABUF!$C$11:$C$109,B62) -> 0 | G62: =SUMIFS(iTABUF!$E$11:$E$109,iTABUF!$C$11:$C$109,B62) -> 0 | H62: =SUMIFS(iTABUF!$F$11:$F$109,iTABUF!$C$11:$C$109,B62) -> 0 | I62: =SUMIFS(iTABUF!$G$11:$G$109,iTABUF!$C$11:$C$109,B62) -> 0 | J62: =SUMIFS(iTABUF!$H$11:$H$109,iTABUF!$C$11:$C$109,B62) -> 0 | K62: =SUMIFS(iTABUF!$I$11:$I$109,iTABUF!$C$11:$C$109,B62) -> 0 | L62: =SUMIFS(iTABUF!$J$11:$J$109,iTABUF!$C$11:$C$109,B62) -> 0 | M62: =SUMIFS(iTABUF!$K$11:$K$109,iTABUF!$C$11:$C$109,B62) -> 0 | N62: =SUMIFS(iTABUF!$L$11:$L$109,iTABUF!$C$11:$C$109,B62) -> 0 | O62: =SUMIFS(iTABUF!$M$11:$M$109,iTABUF!$C$11:$C$109,B62) -> 0 | P62: =iUI!I62 -> 0 | Q62: =iUI!J62 -> 0 | R62: =iUI!L62 -> 0
B63: U53 | D63: =IF(iUI!D63<>"",iUI!D63,"") ->  | E63: =IF(iUI!F63<>"",iUI!F63,"") ->  | F63: =SUMIFS(iTABUF!$D$11:$D$109,iTABUF!$C$11:$C$109,B63) -> 0 | G63: =SUMIFS(iTABUF!$E$11:$E$109,iTABUF!$C$11:$C$109,B63) -> 0 | H63: =SUMIFS(iTABUF!$F$11:$F$109,iTABUF!$C$11:$C$109,B63) -> 0 | I63: =SUMIFS(iTABUF!$G$11:$G$109,iTABUF!$C$11:$C$109,B63) -> 0 | J63: =SUMIFS(iTABUF!$H$11:$H$109,iTABUF!$C$11:$C$109,B63) -> 0 | K63: =SUMIFS(iTABUF!$I$11:$I$109,iTABUF!$C$11:$C$109,B63) -> 0 | L63: =SUMIFS(iTABUF!$J$11:$J$109,iTABUF!$C$11:$C$109,B63) -> 0 | M63: =SUMIFS(iTABUF!$K$11:$K$109,iTABUF!$C$11:$C$109,B63) -> 0 | N63: =SUMIFS(iTABUF!$L$11:$L$109,iTABUF!$C$11:$C$109,B63) -> 0 | O63: =SUMIFS(iTABUF!$M$11:$M$109,iTABUF!$C$11:$C$109,B63) -> 0 | P63: =iUI!I63 -> 0 | Q63: =iUI!J63 -> 0 | R63: =iUI!L63 -> 0
B64: U54 | D64: =IF(iUI!D64<>"",iUI!D64,"") ->  | E64: =IF(iUI!F64<>"",iUI!F64,"") ->  | F64: =SUMIFS(iTABUF!$D$11:$D$109,iTABUF!$C$11:$C$109,B64) -> 0 | G64: =SUMIFS(iTABUF!$E$11:$E$109,iTABUF!$C$11:$C$109,B64) -> 0 | H64: =SUMIFS(iTABUF!$F$11:$F$109,iTABUF!$C$11:$C$109,B64) -> 0 | I64: =SUMIFS(iTABUF!$G$11:$G$109,iTABUF!$C$11:$C$109,B64) -> 0 | J64: =SUMIFS(iTABUF!$H$11:$H$109,iTABUF!$C$11:$C$109,B64) -> 0 | K64: =SUMIFS(iTABUF!$I$11:$I$109,iTABUF!$C$11:$C$109,B64) -> 0 | L64: =SUMIFS(iTABUF!$J$11:$J$109,iTABUF!$C$11:$C$109,B64) -> 0 | M64: =SUMIFS(iTABUF!$K$11:$K$109,iTABUF!$C$11:$C$109,B64) -> 0 | N64: =SUMIFS(iTABUF!$L$11:$L$109,iTABUF!$C$11:$C$109,B64) -> 0 | O64: =SUMIFS(iTABUF!$M$11:$M$109,iTABUF!$C$11:$C$109,B64) -> 0 | P64: =iUI!I64 -> 0 | Q64: =iUI!J64 -> 0 | R64: =iUI!L64 -> 0
B65: U55 | D65: =IF(iUI!D65<>"",iUI!D65,"") ->  | E65: =IF(iUI!F65<>"",iUI!F65,"") ->  | F65: =SUMIFS(iTABUF!$D$11:$D$109,iTABUF!$C$11:$C$109,B65) -> 0 | G65: =SUMIFS(iTABUF!$E$11:$E$109,iTABUF!$C$11:$C$109,B65) -> 0 | H65: =SUMIFS(iTABUF!$F$11:$F$109,iTABUF!$C$11:$C$109,B65) -> 0 | I65: =SUMIFS(iTABUF!$G$11:$G$109,iTABUF!$C$11:$C$109,B65) -> 0 | J65: =SUMIFS(iTABUF!$H$11:$H$109,iTABUF!$C$11:$C$109,B65) -> 0 | K65: =SUMIFS(iTABUF!$I$11:$I$109,iTABUF!$C$11:$C$109,B65) -> 0 | L65: =SUMIFS(iTABUF!$J$11:$J$109,iTABUF!$C$11:$C$109,B65) -> 0 | M65: =SUMIFS(iTABUF!$K$11:$K$109,iTABUF!$C$11:$C$109,B65) -> 0 | N65: =SUMIFS(iTABUF!$L$11:$L$109,iTABUF!$C$11:$C$109,B65) -> 0 | O65: =SUMIFS(iTABUF!$M$11:$M$109,iTABUF!$C$11:$C$109,B65) -> 0 | P65: =iUI!I65 -> 0 | Q65: =iUI!J65 -> 0 | R65: =iUI!L65 -> 0
B66: U56 | D66: =IF(iUI!D66<>"",iUI!D66,"") ->  | E66: =IF(iUI!F66<>"",iUI!F66,"") ->  | F66: =SUMIFS(iTABUF!$D$11:$D$109,iTABUF!$C$11:$C$109,B66) -> 0 | G66: =SUMIFS(iTABUF!$E$11:$E$109,iTABUF!$C$11:$C$109,B66) -> 0 | H66: =SUMIFS(iTABUF!$F$11:$F$109,iTABUF!$C$11:$C$109,B66) -> 0 | I66: =SUMIFS(iTABUF!$G$11:$G$109,iTABUF!$C$11:$C$109,B66) -> 0 | J66: =SUMIFS(iTABUF!$H$11:$H$109,iTABUF!$C$11:$C$109,B66) -> 0 | K66: =SUMIFS(iTABUF!$I$11:$I$109,iTABUF!$C$11:$C$109,B66) -> 0 | L66: =SUMIFS(iTABUF!$J$11:$J$109,iTABUF!$C$11:$C$109,B66) -> 0 | M66: =SUMIFS(iTABUF!$K$11:$K$109,iTABUF!$C$11:$C$109,B66) -> 0 | N66: =SUMIFS(iTABUF!$L$11:$L$109,iTABUF!$C$11:$C$109,B66) -> 0 | O66: =SUMIFS(iTABUF!$M$11:$M$109,iTABUF!$C$11:$C$109,B66) -> 0 | P66: =iUI!I66 -> 0 | Q66: =iUI!J66 -> 0 | R66: =iUI!L66 -> 0
B67: U57 | D67: =IF(iUI!D67<>"",iUI!D67,"") ->  | E67: =IF(iUI!F67<>"",iUI!F67,"") ->  | F67: =SUMIFS(iTABUF!$D$11:$D$109,iTABUF!$C$11:$C$109,B67) -> 0 | G67: =SUMIFS(iTABUF!$E$11:$E$109,iTABUF!$C$11:$C$109,B67) -> 0 | H67: =SUMIFS(iTABUF!$F$11:$F$109,iTABUF!$C$11:$C$109,B67) -> 0 | I67: =SUMIFS(iTABUF!$G$11:$G$109,iTABUF!$C$11:$C$109,B67) -> 0 | J67: =SUMIFS(iTABUF!$H$11:$H$109,iTABUF!$C$11:$C$109,B67) -> 0 | K67: =SUMIFS(iTABUF!$I$11:$I$109,iTABUF!$C$11:$C$109,B67) -> 0 | L67: =SUMIFS(iTABUF!$J$11:$J$109,iTABUF!$C$11:$C$109,B67) -> 0 | M67: =SUMIFS(iTABUF!$K$11:$K$109,iTABUF!$C$11:$C$109,B67) -> 0 | N67: =SUMIFS(iTABUF!$L$11:$L$109,iTABUF!$C$11:$C$109,B67) -> 0 | O67: =SUMIFS(iTABUF!$M$11:$M$109,iTABUF!$C$11:$C$109,B67) -> 0 | P67: =iUI!I67 -> 0 | Q67: =iUI!J67 -> 0 | R67: =iUI!L67 -> 0
B68: U58 | D68: =IF(iUI!D68<>"",iUI!D68,"") ->  | E68: =IF(iUI!F68<>"",iUI!F68,"") ->  | F68: =SUMIFS(iTABUF!$D$11:$D$109,iTABUF!$C$11:$C$109,B68) -> 0 | G68: =SUMIFS(iTABUF!$E$11:$E$109,iTABUF!$C$11:$C$109,B68) -> 0 | H68: =SUMIFS(iTABUF!$F$11:$F$109,iTABUF!$C$11:$C$109,B68) -> 0 | I68: =SUMIFS(iTABUF!$G$11:$G$109,iTABUF!$C$11:$C$109,B68) -> 0 | J68: =SUMIFS(iTABUF!$H$11:$H$109,iTABUF!$C$11:$C$109,B68) -> 0 | K68: =SUMIFS(iTABUF!$I$11:$I$109,iTABUF!$C$11:$C$109,B68) -> 0 | L68: =SUMIFS(iTABUF!$J$11:$J$109,iTABUF!$C$11:$C$109,B68) -> 0 | M68: =SUMIFS(iTABUF!$K$11:$K$109,iTABUF!$C$11:$C$109,B68) -> 0 | N68: =SUMIFS(iTABUF!$L$11:$L$109,iTABUF!$C$11:$C$109,B68) -> 0 | O68: =SUMIFS(iTABUF!$M$11:$M$109,iTABUF!$C$11:$C$109,B68) -> 0 | P68: =iUI!I68 -> 0 | Q68: =iUI!J68 -> 0 | R68: =iUI!L68 -> 0
B69: U59 | D69: =IF(iUI!D69<>"",iUI!D69,"") ->  | E69: =IF(iUI!F69<>"",iUI!F69,"") ->  | F69: =SUMIFS(iTABUF!$D$11:$D$109,iTABUF!$C$11:$C$109,B69) -> 0 | G69: =SUMIFS(iTABUF!$E$11:$E$109,iTABUF!$C$11:$C$109,B69) -> 0 | H69: =SUMIFS(iTABUF!$F$11:$F$109,iTABUF!$C$11:$C$109,B69) -> 0 | I69: =SUMIFS(iTABUF!$G$11:$G$109,iTABUF!$C$11:$C$109,B69) -> 0 | J69: =SUMIFS(iTABUF!$H$11:$H$109,iTABUF!$C$11:$C$109,B69) -> 0 | K69: =SUMIFS(iTABUF!$I$11:$I$109,iTABUF!$C$11:$C$109,B69) -> 0 | L69: =SUMIFS(iTABUF!$J$11:$J$109,iTABUF!$C$11:$C$109,B69) -> 0 | M69: =SUMIFS(iTABUF!$K$11:$K$109,iTABUF!$C$11:$C$109,B69) -> 0 | N69: =SUMIFS(iTABUF!$L$11:$L$109,iTABUF!$C$11:$C$109,B69) -> 0 | O69: =SUMIFS(iTABUF!$M$11:$M$109,iTABUF!$C$11:$C$109,B69) -> 0 | P69: =iUI!I69 -> 0 | Q69: =iUI!J69 -> 0 | R69: =iUI!L69 -> 0
B70: U60 | D70: =IF(iUI!D70<>"",iUI!D70,"") ->  | E70: =IF(iUI!F70<>"",iUI!F70,"") ->  | F70: =SUMIFS(iTABUF!$D$11:$D$109,iTABUF!$C$11:$C$109,B70) -> 0 | G70: =SUMIFS(iTABUF!$E$11:$E$109,iTABUF!$C$11:$C$109,B70) -> 0 | H70: =SUMIFS(iTABUF!$F$11:$F$109,iTABUF!$C$11:$C$109,B70) -> 0 | I70: =SUMIFS(iTABUF!$G$11:$G$109,iTABUF!$C$11:$C$109,B70) -> 0 | J70: =SUMIFS(iTABUF!$H$11:$H$109,iTABUF!$C$11:$C$109,B70) -> 0 | K70: =SUMIFS(iTABUF!$I$11:$I$109,iTABUF!$C$11:$C$109,B70) -> 0 | L70: =SUMIFS(iTABUF!$J$11:$J$109,iTABUF!$C$11:$C$109,B70) -> 0 | M70: =SUMIFS(iTABUF!$K$11:$K$109,iTABUF!$C$11:$C$109,B70) -> 0 | N70: =SUMIFS(iTABUF!$L$11:$L$109,iTABUF!$C$11:$C$109,B70) -> 0 | O70: =SUMIFS(iTABUF!$M$11:$M$109,iTABUF!$C$11:$C$109,B70) -> 0 | P70: =iUI!I70 -> 0 | Q70: =iUI!J70 -> 0 | R70: =iUI!L70 -> 0
B71: U61 | D71: =IF(iUI!D71<>"",iUI!D71,"") ->  | E71: =IF(iUI!F71<>"",iUI!F71,"") ->  | F71: =SUMIFS(iTABUF!$D$11:$D$109,iTABUF!$C$11:$C$109,B71) -> 0 | G71: =SUMIFS(iTABUF!$E$11:$E$109,iTABUF!$C$11:$C$109,B71) -> 0 | H71: =SUMIFS(iTABUF!$F$11:$F$109,iTABUF!$C$11:$C$109,B71) -> 0 | I71: =SUMIFS(iTABUF!$G$11:$G$109,iTABUF!$C$11:$C$109,B71) -> 0 | J71: =SUMIFS(iTABUF!$H$11:$H$109,iTABUF!$C$11:$C$109,B71) -> 0 | K71: =SUMIFS(iTABUF!$I$11:$I$109,iTABUF!$C$11:$C$109,B71) -> 0 | L71: =SUMIFS(iTABUF!$J$11:$J$109,iTABUF!$C$11:$C$109,B71) -> 0 | M71: =SUMIFS(iTABUF!$K$11:$K$109,iTABUF!$C$11:$C$109,B71) -> 0 | N71: =SUMIFS(iTABUF!$L$11:$L$109,iTABUF!$C$11:$C$109,B71) -> 0 | O71: =SUMIFS(iTABUF!$M$11:$M$109,iTABUF!$C$11:$C$109,B71) -> 0 | P71: =iUI!I71 -> 0 | Q71: =iUI!J71 -> 0 | R71: =iUI!L71 -> 0
B72: U62 | D72: =IF(iUI!D72<>"",iUI!D72,"") ->  | E72: =IF(iUI!F72<>"",iUI!F72,"") ->  | F72: =SUMIFS(iTABUF!$D$11:$D$109,iTABUF!$C$11:$C$109,B72) -> 0 | G72: =SUMIFS(iTABUF!$E$11:$E$109,iTABUF!$C$11:$C$109,B72) -> 0 | H72: =SUMIFS(iTABUF!$F$11:$F$109,iTABUF!$C$11:$C$109,B72) -> 0 | I72: =SUMIFS(iTABUF!$G$11:$G$109,iTABUF!$C$11:$C$109,B72) -> 0 | J72: =SUMIFS(iTABUF!$H$11:$H$109,iTABUF!$C$11:$C$109,B72) -> 0 | K72: =SUMIFS(iTABUF!$I$11:$I$109,iTABUF!$C$11:$C$109,B72) -> 0 | L72: =SUMIFS(iTABUF!$J$11:$J$109,iTABUF!$C$11:$C$109,B72) -> 0 | M72: =SUMIFS(iTABUF!$K$11:$K$109,iTABUF!$C$11:$C$109,B72) -> 0 | N72: =SUMIFS(iTABUF!$L$11:$L$109,iTABUF!$C$11:$C$109,B72) -> 0 | O72: =SUMIFS(iTABUF!$M$11:$M$109,iTABUF!$C$11:$C$109,B72) -> 0 | P72: =iUI!I72 -> 0 | Q72: =iUI!J72 -> 0 | R72: =iUI!L72 -> 0
B73: U63 | D73: =IF(iUI!D73<>"",iUI!D73,"") ->  | E73: =IF(iUI!F73<>"",iUI!F73,"") ->  | F73: =SUMIFS(iTABUF!$D$11:$D$109,iTABUF!$C$11:$C$109,B73) -> 0 | G73: =SUMIFS(iTABUF!$E$11:$E$109,iTABUF!$C$11:$C$109,B73) -> 0 | H73: =SUMIFS(iTABUF!$F$11:$F$109,iTABUF!$C$11:$C$109,B73) -> 0 | I73: =SUMIFS(iTABUF!$G$11:$G$109,iTABUF!$C$11:$C$109,B73) -> 0 | J73: =SUMIFS(iTABUF!$H$11:$H$109,iTABUF!$C$11:$C$109,B73) -> 0 | K73: =SUMIFS(iTABUF!$I$11:$I$109,iTABUF!$C$11:$C$109,B73) -> 0 | L73: =SUMIFS(iTABUF!$J$11:$J$109,iTABUF!$C$11:$C$109,B73) -> 0 | M73: =SUMIFS(iTABUF!$K$11:$K$109,iTABUF!$C$11:$C$109,B73) -> 0 | N73: =SUMIFS(iTABUF!$L$11:$L$109,iTABUF!$C$11:$C$109,B73) -> 0 | O73: =SUMIFS(iTABUF!$M$11:$M$109,iTABUF!$C$11:$C$109,B73) -> 0 | P73: =iUI!I73 -> 0 | Q73: =iUI!J73 -> 0 | R73: =iUI!L73 -> 0
B74: U64 | D74: =IF(iUI!D74<>"",iUI!D74,"") ->  | E74: =IF(iUI!F74<>"",iUI!F74,"") ->  | F74: =SUMIFS(iTABUF!$D$11:$D$109,iTABUF!$C$11:$C$109,B74) -> 0 | G74: =SUMIFS(iTABUF!$E$11:$E$109,iTABUF!$C$11:$C$109,B74) -> 0 | H74: =SUMIFS(iTABUF!$F$11:$F$109,iTABUF!$C$11:$C$109,B74) -> 0 | I74: =SUMIFS(iTABUF!$G$11:$G$109,iTABUF!$C$11:$C$109,B74) -> 0 | J74: =SUMIFS(iTABUF!$H$11:$H$109,iTABUF!$C$11:$C$109,B74) -> 0 | K74: =SUMIFS(iTABUF!$I$11:$I$109,iTABUF!$C$11:$C$109,B74) -> 0 | L74: =SUMIFS(iTABUF!$J$11:$J$109,iTABUF!$C$11:$C$109,B74) -> 0 | M74: =SUMIFS(iTABUF!$K$11:$K$109,iTABUF!$C$11:$C$109,B74) -> 0 | N74: =SUMIFS(iTABUF!$L$11:$L$109,iTABUF!$C$11:$C$109,B74) -> 0 | O74: =SUMIFS(iTABUF!$M$11:$M$109,iTABUF!$C$11:$C$109,B74) -> 0 | P74: =iUI!I74 -> 0 | Q74: =iUI!J74 -> 0 | R74: =iUI!L74 -> 0
B75: U65 | D75: =IF(iUI!D75<>"",iUI!D75,"") ->  | E75: =IF(iUI!F75<>"",iUI!F75,"") ->  | F75: =SUMIFS(iTABUF!$D$11:$D$109,iTABUF!$C$11:$C$109,B75) -> 0 | G75: =SUMIFS(iTABUF!$E$11:$E$109,iTABUF!$C$11:$C$109,B75) -> 0 | H75: =SUMIFS(iTABUF!$F$11:$F$109,iTABUF!$C$11:$C$109,B75) -> 0 | I75: =SUMIFS(iTABUF!$G$11:$G$109,iTABUF!$C$11:$C$109,B75) -> 0 | J75: =SUMIFS(iTABUF!$H$11:$H$109,iTABUF!$C$11:$C$109,B75) -> 0 | K75: =SUMIFS(iTABUF!$I$11:$I$109,iTABUF!$C$11:$C$109,B75) -> 0 | L75: =SUMIFS(iTABUF!$J$11:$J$109,iTABUF!$C$11:$C$109,B75) -> 0 | M75: =SUMIFS(iTABUF!$K$11:$K$109,iTABUF!$C$11:$C$109,B75) -> 0 | N75: =SUMIFS(iTABUF!$L$11:$L$109,iTABUF!$C$11:$C$109,B75) -> 0 | O75: =SUMIFS(iTABUF!$M$11:$M$109,iTABUF!$C$11:$C$109,B75) -> 0 | P75: =iUI!I75 -> 0 | Q75: =iUI!J75 -> 0 | R75: =iUI!L75 -> 0
B76: U66 | D76: =IF(iUI!D76<>"",iUI!D76,"") ->  | E76: =IF(iUI!F76<>"",iUI!F76,"") ->  | F76: =SUMIFS(iTABUF!$D$11:$D$109,iTABUF!$C$11:$C$109,B76) -> 0 | G76: =SUMIFS(iTABUF!$E$11:$E$109,iTABUF!$C$11:$C$109,B76) -> 0 | H76: =SUMIFS(iTABUF!$F$11:$F$109,iTABUF!$C$11:$C$109,B76) -> 0 | I76: =SUMIFS(iTABUF!$G$11:$G$109,iTABUF!$C$11:$C$109,B76) -> 0 | J76: =SUMIFS(iTABUF!$H$11:$H$109,iTABUF!$C$11:$C$109,B76) -> 0 | K76: =SUMIFS(iTABUF!$I$11:$I$109,iTABUF!$C$11:$C$109,B76) -> 0 | L76: =SUMIFS(iTABUF!$J$11:$J$109,iTABUF!$C$11:$C$109,B76) -> 0 | M76: =SUMIFS(iTABUF!$K$11:$K$109,iTABUF!$C$11:$C$109,B76) -> 0 | N76: =SUMIFS(iTABUF!$L$11:$L$109,iTABUF!$C$11:$C$109,B76) -> 0 | O76: =SUMIFS(iTABUF!$M$11:$M$109,iTABUF!$C$11:$C$109,B76) -> 0 | P76: =iUI!I76 -> 0 | Q76: =iUI!J76 -> 0 | R76: =iUI!L76 -> 0
B77: U67 | D77: =IF(iUI!D77<>"",iUI!D77,"") ->  | E77: =IF(iUI!F77<>"",iUI!F77,"") ->  | F77: =SUMIFS(iTABUF!$D$11:$D$109,iTABUF!$C$11:$C$109,B77) -> 0 | G77: =SUMIFS(iTABUF!$E$11:$E$109,iTABUF!$C$11:$C$109,B77) -> 0 | H77: =SUMIFS(iTABUF!$F$11:$F$109,iTABUF!$C$11:$C$109,B77) -> 0 | I77: =SUMIFS(iTABUF!$G$11:$G$109,iTABUF!$C$11:$C$109,B77) -> 0 | J77: =SUMIFS(iTABUF!$H$11:$H$109,iTABUF!$C$11:$C$109,B77) -> 0 | K77: =SUMIFS(iTABUF!$I$11:$I$109,iTABUF!$C$11:$C$109,B77) -> 0 | L77: =SUMIFS(iTABUF!$J$11:$J$109,iTABUF!$C$11:$C$109,B77) -> 0 | M77: =SUMIFS(iTABUF!$K$11:$K$109,iTABUF!$C$11:$C$109,B77) -> 0 | N77: =SUMIFS(iTABUF!$L$11:$L$109,iTABUF!$C$11:$C$109,B77) -> 0 | O77: =SUMIFS(iTABUF!$M$11:$M$109,iTABUF!$C$11:$C$109,B77) -> 0 | P77: =iUI!I77 -> 0 | Q77: =iUI!J77 -> 0 | R77: =iUI!L77 -> 0
B78: U68 | D78: =IF(iUI!D78<>"",iUI!D78,"") ->  | E78: =IF(iUI!F78<>"",iUI!F78,"") ->  | F78: =SUMIFS(iTABUF!$D$11:$D$109,iTABUF!$C$11:$C$109,B78) -> 0 | G78: =SUMIFS(iTABUF!$E$11:$E$109,iTABUF!$C$11:$C$109,B78) -> 0 | H78: =SUMIFS(iTABUF!$F$11:$F$109,iTABUF!$C$11:$C$109,B78) -> 0 | I78: =SUMIFS(iTABUF!$G$11:$G$109,iTABUF!$C$11:$C$109,B78) -> 0 | J78: =SUMIFS(iTABUF!$H$11:$H$109,iTABUF!$C$11:$C$109,B78) -> 0 | K78: =SUMIFS(iTABUF!$I$11:$I$109,iTABUF!$C$11:$C$109,B78) -> 0 | L78: =SUMIFS(iTABUF!$J$11:$J$109,iTABUF!$C$11:$C$109,B78) -> 0 | M78: =SUMIFS(iTABUF!$K$11:$K$109,iTABUF!$C$11:$C$109,B78) -> 0 | N78: =SUMIFS(iTABUF!$L$11:$L$109,iTABUF!$C$11:$C$109,B78) -> 0 | O78: =SUMIFS(iTABUF!$M$11:$M$109,iTABUF!$C$11:$C$109,B78) -> 0 | P78: =iUI!I78 -> 0 | Q78: =iUI!J78 -> 0 | R78: =iUI!L78 -> 0
B79: U69 | D79: =IF(iUI!D79<>"",iUI!D79,"") ->  | E79: =IF(iUI!F79<>"",iUI!F79,"") ->  | F79: =SUMIFS(iTABUF!$D$11:$D$109,iTABUF!$C$11:$C$109,B79) -> 0 | G79: =SUMIFS(iTABUF!$E$11:$E$109,iTABUF!$C$11:$C$109,B79) -> 0 | H79: =SUMIFS(iTABUF!$F$11:$F$109,iTABUF!$C$11:$C$109,B79) -> 0 | I79: =SUMIFS(iTABUF!$G$11:$G$109,iTABUF!$C$11:$C$109,B79) -> 0 | J79: =SUMIFS(iTABUF!$H$11:$H$109,iTABUF!$C$11:$C$109,B79) -> 0 | K79: =SUMIFS(iTABUF!$I$11:$I$109,iTABUF!$C$11:$C$109,B79) -> 0 | L79: =SUMIFS(iTABUF!$J$11:$J$109,iTABUF!$C$11:$C$109,B79) -> 0 | M79: =SUMIFS(iTABUF!$K$11:$K$109,iTABUF!$C$11:$C$109,B79) -> 0 | N79: =SUMIFS(iTABUF!$L$11:$L$109,iTABUF!$C$11:$C$109,B79) -> 0 | O79: =SUMIFS(iTABUF!$M$11:$M$109,iTABUF!$C$11:$C$109,B79) -> 0 | P79: =iUI!I79 -> 0 | Q79: =iUI!J79 -> 0 | R79: =iUI!L79 -> 0
B80: U70 | D80: =IF(iUI!D80<>"",iUI!D80,"") ->  | E80: =IF(iUI!F80<>"",iUI!F80,"") ->  | F80: =SUMIFS(iTABUF!$D$11:$D$109,iTABUF!$C$11:$C$109,B80) -> 0 | G80: =SUMIFS(iTABUF!$E$11:$E$109,iTABUF!$C$11:$C$109,B80) -> 0 | H80: =SUMIFS(iTABUF!$F$11:$F$109,iTABUF!$C$11:$C$109,B80) -> 0 | I80: =SUMIFS(iTABUF!$G$11:$G$109,iTABUF!$C$11:$C$109,B80) -> 0 | J80: =SUMIFS(iTABUF!$H$11:$H$109,iTABUF!$C$11:$C$109,B80) -> 0 | K80: =SUMIFS(iTABUF!$I$11:$I$109,iTABUF!$C$11:$C$109,B80) -> 0 | L80: =SUMIFS(iTABUF!$J$11:$J$109,iTABUF!$C$11:$C$109,B80) -> 0 | M80: =SUMIFS(iTABUF!$K$11:$K$109,iTABUF!$C$11:$C$109,B80) -> 0 | N80: =SUMIFS(iTABUF!$L$11:$L$109,iTABUF!$C$11:$C$109,B80) -> 0 | O80: =SUMIFS(iTABUF!$M$11:$M$109,iTABUF!$C$11:$C$109,B80) -> 0 | P80: =iUI!I80 -> 0 | Q80: =iUI!J80 -> 0 | R80: =iUI!L80 -> 0
B81: U71 | D81: =IF(iUI!D81<>"",iUI!D81,"") ->  | E81: =IF(iUI!F81<>"",iUI!F81,"") ->  | F81: =SUMIFS(iTABUF!$D$11:$D$109,iTABUF!$C$11:$C$109,B81) -> 0 | G81: =SUMIFS(iTABUF!$E$11:$E$109,iTABUF!$C$11:$C$109,B81) -> 0 | H81: =SUMIFS(iTABUF!$F$11:$F$109,iTABUF!$C$11:$C$109,B81) -> 0 | I81: =SUMIFS(iTABUF!$G$11:$G$109,iTABUF!$C$11:$C$109,B81) -> 0 | J81: =SUMIFS(iTABUF!$H$11:$H$109,iTABUF!$C$11:$C$109,B81) -> 0 | K81: =SUMIFS(iTABUF!$I$11:$I$109,iTABUF!$C$11:$C$109,B81) -> 0 | L81: =SUMIFS(iTABUF!$J$11:$J$109,iTABUF!$C$11:$C$109,B81) -> 0 | M81: =SUMIFS(iTABUF!$K$11:$K$109,iTABUF!$C$11:$C$109,B81) -> 0 | N81: =SUMIFS(iTABUF!$L$11:$L$109,iTABUF!$C$11:$C$109,B81) -> 0 | O81: =SUMIFS(iTABUF!$M$11:$M$109,iTABUF!$C$11:$C$109,B81) -> 0 | P81: =iUI!I81 -> 0 | Q81: =iUI!J81 -> 0 | R81: =iUI!L81 -> 0
B82: U72 | D82: =IF(iUI!D82<>"",iUI!D82,"") ->  | E82: =IF(iUI!F82<>"",iUI!F82,"") ->  | F82: =SUMIFS(iTABUF!$D$11:$D$109,iTABUF!$C$11:$C$109,B82) -> 0 | G82: =SUMIFS(iTABUF!$E$11:$E$109,iTABUF!$C$11:$C$109,B82) -> 0 | H82: =SUMIFS(iTABUF!$F$11:$F$109,iTABUF!$C$11:$C$109,B82) -> 0 | I82: =SUMIFS(iTABUF!$G$11:$G$109,iTABUF!$C$11:$C$109,B82) -> 0 | J82: =SUMIFS(iTABUF!$H$11:$H$109,iTABUF!$C$11:$C$109,B82) -> 0 | K82: =SUMIFS(iTABUF!$I$11:$I$109,iTABUF!$C$11:$C$109,B82) -> 0 | L82: =SUMIFS(iTABUF!$J$11:$J$109,iTABUF!$C$11:$C$109,B82) -> 0 | M82: =SUMIFS(iTABUF!$K$11:$K$109,iTABUF!$C$11:$C$109,B82) -> 0 | N82: =SUMIFS(iTABUF!$L$11:$L$109,iTABUF!$C$11:$C$109,B82) -> 0 | O82: =SUMIFS(iTABUF!$M$11:$M$109,iTABUF!$C$11:$C$109,B82) -> 0 | P82: =iUI!I82 -> 0 | Q82: =iUI!J82 -> 0 | R82: =iUI!L82 -> 0
B83: U73 | D83: =IF(iUI!D83<>"",iUI!D83,"") ->  | E83: =IF(iUI!F83<>"",iUI!F83,"") ->  | F83: =SUMIFS(iTABUF!$D$11:$D$109,iTABUF!$C$11:$C$109,B83) -> 0 | G83: =SUMIFS(iTABUF!$E$11:$E$109,iTABUF!$C$11:$C$109,B83) -> 0 | H83: =SUMIFS(iTABUF!$F$11:$F$109,iTABUF!$C$11:$C$109,B83) -> 0 | I83: =SUMIFS(iTABUF!$G$11:$G$109,iTABUF!$C$11:$C$109,B83) -> 0 | J83: =SUMIFS(iTABUF!$H$11:$H$109,iTABUF!$C$11:$C$109,B83) -> 0 | K83: =SUMIFS(iTABUF!$I$11:$I$109,iTABUF!$C$11:$C$109,B83) -> 0 | L83: =SUMIFS(iTABUF!$J$11:$J$109,iTABUF!$C$11:$C$109,B83) -> 0 | M83: =SUMIFS(iTABUF!$K$11:$K$109,iTABUF!$C$11:$C$109,B83) -> 0 | N83: =SUMIFS(iTABUF!$L$11:$L$109,iTABUF!$C$11:$C$109,B83) -> 0 | O83: =SUMIFS(iTABUF!$M$11:$M$109,iTABUF!$C$11:$C$109,B83) -> 0 | P83: =iUI!I83 -> 0 | Q83: =iUI!J83 -> 0 | R83: =iUI!L83 -> 0
B84: U74 | D84: =IF(iUI!D84<>"",iUI!D84,"") ->  | E84: =IF(iUI!F84<>"",iUI!F84,"") ->  | F84: =SUMIFS(iTABUF!$D$11:$D$109,iTABUF!$C$11:$C$109,B84) -> 0 | G84: =SUMIFS(iTABUF!$E$11:$E$109,iTABUF!$C$11:$C$109,B84) -> 0 | H84: =SUMIFS(iTABUF!$F$11:$F$109,iTABUF!$C$11:$C$109,B84) -> 0 | I84: =SUMIFS(iTABUF!$G$11:$G$109,iTABUF!$C$11:$C$109,B84) -> 0 | J84: =SUMIFS(iTABUF!$H$11:$H$109,iTABUF!$C$11:$C$109,B84) -> 0 | K84: =SUMIFS(iTABUF!$I$11:$I$109,iTABUF!$C$11:$C$109,B84) -> 0 | L84: =SUMIFS(iTABUF!$J$11:$J$109,iTABUF!$C$11:$C$109,B84) -> 0 | M84: =SUMIFS(iTABUF!$K$11:$K$109,iTABUF!$C$11:$C$109,B84) -> 0 | N84: =SUMIFS(iTABUF!$L$11:$L$109,iTABUF!$C$11:$C$109,B84) -> 0 | O84: =SUMIFS(iTABUF!$M$11:$M$109,iTABUF!$C$11:$C$109,B84) -> 0 | P84: =iUI!I84 -> 0 | Q84: =iUI!J84 -> 0 | R84: =iUI!L84 -> 0
B85: U75 | D85: =IF(iUI!D85<>"",iUI!D85,"") ->  | E85: =IF(iUI!F85<>"",iUI!F85,"") ->  | F85: =SUMIFS(iTABUF!$D$11:$D$109,iTABUF!$C$11:$C$109,B85) -> 0 | G85: =SUMIFS(iTABUF!$E$11:$E$109,iTABUF!$C$11:$C$109,B85) -> 0 | H85: =SUMIFS(iTABUF!$F$11:$F$109,iTABUF!$C$11:$C$109,B85) -> 0 | I85: =SUMIFS(iTABUF!$G$11:$G$109,iTABUF!$C$11:$C$109,B85) -> 0 | J85: =SUMIFS(iTABUF!$H$11:$H$109,iTABUF!$C$11:$C$109,B85) -> 0 | K85: =SUMIFS(iTABUF!$I$11:$I$109,iTABUF!$C$11:$C$109,B85) -> 0 | L85: =SUMIFS(iTABUF!$J$11:$J$109,iTABUF!$C$11:$C$109,B85) -> 0 | M85: =SUMIFS(iTABUF!$K$11:$K$109,iTABUF!$C$11:$C$109,B85) -> 0 | N85: =SUMIFS(iTABUF!$L$11:$L$109,iTABUF!$C$11:$C$109,B85) -> 0 | O85: =SUMIFS(iTABUF!$M$11:$M$109,iTABUF!$C$11:$C$109,B85) -> 0 | P85: =iUI!I85 -> 0 | Q85: =iUI!J85 -> 0 | R85: =iUI!L85 -> 0
B86: U76 | D86: =IF(iUI!D86<>"",iUI!D86,"") ->  | E86: =IF(iUI!F86<>"",iUI!F86,"") ->  | F86: =SUMIFS(iTABUF!$D$11:$D$109,iTABUF!$C$11:$C$109,B86) -> 0 | G86: =SUMIFS(iTABUF!$E$11:$E$109,iTABUF!$C$11:$C$109,B86) -> 0 | H86: =SUMIFS(iTABUF!$F$11:$F$109,iTABUF!$C$11:$C$109,B86) -> 0 | I86: =SUMIFS(iTABUF!$G$11:$G$109,iTABUF!$C$11:$C$109,B86) -> 0 | J86: =SUMIFS(iTABUF!$H$11:$H$109,iTABUF!$C$11:$C$109,B86) -> 0 | K86: =SUMIFS(iTABUF!$I$11:$I$109,iTABUF!$C$11:$C$109,B86) -> 0 | L86: =SUMIFS(iTABUF!$J$11:$J$109,iTABUF!$C$11:$C$109,B86) -> 0 | M86: =SUMIFS(iTABUF!$K$11:$K$109,iTABUF!$C$11:$C$109,B86) -> 0 | N86: =SUMIFS(iTABUF!$L$11:$L$109,iTABUF!$C$11:$C$109,B86) -> 0 | O86: =SUMIFS(iTABUF!$M$11:$M$109,iTABUF!$C$11:$C$109,B86) -> 0 | P86: =iUI!I86 -> 0 | Q86: =iUI!J86 -> 0 | R86: =iUI!L86 -> 0
B87: U77 | D87: =IF(iUI!D87<>"",iUI!D87,"") ->  | E87: =IF(iUI!F87<>"",iUI!F87,"") ->  | F87: =SUMIFS(iTABUF!$D$11:$D$109,iTABUF!$C$11:$C$109,B87) -> 0 | G87: =SUMIFS(iTABUF!$E$11:$E$109,iTABUF!$C$11:$C$109,B87) -> 0 | H87: =SUMIFS(iTABUF!$F$11:$F$109,iTABUF!$C$11:$C$109,B87) -> 0 | I87: =SUMIFS(iTABUF!$G$11:$G$109,iTABUF!$C$11:$C$109,B87) -> 0 | J87: =SUMIFS(iTABUF!$H$11:$H$109,iTABUF!$C$11:$C$109,B87) -> 0 | K87: =SUMIFS(iTABUF!$I$11:$I$109,iTABUF!$C$11:$C$109,B87) -> 0 | L87: =SUMIFS(iTABUF!$J$11:$J$109,iTABUF!$C$11:$C$109,B87) -> 0 | M87: =SUMIFS(iTABUF!$K$11:$K$109,iTABUF!$C$11:$C$109,B87) -> 0 | N87: =SUMIFS(iTABUF!$L$11:$L$109,iTABUF!$C$11:$C$109,B87) -> 0 | O87: =SUMIFS(iTABUF!$M$11:$M$109,iTABUF!$C$11:$C$109,B87) -> 0 | P87: =iUI!I87 -> 0 | Q87: =iUI!J87 -> 0 | R87: =iUI!L87 -> 0
B88: U78 | D88: =IF(iUI!D88<>"",iUI!D88,"") ->  | E88: =IF(iUI!F88<>"",iUI!F88,"") ->  | F88: =SUMIFS(iTABUF!$D$11:$D$109,iTABUF!$C$11:$C$109,B88) -> 0 | G88: =SUMIFS(iTABUF!$E$11:$E$109,iTABUF!$C$11:$C$109,B88) -> 0 | H88: =SUMIFS(iTABUF!$F$11:$F$109,iTABUF!$C$11:$C$109,B88) -> 0 | I88: =SUMIFS(iTABUF!$G$11:$G$109,iTABUF!$C$11:$C$109,B88) -> 0 | J88: =SUMIFS(iTABUF!$H$11:$H$109,iTABUF!$C$11:$C$109,B88) -> 0 | K88: =SUMIFS(iTABUF!$I$11:$I$109,iTABUF!$C$11:$C$109,B88) -> 0 | L88: =SUMIFS(iTABUF!$J$11:$J$109,iTABUF!$C$11:$C$109,B88) -> 0 | M88: =SUMIFS(iTABUF!$K$11:$K$109,iTABUF!$C$11:$C$109,B88) -> 0 | N88: =SUMIFS(iTABUF!$L$11:$L$109,iTABUF!$C$11:$C$109,B88) -> 0 | O88: =SUMIFS(iTABUF!$M$11:$M$109,iTABUF!$C$11:$C$109,B88) -> 0 | P88: =iUI!I88 -> 0 | Q88: =iUI!J88 -> 0 | R88: =iUI!L88 -> 0
B89: U79 | D89: =IF(iUI!D89<>"",iUI!D89,"") ->  | E89: =IF(iUI!F89<>"",iUI!F89,"") ->  | F89: =SUMIFS(iTABUF!$D$11:$D$109,iTABUF!$C$11:$C$109,B89) -> 0 | G89: =SUMIFS(iTABUF!$E$11:$E$109,iTABUF!$C$11:$C$109,B89) -> 0 | H89: =SUMIFS(iTABUF!$F$11:$F$109,iTABUF!$C$11:$C$109,B89) -> 0 | I89: =SUMIFS(iTABUF!$G$11:$G$109,iTABUF!$C$11:$C$109,B89) -> 0 | J89: =SUMIFS(iTABUF!$H$11:$H$109,iTABUF!$C$11:$C$109,B89) -> 0 | K89: =SUMIFS(iTABUF!$I$11:$I$109,iTABUF!$C$11:$C$109,B89) -> 0 | L89: =SUMIFS(iTABUF!$J$11:$J$109,iTABUF!$C$11:$C$109,B89) -> 0 | M89: =SUMIFS(iTABUF!$K$11:$K$109,iTABUF!$C$11:$C$109,B89) -> 0 | N89: =SUMIFS(iTABUF!$L$11:$L$109,iTABUF!$C$11:$C$109,B89) -> 0 | O89: =SUMIFS(iTABUF!$M$11:$M$109,iTABUF!$C$11:$C$109,B89) -> 0 | P89: =iUI!I89 -> 0 | Q89: =iUI!J89 -> 0 | R89: =iUI!L89 -> 0
B90: U80 | D90: =IF(iUI!D90<>"",iUI!D90,"") ->  | E90: =IF(iUI!F90<>"",iUI!F90,"") ->  | F90: =SUMIFS(iTABUF!$D$11:$D$109,iTABUF!$C$11:$C$109,B90) -> 0 | G90: =SUMIFS(iTABUF!$E$11:$E$109,iTABUF!$C$11:$C$109,B90) -> 0 | H90: =SUMIFS(iTABUF!$F$11:$F$109,iTABUF!$C$11:$C$109,B90) -> 0 | I90: =SUMIFS(iTABUF!$G$11:$G$109,iTABUF!$C$11:$C$109,B90) -> 0 | J90: =SUMIFS(iTABUF!$H$11:$H$109,iTABUF!$C$11:$C$109,B90) -> 0 | K90: =SUMIFS(iTABUF!$I$11:$I$109,iTABUF!$C$11:$C$109,B90) -> 0 | L90: =SUMIFS(iTABUF!$J$11:$J$109,iTABUF!$C$11:$C$109,B90) -> 0 | M90: =SUMIFS(iTABUF!$K$11:$K$109,iTABUF!$C$11:$C$109,B90) -> 0 | N90: =SUMIFS(iTABUF!$L$11:$L$109,iTABUF!$C$11:$C$109,B90) -> 0 | O90: =SUMIFS(iTABUF!$M$11:$M$109,iTABUF!$C$11:$C$109,B90) -> 0 | P90: =iUI!I90 -> 0 | Q90: =iUI!J90 -> 0 | R90: =iUI!L90 -> 0
B91: U81 | D91: =IF(iUI!D91<>"",iUI!D91,"") ->  | E91: =IF(iUI!F91<>"",iUI!F91,"") ->  | F91: =SUMIFS(iTABUF!$D$11:$D$109,iTABUF!$C$11:$C$109,B91) -> 0 | G91: =SUMIFS(iTABUF!$E$11:$E$109,iTABUF!$C$11:$C$109,B91) -> 0 | H91: =SUMIFS(iTABUF!$F$11:$F$109,iTABUF!$C$11:$C$109,B91) -> 0 | I91: =SUMIFS(iTABUF!$G$11:$G$109,iTABUF!$C$11:$C$109,B91) -> 0 | J91: =SUMIFS(iTABUF!$H$11:$H$109,iTABUF!$C$11:$C$109,B91) -> 0 | K91: =SUMIFS(iTABUF!$I$11:$I$109,iTABUF!$C$11:$C$109,B91) -> 0 | L91: =SUMIFS(iTABUF!$J$11:$J$109,iTABUF!$C$11:$C$109,B91) -> 0 | M91: =SUMIFS(iTABUF!$K$11:$K$109,iTABUF!$C$11:$C$109,B91) -> 0 | N91: =SUMIFS(iTABUF!$L$11:$L$109,iTABUF!$C$11:$C$109,B91) -> 0 | O91: =SUMIFS(iTABUF!$M$11:$M$109,iTABUF!$C$11:$C$109,B91) -> 0 | P91: =iUI!I91 -> 0 | Q91: =iUI!J91 -> 0 | R91: =iUI!L91 -> 0
B92: U82 | D92: =IF(iUI!D92<>"",iUI!D92,"") ->  | E92: =IF(iUI!F92<>"",iUI!F92,"") ->  | F92: =SUMIFS(iTABUF!$D$11:$D$109,iTABUF!$C$11:$C$109,B92) -> 0 | G92: =SUMIFS(iTABUF!$E$11:$E$109,iTABUF!$C$11:$C$109,B92) -> 0 | H92: =SUMIFS(iTABUF!$F$11:$F$109,iTABUF!$C$11:$C$109,B92) -> 0 | I92: =SUMIFS(iTABUF!$G$11:$G$109,iTABUF!$C$11:$C$109,B92) -> 0 | J92: =SUMIFS(iTABUF!$H$11:$H$109,iTABUF!$C$11:$C$109,B92) -> 0 | K92: =SUMIFS(iTABUF!$I$11:$I$109,iTABUF!$C$11:$C$109,B92) -> 0 | L92: =SUMIFS(iTABUF!$J$11:$J$109,iTABUF!$C$11:$C$109,B92) -> 0 | M92: =SUMIFS(iTABUF!$K$11:$K$109,iTABUF!$C$11:$C$109,B92) -> 0 | N92: =SUMIFS(iTABUF!$L$11:$L$109,iTABUF!$C$11:$C$109,B92) -> 0 | O92: =SUMIFS(iTABUF!$M$11:$M$109,iTABUF!$C$11:$C$109,B92) -> 0 | P92: =iUI!I92 -> 0 | Q92: =iUI!J92 -> 0 | R92: =iUI!L92 -> 0
B93: U83 | D93: =IF(iUI!D93<>"",iUI!D93,"") ->  | E93: =IF(iUI!F93<>"",iUI!F93,"") ->  | F93: =SUMIFS(iTABUF!$D$11:$D$109,iTABUF!$C$11:$C$109,B93) -> 0 | G93: =SUMIFS(iTABUF!$E$11:$E$109,iTABUF!$C$11:$C$109,B93) -> 0 | H93: =SUMIFS(iTABUF!$F$11:$F$109,iTABUF!$C$11:$C$109,B93) -> 0 | I93: =SUMIFS(iTABUF!$G$11:$G$109,iTABUF!$C$11:$C$109,B93) -> 0 | J93: =SUMIFS(iTABUF!$H$11:$H$109,iTABUF!$C$11:$C$109,B93) -> 0 | K93: =SUMIFS(iTABUF!$I$11:$I$109,iTABUF!$C$11:$C$109,B93) -> 0 | L93: =SUMIFS(iTABUF!$J$11:$J$109,iTABUF!$C$11:$C$109,B93) -> 0 | M93: =SUMIFS(iTABUF!$K$11:$K$109,iTABUF!$C$11:$C$109,B93) -> 0 | N93: =SUMIFS(iTABUF!$L$11:$L$109,iTABUF!$C$11:$C$109,B93) -> 0 | O93: =SUMIFS(iTABUF!$M$11:$M$109,iTABUF!$C$11:$C$109,B93) -> 0 | P93: =iUI!I93 -> 0 | Q93: =iUI!J93 -> 0 | R93: =iUI!L93 -> 0
B94: U84 | D94: =IF(iUI!D94<>"",iUI!D94,"") ->  | E94: =IF(iUI!F94<>"",iUI!F94,"") ->  | F94: =SUMIFS(iTABUF!$D$11:$D$109,iTABUF!$C$11:$C$109,B94) -> 0 | G94: =SUMIFS(iTABUF!$E$11:$E$109,iTABUF!$C$11:$C$109,B94) -> 0 | H94: =SUMIFS(iTABUF!$F$11:$F$109,iTABUF!$C$11:$C$109,B94) -> 0 | I94: =SUMIFS(iTABUF!$G$11:$G$109,iTABUF!$C$11:$C$109,B94) -> 0 | J94: =SUMIFS(iTABUF!$H$11:$H$109,iTABUF!$C$11:$C$109,B94) -> 0 | K94: =SUMIFS(iTABUF!$I$11:$I$109,iTABUF!$C$11:$C$109,B94) -> 0 | L94: =SUMIFS(iTABUF!$J$11:$J$109,iTABUF!$C$11:$C$109,B94) -> 0 | M94: =SUMIFS(iTABUF!$K$11:$K$109,iTABUF!$C$11:$C$109,B94) -> 0 | N94: =SUMIFS(iTABUF!$L$11:$L$109,iTABUF!$C$11:$C$109,B94) -> 0 | O94: =SUMIFS(iTABUF!$M$11:$M$109,iTABUF!$C$11:$C$109,B94) -> 0 | P94: =iUI!I94 -> 0 | Q94: =iUI!J94 -> 0 | R94: =iUI!L94 -> 0
B95: U85 | D95: =IF(iUI!D95<>"",iUI!D95,"") ->  | E95: =IF(iUI!F95<>"",iUI!F95,"") ->  | F95: =SUMIFS(iTABUF!$D$11:$D$109,iTABUF!$C$11:$C$109,B95) -> 0 | G95: =SUMIFS(iTABUF!$E$11:$E$109,iTABUF!$C$11:$C$109,B95) -> 0 | H95: =SUMIFS(iTABUF!$F$11:$F$109,iTABUF!$C$11:$C$109,B95) -> 0 | I95: =SUMIFS(iTABUF!$G$11:$G$109,iTABUF!$C$11:$C$109,B95) -> 0 | J95: =SUMIFS(iTABUF!$H$11:$H$109,iTABUF!$C$11:$C$109,B95) -> 0 | K95: =SUMIFS(iTABUF!$I$11:$I$109,iTABUF!$C$11:$C$109,B95) -> 0 | L95: =SUMIFS(iTABUF!$J$11:$J$109,iTABUF!$C$11:$C$109,B95) -> 0 | M95: =SUMIFS(iTABUF!$K$11:$K$109,iTABUF!$C$11:$C$109,B95) -> 0 | N95: =SUMIFS(iTABUF!$L$11:$L$109,iTABUF!$C$11:$C$109,B95) -> 0 | O95: =SUMIFS(iTABUF!$M$11:$M$109,iTABUF!$C$11:$C$109,B95) -> 0 | P95: =iUI!I95 -> 0 | Q95: =iUI!J95 -> 0 | R95: =iUI!L95 -> 0
B96: U86 | D96: =IF(iUI!D96<>"",iUI!D96,"") ->  | E96: =IF(iUI!F96<>"",iUI!F96,"") ->  | F96: =SUMIFS(iTABUF!$D$11:$D$109,iTABUF!$C$11:$C$109,B96) -> 0 | G96: =SUMIFS(iTABUF!$E$11:$E$109,iTABUF!$C$11:$C$109,B96) -> 0 | H96: =SUMIFS(iTABUF!$F$11:$F$109,iTABUF!$C$11:$C$109,B96) -> 0 | I96: =SUMIFS(iTABUF!$G$11:$G$109,iTABUF!$C$11:$C$109,B96) -> 0 | J96: =SUMIFS(iTABUF!$H$11:$H$109,iTABUF!$C$11:$C$109,B96) -> 0 | K96: =SUMIFS(iTABUF!$I$11:$I$109,iTABUF!$C$11:$C$109,B96) -> 0 | L96: =SUMIFS(iTABUF!$J$11:$J$109,iTABUF!$C$11:$C$109,B96) -> 0 | M96: =SUMIFS(iTABUF!$K$11:$K$109,iTABUF!$C$11:$C$109,B96) -> 0 | N96: =SUMIFS(iTABUF!$L$11:$L$109,iTABUF!$C$11:$C$109,B96) -> 0 | O96: =SUMIFS(iTABUF!$M$11:$M$109,iTABUF!$C$11:$C$109,B96) -> 0 | P96: =iUI!I96 -> 0 | Q96: =iUI!J96 -> 0 | R96: =iUI!L96 -> 0
B97: U87 | D97: =IF(iUI!D97<>"",iUI!D97,"") ->  | E97: =IF(iUI!F97<>"",iUI!F97,"") ->  | F97: =SUMIFS(iTABUF!$D$11:$D$109,iTABUF!$C$11:$C$109,B97) -> 0 | G97: =SUMIFS(iTABUF!$E$11:$E$109,iTABUF!$C$11:$C$109,B97) -> 0 | H97: =SUMIFS(iTABUF!$F$11:$F$109,iTABUF!$C$11:$C$109,B97) -> 0 | I97: =SUMIFS(iTABUF!$G$11:$G$109,iTABUF!$C$11:$C$109,B97) -> 0 | J97: =SUMIFS(iTABUF!$H$11:$H$109,iTABUF!$C$11:$C$109,B97) -> 0 | K97: =SUMIFS(iTABUF!$I$11:$I$109,iTABUF!$C$11:$C$109,B97) -> 0 | L97: =SUMIFS(iTABUF!$J$11:$J$109,iTABUF!$C$11:$C$109,B97) -> 0 | M97: =SUMIFS(iTABUF!$K$11:$K$109,iTABUF!$C$11:$C$109,B97) -> 0 | N97: =SUMIFS(iTABUF!$L$11:$L$109,iTABUF!$C$11:$C$109,B97) -> 0 | O97: =SUMIFS(iTABUF!$M$11:$M$109,iTABUF!$C$11:$C$109,B97) -> 0 | P97: =iUI!I97 -> 0 | Q97: =iUI!J97 -> 0 | R97: =iUI!L97 -> 0
B98: U88 | D98: =IF(iUI!D98<>"",iUI!D98,"") ->  | E98: =IF(iUI!F98<>"",iUI!F98,"") ->  | F98: =SUMIFS(iTABUF!$D$11:$D$109,iTABUF!$C$11:$C$109,B98) -> 0 | G98: =SUMIFS(iTABUF!$E$11:$E$109,iTABUF!$C$11:$C$109,B98) -> 0 | H98: =SUMIFS(iTABUF!$F$11:$F$109,iTABUF!$C$11:$C$109,B98) -> 0 | I98: =SUMIFS(iTABUF!$G$11:$G$109,iTABUF!$C$11:$C$109,B98) -> 0 | J98: =SUMIFS(iTABUF!$H$11:$H$109,iTABUF!$C$11:$C$109,B98) -> 0 | K98: =SUMIFS(iTABUF!$I$11:$I$109,iTABUF!$C$11:$C$109,B98) -> 0 | L98: =SUMIFS(iTABUF!$J$11:$J$109,iTABUF!$C$11:$C$109,B98) -> 0 | M98: =SUMIFS(iTABUF!$K$11:$K$109,iTABUF!$C$11:$C$109,B98) -> 0 | N98: =SUMIFS(iTABUF!$L$11:$L$109,iTABUF!$C$11:$C$109,B98) -> 0 | O98: =SUMIFS(iTABUF!$M$11:$M$109,iTABUF!$C$11:$C$109,B98) -> 0 | P98: =iUI!I98 -> 0 | Q98: =iUI!J98 -> 0 | R98: =iUI!L98 -> 0
B99: U89 | D99: =IF(iUI!D99<>"",iUI!D99,"") ->  | E99: =IF(iUI!F99<>"",iUI!F99,"") ->  | F99: =SUMIFS(iTABUF!$D$11:$D$109,iTABUF!$C$11:$C$109,B99) -> 0 | G99: =SUMIFS(iTABUF!$E$11:$E$109,iTABUF!$C$11:$C$109,B99) -> 0 | H99: =SUMIFS(iTABUF!$F$11:$F$109,iTABUF!$C$11:$C$109,B99) -> 0 | I99: =SUMIFS(iTABUF!$G$11:$G$109,iTABUF!$C$11:$C$109,B99) -> 0 | J99: =SUMIFS(iTABUF!$H$11:$H$109,iTABUF!$C$11:$C$109,B99) -> 0 | K99: =SUMIFS(iTABUF!$I$11:$I$109,iTABUF!$C$11:$C$109,B99) -> 0 | L99: =SUMIFS(iTABUF!$J$11:$J$109,iTABUF!$C$11:$C$109,B99) -> 0 | M99: =SUMIFS(iTABUF!$K$11:$K$109,iTABUF!$C$11:$C$109,B99) -> 0 | N99: =SUMIFS(iTABUF!$L$11:$L$109,iTABUF!$C$11:$C$109,B99) -> 0 | O99: =SUMIFS(iTABUF!$M$11:$M$109,iTABUF!$C$11:$C$109,B99) -> 0 | P99: =iUI!I99 -> 0 | Q99: =iUI!J99 -> 0 | R99: =iUI!L99 -> 0
B100: U90 | D100: =IF(iUI!D100<>"",iUI!D100,"") ->  | E100: =IF(iUI!F100<>"",iUI!F100,"") ->  | F100: =SUMIFS(iTABUF!$D$11:$D$109,iTABUF!$C$11:$C$109,B100) -> 0 | G100: =SUMIFS(iTABUF!$E$11:$E$109,iTABUF!$C$11:$C$109,B100) -> 0 | H100: =SUMIFS(iTABUF!$F$11:$F$109,iTABUF!$C$11:$C$109,B100) -> 0 | I100: =SUMIFS(iTABUF!$G$11:$G$109,iTABUF!$C$11:$C$109,B100) -> 0 | J100: =SUMIFS(iTABUF!$H$11:$H$109,iTABUF!$C$11:$C$109,B100) -> 0 | K100: =SUMIFS(iTABUF!$I$11:$I$109,iTABUF!$C$11:$C$109,B100) -> 0 | L100: =SUMIFS(iTABUF!$J$11:$J$109,iTABUF!$C$11:$C$109,B100) -> 0 | M100: =SUMIFS(iTABUF!$K$11:$K$109,iTABUF!$C$11:$C$109,B100) -> 0 | N100: =SUMIFS(iTABUF!$L$11:$L$109,iTABUF!$C$11:$C$109,B100) -> 0 | O100: =SUMIFS(iTABUF!$M$11:$M$109,iTABUF!$C$11:$C$109,B100) -> 0 | P100: =iUI!I100 -> 0 | Q100: =iUI!J100 -> 0 | R100: =iUI!L100 -> 0
B101: U91 | D101: =IF(iUI!D101<>"",iUI!D101,"") ->  | E101: =IF(iUI!F101<>"",iUI!F101,"") ->  | F101: =SUMIFS(iTABUF!$D$11:$D$109,iTABUF!$C$11:$C$109,B101) -> 0 | G101: =SUMIFS(iTABUF!$E$11:$E$109,iTABUF!$C$11:$C$109,B101) -> 0 | H101: =SUMIFS(iTABUF!$F$11:$F$109,iTABUF!$C$11:$C$109,B101) -> 0 | I101: =SUMIFS(iTABUF!$G$11:$G$109,iTABUF!$C$11:$C$109,B101) -> 0 | J101: =SUMIFS(iTABUF!$H$11:$H$109,iTABUF!$C$11:$C$109,B101) -> 0 | K101: =SUMIFS(iTABUF!$I$11:$I$109,iTABUF!$C$11:$C$109,B101) -> 0 | L101: =SUMIFS(iTABUF!$J$11:$J$109,iTABUF!$C$11:$C$109,B101) -> 0 | M101: =SUMIFS(iTABUF!$K$11:$K$109,iTABUF!$C$11:$C$109,B101) -> 0 | N101: =SUMIFS(iTABUF!$L$11:$L$109,iTABUF!$C$11:$C$109,B101) -> 0 | O101: =SUMIFS(iTABUF!$M$11:$M$109,iTABUF!$C$11:$C$109,B101) -> 0 | P101: =iUI!I101 -> 0 | Q101: =iUI!J101 -> 0 | R101: =iUI!L101 -> 0
B102: U92 | D102: =IF(iUI!D102<>"",iUI!D102,"") ->  | E102: =IF(iUI!F102<>"",iUI!F102,"") ->  | F102: =SUMIFS(iTABUF!$D$11:$D$109,iTABUF!$C$11:$C$109,B102) -> 0 | G102: =SUMIFS(iTABUF!$E$11:$E$109,iTABUF!$C$11:$C$109,B102) -> 0 | H102: =SUMIFS(iTABUF!$F$11:$F$109,iTABUF!$C$11:$C$109,B102) -> 0 | I102: =SUMIFS(iTABUF!$G$11:$G$109,iTABUF!$C$11:$C$109,B102) -> 0 | J102: =SUMIFS(iTABUF!$H$11:$H$109,iTABUF!$C$11:$C$109,B102) -> 0 | K102: =SUMIFS(iTABUF!$I$11:$I$109,iTABUF!$C$11:$C$109,B102) -> 0 | L102: =SUMIFS(iTABUF!$J$11:$J$109,iTABUF!$C$11:$C$109,B102) -> 0 | M102: =SUMIFS(iTABUF!$K$11:$K$109,iTABUF!$C$11:$C$109,B102) -> 0 | N102: =SUMIFS(iTABUF!$L$11:$L$109,iTABUF!$C$11:$C$109,B102) -> 0 | O102: =SUMIFS(iTABUF!$M$11:$M$109,iTABUF!$C$11:$C$109,B102) -> 0 | P102: =iUI!I102 -> 0 | Q102: =iUI!J102 -> 0 | R102: =iUI!L102 -> 0
B103: U93 | D103: =IF(iUI!D103<>"",iUI!D103,"") ->  | E103: =IF(iUI!F103<>"",iUI!F103,"") ->  | F103: =SUMIFS(iTABUF!$D$11:$D$109,iTABUF!$C$11:$C$109,B103) -> 0 | G103: =SUMIFS(iTABUF!$E$11:$E$109,iTABUF!$C$11:$C$109,B103) -> 0 | H103: =SUMIFS(iTABUF!$F$11:$F$109,iTABUF!$C$11:$C$109,B103) -> 0 | I103: =SUMIFS(iTABUF!$G$11:$G$109,iTABUF!$C$11:$C$109,B103) -> 0 | J103: =SUMIFS(iTABUF!$H$11:$H$109,iTABUF!$C$11:$C$109,B103) -> 0 | K103: =SUMIFS(iTABUF!$I$11:$I$109,iTABUF!$C$11:$C$109,B103) -> 0 | L103: =SUMIFS(iTABUF!$J$11:$J$109,iTABUF!$C$11:$C$109,B103) -> 0 | M103: =SUMIFS(iTABUF!$K$11:$K$109,iTABUF!$C$11:$C$109,B103) -> 0 | N103: =SUMIFS(iTABUF!$L$11:$L$109,iTABUF!$C$11:$C$109,B103) -> 0 | O103: =SUMIFS(iTABUF!$M$11:$M$109,iTABUF!$C$11:$C$109,B103) -> 0 | P103: =iUI!I103 -> 0 | Q103: =iUI!J103 -> 0 | R103: =iUI!L103 -> 0
B104: U94 | D104: =IF(iUI!D104<>"",iUI!D104,"") ->  | E104: =IF(iUI!F104<>"",iUI!F104,"") ->  | F104: =SUMIFS(iTABUF!$D$11:$D$109,iTABUF!$C$11:$C$109,B104) -> 0 | G104: =SUMIFS(iTABUF!$E$11:$E$109,iTABUF!$C$11:$C$109,B104) -> 0 | H104: =SUMIFS(iTABUF!$F$11:$F$109,iTABUF!$C$11:$C$109,B104) -> 0 | I104: =SUMIFS(iTABUF!$G$11:$G$109,iTABUF!$C$11:$C$109,B104) -> 0 | J104: =SUMIFS(iTABUF!$H$11:$H$109,iTABUF!$C$11:$C$109,B104) -> 0 | K104: =SUMIFS(iTABUF!$I$11:$I$109,iTABUF!$C$11:$C$109,B104) -> 0 | L104: =SUMIFS(iTABUF!$J$11:$J$109,iTABUF!$C$11:$C$109,B104) -> 0 | M104: =SUMIFS(iTABUF!$K$11:$K$109,iTABUF!$C$11:$C$109,B104) -> 0 | N104: =SUMIFS(iTABUF!$L$11:$L$109,iTABUF!$C$11:$C$109,B104) -> 0 | O104: =SUMIFS(iTABUF!$M$11:$M$109,iTABUF!$C$11:$C$109,B104) -> 0 | P104: =iUI!I104 -> 0 | Q104: =iUI!J104 -> 0 | R104: =iUI!L104 -> 0
B105: U95 | D105: =IF(iUI!D105<>"",iUI!D105,"") ->  | E105: =IF(iUI!F105<>"",iUI!F105,"") ->  | F105: =SUMIFS(iTABUF!$D$11:$D$109,iTABUF!$C$11:$C$109,B105) -> 0 | G105: =SUMIFS(iTABUF!$E$11:$E$109,iTABUF!$C$11:$C$109,B105) -> 0 | H105: =SUMIFS(iTABUF!$F$11:$F$109,iTABUF!$C$11:$C$109,B105) -> 0 | I105: =SUMIFS(iTABUF!$G$11:$G$109,iTABUF!$C$11:$C$109,B105) -> 0 | J105: =SUMIFS(iTABUF!$H$11:$H$109,iTABUF!$C$11:$C$109,B105) -> 0 | K105: =SUMIFS(iTABUF!$I$11:$I$109,iTABUF!$C$11:$C$109,B105) -> 0 | L105: =SUMIFS(iTABUF!$J$11:$J$109,iTABUF!$C$11:$C$109,B105) -> 0 | M105: =SUMIFS(iTABUF!$K$11:$K$109,iTABUF!$C$11:$C$109,B105) -> 0 | N105: =SUMIFS(iTABUF!$L$11:$L$109,iTABUF!$C$11:$C$109,B105) -> 0 | O105: =SUMIFS(iTABUF!$M$11:$M$109,iTABUF!$C$11:$C$109,B105) -> 0 | P105: =iUI!I105 -> 0 | Q105: =iUI!J105 -> 0 | R105: =iUI!L105 -> 0
B106: U96 | D106: =IF(iUI!D106<>"",iUI!D106,"") ->  | E106: =IF(iUI!F106<>"",iUI!F106,"") ->  | F106: =SUMIFS(iTABUF!$D$11:$D$109,iTABUF!$C$11:$C$109,B106) -> 0 | G106: =SUMIFS(iTABUF!$E$11:$E$109,iTABUF!$C$11:$C$109,B106) -> 0 | H106: =SUMIFS(iTABUF!$F$11:$F$109,iTABUF!$C$11:$C$109,B106) -> 0 | I106: =SUMIFS(iTABUF!$G$11:$G$109,iTABUF!$C$11:$C$109,B106) -> 0 | J106: =SUMIFS(iTABUF!$H$11:$H$109,iTABUF!$C$11:$C$109,B106) -> 0 | K106: =SUMIFS(iTABUF!$I$11:$I$109,iTABUF!$C$11:$C$109,B106) -> 0 | L106: =SUMIFS(iTABUF!$J$11:$J$109,iTABUF!$C$11:$C$109,B106) -> 0 | M106: =SUMIFS(iTABUF!$K$11:$K$109,iTABUF!$C$11:$C$109,B106) -> 0 | N106: =SUMIFS(iTABUF!$L$11:$L$109,iTABUF!$C$11:$C$109,B106) -> 0 | O106: =SUMIFS(iTABUF!$M$11:$M$109,iTABUF!$C$11:$C$109,B106) -> 0 | P106: =iUI!I106 -> 0 | Q106: =iUI!J106 -> 0 | R106: =iUI!L106 -> 0
B107: U97 | D107: =IF(iUI!D107<>"",iUI!D107,"") ->  | E107: =IF(iUI!F107<>"",iUI!F107,"") ->  | F107: =SUMIFS(iTABUF!$D$11:$D$109,iTABUF!$C$11:$C$109,B107) -> 0 | G107: =SUMIFS(iTABUF!$E$11:$E$109,iTABUF!$C$11:$C$109,B107) -> 0 | H107: =SUMIFS(iTABUF!$F$11:$F$109,iTABUF!$C$11:$C$109,B107) -> 0 | I107: =SUMIFS(iTABUF!$G$11:$G$109,iTABUF!$C$11:$C$109,B107) -> 0 | J107: =SUMIFS(iTABUF!$H$11:$H$109,iTABUF!$C$11:$C$109,B107) -> 0 | K107: =SUMIFS(iTABUF!$I$11:$I$109,iTABUF!$C$11:$C$109,B107) -> 0 | L107: =SUMIFS(iTABUF!$J$11:$J$109,iTABUF!$C$11:$C$109,B107) -> 0 | M107: =SUMIFS(iTABUF!$K$11:$K$109,iTABUF!$C$11:$C$109,B107) -> 0 | N107: =SUMIFS(iTABUF!$L$11:$L$109,iTABUF!$C$11:$C$109,B107) -> 0 | O107: =SUMIFS(iTABUF!$M$11:$M$109,iTABUF!$C$11:$C$109,B107) -> 0 | P107: =iUI!I107 -> 0 | Q107: =iUI!J107 -> 0 | R107: =iUI!L107 -> 0
B108: U98 | D108: =IF(iUI!D108<>"",iUI!D108,"") ->  | E108: =IF(iUI!F108<>"",iUI!F108,"") ->  | F108: =SUMIFS(iTABUF!$D$11:$D$109,iTABUF!$C$11:$C$109,B108) -> 0 | G108: =SUMIFS(iTABUF!$E$11:$E$109,iTABUF!$C$11:$C$109,B108) -> 0 | H108: =SUMIFS(iTABUF!$F$11:$F$109,iTABUF!$C$11:$C$109,B108) -> 0 | I108: =SUMIFS(iTABUF!$G$11:$G$109,iTABUF!$C$11:$C$109,B108) -> 0 | J108: =SUMIFS(iTABUF!$H$11:$H$109,iTABUF!$C$11:$C$109,B108) -> 0 | K108: =SUMIFS(iTABUF!$I$11:$I$109,iTABUF!$C$11:$C$109,B108) -> 0 | L108: =SUMIFS(iTABUF!$J$11:$J$109,iTABUF!$C$11:$C$109,B108) -> 0 | M108: =SUMIFS(iTABUF!$K$11:$K$109,iTABUF!$C$11:$C$109,B108) -> 0 | N108: =SUMIFS(iTABUF!$L$11:$L$109,iTABUF!$C$11:$C$109,B108) -> 0 | O108: =SUMIFS(iTABUF!$M$11:$M$109,iTABUF!$C$11:$C$109,B108) -> 0 | P108: =iUI!I108 -> 0 | Q108: =iUI!J108 -> 0 | R108: =iUI!L108 -> 0
B109: U99 | D109: =IF(iUI!D109<>"",iUI!D109,"") ->  | E109: =IF(iUI!F109<>"",iUI!F109,"") ->  | F109: =SUMIFS(iTABUF!$D$11:$D$109,iTABUF!$C$11:$C$109,B109) -> 0 | G109: =SUMIFS(iTABUF!$E$11:$E$109,iTABUF!$C$11:$C$109,B109) -> 0 | H109: =SUMIFS(iTABUF!$F$11:$F$109,iTABUF!$C$11:$C$109,B109) -> 0 | I109: =SUMIFS(iTABUF!$G$11:$G$109,iTABUF!$C$11:$C$109,B109) -> 0 | J109: =SUMIFS(iTABUF!$H$11:$H$109,iTABUF!$C$11:$C$109,B109) -> 0 | K109: =SUMIFS(iTABUF!$I$11:$I$109,iTABUF!$C$11:$C$109,B109) -> 0 | L109: =SUMIFS(iTABUF!$J$11:$J$109,iTABUF!$C$11:$C$109,B109) -> 0 | M109: =SUMIFS(iTABUF!$K$11:$K$109,iTABUF!$C$11:$C$109,B109) -> 0 | N109: =SUMIFS(iTABUF!$L$11:$L$109,iTABUF!$C$11:$C$109,B109) -> 0 | O109: =SUMIFS(iTABUF!$M$11:$M$109,iTABUF!$C$11:$C$109,B109) -> 0 | P109: =iUI!I109 -> 0 | Q109: =iUI!J109 -> 0 | R109: =iUI!L109 -> 0
E110: TOTALI | F110: =SUM(F11:F109) -> 1000 | G110: 1000 | H110: 1000 | I110: 1000 | J110: 1000 | K110: 0 | L110: 0 | M110: 0 | N110: 0 | O110: 0

Sheet cTABCO (hidden)
B1: Questo prospetto è interamente generato dalla procedura e non deve essere mai variato direttamente e manualmente dall'utilizzatore.
B5: =NomeCondominio() -> Condominio Palazzo Duck
B7: TABELLE MILLESIMALI per CONDOMINI
B9: Codice | C9: CONDOMINO | D9: Tabella A | E9: Tabella B | F9: Tabella C | G9: Tabella D | H9: Tabella E | I9: Tabella F | J9: Tabella G | K9: Tabella H | L9: Tabella I | M9: Tabella J | N9: Codici
B10: Condomino | D10: =iDG!$B52 -> Proprietà | E10: =iDG!$B53 -> Scala | F10: =iDG!$B54 -> Ascensore | G10: =iDG!$B55 -> Abitazioni | H10: =iDG!$B56 -> Negozi | I10: =iDG!$B57 -> 0 | J10: =iDG!$B58 -> 0 | K10: =iDG!$B59 -> 0 | L10: =iDG!$B60 -> 0 | M10: =iDG!$B61 -> 0 | N10: U.I. POSSEDUTE
B11: =IF(iCONDOMINI!B11<>"",iCONDOMINI!B11,"") -> C01 | C11: =IF(iCONDOMINI!C11<>"",iCONDOMINI!C11,"") -> Paperoga | D11: =IF(B11<>"",SUMIFS(cTABUI!$F$11:$F$109,cTABUI!$D$11:$D$109,B11),0) -> 52.392 | E11: =IF(B11<>"",SUMIFS(cTABUI!$G$11:$G$109,cTABUI!$D$11:$D$109,B11),0) -> 0 | F11: =IF(B11<>"",SUMIFS(cTABUI!$H$11:$H$109,cTABUI!$D$11:$D$109,B11),0) -> 0 | G11: =IF(B11<>"",SUMIFS(cTABUI!$I$11:$I$109,cTABUI!$D$11:$D$109,B11),0) -> 0 | H11: =IF(B11<>"",SUMIFS(cTABUI!$J$11:$J$109,cTABUI!$D$11:$D$109,B11),0) -> 161.221 | I11: =IF(B11<>"",SUMIFS(cTABUI!$K$11:$K$109,cTABUI!$D$11:$D$109,B11),0) -> 0 | J11: =IF(B11<>"",SUMIFS(cTABUI!$L$11:$L$109,cTABUI!$D$11:$D$109,B11),0) -> 0 | K11: =IF(B11<>"",SUMIFS(cTABUI!$M$11:$M$109,cTABUI!$D$11:$D$109,B11),0) -> 0 | L11: =IF(B11<>"",SUMIFS(cTABUI!$N$11:$N$109,cTABUI!$D$11:$D$109,B11),0) -> 0 | M11: =IF(B11<>"",SUMIFS(cTABUI!$O$11:$O$109,cTABUI!$D$11:$D$109,B11),0) -> 0 | N11: U01
B12: =IF(iCONDOMINI!B12<>"",iCONDOMINI!B12,"") -> C02 | C12: =IF(iCONDOMINI!C12<>"",iCONDOMINI!C12,"") -> Ciccio | D12: =IF(B12<>"",SUMIFS(cTABUI!$F$11:$F$109,cTABUI!$D$11:$D$109,B12),0) -> 35.477 | E12: =IF(B12<>"",SUMIFS(cTABUI!$G$11:$G$109,cTABUI!$D$11:$D$109,B12),0) -> 0 | F12: =IF(B12<>"",SUMIFS(cTABUI!$H$11:$H$109,cTABUI!$D$11:$D$109,B12),0) -> 0 | G12: =IF(B12<>"",SUMIFS(cTABUI!$I$11:$I$109,cTABUI!$D$11:$D$109,B12),0) -> 0 | H12: =IF(B12<>"",SUMIFS(cTABUI!$J$11:$J$109,cTABUI!$D$11:$D$109,B12),0) -> 109.17 | I12: =IF(B12<>"",SUMIFS(cTABUI!$K$11:$K$109,cTABUI!$D$11:$D$109,B12),0) -> 0 | J12: =IF(B12<>"",SUMIFS(cTABUI!$L$11:$L$109,cTABUI!$D$11:$D$109,B12),0) -> 0 | K12: =IF(B12<>"",SUMIFS(cTABUI!$M$11:$M$109,cTABUI!$D$11:$D$109,B12),0) -> 0 | L12: =IF(B12<>"",SUMIFS(cTABUI!$N$11:$N$109,cTABUI!$D$11:$D$109,B12),0) -> 0 | M12: =IF(B12<>"",SUMIFS(cTABUI!$O$11:$O$109,cTABUI!$D$11:$D$109,B12),0) -> 0 | N12: U02
B13: =IF(iCONDOMINI!B13<>"",iCONDOMINI!B13,"") -> C03 | C13: =IF(iCONDOMINI!C13<>"",iCONDOMINI!C13,"") -> Gastone | D13: =IF(B13<>"",SUMIFS(cTABUI!$F$11:$F$109,cTABUI!$D$11:$D$109,B13),0) -> 100.439 | E13: =IF(B13<>"",SUMIFS(cTABUI!$G$11:$G$109,cTABUI!$D$11:$D$109,B13),0) -> 0 | F13: =IF(B13<>"",SUMIFS(cTABUI!$H$11:$H$109,cTABUI!$D$11:$D$109,B13),0) -> 0 | G13: =IF(B13<>"",SUMIFS(cTABUI!$I$11:$I$109,cTABUI!$D$11:$D$109,B13),0) -> 0 | H13: =IF(B13<>"",SUMIFS(cTABUI!$J$11:$J$109,cTABUI!$D$11:$D$109,B13),0) -> 309.069 | I13: =IF(B13<>"",SUMIFS(cTABUI!$K$11:$K$109,cTABUI!$D$11:$D$109,B13),0) -> 0 | J13: =IF(B13<>"",SUMIFS(cTABUI!$L$11:$L$109,cTABUI!$D$11:$D$109,B13),0) -> 0 | K13: =IF(B13<>"",SUMIFS(cTABUI!$M$11:$M$109,cTABUI!$D$11:$D$109,B13),0) -> 0 | L13: =IF(B13<>"",SUMIFS(cTABUI!$N$11:$N$109,cTABUI!$D$11:$D$109,B13),0) -> 0 | M13: =IF(B13<>"",SUMIFS(cTABUI!$O$11:$O$109,cTABUI!$D$11:$D$109,B13),0) -> 0 | N13: U03
B14: =IF(iCONDOMINI!B14<>"",iCONDOMINI!B14,"") -> C04 | C14: =IF(iCONDOMINI!C14<>"",iCONDOMINI!C14,"") -> I tre nipotini | D14: =IF(B14<>"",SUMIFS(cTABUI!$F$11:$F$109,cTABUI!$D$11:$D$109,B14),0) -> 136.664 | E14: =IF(B14<>"",SUMIFS(cTABUI!$G$11:$G$109,cTABUI!$D$11:$D$109,B14),0) -> 0 | F14: =IF(B14<>"",SUMIFS(cTABUI!$H$11:$H$109,cTABUI!$D$11:$D$109,B14),0) -> 0 | G14: =IF(B14<>"",SUMIFS(cTABUI!$I$11:$I$109,cTABUI!$D$11:$D$109,B14),0) -> 0 | H14: =IF(B14<>"",SUMIFS(cTABUI!$J$11:$J$109,cTABUI!$D$11:$D$109,B14),0) -> 420.54 | I14: =IF(B14<>"",SUMIFS(cTABUI!$K$11:$K$109,cTABUI!$D$11:$D$109,B14),0) -> 0 | J14: =IF(B14<>"",SUMIFS(cTABUI!$L$11:$L$109,cTABUI!$D$11:$D$109,B14),0) -> 0 | K14: =IF(B14<>"",SUMIFS(cTABUI!$M$11:$M$109,cTABUI!$D$11:$D$109,B14),0) -> 0 | L14: =IF(B14<>"",SUMIFS(cTABUI!$N$11:$N$109,cTABUI!$D$11:$D$109,B14),0) -> 0 | M14: =IF(B14<>"",SUMIFS(cTABUI!$O$11:$O$109,cTABUI!$D$11:$D$109,B14),0) -> 0 | N14: U04
B15: =IF(iCONDOMINI!B15<>"",iCONDOMINI!B15,"") -> C05 | C15: =IF(iCONDOMINI!C15<>"",iCONDOMINI!C15,"") -> Nonna Papera | D15: =IF(B15<>"",SUMIFS(cTABUI!$F$11:$F$109,cTABUI!$D$11:$D$109,B15),0) -> 327.807 | E15: =IF(B15<>"",SUMIFS(cTABUI!$G$11:$G$109,cTABUI!$D$11:$D$109,B15),0) -> 439.864 | F15: =IF(B15<>"",SUMIFS(cTABUI!$H$11:$H$109,cTABUI!$D$11:$D$109,B15),0) -> 439.864 | G15: =IF(B15<>"",SUMIFS(cTABUI!$I$11:$I$109,cTABUI!$D$11:$D$109,B15),0) -> 485.621 | H15: =IF(B15<>"",SUMIFS(cTABUI!$J$11:$J$109,cTABUI!$D$11:$D$109,B15),0) -> 0 | I15: =IF(B15<>"",SUMIFS(cTABUI!$K$11:$K$109,cTABUI!$D$11:$D$109,B15),0) -> 0 | J15: =IF(B15<>"",SUMIFS(cTABUI!$L$11:$L$109,cTABUI!$D$11:$D$109,B15),0) -> 0 | K15: =IF(B15<>"",SUMIFS(cTABUI!$M$11:$M$109,cTABUI!$D$11:$D$109,B15),0) -> 0 | L15: =IF(B15<>"",SUMIFS(cTABUI!$N$11:$N$109,cTABUI!$D$11:$D$109,B15),0) -> 0 | M15: =IF(B15<>"",SUMIFS(cTABUI!$O$11:$O$109,cTABUI!$D$11:$D$109,B15),0) -> 0 | N15: U05 + U06 + U09
B16: =IF(iCONDOMINI!B16<>"",iCONDOMINI!B16,"") -> C06 | C16: =IF(iCONDOMINI!C16<>"",iCONDOMINI!C16,"") -> Fidanzati Paperino-Paperina | D16: =IF(B16<>"",SUMIFS(cTABUI!$F$11:$F$109,cTABUI!$D$11:$D$109,B16),0) -> 347.221 | E16: =IF(B16<>"",SUMIFS(cTABUI!$G$11:$G$109,cTABUI!$D$11:$D$109,B16),0) -> 560.136 | F16: =IF(B16<>"",SUMIFS(cTABUI!$H$11:$H$109,cTABUI!$D$11:$D$109,B16),0) -> 560.136 | G16: =IF(B16<>"",SUMIFS(cTABUI!$I$11:$I$109,cTABUI!$D$11:$D$109,B16),0) -> 514.379 | H16: =IF(B16<>"",SUMIFS(cTABUI!$J$11:$J$109,cTABUI!$D$11:$D$109,B16),0) -> 0 | I16: =IF(B16<>"",SUMIFS(cTABUI!$K$11:$K$109,cTABUI!$D$11:$D$109,B16),0) -> 0 | J16: =IF(B16<>"",SUMIFS(cTABUI!$L$11:$L$109,cTABUI!$D$11:$D$109,B16),0) -> 0 | K16: =IF(B16<>"",SUMIFS(cTABUI!$M$11:$M$109,cTABUI!$D$11:$D$109,B16),0) -> 0 | L16: =IF(B16<>"",SUMIFS(cTABUI!$N$11:$N$109,cTABUI!$D$11:$D$109,B16),0) -> 0 | M16: =IF(B16<>"",SUMIFS(cTABUI!$O$11:$O$109,cTABUI!$D$11:$D$109,B16),0) -> 0 | N16: U07 + U08
B17: =IF(iCONDOMINI!B17<>"",iCONDOMINI!B17,"") -> C07 | C17: =IF(iCONDOMINI!C17<>"",iCONDOMINI!C17,"") ->  | D17: =IF(B17<>"",SUMIFS(cTABUI!$F$11:$F$109,cTABUI!$D$11:$D$109,B17),0) -> 0 | E17: =IF(B17<>"",SUMIFS(cTABUI!$G$11:$G$109,cTABUI!$D$11:$D$109,B17),0) -> 0 | F17: =IF(B17<>"",SUMIFS(cTABUI!$H$11:$H$109,cTABUI!$D$11:$D$109,B17),0) -> 0 | G17: =IF(B17<>"",SUMIFS(cTABUI!$I$11:$I$109,cTABUI!$D$11:$D$109,B17),0) -> 0 | H17: =IF(B17<>"",SUMIFS(cTABUI!$J$11:$J$109,cTABUI!$D$11:$D$109,B17),0) -> 0 | I17: =IF(B17<>"",SUMIFS(cTABUI!$K$11:$K$109,cTABUI!$D$11:$D$109,B17),0) -> 0 | J17: =IF(B17<>"",SUMIFS(cTABUI!$L$11:$L$109,cTABUI!$D$11:$D$109,B17),0) -> 0 | K17: =IF(B17<>"",SUMIFS(cTABUI!$M$11:$M$109,cTABUI!$D$11:$D$109,B17),0) -> 0 | L17: =IF(B17<>"",SUMIFS(cTABUI!$N$11:$N$109,cTABUI!$D$11:$D$109,B17),0) -> 0 | M17: =IF(B17<>"",SUMIFS(cTABUI!$O$11:$O$109,cTABUI!$D$11:$D$109,B17),0) -> 0
B18: =IF(iCONDOMINI!B18<>"",iCONDOMINI!B18,"") -> C08 | C18: =IF(iCONDOMINI!C18<>"",iCONDOMINI!C18,"") ->  | D18: =IF(B18<>"",SUMIFS(cTABUI!$F$11:$F$109,cTABUI!$D$11:$D$109,B18),0) -> 0 | E18: =IF(B18<>"",SUMIFS(cTABUI!$G$11:$G$109,cTABUI!$D$11:$D$109,B18),0) -> 0 | F18: =IF(B18<>"",SUMIFS(cTABUI!$H$11:$H$109,cTABUI!$D$11:$D$109,B18),0) -> 0 | G18: =IF(B18<>"",SUMIFS(cTABUI!$I$11:$I$109,cTABUI!$D$11:$D$109,B18),0) -> 0 | H18: =IF(B18<>"",SUMIFS(cTABUI!$J$11:$J$109,cTABUI!$D$11:$D$109,B18),0) -> 0 | I18: =IF(B18<>"",SUMIFS(cTABUI!$K$11:$K$109,cTABUI!$D$11:$D$109,B18),0) -> 0 | J18: =IF(B18<>"",SUMIFS(cTABUI!$L$11:$L$109,cTABUI!$D$11:$D$109,B18),0) -> 0 | K18: =IF(B18<>"",SUMIFS(cTABUI!$M$11:$M$109,cTABUI!$D$11:$D$109,B18),0) -> 0 | L18: =IF(B18<>"",SUMIFS(cTABUI!$N$11:$N$109,cTABUI!$D$11:$D$109,B18),0) -> 0 | M18: =IF(B18<>"",SUMIFS(cTABUI!$O$11:$O$109,cTABUI!$D$11:$D$109,B18),0) -> 0
B19: =IF(iCONDOMINI!B19<>"",iCONDOMINI!B19,"") -> C09 | C19: =IF(iCONDOMINI!C19<>"",iCONDOMINI!C19,"") ->  | D19: =IF(B19<>"",SUMIFS(cTABUI!$F$11:$F$109,cTABUI!$D$11:$D$109,B19),0) -> 0 | E19: =IF(B19<>"",SUMIFS(cTABUI!$G$11:$G$109,cTABUI!$D$11:$D$109,B19),0) -> 0 | F19: =IF(B19<>"",SUMIFS(cTABUI!$H$11:$H$109,cTABUI!$D$11:$D$109,B19),0) -> 0 | G19: =IF(B19<>"",SUMIFS(cTABUI!$I$11:$I$109,cTABUI!$D$11:$D$109,B19),0) -> 0 | H19: =IF(B19<>"",SUMIFS(cTABUI!$J$11:$J$109,cTABUI!$D$11:$D$109,B19),0) -> 0 | I19: =IF(B19<>"",SUMIFS(cTABUI!$K$11:$K$109,cTABUI!$D$11:$D$109,B19),0) -> 0 | J19: =IF(B19<>"",SUMIFS(cTABUI!$L$11:$L$109,cTABUI!$D$11:$D$109,B19),0) -> 0 | K19: =IF(B19<>"",SUMIFS(cTABUI!$M$11:$M$109,cTABUI!$D$11:$D$109,B19),0) -> 0 | L19: =IF(B19<>"",SUMIFS(cTABUI!$N$11:$N$109,cTABUI!$D$11:$D$109,B19),0) -> 0 | M19: =IF(B19<>"",SUMIFS(cTABUI!$O$11:$O$109,cTABUI!$D$11:$D$109,B19),0) -> 0
B20: =IF(iCONDOMINI!B20<>"",iCONDOMINI!B20,"") -> C10 | C20: =IF(iCONDOMINI!C20<>"",iCONDOMINI!C20,"") ->  | D20: =IF(B20<>"",SUMIFS(cTABUI!$F$11:$F$109,cTABUI!$D$11:$D$109,B20),0) -> 0 | E20: =IF(B20<>"",SUMIFS(cTABUI!$G$11:$G$109,cTABUI!$D$11:$D$109,B20),0) -> 0 | F20: =IF(B20<>"",SUMIFS(cTABUI!$H$11:$H$109,cTABUI!$D$11:$D$109,B20),0) -> 0 | G20: =IF(B20<>"",SUMIFS(cTABUI!$I$11:$I$109,cTABUI!$D$11:$D$109,B20),0) -> 0 | H20: =IF(B20<>"",SUMIFS(cTABUI!$J$11:$J$109,cTABUI!$D$11:$D$109,B20),0) -> 0 | I20: =IF(B20<>"",SUMIFS(cTABUI!$K$11:$K$109,cTABUI!$D$11:$D$109,B20),0) -> 0 | J20: =IF(B20<>"",SUMIFS(cTABUI!$L$11:$L$109,cTABUI!$D$11:$D$109,B20),0) -> 0 | K20: =IF(B20<>"",SUMIFS(cTABUI!$M$11:$M$109,cTABUI!$D$11:$D$109,B20),0) -> 0 | L20: =IF(B20<>"",SUMIFS(cTABUI!$N$11:$N$109,cTABUI!$D$11:$D$109,B20),0) -> 0 | M20: =IF(B20<>"",SUMIFS(cTABUI!$O$11:$O$109,cTABUI!$D$11:$D$109,B20),0) -> 0
B21: =IF(iCONDOMINI!B21<>"",iCONDOMINI!B21,"") -> C11 | C21: =IF(iCONDOMINI!C21<>"",iCONDOMINI!C21,"") ->  | D21: =IF(B21<>"",SUMIFS(cTABUI!$F$11:$F$109,cTABUI!$D$11:$D$109,B21),0) -> 0 | E21: =IF(B21<>"",SUMIFS(cTABUI!$G$11:$G$109,cTABUI!$D$11:$D$109,B21),0) -> 0 | F21: =IF(B21<>"",SUMIFS(cTABUI!$H$11:$H$109,cTABUI!$D$11:$D$109,B21),0) -> 0 | G21: =IF(B21<>"",SUMIFS(cTABUI!$I$11:$I$109,cTABUI!$D$11:$D$109,B21),0) -> 0 | H21: =IF(B21<>"",SUMIFS(cTABUI!$J$11:$J$109,cTABUI!$D$11:$D$109,B21),0) -> 0 | I21: =IF(B21<>"",SUMIFS(cTABUI!$K$11:$K$109,cTABUI!$D$11:$D$109,B21),0) -> 0 | J21: =IF(B21<>"",SUMIFS(cTABUI!$L$11:$L$109,cTABUI!$D$11:$D$109,B21),0) -> 0 | K21: =IF(B21<>"",SUMIFS(cTABUI!$M$11:$M$109,cTABUI!$D$11:$D$109,B21),0) -> 0 | L21: =IF(B21<>"",SUMIFS(cTABUI!$N$11:$N$109,cTABUI!$D$11:$D$109,B21),0) -> 0 | M21: =IF(B21<>"",SUMIFS(cTABUI!$O$11:$O$109,cTABUI!$D$11:$D$109,B21),0) -> 0
B22: =IF(iCONDOMINI!B22<>"",iCONDOMINI!B22,"") -> C12 | C22: =IF(iCONDOMINI!C22<>"",iCONDOMINI!C22,"") ->  | D22: =IF(B22<>"",SUMIFS(cTABUI!$F$11:$F$109,cTABUI!$D$11:$D$109,B22),0) -> 0 | E22: =IF(B22<>"",SUMIFS(cTABUI!$G$11:$G$109,cTABUI!$D$11:$D$109,B22),0) -> 0 | F22: =IF(B22<>"",SUMIFS(cTABUI!$H$11:$H$109,cTABUI!$D$11:$D$109,B22),0) -> 0 | G22: =IF(B22<>"",SUMIFS(cTABUI!$I$11:$I$109,cTABUI!$D$11:$D$109,B22),0) -> 0 | H22: =IF(B22<>"",SUMIFS(cTABUI!$J$11:$J$109,cTABUI!$D$11:$D$109,B22),0) -> 0 | I22: =IF(B22<>"",SUMIFS(cTABUI!$K$11:$K$109,cTABUI!$D$11:$D$109,B22),0) -> 0 | J22: =IF(B22<>"",SUMIFS(cTABUI!$L$11:$L$109,cTABUI!$D$11:$D$109,B22),0) -> 0 | K22: =IF(B22<>"",SUMIFS(cTABUI!$M$11:$M$109,cTABUI!$D$11:$D$109,B22),0) -> 0 | L22: =IF(B22<>"",SUMIFS(cTABUI!$N$11:$N$109,cTABUI!$D$11:$D$109,B22),0) -> 0 | M22: =IF(B22<>"",SUMIFS(cTABUI!$O$11:$O$109,cTABUI!$D$11:$D$109,B22),0) -> 0
B23: =IF(iCONDOMINI!B23<>"",iCONDOMINI!B23,"") -> C13 | C23: =IF(iCONDOMINI!C23<>"",iCONDOMINI!C23,"") ->  | D23: =IF(B23<>"",SUMIFS(cTABUI!$F$11:$F$109,cTABUI!$D$11:$D$109,B23),0) -> 0 | E23: =IF(B23<>"",SUMIFS(cTABUI!$G$11:$G$109,cTABUI!$D$11:$D$109,B23),0) -> 0 | F23: =IF(B23<>"",SUMIFS(cTABUI!$H$11:$H$109,cTABUI!$D$11:$D$109,B23),0) -> 0 | G23: =IF(B23<>"",SUMIFS(cTABUI!$I$11:$I$109,cTABUI!$D$11:$D$109,B23),0) -> 0 | H23: =IF(B23<>"",SUMIFS(cTABUI!$J$11:$J$109,cTABUI!$D$11:$D$109,B23),0) -> 0 | I23: =IF(B23<>"",SUMIFS(cTABUI!$K$11:$K$109,cTABUI!$D$11:$D$109,B23),0) -> 0 | J23: =IF(B23<>"",SUMIFS(cTABUI!$L$11:$L$109,cTABUI!$D$11:$D$109,B23),0) -> 0 | K23: =IF(B23<>"",SUMIFS(cTABUI!$M$11:$M$109,cTABUI!$D$11:$D$109,B23),0) -> 0 | L23: =IF(B23<>"",SUMIFS(cTABUI!$N$11:$N$109,cTABUI!$D$11:$D$109,B23),0) -> 0 | M23: =IF(B23<>"",SUMIFS(cTABUI!$O$11:$O$109,cTABUI!$D$11:$D$109,B23),0) -> 0
B24: =IF(iCONDOMINI!B24<>"",iCONDOMINI!B24,"") -> C14 | C24: =IF(iCONDOMINI!C24<>"",iCONDOMINI!C24,"") ->  | D24: =IF(B24<>"",SUMIFS(cTABUI!$F$11:$F$109,cTABUI!$D$11:$D$109,B24),0) -> 0 | E24: =IF(B24<>"",SUMIFS(cTABUI!$G$11:$G$109,cTABUI!$D$11:$D$109,B24),0) -> 0 | F24: =IF(B24<>"",SUMIFS(cTABUI!$H$11:$H$109,cTABUI!$D$11:$D$109,B24),0) -> 0 | G24: =IF(B24<>"",SUMIFS(cTABUI!$I$11:$I$109,cTABUI!$D$11:$D$109,B24),0) -> 0 | H24: =IF(B24<>"",SUMIFS(cTABUI!$J$11:$J$109,cTABUI!$D$11:$D$109,B24),0) -> 0 | I24: =IF(B24<>"",SUMIFS(cTABUI!$K$11:$K$109,cTABUI!$D$11:$D$109,B24),0) -> 0 | J24: =IF(B24<>"",SUMIFS(cTABUI!$L$11:$L$109,cTABUI!$D$11:$D$109,B24),0) -> 0 | K24: =IF(B24<>"",SUMIFS(cTABUI!$M$11:$M$109,cTABUI!$D$11:$D$109,B24),0) -> 0 | L24: =IF(B24<>"",SUMIFS(cTABUI!$N$11:$N$109,cTABUI!$D$11:$D$109,B24),0) -> 0 | M24: =IF(B24<>"",SUMIFS(cTABUI!$O$11:$O$109,cTABUI!$D$11:$D$109,B24),0) -> 0
B25: =IF(iCONDOMINI!B25<>"",iCONDOMINI!B25,"") -> C15 | C25: =IF(iCONDOMINI!C25<>"",iCONDOMINI!C25,"") ->  | D25: =IF(B25<>"",SUMIFS(cTABUI!$F$11:$F$109,cTABUI!$D$11:$D$109,B25),0) -> 0 | E25: =IF(B25<>"",SUMIFS(cTABUI!$G$11:$G$109,cTABUI!$D$11:$D$109,B25),0) -> 0 | F25: =IF(B25<>"",SUMIFS(cTABUI!$H$11:$H$109,cTABUI!$D$11:$D$109,B25),0) -> 0 | G25: =IF(B25<>"",SUMIFS(cTABUI!$I$11:$I$109,cTABUI!$D$11:$D$109,B25),0) -> 0 | H25: =IF(B25<>"",SUMIFS(cTABUI!$J$11:$J$109,cTABUI!$D$11:$D$109,B25),0) -> 0 | I25: =IF(B25<>"",SUMIFS(cTABUI!$K$11:$K$109,cTABUI!$D$11:$D$109,B25),0) -> 0 | J25: =IF(B25<>"",SUMIFS(cTABUI!$L$11:$L$109,cTABUI!$D$11:$D$109,B25),0) -> 0 | K25: =IF(B25<>"",SUMIFS(cTABUI!$M$11:$M$109,cTABUI!$D$11:$D$109,B25),0) -> 0 | L25: =IF(B25<>"",SUMIFS(cTABUI!$N$11:$N$109,cTABUI!$D$11:$D$109,B25),0) -> 0 | M25: =IF(B25<>"",SUMIFS(cTABUI!$O$11:$O$109,cTABUI!$D$11:$D$109,B25),0) -> 0
B26: =IF(iCONDOMINI!B26<>"",iCONDOMINI!B26,"") -> C16 | C26: =IF(iCONDOMINI!C26<>"",iCONDOMINI!C26,"") ->  | D26: =IF(B26<>"",SUMIFS(cTABUI!$F$11:$F$109,cTABUI!$D$11:$D$109,B26),0) -> 0 | E26: =IF(B26<>"",SUMIFS(cTABUI!$G$11:$G$109,cTABUI!$D$11:$D$109,B26),0) -> 0 | F26: =IF(B26<>"",SUMIFS(cTABUI!$H$11:$H$109,cTABUI!$D$11:$D$109,B26),0) -> 0 | G26: =IF(B26<>"",SUMIFS(cTABUI!$I$11:$I$109,cTABUI!$D$11:$D$109,B26),0) -> 0 | H26: =IF(B26<>"",SUMIFS(cTABUI!$J$11:$J$109,cTABUI!$D$11:$D$109,B26),0) -> 0 | I26: =IF(B26<>"",SUMIFS(cTABUI!$K$11:$K$109,cTABUI!$D$11:$D$109,B26),0) -> 0 | J26: =IF(B26<>"",SUMIFS(cTABUI!$L$11:$L$109,cTABUI!$D$11:$D$109,B26),0) -> 0 | K26: =IF(B26<>"",SUMIFS(cTABUI!$M$11:$M$109,cTABUI!$D$11:$D$109,B26),0) -> 0 | L26: =IF(B26<>"",SUMIFS(cTABUI!$N$11:$N$109,cTABUI!$D$11:$D$109,B26),0) -> 0 | M26: =IF(B26<>"",SUMIFS(cTABUI!$O$11:$O$109,cTABUI!$D$11:$D$109,B26),0) -> 0
B27: =IF(iCONDOMINI!B27<>"",iCONDOMINI!B27,"") -> C17 | C27: =IF(iCONDOMINI!C27<>"",iCONDOMINI!C27,"") ->  | D27: =IF(B27<>"",SUMIFS(cTABUI!$F$11:$F$109,cTABUI!$D$11:$D$109,B27),0) -> 0 | E27: =IF(B27<>"",SUMIFS(cTABUI!$G$11:$G$109,cTABUI!$D$11:$D$109,B27),0) -> 0 | F27: =IF(B27<>"",SUMIFS(cTABUI!$H$11:$H$109,cTABUI!$D$11:$D$109,B27),0) -> 0 | G27: =IF(B27<>"",SUMIFS(cTABUI!$I$11:$I$109,cTABUI!$D$11:$D$109,B27),0) -> 0 | H27: =IF(B27<>"",SUMIFS(cTABUI!$J$11:$J$109,cTABUI!$D$11:$D$109,B27),0) -> 0 | I27: =IF(B27<>"",SUMIFS(cTABUI!$K$11:$K$109,cTABUI!$D$11:$D$109,B27),0) -> 0 | J27: =IF(B27<>"",SUMIFS(cTABUI!$L$11:$L$109,cTABUI!$D$11:$D$109,B27),0) -> 0 | K27: =IF(B27<>"",SUMIFS(cTABUI!$M$11:$M$109,cTABUI!$D$11:$D$109,B27),0) -> 0 | L27: =IF(B27<>"",SUMIFS(cTABUI!$N$11:$N$109,cTABUI!$D$11:$D$109,B27),0) -> 0 | M27: =IF(B27<>"",SUMIFS(cTABUI!$O$11:$O$109,cTABUI!$D$11:$D$109,B27),0) -> 0
B28: =IF(iCONDOMINI!B28<>"",iCONDOMINI!B28,"") -> C18 | C28: =IF(iCONDOMINI!C28<>"",iCONDOMINI!C28,"") ->  | D28: =IF(B28<>"",SUMIFS(cTABUI!$F$11:$F$109,cTABUI!$D$11:$D$109,B28),0) -> 0 | E28: =IF(B28<>"",SUMIFS(cTABUI!$G$11:$G$109,cTABUI!$D$11:$D$109,B28),0) -> 0 | F28: =IF(B28<>"",SUMIFS(cTABUI!$H$11:$H$109,cTABUI!$D$11:$D$109,B28),0) -> 0 | G28: =IF(B28<>"",SUMIFS(cTABUI!$I$11:$I$109,cTABUI!$D$11:$D$109,B28),0) -> 0 | H28: =IF(B28<>"",SUMIFS(cTABUI!$J$11:$J$109,cTABUI!$D$11:$D$109,B28),0) -> 0 | I28: =IF(B28<>"",SUMIFS(cTABUI!$K$11:$K$109,cTABUI!$D$11:$D$109,B28),0) -> 0 | J28: =IF(B28<>"",SUMIFS(cTABUI!$L$11:$L$109,cTABUI!$D$11:$D$109,B28),0) -> 0 | K28: =IF(B28<>"",SUMIFS(cTABUI!$M$11:$M$109,cTABUI!$D$11:$D$109,B28),0) -> 0 | L28: =IF(B28<>"",SUMIFS(cTABUI!$N$11:$N$109,cTABUI!$D$11:$D$109,B28),0) -> 0 | M28: =IF(B28<>"",SUMIFS(cTABUI!$O$11:$O$109,cTABUI!$D$11:$D$109,B28),0) -> 0
B29: =IF(iCONDOMINI!B29<>"",iCONDOMINI!B29,"") -> C19 | C29: =IF(iCONDOMINI!C29<>"",iCONDOMINI!C29,"") ->  | D29: =IF(B29<>"",SUMIFS(cTABUI!$F$11:$F$109,cTABUI!$D$11:$D$109,B29),0) -> 0 | E29: =IF(B29<>"",SUMIFS(cTABUI!$G$11:$G$109,cTABUI!$D$11:$D$109,B29),0) -> 0 | F29: =IF(B29<>"",SUMIFS(cTABUI!$H$11:$H$109,cTABUI!$D$11:$D$109,B29),0) -> 0 | G29: =IF(B29<>"",SUMIFS(cTABUI!$I$11:$I$109,cTABUI!$D$11:$D$109,B29),0) -> 0 | H29: =IF(B29<>"",SUMIFS(cTABUI!$J$11:$J$109,cTABUI!$D$11:$D$109,B29),0) -> 0 | I29: =IF(B29<>"",SUMIFS(cTABUI!$K$11:$K$109,cTABUI!$D$11:$D$109,B29),0) -> 0 | J29: =IF(B29<>"",SUMIFS(cTABUI!$L$11:$L$109,cTABUI!$D$11:$D$109,B29),0) -> 0 | K29: =IF(B29<>"",SUMIFS(cTABUI!$M$11:$M$109,cTABUI!$D$11:$D$109,B29),0) -> 0 | L29: =IF(B29<>"",SUMIFS(cTABUI!$N$11:$N$109,cTABUI!$D$11:$D$109,B29),0) -> 0 | M29: =IF(B29<>"",SUMIFS(cTABUI!$O$11:$O$109,cTABUI!$D$11:$D$109,B29),0) -> 0
B30: =IF(iCONDOMINI!B30<>"",iCONDOMINI!B30,"") -> C20 | C30: =IF(iCONDOMINI!C30<>"",iCONDOMINI!C30,"") ->  | D30: =IF(B30<>"",SUMIFS(cTABUI!$F$11:$F$109,cTABUI!$D$11:$D$109,B30),0) -> 0 | E30: =IF(B30<>"",SUMIFS(cTABUI!$G$11:$G$109,cTABUI!$D$11:$D$109,B30),0) -> 0 | F30: =IF(B30<>"",SUMIFS(cTABUI!$H$11:$H$109,cTABUI!$D$11:$D$109,B30),0) -> 0 | G30: =IF(B30<>"",SUMIFS(cTABUI!$I$11:$I$109,cTABUI!$D$11:$D$109,B30),0) -> 0 | H30: =IF(B30<>"",SUMIFS(cTABUI!$J$11:$J$109,cTABUI!$D$11:$D$109,B30),0) -> 0 | I30: =IF(B30<>"",SUMIFS(cTABUI!$K$11:$K$109,cTABUI!$D$11:$D$109,B30),0) -> 0 | J30: =IF(B30<>"",SUMIFS(cTABUI!$L$11:$L$109,cTABUI!$D$11:$D$109,B30),0) -> 0 | K30: =IF(B30<>"",SUMIFS(cTABUI!$M$11:$M$109,cTABUI!$D$11:$D$109,B30),0) -> 0 | L30: =IF(B30<>"",SUMIFS(cTABUI!$N$11:$N$109,cTABUI!$D$11:$D$109,B30),0) -> 0 | M30: =IF(B30<>"",SUMIFS(cTABUI!$O$11:$O$109,cTABUI!$D$11:$D$109,B30),0) -> 0
B31: =IF(iCONDOMINI!B31<>"",iCONDOMINI!B31,"") -> C21 | C31: =IF(iCONDOMINI!C31<>"",iCONDOMINI!C31,"") ->  | D31: =IF(B31<>"",SUMIFS(cTABUI!$F$11:$F$109,cTABUI!$D$11:$D$109,B31),0) -> 0 | E31: =IF(B31<>"",SUMIFS(cTABUI!$G$11:$G$109,cTABUI!$D$11:$D$109,B31),0) -> 0 | F31: =IF(B31<>"",SUMIFS(cTABUI!$H$11:$H$109,cTABUI!$D$11:$D$109,B31),0) -> 0 | G31: =IF(B31<>"",SUMIFS(cTABUI!$I$11:$I$109,cTABUI!$D$11:$D$109,B31),0) -> 0 | H31: =IF(B31<>"",SUMIFS(cTABUI!$J$11:$J$109,cTABUI!$D$11:$D$109,B31),0) -> 0 | I31: =IF(B31<>"",SUMIFS(cTABUI!$K$11:$K$109,cTABUI!$D$11:$D$109,B31),0) -> 0 | J31: =IF(B31<>"",SUMIFS(cTABUI!$L$11:$L$109,cTABUI!$D$11:$D$109,B31),0) -> 0 | K31: =IF(B31<>"",SUMIFS(cTABUI!$M$11:$M$109,cTABUI!$D$11:$D$109,B31),0) -> 0 | L31: =IF(B31<>"",SUMIFS(cTABUI!$N$11:$N$109,cTABUI!$D$11:$D$109,B31),0) -> 0 | M31: =IF(B31<>"",SUMIFS(cTABUI!$O$11:$O$109,cTABUI!$D$11:$D$109,B31),0) -> 0
B32: =IF(iCONDOMINI!B32<>"",iCONDOMINI!B32,"") -> C22 | C32: =IF(iCONDOMINI!C32<>"",iCONDOMINI!C32,"") ->  | D32: =IF(B32<>"",SUMIFS(cTABUI!$F$11:$F$109,cTABUI!$D$11:$D$109,B32),0) -> 0 | E32: =IF(B32<>"",SUMIFS(cTABUI!$G$11:$G$109,cTABUI!$D$11:$D$109,B32),0) -> 0 | F32: =IF(B32<>"",SUMIFS(cTABUI!$H$11:$H$109,cTABUI!$D$11:$D$109,B32),0) -> 0 | G32: =IF(B32<>"",SUMIFS(cTABUI!$I$11:$I$109,cTABUI!$D$11:$D$109,B32),0) -> 0 | H32: =IF(B32<>"",SUMIFS(cTABUI!$J$11:$J$109,cTABUI!$D$11:$D$109,B32),0) -> 0 | I32: =IF(B32<>"",SUMIFS(cTABUI!$K$11:$K$109,cTABUI!$D$11:$D$109,B32),0) -> 0 | J32: =IF(B32<>"",SUMIFS(cTABUI!$L$11:$L$109,cTABUI!$D$11:$D$109,B32),0) -> 0 | K32: =IF(B32<>"",SUMIFS(cTABUI!$M$11:$M$109,cTABUI!$D$11:$D$109,B32),0) -> 0 | L32: =IF(B32<>"",SUMIFS(cTABUI!$N$11:$N$109,cTABUI!$D$11:$D$109,B32),0) -> 0 | M32: =IF(B32<>"",SUMIFS(cTABUI!$O$11:$O$109,cTABUI!$D$11:$D$109,B32),0) -> 0
B33: =IF(iCONDOMINI!B33<>"",iCONDOMINI!B33,"") -> C23 | C33: =IF(iCONDOMINI!C33<>"",iCONDOMINI!C33,"") ->  | D33: =IF(B33<>"",SUMIFS(cTABUI!$F$11:$F$109,cTABUI!$D$11:$D$109,B33),0) -> 0 | E33: =IF(B33<>"",SUMIFS(cTABUI!$G$11:$G$109,cTABUI!$D$11:$D$109,B33),0) -> 0 | F33: =IF(B33<>"",SUMIFS(cTABUI!$H$11:$H$109,cTABUI!$D$11:$D$109,B33),0) -> 0 | G33: =IF(B33<>"",SUMIFS(cTABUI!$I$11:$I$109,cTABUI!$D$11:$D$109,B33),0) -> 0 | H33: =IF(B33<>"",SUMIFS(cTABUI!$J$11:$J$109,cTABUI!$D$11:$D$109,B33),0) -> 0 | I33: =IF(B33<>"",SUMIFS(cTABUI!$K$11:$K$109,cTABUI!$D$11:$D$109,B33),0) -> 0 | J33: =IF(B33<>"",SUMIFS(cTABUI!$L$11:$L$109,cTABUI!$D$11:$D$109,B33),0) -> 0 | K33: =IF(B33<>"",SUMIFS(cTABUI!$M$11:$M$109,cTABUI!$D$11:$D$109,B33),0) -> 0 | L33: =IF(B33<>"",SUMIFS(cTABUI!$N$11:$N$109,cTABUI!$D$11:$D$109,B33),0) -> 0 | M33: =IF(B33<>"",SUMIFS(cTABUI!$O$11:$O$109,cTABUI!$D$11:$D$109,B33),0) -> 0
B34: =IF(iCONDOMINI!B34<>"",iCONDOMINI!B34,"") -> C24 | C34: =IF(iCONDOMINI!C34<>"",iCONDOMINI!C34,"") ->  | D34: =IF(B34<>"",SUMIFS(cTABUI!$F$11:$F$109,cTABUI!$D$11:$D$109,B34),0) -> 0 | E34: =IF(B34<>"",SUMIFS(cTABUI!$G$11:$G$109,cTABUI!$D$11:$D$109,B34),0) -> 0 | F34: =IF(B34<>"",SUMIFS(cTABUI!$H$11:$H$109,cTABUI!$D$11:$D$109,B34),0) -> 0 | G34: =IF(B34<>"",SUMIFS(cTABUI!$I$11:$I$109,cTABUI!$D$11:$D$109,B34),0) -> 0 | H34: =IF(B34<>"",SUMIFS(cTABUI!$J$11:$J$109,cTABUI!$D$11:$D$109,B34),0) -> 0 | I34: =IF(B34<>"",SUMIFS(cTABUI!$K$11:$K$109,cTABUI!$D$11:$D$109,B34),0) -> 0 | J34: =IF(B34<>"",SUMIFS(cTABUI!$L$11:$L$109,cTABUI!$D$11:$D$109,B34),0) -> 0 | K34: =IF(B34<>"",SUMIFS(cTABUI!$M$11:$M$109,cTABUI!$D$11:$D$109,B34),0) -> 0 | L34: =IF(B34<>"",SUMIFS(cTABUI!$N$11:$N$109,cTABUI!$D$11:$D$109,B34),0) -> 0 | M34: =IF(B34<>"",SUMIFS(cTABUI!$O$11:$O$109,cTABUI!$D$11:$D$109,B34),0) -> 0
B35: =IF(iCONDOMINI!B35<>"",iCONDOMINI!B35,"") -> C25 | C35: =IF(iCONDOMINI!C35<>"",iCONDOMINI!C35,"") ->  | D35: =IF(B35<>"",SUMIFS(cTABUI!$F$11:$F$109,cTABUI!$D$11:$D$109,B35),0) -> 0 | E35: =IF(B35<>"",SUMIFS(cTABUI!$G$11:$G$109,cTABUI!$D$11:$D$109,B35),0) -> 0 | F35: =IF(B35<>"",SUMIFS(cTABUI!$H$11:$H$109,cTABUI!$D$11:$D$109,B35),0) -> 0 | G35: =IF(B35<>"",SUMIFS(cTABUI!$I$11:$I$109,cTABUI!$D$11:$D$109,B35),0) -> 0 | H35: =IF(B35<>"",SUMIFS(cTABUI!$J$11:$J$109,cTABUI!$D$11:$D$109,B35),0) -> 0 | I35: =IF(B35<>"",SUMIFS(cTABUI!$K$11:$K$109,cTABUI!$D$11:$D$109,B35),0) -> 0 | J35: =IF(B35<>"",SUMIFS(cTABUI!$L$11:$L$109,cTABUI!$D$11:$D$109,B35),0) -> 0 | K35: =IF(B35<>"",SUMIFS(cTABUI!$M$11:$M$109,cTABUI!$D$11:$D$109,B35),0) -> 0 | L35: =IF(B35<>"",SUMIFS(cTABUI!$N$11:$N$109,cTABUI!$D$11:$D$109,B35),0) -> 0 | M35: =IF(B35<>"",SUMIFS(cTABUI!$O$11:$O$109,cTABUI!$D$11:$D$109,B35),0) -> 0
B36: =IF(iCONDOMINI!B36<>"",iCONDOMINI!B36,"") -> C26 | C36: =IF(iCONDOMINI!C36<>"",iCONDOMINI!C36,"") ->  | D36: =IF(B36<>"",SUMIFS(cTABUI!$F$11:$F$109,cTABUI!$D$11:$D$109,B36),0) -> 0 | E36: =IF(B36<>"",SUMIFS(cTABUI!$G$11:$G$109,cTABUI!$D$11:$D$109,B36),0) -> 0 | F36: =IF(B36<>"",SUMIFS(cTABUI!$H$11:$H$109,cTABUI!$D$11:$D$109,B36),0) -> 0 | G36: =IF(B36<>"",SUMIFS(cTABUI!$I$11:$I$109,cTABUI!$D$11:$D$109,B36),0) -> 0 | H36: =IF(B36<>"",SUMIFS(cTABUI!$J$11:$J$109,cTABUI!$D$11:$D$109,B36),0) -> 0 | I36: =IF(B36<>"",SUMIFS(cTABUI!$K$11:$K$109,cTABUI!$D$11:$D$109,B36),0) -> 0 | J36: =IF(B36<>"",SUMIFS(cTABUI!$L$11:$L$109,cTABUI!$D$11:$D$109,B36),0) -> 0 | K36: =IF(B36<>"",SUMIFS(cTABUI!$M$11:$M$109,cTABUI!$D$11:$D$109,B36),0) -> 0 | L36: =IF(B36<>"",SUMIFS(cTABUI!$N$11:$N$109,cTABUI!$D$11:$D$109,B36),0) -> 0 | M36: =IF(B36<>"",SUMIFS(cTABUI!$O$11:$O$109,cTABUI!$D$11:$D$109,B36),0) -> 0
B37: =IF(iCONDOMINI!B37<>"",iCONDOMINI!B37,"") -> C27 | C37: =IF(iCONDOMINI!C37<>"",iCONDOMINI!C37,"") ->  | D37: =IF(B37<>"",SUMIFS(cTABUI!$F$11:$F$109,cTABUI!$D$11:$D$109,B37),0) -> 0 | E37: =IF(B37<>"",SUMIFS(cTABUI!$G$11:$G$109,cTABUI!$D$11:$D$109,B37),0) -> 0 | F37: =IF(B37<>"",SUMIFS(cTABUI!$H$11:$H$109,cTABUI!$D$11:$D$109,B37),0) -> 0 | G37: =IF(B37<>"",SUMIFS(cTABUI!$I$11:$I$109,cTABUI!$D$11:$D$109,B37),0) -> 0 | H37: =IF(B37<>"",SUMIFS(cTABUI!$J$11:$J$109,cTABUI!$D$11:$D$109,B37),0) -> 0 | I37: =IF(B37<>"",SUMIFS(cTABUI!$K$11:$K$109,cTABUI!$D$11:$D$109,B37),0) -> 0 | J37: =IF(B37<>"",SUMIFS(cTABUI!$L$11:$L$109,cTABUI!$D$11:$D$109,B37),0) -> 0 | K37: =IF(B37<>"",SUMIFS(cTABUI!$M$11:$M$109,cTABUI!$D$11:$D$109,B37),0) -> 0 | L37: =IF(B37<>"",SUMIFS(cTABUI!$N$11:$N$109,cTABUI!$D$11:$D$109,B37),0) -> 0 | M37: =IF(B37<>"",SUMIFS(cTABUI!$O$11:$O$109,cTABUI!$D$11:$D$109,B37),0) -> 0
B38: =IF(iCONDOMINI!B38<>"",iCONDOMINI!B38,"") -> C28 | C38: =IF(iCONDOMINI!C38<>"",iCONDOMINI!C38,"") ->  | D38: =IF(B38<>"",SUMIFS(cTABUI!$F$11:$F$109,cTABUI!$D$11:$D$109,B38),0) -> 0 | E38: =IF(B38<>"",SUMIFS(cTABUI!$G$11:$G$109,cTABUI!$D$11:$D$109,B38),0) -> 0 | F38: =IF(B38<>"",SUMIFS(cTABUI!$H$11:$H$109,cTABUI!$D$11:$D$109,B38),0) -> 0 | G38: =IF(B38<>"",SUMIFS(cTABUI!$I$11:$I$109,cTABUI!$D$11:$D$109,B38),0) -> 0 | H38: =IF(B38<>"",SUMIFS(cTABUI!$J$11:$J$109,cTABUI!$D$11:$D$109,B38),0) -> 0 | I38: =IF(B38<>"",SUMIFS(cTABUI!$K$11:$K$109,cTABUI!$D$11:$D$109,B38),0) -> 0 | J38: =IF(B38<>"",SUMIFS(cTABUI!$L$11:$L$109,cTABUI!$D$11:$D$109,B38),0) -> 0 | K38: =IF(B38<>"",SUMIFS(cTABUI!$M$11:$M$109,cTABUI!$D$11:$D$109,B38),0) -> 0 | L38: =IF(B38<>"",SUMIFS(cTABUI!$N$11:$N$109,cTABUI!$D$11:$D$109,B38),0) -> 0 | M38: =IF(B38<>"",SUMIFS(cTABUI!$O$11:$O$109,cTABUI!$D$11:$D$109,B38),0) -> 0
B39: =IF(iCONDOMINI!B39<>"",iCONDOMINI!B39,"") -> C29 | C39: =IF(iCONDOMINI!C39<>"",iCONDOMINI!C39,"") ->  | D39: =IF(B39<>"",SUMIFS(cTABUI!$F$11:$F$109,cTABUI!$D$11:$D$109,B39),0) -> 0 | E39: =IF(B39<>"",SUMIFS(cTABUI!$G$11:$G$109,cTABUI!$D$11:$D$109,B39),0) -> 0 | F39: =IF(B39<>"",SUMIFS(cTABUI!$H$11:$H$109,cTABUI!$D$11:$D$109,B39),0) -> 0 | G39: =IF(B39<>"",SUMIFS(cTABUI!$I$11:$I$109,cTABUI!$D$11:$D$109,B39),0) -> 0 | H39: =IF(B39<>"",SUMIFS(cTABUI!$J$11:$J$109,cTABUI!$D$11:$D$109,B39),0) -> 0 | I39: =IF(B39<>"",SUMIFS(cTABUI!$K$11:$K$109,cTABUI!$D$11:$D$109,B39),0) -> 0 | J39: =IF(B39<>"",SUMIFS(cTABUI!$L$11:$L$109,cTABUI!$D$11:$D$109,B39),0) -> 0 | K39: =IF(B39<>"",SUMIFS(cTABUI!$M$11:$M$109,cTABUI!$D$11:$D$109,B39),0) -> 0 | L39: =IF(B39<>"",SUMIFS(cTABUI!$N$11:$N$109,cTABUI!$D$11:$D$109,B39),0) -> 0 | M39: =IF(B39<>"",SUMIFS(cTABUI!$O$11:$O$109,cTABUI!$D$11:$D$109,B39),0) -> 0
B40: =IF(iCONDOMINI!B40<>"",iCONDOMINI!B40,"") -> C30 | C40: =IF(iCONDOMINI!C40<>"",iCONDOMINI!C40,"") ->  | D40: =IF(B40<>"",SUMIFS(cTABUI!$F$11:$F$109,cTABUI!$D$11:$D$109,B40),0) -> 0 | E40: =IF(B40<>"",SUMIFS(cTABUI!$G$11:$G$109,cTABUI!$D$11:$D$109,B40),0) -> 0 | F40: =IF(B40<>"",SUMIFS(cTABUI!$H$11:$H$109,cTABUI!$D$11:$D$109,B40),0) -> 0 | G40: =IF(B40<>"",SUMIFS(cTABUI!$I$11:$I$109,cTABUI!$D$11:$D$109,B40),0) -> 0 | H40: =IF(B40<>"",SUMIFS(cTABUI!$J$11:$J$109,cTABUI!$D$11:$D$109,B40),0) -> 0 | I40: =IF(B40<>"",SUMIFS(cTABUI!$K$11:$K$109,cTABUI!$D$11:$D$109,B40),0) -> 0 | J40: =IF(B40<>"",SUMIFS(cTABUI!$L$11:$L$109,cTABUI!$D$11:$D$109,B40),0) -> 0 | K40: =IF(B40<>"",SUMIFS(cTABUI!$M$11:$M$109,cTABUI!$D$11:$D$109,B40),0) -> 0 | L40: =IF(B40<>"",SUMIFS(cTABUI!$N$11:$N$109,cTABUI!$D$11:$D$109,B40),0) -> 0 | M40: =IF(B40<>"",SUMIFS(cTABUI!$O$11:$O$109,cTABUI!$D$11:$D$109,B40),0) -> 0
B41: =IF(iCONDOMINI!B41<>"",iCONDOMINI!B41,"") -> C31 | C41: =IF(iCONDOMINI!C41<>"",iCONDOMINI!C41,"") ->  | D41: =IF(B41<>"",SUMIFS(cTABUI!$F$11:$F$109,cTABUI!$D$11:$D$109,B41),0) -> 0 | E41: =IF(B41<>"",SUMIFS(cTABUI!$G$11:$G$109,cTABUI!$D$11:$D$109,B41),0) -> 0 | F41: =IF(B41<>"",SUMIFS(cTABUI!$H$11:$H$109,cTABUI!$D$11:$D$109,B41),0) -> 0 | G41: =IF(B41<>"",SUMIFS(cTABUI!$I$11:$I$109,cTABUI!$D$11:$D$109,B41),0) -> 0 | H41: =IF(B41<>"",SUMIFS(cTABUI!$J$11:$J$109,cTABUI!$D$11:$D$109,B41),0) -> 0 | I41: =IF(B41<>"",SUMIFS(cTABUI!$K$11:$K$109,cTABUI!$D$11:$D$109,B41),0) -> 0 | J41: =IF(B41<>"",SUMIFS(cTABUI!$L$11:$L$109,cTABUI!$D$11:$D$109,B41),0) -> 0 | K41: =IF(B41<>"",SUMIFS(cTABUI!$M$11:$M$109,cTABUI!$D$11:$D$109,B41),0) -> 0 | L41: =IF(B41<>"",SUMIFS(cTABUI!$N$11:$N$109,cTABUI!$D$11:$D$109,B41),0) -> 0 | M41: =IF(B41<>"",SUMIFS(cTABUI!$O$11:$O$109,cTABUI!$D$11:$D$109,B41),0) -> 0
B42: =IF(iCONDOMINI!B42<>"",iCONDOMINI!B42,"") -> C32 | C42: =IF(iCONDOMINI!C42<>"",iCONDOMINI!C42,"") ->  | D42: =IF(B42<>"",SUMIFS(cTABUI!$F$11:$F$109,cTABUI!$D$11:$D$109,B42),0) -> 0 | E42: =IF(B42<>"",SUMIFS(cTABUI!$G$11:$G$109,cTABUI!$D$11:$D$109,B42),0) -> 0 | F42: =IF(B42<>"",SUMIFS(cTABUI!$H$11:$H$109,cTABUI!$D$11:$D$109,B42),0) -> 0 | G42: =IF(B42<>"",SUMIFS(cTABUI!$I$11:$I$109,cTABUI!$D$11:$D$109,B42),0) -> 0 | H42: =IF(B42<>"",SUMIFS(cTABUI!$J$11:$J$109,cTABUI!$D$11:$D$109,B42),0) -> 0 | I42: =IF(B42<>"",SUMIFS(cTABUI!$K$11:$K$109,cTABUI!$D$11:$D$109,B42),0) -> 0 | J42: =IF(B42<>"",SUMIFS(cTABUI!$L$11:$L$109,cTABUI!$D$11:$D$109,B42),0) -> 0 | K42: =IF(B42<>"",SUMIFS(cTABUI!$M$11:$M$109,cTABUI!$D$11:$D$109,B42),0) -> 0 | L42: =IF(B42<>"",SUMIFS(cTABUI!$N$11:$N$109,cTABUI!$D$11:$D$109,B42),0) -> 0 | M42: =IF(B42<>"",SUMIFS(cTABUI!$O$11:$O$109,cTABUI!$D$11:$D$109,B42),0) -> 0
B43: =IF(iCONDOMINI!B43<>"",iCONDOMINI!B43,"") -> C33 | C43: =IF(iCONDOMINI!C43<>"",iCONDOMINI!C43,"") ->  | D43: =IF(B43<>"",SUMIFS(cTABUI!$F$11:$F$109,cTABUI!$D$11:$D$109,B43),0) -> 0 | E43: =IF(B43<>"",SUMIFS(cTABUI!$G$11:$G$109,cTABUI!$D$11:$D$109,B43),0) -> 0 | F43: =IF(B43<>"",SUMIFS(cTABUI!$H$11:$H$109,cTABUI!$D$11:$D$109,B43),0) -> 0 | G43: =IF(B43<>"",SUMIFS(cTABUI!$I$11:$I$109,cTABUI!$D$11:$D$109,B43),0) -> 0 | H43: =IF(B43<>"",SUMIFS(cTABUI!$J$11:$J$109,cTABUI!$D$11:$D$109,B43),0) -> 0 | I43: =IF(B43<>"",SUMIFS(cTABUI!$K$11:$K$109,cTABUI!$D$11:$D$109,B43),0) -> 0 | J43: =IF(B43<>"",SUMIFS(cTABUI!$L$11:$L$109,cTABUI!$D$11:$D$109,B43),0) -> 0 | K43: =IF(B43<>"",SUMIFS(cTABUI!$M$11:$M$109,cTABUI!$D$11:$D$109,B43),0) -> 0 | L43: =IF(B43<>"",SUMIFS(cTABUI!$N$11:$N$109,cTABUI!$D$11:$D$109,B43),0) -> 0 | M43: =IF(B43<>"",SUMIFS(cTABUI!$O$11:$O$109,cTABUI!$D$11:$D$109,B43),0) -> 0
B44: =IF(iCONDOMINI!B44<>"",iCONDOMINI!B44,"") -> C34 | C44: =IF(iCONDOMINI!C44<>"",iCONDOMINI!C44,"") ->  | D44: =IF(B44<>"",SUMIFS(cTABUI!$F$11:$F$109,cTABUI!$D$11:$D$109,B44),0) -> 0 | E44: =IF(B44<>"",SUMIFS(cTABUI!$G$11:$G$109,cTABUI!$D$11:$D$109,B44),0) -> 0 | F44: =IF(B44<>"",SUMIFS(cTABUI!$H$11:$H$109,cTABUI!$D$11:$D$109,B44),0) -> 0 | G44: =IF(B44<>"",SUMIFS(cTABUI!$I$11:$I$109,cTABUI!$D$11:$D$109,B44),0) -> 0 | H44: =IF(B44<>"",SUMIFS(cTABUI!$J$11:$J$109,cTABUI!$D$11:$D$109,B44),0) -> 0 | I44: =IF(B44<>"",SUMIFS(cTABUI!$K$11:$K$109,cTABUI!$D$11:$D$109,B44),0) -> 0 | J44: =IF(B44<>"",SUMIFS(cTABUI!$L$11:$L$109,cTABUI!$D$11:$D$109,B44),0) -> 0 | K44: =IF(B44<>"",SUMIFS(cTABUI!$M$11:$M$109,cTABUI!$D$11:$D$109,B44),0) -> 0 | L44: =IF(B44<>"",SUMIFS(cTABUI!$N$11:$N$109,cTABUI!$D$11:$D$109,B44),0) -> 0 | M44: =IF(B44<>"",SUMIFS(cTABUI!$O$11:$O$109,cTABUI!$D$11:$D$109,B44),0) -> 0
B45: =IF(iCONDOMINI!B45<>"",iCONDOMINI!B45,"") -> C35 | C45: =IF(iCONDOMINI!C45<>"",iCONDOMINI!C45,"") ->  | D45: =IF(B45<>"",SUMIFS(cTABUI!$F$11:$F$109,cTABUI!$D$11:$D$109,B45),0) -> 0 | E45: =IF(B45<>"",SUMIFS(cTABUI!$G$11:$G$109,cTABUI!$D$11:$D$109,B45),0) -> 0 | F45: =IF(B45<>"",SUMIFS(cTABUI!$H$11:$H$109,cTABUI!$D$11:$D$109,B45),0) -> 0 | G45: =IF(B45<>"",SUMIFS(cTABUI!$I$11:$I$109,cTABUI!$D$11:$D$109,B45),0) -> 0 | H45: =IF(B45<>"",SUMIFS(cTABUI!$J$11:$J$109,cTABUI!$D$11:$D$109,B45),0) -> 0 | I45: =IF(B45<>"",SUMIFS(cTABUI!$K$11:$K$109,cTABUI!$D$11:$D$109,B45),0) -> 0 | J45: =IF(B45<>"",SUMIFS(cTABUI!$L$11:$L$109,cTABUI!$D$11:$D$109,B45),0) -> 0 | K45: =IF(B45<>"",SUMIFS(cTABUI!$M$11:$M$109,cTABUI!$D$11:$D$109,B45),0) -> 0 | L45: =IF(B45<>"",SUMIFS(cTABUI!$N$11:$N$109,cTABUI!$D$11:$D$109,B45),0) -> 0 | M45: =IF(B45<>"",SUMIFS(cTABUI!$O$11:$O$109,cTABUI!$D$11:$D$109,B45),0) -> 0
B46: =IF(iCONDOMINI!B46<>"",iCONDOMINI!B46,"") -> C36 | C46: =IF(iCONDOMINI!C46<>"",iCONDOMINI!C46,"") ->  | D46: =IF(B46<>"",SUMIFS(cTABUI!$F$11:$F$109,cTABUI!$D$11:$D$109,B46),0) -> 0 | E46: =IF(B46<>"",SUMIFS(cTABUI!$G$11:$G$109,cTABUI!$D$11:$D$109,B46),0) -> 0 | F46: =IF(B46<>"",SUMIFS(cTABUI!$H$11:$H$109,cTABUI!$D$11:$D$109,B46),0) -> 0 | G46: =IF(B46<>"",SUMIFS(cTABUI!$I$11:$I$109,cTABUI!$D$11:$D$109,B46),0) -> 0 | H46: =IF(B46<>"",SUMIFS(cTABUI!$J$11:$J$109,cTABUI!$D$11:$D$109,B46),0) -> 0 | I46: =IF(B46<>"",SUMIFS(cTABUI!$K$11:$K$109,cTABUI!$D$11:$D$109,B46),0) -> 0 | J46: =IF(B46<>"",SUMIFS(cTABUI!$L$11:$L$109,cTABUI!$D$11:$D$109,B46),0) -> 0 | K46: =IF(B46<>"",SUMIFS(cTABUI!$M$11:$M$109,cTABUI!$D$11:$D$109,B46),0) -> 0 | L46: =IF(B46<>"",SUMIFS(cTABUI!$N$11:$N$109,cTABUI!$D$11:$D$109,B46),0) -> 0 | M46: =IF(B46<>"",SUMIFS(cTABUI!$O$11:$O$109,cTABUI!$D$11:$D$109,B46),0) -> 0
B47: =IF(iCONDOMINI!B47<>"",iCONDOMINI!B47,"") -> C37 | C47: =IF(iCONDOMINI!C47<>"",iCONDOMINI!C47,"") ->  | D47: =IF(B47<>"",SUMIFS(cTABUI!$F$11:$F$109,cTABUI!$D$11:$D$109,B47),0) -> 0 | E47: =IF(B47<>"",SUMIFS(cTABUI!$G$11:$G$109,cTABUI!$D$11:$D$109,B47),0) -> 0 | F47: =IF(B47<>"",SUMIFS(cTABUI!$H$11:$H$109,cTABUI!$D$11:$D$109,B47),0) -> 0 | G47: =IF(B47<>"",SUMIFS(cTABUI!$I$11:$I$109,cTABUI!$D$11:$D$109,B47),0) -> 0 | H47: =IF(B47<>"",SUMIFS(cTABUI!$J$11:$J$109,cTABUI!$D$11:$D$109,B47),0) -> 0 | I47: =IF(B47<>"",SUMIFS(cTABUI!$K$11:$K$109,cTABUI!$D$11:$D$109,B47),0) -> 0 | J47: =IF(B47<>"",SUMIFS(cTABUI!$L$11:$L$109,cTABUI!$D$11:$D$109,B47),0) -> 0 | K47: =IF(B47<>"",SUMIFS(cTABUI!$M$11:$M$109,cTABUI!$D$11:$D$109,B47),0) -> 0 | L47: =IF(B47<>"",SUMIFS(cTABUI!$N$11:$N$109,cTABUI!$D$11:$D$109,B47),0) -> 0 | M47: =IF(B47<>"",SUMIFS(cTABUI!$O$11:$O$109,cTABUI!$D$11:$D$109,B47),0) -> 0
B48: =IF(iCONDOMINI!B48<>"",iCONDOMINI!B48,"") -> C38 | C48: =IF(iCONDOMINI!C48<>"",iCONDOMINI!C48,"") ->  | D48: =IF(B48<>"",SUMIFS(cTABUI!$F$11:$F$109,cTABUI!$D$11:$D$109,B48),0) -> 0 | E48: =IF(B48<>"",SUMIFS(cTABUI!$G$11:$G$109,cTABUI!$D$11:$D$109,B48),0) -> 0 | F48: =IF(B48<>"",SUMIFS(cTABUI!$H$11:$H$109,cTABUI!$D$11:$D$109,B48),0) -> 0 | G48: =IF(B48<>"",SUMIFS(cTABUI!$I$11:$I$109,cTABUI!$D$11:$D$109,B48),0) -> 0 | H48: =IF(B48<>"",SUMIFS(cTABUI!$J$11:$J$109,cTABUI!$D$11:$D$109,B48),0) -> 0 | I48: =IF(B48<>"",SUMIFS(cTABUI!$K$11:$K$109,cTABUI!$D$11:$D$109,B48),0) -> 0 | J48: =IF(B48<>"",SUMIFS(cTABUI!$L$11:$L$109,cTABUI!$D$11:$D$109,B48),0) -> 0 | K48: =IF(B48<>"",SUMIFS(cTABUI!$M$11:$M$109,cTABUI!$D$11:$D$109,B48),0) -> 0 | L48: =IF(B48<>"",SUMIFS(cTABUI!$N$11:$N$109,cTABUI!$D$11:$D$109,B48),0) -> 0 | M48: =IF(B48<>"",SUMIFS(cTABUI!$O$11:$O$109,cTABUI!$D$11:$D$109,B48),0) -> 0
B49: =IF(iCONDOMINI!B49<>"",iCONDOMINI!B49,"") -> C39 | C49: =IF(iCONDOMINI!C49<>"",iCONDOMINI!C49,"") ->  | D49: =IF(B49<>"",SUMIFS(cTABUI!$F$11:$F$109,cTABUI!$D$11:$D$109,B49),0) -> 0 | E49: =IF(B49<>"",SUMIFS(cTABUI!$G$11:$G$109,cTABUI!$D$11:$D$109,B49),0) -> 0 | F49: =IF(B49<>"",SUMIFS(cTABUI!$H$11:$H$109,cTABUI!$D$11:$D$109,B49),0) -> 0 | G49: =IF(B49<>"",SUMIFS(cTABUI!$I$11:$I$109,cTABUI!$D$11:$D$109,B49),0) -> 0 | H49: =IF(B49<>"",SUMIFS(cTABUI!$J$11:$J$109,cTABUI!$D$11:$D$109,B49),0) -> 0 | I49: =IF(B49<>"",SUMIFS(cTABUI!$K$11:$K$109,cTABUI!$D$11:$D$109,B49),0) -> 0 | J49: =IF(B49<>"",SUMIFS(cTABUI!$L$11:$L$109,cTABUI!$D$11:$D$109,B49),0) -> 0 | K49: =IF(B49<>"",SUMIFS(cTABUI!$M$11:$M$109,cTABUI!$D$11:$D$109,B49),0) -> 0 | L49: =IF(B49<>"",SUMIFS(cTABUI!$N$11:$N$109,cTABUI!$D$11:$D$109,B49),0) -> 0 | M49: =IF(B49<>"",SUMIFS(cTABUI!$O$11:$O$109,cTABUI!$D$11:$D$109,B49),0) -> 0
B50: =IF(iCONDOMINI!B50<>"",iCONDOMINI!B50,"") -> C40 | C50: =IF(iCONDOMINI!C50<>"",iCONDOMINI!C50,"") ->  | D50: =IF(B50<>"",SUMIFS(cTABUI!$F$11:$F$109,cTABUI!$D$11:$D$109,B50),0) -> 0 | E50: =IF(B50<>"",SUMIFS(cTABUI!$G$11:$G$109,cTABUI!$D$11:$D$109,B50),0) -> 0 | F50: =IF(B50<>"",SUMIFS(cTABUI!$H$11:$H$109,cTABUI!$D$11:$D$109,B50),0) -> 0 | G50: =IF(B50<>"",SUMIFS(cTABUI!$I$11:$I$109,cTABUI!$D$11:$D$109,B50),0) -> 0 | H50: =IF(B50<>"",SUMIFS(cTABUI!$J$11:$J$109,cTABUI!$D$11:$D$109,B50),0) -> 0 | I50: =IF(B50<>"",SUMIFS(cTABUI!$K$11:$K$109,cTABUI!$D$11:$D$109,B50),0) -> 0 | J50: =IF(B50<>"",SUMIFS(cTABUI!$L$11:$L$109,cTABUI!$D$11:$D$109,B50),0) -> 0 | K50: =IF(B50<>"",SUMIFS(cTABUI!$M$11:$M$109,cTABUI!$D$11:$D$109,B50),0) -> 0 | L50: =IF(B50<>"",SUMIFS(cTABUI!$N$11:$N$109,cTABUI!$D$11:$D$109,B50),0) -> 0 | M50: =IF(B50<>"",SUMIFS(cTABUI!$O$11:$O$109,cTABUI!$D$11:$D$109,B50),0) -> 0
B51: =IF(iCONDOMINI!B51<>"",iCONDOMINI!B51,"") -> C41 | C51: =IF(iCONDOMINI!C51<>"",iCONDOMINI!C51,"") ->  | D51: =IF(B51<>"",SUMIFS(cTABUI!$F$11:$F$109,cTABUI!$D$11:$D$109,B51),0) -> 0 | E51: =IF(B51<>"",SUMIFS(cTABUI!$G$11:$G$109,cTABUI!$D$11:$D$109,B51),0) -> 0 | F51: =IF(B51<>"",SUMIFS(cTABUI!$H$11:$H$109,cTABUI!$D$11:$D$109,B51),0) -> 0 | G51: =IF(B51<>"",SUMIFS(cTABUI!$I$11:$I$109,cTABUI!$D$11:$D$109,B51),0) -> 0 | H51: =IF(B51<>"",SUMIFS(cTABUI!$J$11:$J$109,cTABUI!$D$11:$D$109,B51),0) -> 0 | I51: =IF(B51<>"",SUMIFS(cTABUI!$K$11:$K$109,cTABUI!$D$11:$D$109,B51),0) -> 0 | J51: =IF(B51<>"",SUMIFS(cTABUI!$L$11:$L$109,cTABUI!$D$11:$D$109,B51),0) -> 0 | K51: =IF(B51<>"",SUMIFS(cTABUI!$M$11:$M$109,cTABUI!$D$11:$D$109,B51),0) -> 0 | L51: =IF(B51<>"",SUMIFS(cTABUI!$N$11:$N$109,cTABUI!$D$11:$D$109,B51),0) -> 0 | M51: =IF(B51<>"",SUMIFS(cTABUI!$O$11:$O$109,cTABUI!$D$11:$D$109,B51),0) -> 0
B52: =IF(iCONDOMINI!B52<>"",iCONDOMINI!B52,"") -> C42 | C52: =IF(iCONDOMINI!C52<>"",iCONDOMINI!C52,"") ->  | D52: =IF(B52<>"",SUMIFS(cTABUI!$F$11:$F$109,cTABUI!$D$11:$D$109,B52),0) -> 0 | E52: =IF(B52<>"",SUMIFS(cTABUI!$G$11:$G$109,cTABUI!$D$11:$D$109,B52),0) -> 0 | F52: =IF(B52<>"",SUMIFS(cTABUI!$H$11:$H$109,cTABUI!$D$11:$D$109,B52),0) -> 0 | G52: =IF(B52<>"",SUMIFS(cTABUI!$I$11:$I$109,cTABUI!$D$11:$D$109,B52),0) -> 0 | H52: =IF(B52<>"",SUMIFS(cTABUI!$J$11:$J$109,cTABUI!$D$11:$D$109,B52),0) -> 0 | I52: =IF(B52<>"",SUMIFS(cTABUI!$K$11:$K$109,cTABUI!$D$11:$D$109,B52),0) -> 0 | J52: =IF(B52<>"",SUMIFS(cTABUI!$L$11:$L$109,cTABUI!$D$11:$D$109,B52),0) -> 0 | K52: =IF(B52<>"",SUMIFS(cTABUI!$M$11:$M$109,cTABUI!$D$11:$D$109,B52),0) -> 0 | L52: =IF(B52<>"",SUMIFS(cTABUI!$N$11:$N$109,cTABUI!$D$11:$D$109,B52),0) -> 0 | M52: =IF(B52<>"",SUMIFS(cTABUI!$O$11:$O$109,cTABUI!$D$11:$D$109,B52),0) -> 0
B53: =IF(iCONDOMINI!B53<>"",iCONDOMINI!B53,"") -> C43 | C53: =IF(iCONDOMINI!C53<>"",iCONDOMINI!C53,"") ->  | D53: =IF(B53<>"",SUMIFS(cTABUI!$F$11:$F$109,cTABUI!$D$11:$D$109,B53),0) -> 0 | E53: =IF(B53<>"",SUMIFS(cTABUI!$G$11:$G$109,cTABUI!$D$11:$D$109,B53),0) -> 0 | F53: =IF(B53<>"",SUMIFS(cTABUI!$H$11:$H$109,cTABUI!$D$11:$D$109,B53),0) -> 0 | G53: =IF(B53<>"",SUMIFS(cTABUI!$I$11:$I$109,cTABUI!$D$11:$D$109,B53),0) -> 0 | H53: =IF(B53<>"",SUMIFS(cTABUI!$J$11:$J$109,cTABUI!$D$11:$D$109,B53),0) -> 0 | I53: =IF(B53<>"",SUMIFS(cTABUI!$K$11:$K$109,cTABUI!$D$11:$D$109,B53),0) -> 0 | J53: =IF(B53<>"",SUMIFS(cTABUI!$L$11:$L$109,cTABUI!$D$11:$D$109,B53),0) -> 0 | K53: =IF(B53<>"",SUMIFS(cTABUI!$M$11:$M$109,cTABUI!$D$11:$D$109,B53),0) -> 0 | L53: =IF(B53<>"",SUMIFS(cTABUI!$N$11:$N$109,cTABUI!$D$11:$D$109,B53),0) -> 0 | M53: =IF(B53<>"",SUMIFS(cTABUI!$O$11:$O$109,cTABUI!$D$11:$D$109,B53),0) -> 0
B54: =IF(iCONDOMINI!B54<>"",iCONDOMINI!B54,"") -> C44 | C54: =IF(iCONDOMINI!C54<>"",iCONDOMINI!C54,"") ->  | D54: =IF(B54<>"",SUMIFS(cTABUI!$F$11:$F$109,cTABUI!$D$11:$D$109,B54),0) -> 0 | E54: =IF(B54<>"",SUMIFS(cTABUI!$G$11:$G$109,cTABUI!$D$11:$D$109,B54),0) -> 0 | F54: =IF(B54<>"",SUMIFS(cTABUI!$H$11:$H$109,cTABUI!$D$11:$D$109,B54),0) -> 0 | G54: =IF(B54<>"",SUMIFS(cTABUI!$I$11:$I$109,cTABUI!$D$11:$D$109,B54),0) -> 0 | H54: =IF(B54<>"",SUMIFS(cTABUI!$J$11:$J$109,cTABUI!$D$11:$D$109,B54),0) -> 0 | I54: =IF(B54<>"",SUMIFS(cTABUI!$K$11:$K$109,cTABUI!$D$11:$D$109,B54),0) -> 0 | J54: =IF(B54<>"",SUMIFS(cTABUI!$L$11:$L$109,cTABUI!$D$11:$D$109,B54),0) -> 0 | K54: =IF(B54<>"",SUMIFS(cTABUI!$M$11:$M$109,cTABUI!$D$11:$D$109,B54),0) -> 0 | L54: =IF(B54<>"",SUMIFS(cTABUI!$N$11:$N$109,cTABUI!$D$11:$D$109,B54),0) -> 0 | M54: =IF(B54<>"",SUMIFS(cTABUI!$O$11:$O$109,cTABUI!$D$11:$D$109,B54),0) -> 0
B55: =IF(iCONDOMINI!B55<>"",iCONDOMINI!B55,"") -> C45 | C55: =IF(iCONDOMINI!C55<>"",iCONDOMINI!C55,"") ->  | D55: =IF(B55<>"",SUMIFS(cTABUI!$F$11:$F$109,cTABUI!$D$11:$D$109,B55),0) -> 0 | E55: =IF(B55<>"",SUMIFS(cTABUI!$G$11:$G$109,cTABUI!$D$11:$D$109,B55),0) -> 0 | F55: =IF(B55<>"",SUMIFS(cTABUI!$H$11:$H$109,cTABUI!$D$11:$D$109,B55),0) -> 0 | G55: =IF(B55<>"",SUMIFS(cTABUI!$I$11:$I$109,cTABUI!$D$11:$D$109,B55),0) -> 0 | H55: =IF(B55<>"",SUMIFS(cTABUI!$J$11:$J$109,cTABUI!$D$11:$D$109,B55),0) -> 0 | I55: =IF(B55<>"",SUMIFS(cTABUI!$K$11:$K$109,cTABUI!$D$11:$D$109,B55),0) -> 0 | J55: =IF(B55<>"",SUMIFS(cTABUI!$L$11:$L$109,cTABUI!$D$11:$D$109,B55),0) -> 0 | K55: =IF(B55<>"",SUMIFS(cTABUI!$M$11:$M$109,cTABUI!$D$11:$D$109,B55),0) -> 0 | L55: =IF(B55<>"",SUMIFS(cTABUI!$N$11:$N$109,cTABUI!$D$11:$D$109,B55),0) -> 0 | M55: =IF(B55<>"",SUMIFS(cTABUI!$O$11:$O$109,cTABUI!$D$11:$D$109,B55),0) -> 0
B56: =IF(iCONDOMINI!B56<>"",iCONDOMINI!B56,"") -> C46 | C56: =IF(iCONDOMINI!C56<>"",iCONDOMINI!C56,"") ->  | D56: =IF(B56<>"",SUMIFS(cTABUI!$F$11:$F$109,cTABUI!$D$11:$D$109,B56),0) -> 0 | E56: =IF(B56<>"",SUMIFS(cTABUI!$G$11:$G$109,cTABUI!$D$11:$D$109,B56),0) -> 0 | F56: =IF(B56<>"",SUMIFS(cTABUI!$H$11:$H$109,cTABUI!$D$11:$D$109,B56),0) -> 0 | G56: =IF(B56<>"",SUMIFS(cTABUI!$I$11:$I$109,cTABUI!$D$11:$D$109,B56),0) -> 0 | H56: =IF(B56<>"",SUMIFS(cTABUI!$J$11:$J$109,cTABUI!$D$11:$D$109,B56),0) -> 0 | I56: =IF(B56<>"",SUMIFS(cTABUI!$K$11:$K$109,cTABUI!$D$11:$D$109,B56),0) -> 0 | J56: =IF(B56<>"",SUMIFS(cTABUI!$L$11:$L$109,cTABUI!$D$11:$D$109,B56),0) -> 0 | K56: =IF(B56<>"",SUMIFS(cTABUI!$M$11:$M$109,cTABUI!$D$11:$D$109,B56),0) -> 0 | L56: =IF(B56<>"",SUMIFS(cTABUI!$N$11:$N$109,cTABUI!$D$11:$D$109,B56),0) -> 0 | M56: =IF(B56<>"",SUMIFS(cTABUI!$O$11:$O$109,cTABUI!$D$11:$D$109,B56),0) -> 0
B57: =IF(iCONDOMINI!B57<>"",iCONDOMINI!B57,"") -> C47 | C57: =IF(iCONDOMINI!C57<>"",iCONDOMINI!C57,"") ->  | D57: =IF(B57<>"",SUMIFS(cTABUI!$F$11:$F$109,cTABUI!$D$11:$D$109,B57),0) -> 0 | E57: =IF(B57<>"",SUMIFS(cTABUI!$G$11:$G$109,cTABUI!$D$11:$D$109,B57),0) -> 0 | F57: =IF(B57<>"",SUMIFS(cTABUI!$H$11:$H$109,cTABUI!$D$11:$D$109,B57),0) -> 0 | G57: =IF(B57<>"",SUMIFS(cTABUI!$I$11:$I$109,cTABUI!$D$11:$D$109,B57),0) -> 0 | H57: =IF(B57<>"",SUMIFS(cTABUI!$J$11:$J$109,cTABUI!$D$11:$D$109,B57),0) -> 0 | I57: =IF(B57<>"",SUMIFS(cTABUI!$K$11:$K$109,cTABUI!$D$11:$D$109,B57),0) -> 0 | J57: =IF(B57<>"",SUMIFS(cTABUI!$L$11:$L$109,cTABUI!$D$11:$D$109,B57),0) -> 0 | K57: =IF(B57<>"",SUMIFS(cTABUI!$M$11:$M$109,cTABUI!$D$11:$D$109,B57),0) -> 0 | L57: =IF(B57<>"",SUMIFS(cTABUI!$N$11:$N$109,cTABUI!$D$11:$D$109,B57),0) -> 0 | M57: =IF(B57<>"",SUMIFS(cTABUI!$O$11:$O$109,cTABUI!$D$11:$D$109,B57),0) -> 0
B58: =IF(iCONDOMINI!B58<>"",iCONDOMINI!B58,"") -> C48 | C58: =IF(iCONDOMINI!C58<>"",iCONDOMINI!C58,"") ->  | D58: =IF(B58<>"",SUMIFS(cTABUI!$F$11:$F$109,cTABUI!$D$11:$D$109,B58),0) -> 0 | E58: =IF(B58<>"",SUMIFS(cTABUI!$G$11:$G$109,cTABUI!$D$11:$D$109,B58),0) -> 0 | F58: =IF(B58<>"",SUMIFS(cTABUI!$H$11:$H$109,cTABUI!$D$11:$D$109,B58),0) -> 0 | G58: =IF(B58<>"",SUMIFS(cTABUI!$I$11:$I$109,cTABUI!$D$11:$D$109,B58),0) -> 0 | H58: =IF(B58<>"",SUMIFS(cTABUI!$J$11:$J$109,cTABUI!$D$11:$D$109,B58),0) -> 0 | I58: =IF(B58<>"",SUMIFS(cTABUI!$K$11:$K$109,cTABUI!$D$11:$D$109,B58),0) -> 0 | J58: =IF(B58<>"",SUMIFS(cTABUI!$L$11:$L$109,cTABUI!$D$11:$D$109,B58),0) -> 0 | K58: =IF(B58<>"",SUMIFS(cTABUI!$M$11:$M$109,cTABUI!$D$11:$D$109,B58),0) -> 0 | L58: =IF(B58<>"",SUMIFS(cTABUI!$N$11:$N$109,cTABUI!$D$11:$D$109,B58),0) -> 0 | M58: =IF(B58<>"",SUMIFS(cTABUI!$O$11:$O$109,cTABUI!$D$11:$D$109,B58),0) -> 0
B59: =IF(iCONDOMINI!B59<>"",iCONDOMINI!B59,"") -> C49 | C59: =IF(iCONDOMINI!C59<>"",iCONDOMINI!C59,"") ->  | D59: =IF(B59<>"",SUMIFS(cTABUI!$F$11:$F$109,cTABUI!$D$11:$D$109,B59),0) -> 0 | E59: =IF(B59<>"",SUMIFS(cTABUI!$G$11:$G$109,cTABUI!$D$11:$D$109,B59),0) -> 0 | F59: =IF(B59<>"",SUMIFS(cTABUI!$H$11:$H$109,cTABUI!$D$11:$D$109,B59),0) -> 0 | G59: =IF(B59<>"",SUMIFS(cTABUI!$I$11:$I$109,cTABUI!$D$11:$D$109,B59),0) -> 0 | H59: =IF(B59<>"",SUMIFS(cTABUI!$J$11:$J$109,cTABUI!$D$11:$D$109,B59),0) -> 0 | I59: =IF(B59<>"",SUMIFS(cTABUI!$K$11:$K$109,cTABUI!$D$11:$D$109,B59),0) -> 0 | J59: =IF(B59<>"",SUMIFS(cTABUI!$L$11:$L$109,cTABUI!$D$11:$D$109,B59),0) -> 0 | K59: =IF(B59<>"",SUMIFS(cTABUI!$M$11:$M$109,cTABUI!$D$11:$D$109,B59),0) -> 0 | L59: =IF(B59<>"",SUMIFS(cTABUI!$N$11:$N$109,cTABUI!$D$11:$D$109,B59),0) -> 0 | M59: =IF(B59<>"",SUMIFS(cTABUI!$O$11:$O$109,cTABUI!$D$11:$D$109,B59),0) -> 0
B60: =IF(iCONDOMINI!B60<>"",iCONDOMINI!B60,"") -> C50 | C60: =IF(iCONDOMINI!C60<>"",iCONDOMINI!C60,"") ->  | D60: =IF(B60<>"",SUMIFS(cTABUI!$F$11:$F$109,cTABUI!$D$11:$D$109,B60),0) -> 0 | E60: =IF(B60<>"",SUMIFS(cTABUI!$G$11:$G$109,cTABUI!$D$11:$D$109,B60),0) -> 0 | F60: =IF(B60<>"",SUMIFS(cTABUI!$H$11:$H$109,cTABUI!$D$11:$D$109,B60),0) -> 0 | G60: =IF(B60<>"",SUMIFS(cTABUI!$I$11:$I$109,cTABUI!$D$11:$D$109,B60),0) -> 0 | H60: =IF(B60<>"",SUMIFS(cTABUI!$J$11:$J$109,cTABUI!$D$11:$D$109,B60),0) -> 0 | I60: =IF(B60<>"",SUMIFS(cTABUI!$K$11:$K$109,cTABUI!$D$11:$D$109,B60),0) -> 0 | J60: =IF(B60<>"",SUMIFS(cTABUI!$L$11:$L$109,cTABUI!$D$11:$D$109,B60),0) -> 0 | K60: =IF(B60<>"",SUMIFS(cTABUI!$M$11:$M$109,cTABUI!$D$11:$D$109,B60),0) -> 0 | L60: =IF(B60<>"",SUMIFS(cTABUI!$N$11:$N$109,cTABUI!$D$11:$D$109,B60),0) -> 0 | M60: =IF(B60<>"",SUMIFS(cTABUI!$O$11:$O$109,cTABUI!$D$11:$D$109,B60),0) -> 0
B61: =IF(iCONDOMINI!B61<>"",iCONDOMINI!B61,"") -> C51 | C61: =IF(iCONDOMINI!C61<>"",iCONDOMINI!C61,"") ->  | D61: =IF(B61<>"",SUMIFS(cTABUI!$F$11:$F$109,cTABUI!$D$11:$D$109,B61),0) -> 0 | E61: =IF(B61<>"",SUMIFS(cTABUI!$G$11:$G$109,cTABUI!$D$11:$D$109,B61),0) -> 0 | F61: =IF(B61<>"",SUMIFS(cTABUI!$H$11:$H$109,cTABUI!$D$11:$D$109,B61),0) -> 0 | G61: =IF(B61<>"",SUMIFS(cTABUI!$I$11:$I$109,cTABUI!$D$11:$D$109,B61),0) -> 0 | H61: =IF(B61<>"",SUMIFS(cTABUI!$J$11:$J$109,cTABUI!$D$11:$D$109,B61),0) -> 0 | I61: =IF(B61<>"",SUMIFS(cTABUI!$K$11:$K$109,cTABUI!$D$11:$D$109,B61),0) -> 0 | J61: =IF(B61<>"",SUMIFS(cTABUI!$L$11:$L$109,cTABUI!$D$11:$D$109,B61),0) -> 0 | K61: =IF(B61<>"",SUMIFS(cTABUI!$M$11:$M$109,cTABUI!$D$11:$D$109,B61),0) -> 0 | L61: =IF(B61<>"",SUMIFS(cTABUI!$N$11:$N$109,cTABUI!$D$11:$D$109,B61),0) -> 0 | M61: =IF(B61<>"",SUMIFS(cTABUI!$O$11:$O$109,cTABUI!$D$11:$D$109,B61),0) -> 0
B62: =IF(iCONDOMINI!B62<>"",iCONDOMINI!B62,"") -> C52 | C62: =IF(iCONDOMINI!C62<>"",iCONDOMINI!C62,"") ->  | D62: =IF(B62<>"",SUMIFS(cTABUI!$F$11:$F$109,cTABUI!$D$11:$D$109,B62),0) -> 0 | E62: =IF(B62<>"",SUMIFS(cTABUI!$G$11:$G$109,cTABUI!$D$11:$D$109,B62),0) -> 0 | F62: =IF(B62<>"",SUMIFS(cTABUI!$H$11:$H$109,cTABUI!$D$11:$D$109,B62),0) -> 0 | G62: =IF(B62<>"",SUMIFS(cTABUI!$I$11:$I$109,cTABUI!$D$11:$D$109,B62),0) -> 0 | H62: =IF(B62<>"",SUMIFS(cTABUI!$J$11:$J$109,cTABUI!$D$11:$D$109,B62),0) -> 0 | I62: =IF(B62<>"",SUMIFS(cTABUI!$K$11:$K$109,cTABUI!$D$11:$D$109,B62),0) -> 0 | J62: =IF(B62<>"",SUMIFS(cTABUI!$L$11:$L$109,cTABUI!$D$11:$D$109,B62),0) -> 0 | K62: =IF(B62<>"",SUMIFS(cTABUI!$M$11:$M$109,cTABUI!$D$11:$D$109,B62),0) -> 0 | L62: =IF(B62<>"",SUMIFS(cTABUI!$N$11:$N$109,cTABUI!$D$11:$D$109,B62),0) -> 0 | M62: =IF(B62<>"",SUMIFS(cTABUI!$O$11:$O$109,cTABUI!$D$11:$D$109,B62),0) -> 0
B63: =IF(iCONDOMINI!B63<>"",iCONDOMINI!B63,"") -> C53 | C63: =IF(iCONDOMINI!C63<>"",iCONDOMINI!C63,"") ->  | D63: =IF(B63<>"",SUMIFS(cTABUI!$F$11:$F$109,cTABUI!$D$11:$D$109,B63),0) -> 0 | E63: =IF(B63<>"",SUMIFS(cTABUI!$G$11:$G$109,cTABUI!$D$11:$D$109,B63),0) -> 0 | F63: =IF(B63<>"",SUMIFS(cTABUI!$H$11:$H$109,cTABUI!$D$11:$D$109,B63),0) -> 0 | G63: =IF(B63<>"",SUMIFS(cTABUI!$I$11:$I$109,cTABUI!$D$11:$D$109,B63),0) -> 0 | H63: =IF(B63<>"",SUMIFS(cTABUI!$J$11:$J$109,cTABUI!$D$11:$D$109,B63),0) -> 0 | I63: =IF(B63<>"",SUMIFS(cTABUI!$K$11:$K$109,cTABUI!$D$11:$D$109,B63),0) -> 0 | J63: =IF(B63<>"",SUMIFS(cTABUI!$L$11:$L$109,cTABUI!$D$11:$D$109,B63),0) -> 0 | K63: =IF(B63<>"",SUMIFS(cTABUI!$M$11:$M$109,cTABUI!$D$11:$D$109,B63),0) -> 0 | L63: =IF(B63<>"",SUMIFS(cTABUI!$N$11:$N$109,cTABUI!$D$11:$D$109,B63),0) -> 0 | M63: =IF(B63<>"",SUMIFS(cTABUI!$O$11:$O$109,cTABUI!$D$11:$D$109,B63),0) -> 0
B64: =IF(iCONDOMINI!B64<>"",iCONDOMINI!B64,"") -> C54 | C64: =IF(iCONDOMINI!C64<>"",iCONDOMINI!C64,"") ->  | D64: =IF(B64<>"",SUMIFS(cTABUI!$F$11:$F$109,cTABUI!$D$11:$D$109,B64),0) -> 0 | E64: =IF(B64<>"",SUMIFS(cTABUI!$G$11:$G$109,cTABUI!$D$11:$D$109,B64),0) -> 0 | F64: =IF(B64<>"",SUMIFS(cTABUI!$H$11:$H$109,cTABUI!$D$11:$D$109,B64),0) -> 0 | G64: =IF(B64<>"",SUMIFS(cTABUI!$I$11:$I$109,cTABUI!$D$11:$D$109,B64),0) -> 0 | H64: =IF(B64<>"",SUMIFS(cTABUI!$J$11:$J$109,cTABUI!$D$11:$D$109,B64),0) -> 0 | I64: =IF(B64<>"",SUMIFS(cTABUI!$K$11:$K$109,cTABUI!$D$11:$D$109,B64),0) -> 0 | J64: =IF(B64<>"",SUMIFS(cTABUI!$L$11:$L$109,cTABUI!$D$11:$D$109,B64),0) -> 0 | K64: =IF(B64<>"",SUMIFS(cTABUI!$M$11:$M$109,cTABUI!$D$11:$D$109,B64),0) -> 0 | L64: =IF(B64<>"",SUMIFS(cTABUI!$N$11:$N$109,cTABUI!$D$11:$D$109,B64),0) -> 0 | M64: =IF(B64<>"",SUMIFS(cTABUI!$O$11:$O$109,cTABUI!$D$11:$D$109,B64),0) -> 0
B65: =IF(iCONDOMINI!B65<>"",iCONDOMINI!B65,"") -> C55 | C65: =IF(iCONDOMINI!C65<>"",iCONDOMINI!C65,"") ->  | D65: =IF(B65<>"",SUMIFS(cTABUI!$F$11:$F$109,cTABUI!$D$11:$D$109,B65),0) -> 0 | E65: =IF(B65<>"",SUMIFS(cTABUI!$G$11:$G$109,cTABUI!$D$11:$D$109,B65),0) -> 0 | F65: =IF(B65<>"",SUMIFS(cTABUI!$H$11:$H$109,cTABUI!$D$11:$D$109,B65),0) -> 0 | G65: =IF(B65<>"",SUMIFS(cTABUI!$I$11:$I$109,cTABUI!$D$11:$D$109,B65),0) -> 0 | H65: =IF(B65<>"",SUMIFS(cTABUI!$J$11:$J$109,cTABUI!$D$11:$D$109,B65),0) -> 0 | I65: =IF(B65<>"",SUMIFS(cTABUI!$K$11:$K$109,cTABUI!$D$11:$D$109,B65),0) -> 0 | J65: =IF(B65<>"",SUMIFS(cTABUI!$L$11:$L$109,cTABUI!$D$11:$D$109,B65),0) -> 0 | K65: =IF(B65<>"",SUMIFS(cTABUI!$M$11:$M$109,cTABUI!$D$11:$D$109,B65),0) -> 0 | L65: =IF(B65<>"",SUMIFS(cTABUI!$N$11:$N$109,cTABUI!$D$11:$D$109,B65),0) -> 0 | M65: =IF(B65<>"",SUMIFS(cTABUI!$O$11:$O$109,cTABUI!$D$11:$D$109,B65),0) -> 0
B66: =IF(iCONDOMINI!B66<>"",iCONDOMINI!B66,"") -> C56 | C66: =IF(iCONDOMINI!C66<>"",iCONDOMINI!C66,"") ->  | D66: =IF(B66<>"",SUMIFS(cTABUI!$F$11:$F$109,cTABUI!$D$11:$D$109,B66),0) -> 0 | E66: =IF(B66<>"",SUMIFS(cTABUI!$G$11:$G$109,cTABUI!$D$11:$D$109,B66),0) -> 0 | F66: =IF(B66<>"",SUMIFS(cTABUI!$H$11:$H$109,cTABUI!$D$11:$D$109,B66),0) -> 0 | G66: =IF(B66<>"",SUMIFS(cTABUI!$I$11:$I$109,cTABUI!$D$11:$D$109,B66),0) -> 0 | H66: =IF(B66<>"",SUMIFS(cTABUI!$J$11:$J$109,cTABUI!$D$11:$D$109,B66),0) -> 0 | I66: =IF(B66<>"",SUMIFS(cTABUI!$K$11:$K$109,cTABUI!$D$11:$D$109,B66),0) -> 0 | J66: =IF(B66<>"",SUMIFS(cTABUI!$L$11:$L$109,cTABUI!$D$11:$D$109,B66),0) -> 0 | K66: =IF(B66<>"",SUMIFS(cTABUI!$M$11:$M$109,cTABUI!$D$11:$D$109,B66),0) -> 0 | L66: =IF(B66<>"",SUMIFS(cTABUI!$N$11:$N$109,cTABUI!$D$11:$D$109,B66),0) -> 0 | M66: =IF(B66<>"",SUMIFS(cTABUI!$O$11:$O$109,cTABUI!$D$11:$D$109,B66),0) -> 0
B67: =IF(iCONDOMINI!B67<>"",iCONDOMINI!B67,"") -> C57 | C67: =IF(iCONDOMINI!C67<>"",iCONDOMINI!C67,"") ->  | D67: =IF(B67<>"",SUMIFS(cTABUI!$F$11:$F$109,cTABUI!$D$11:$D$109,B67),0) -> 0 | E67: =IF(B67<>"",SUMIFS(cTABUI!$G$11:$G$109,cTABUI!$D$11:$D$109,B67),0) -> 0 | F67: =IF(B67<>"",SUMIFS(cTABUI!$H$11:$H$109,cTABUI!$D$11:$D$109,B67),0) -> 0 | G67: =IF(B67<>"",SUMIFS(cTABUI!$I$11:$I$109,cTABUI!$D$11:$D$109,B67),0) -> 0 | H67: =IF(B67<>"",SUMIFS(cTABUI!$J$11:$J$109,cTABUI!$D$11:$D$109,B67),0) -> 0 | I67: =IF(B67<>"",SUMIFS(cTABUI!$K$11:$K$109,cTABUI!$D$11:$D$109,B67),0) -> 0 | J67: =IF(B67<>"",SUMIFS(cTABUI!$L$11:$L$109,cTABUI!$D$11:$D$109,B67),0) -> 0 | K67: =IF(B67<>"",SUMIFS(cTABUI!$M$11:$M$109,cTABUI!$D$11:$D$109,B67),0) -> 0 | L67: =IF(B67<>"",SUMIFS(cTABUI!$N$11:$N$109,cTABUI!$D$11:$D$109,B67),0) -> 0 | M67: =IF(B67<>"",SUMIFS(cTABUI!$O$11:$O$109,cTABUI!$D$11:$D$109,B67),0) -> 0
B68: =IF(iCONDOMINI!B68<>"",iCONDOMINI!B68,"") -> C58 | C68: =IF(iCONDOMINI!C68<>"",iCONDOMINI!C68,"") ->  | D68: =IF(B68<>"",SUMIFS(cTABUI!$F$11:$F$109,cTABUI!$D$11:$D$109,B68),0) -> 0 | E68: =IF(B68<>"",SUMIFS(cTABUI!$G$11:$G$109,cTABUI!$D$11:$D$109,B68),0) -> 0 | F68: =IF(B68<>"",SUMIFS(cTABUI!$H$11:$H$109,cTABUI!$D$11:$D$109,B68),0) -> 0 | G68: =IF(B68<>"",SUMIFS(cTABUI!$I$11:$I$109,cTABUI!$D$11:$D$109,B68),0) -> 0 | H68: =IF(B68<>"",SUMIFS(cTABUI!$J$11:$J$109,cTABUI!$D$11:$D$109,B68),0) -> 0 | I68: =IF(B68<>"",SUMIFS(cTABUI!$K$11:$K$109,cTABUI!$D$11:$D$109,B68),0) -> 0 | J68: =IF(B68<>"",SUMIFS(cTABUI!$L$11:$L$109,cTABUI!$D$11:$D$109,B68),0) -> 0 | K68: =IF(B68<>"",SUMIFS(cTABUI!$M$11:$M$109,cTABUI!$D$11:$D$109,B68),0) -> 0 | L68: =IF(B68<>"",SUMIFS(cTABUI!$N$11:$N$109,cTABUI!$D$11:$D$109,B68),0) -> 0 | M68: =IF(B68<>"",SUMIFS(cTABUI!$O$11:$O$109,cTABUI!$D$11:$D$109,B68),0) -> 0
B69: =IF(iCONDOMINI!B69<>"",iCONDOMINI!B69,"") -> C59 | C69: =IF(iCONDOMINI!C69<>"",iCONDOMINI!C69,"") ->  | D69: =IF(B69<>"",SUMIFS(cTABUI!$F$11:$F$109,cTABUI!$D$11:$D$109,B69),0) -> 0 | E69: =IF(B69<>"",SUMIFS(cTABUI!$G$11:$G$109,cTABUI!$D$11:$D$109,B69),0) -> 0 | F69: =IF(B69<>"",SUMIFS(cTABUI!$H$11:$H$109,cTABUI!$D$11:$D$109,B69),0) -> 0 | G69: =IF(B69<>"",SUMIFS(cTABUI!$I$11:$I$109,cTABUI!$D$11:$D$109,B69),0) -> 0 | H69: =IF(B69<>"",SUMIFS(cTABUI!$J$11:$J$109,cTABUI!$D$11:$D$109,B69),0) -> 0 | I69: =IF(B69<>"",SUMIFS(cTABUI!$K$11:$K$109,cTABUI!$D$11:$D$109,B69),0) -> 0 | J69: =IF(B69<>"",SUMIFS(cTABUI!$L$11:$L$109,cTABUI!$D$11:$D$109,B69),0) -> 0 | K69: =IF(B69<>"",SUMIFS(cTABUI!$M$11:$M$109,cTABUI!$D$11:$D$109,B69),0) -> 0 | L69: =IF(B69<>"",SUMIFS(cTABUI!$N$11:$N$109,cTABUI!$D$11:$D$109,B69),0) -> 0 | M69: =IF(B69<>"",SUMIFS(cTABUI!$O$11:$O$109,cTABUI!$D$11:$D$109,B69),0) -> 0
B70: =IF(iCONDOMINI!B70<>"",iCONDOMINI!B70,"") -> C60 | C70: =IF(iCONDOMINI!C70<>"",iCONDOMINI!C70,"") ->  | D70: =IF(B70<>"",SUMIFS(cTABUI!$F$11:$F$109,cTABUI!$D$11:$D$109,B70),0) -> 0 | E70: =IF(B70<>"",SUMIFS(cTABUI!$G$11:$G$109,cTABUI!$D$11:$D$109,B70),0) -> 0 | F70: =IF(B70<>"",SUMIFS(cTABUI!$H$11:$H$109,cTABUI!$D$11:$D$109,B70),0) -> 0 | G70: =IF(B70<>"",SUMIFS(cTABUI!$I$11:$I$109,cTABUI!$D$11:$D$109,B70),0) -> 0 | H70: =IF(B70<>"",SUMIFS(cTABUI!$J$11:$J$109,cTABUI!$D$11:$D$109,B70),0) -> 0 | I70: =IF(B70<>"",SUMIFS(cTABUI!$K$11:$K$109,cTABUI!$D$11:$D$109,B70),0) -> 0 | J70: =IF(B70<>"",SUMIFS(cTABUI!$L$11:$L$109,cTABUI!$D$11:$D$109,B70),0) -> 0 | K70: =IF(B70<>"",SUMIFS(cTABUI!$M$11:$M$109,cTABUI!$D$11:$D$109,B70),0) -> 0 | L70: =IF(B70<>"",SUMIFS(cTABUI!$N$11:$N$109,cTABUI!$D$11:$D$109,B70),0) -> 0 | M70: =IF(B70<>"",SUMIFS(cTABUI!$O$11:$O$109,cTABUI!$D$11:$D$109,B70),0) -> 0
B71: =IF(iCONDOMINI!B71<>"",iCONDOMINI!B71,"") -> C61 | C71: =IF(iCONDOMINI!C71<>"",iCONDOMINI!C71,"") ->  | D71: =IF(B71<>"",SUMIFS(cTABUI!$F$11:$F$109,cTABUI!$D$11:$D$109,B71),0) -> 0 | E71: =IF(B71<>"",SUMIFS(cTABUI!$G$11:$G$109,cTABUI!$D$11:$D$109,B71),0) -> 0 | F71: =IF(B71<>"",SUMIFS(cTABUI!$H$11:$H$109,cTABUI!$D$11:$D$109,B71),0) -> 0 | G71: =IF(B71<>"",SUMIFS(cTABUI!$I$11:$I$109,cTABUI!$D$11:$D$109,B71),0) -> 0 | H71: =IF(B71<>"",SUMIFS(cTABUI!$J$11:$J$109,cTABUI!$D$11:$D$109,B71),0) -> 0 | I71: =IF(B71<>"",SUMIFS(cTABUI!$K$11:$K$109,cTABUI!$D$11:$D$109,B71),0) -> 0 | J71: =IF(B71<>"",SUMIFS(cTABUI!$L$11:$L$109,cTABUI!$D$11:$D$109,B71),0) -> 0 | K71: =IF(B71<>"",SUMIFS(cTABUI!$M$11:$M$109,cTABUI!$D$11:$D$109,B71),0) -> 0 | L71: =IF(B71<>"",SUMIFS(cTABUI!$N$11:$N$109,cTABUI!$D$11:$D$109,B71),0) -> 0 | M71: =IF(B71<>"",SUMIFS(cTABUI!$O$11:$O$109,cTABUI!$D$11:$D$109,B71),0) -> 0
B72: =IF(iCONDOMINI!B72<>"",iCONDOMINI!B72,"") -> C62 | C72: =IF(iCONDOMINI!C72<>"",iCONDOMINI!C72,"") ->  | D72: =IF(B72<>"",SUMIFS(cTABUI!$F$11:$F$109,cTABUI!$D$11:$D$109,B72),0) -> 0 | E72: =IF(B72<>"",SUMIFS(cTABUI!$G$11:$G$109,cTABUI!$D$11:$D$109,B72),0) -> 0 | F72: =IF(B72<>"",SUMIFS(cTABUI!$H$11:$H$109,cTABUI!$D$11:$D$109,B72),0) -> 0 | G72: =IF(B72<>"",SUMIFS(cTABUI!$I$11:$I$109,cTABUI!$D$11:$D$109,B72),0) -> 0 | H72: =IF(B72<>"",SUMIFS(cTABUI!$J$11:$J$109,cTABUI!$D$11:$D$109,B72),0) -> 0 | I72: =IF(B72<>"",SUMIFS(cTABUI!$K$11:$K$109,cTABUI!$D$11:$D$109,B72),0) -> 0 | J72: =IF(B72<>"",SUMIFS(cTABUI!$L$11:$L$109,cTABUI!$D$11:$D$109,B72),0) -> 0 | K72: =IF(B72<>"",SUMIFS(cTABUI!$M$11:$M$109,cTABUI!$D$11:$D$109,B72),0) -> 0 | L72: =IF(B72<>"",SUMIFS(cTABUI!$N$11:$N$109,cTABUI!$D$11:$D$109,B72),0) -> 0 | M72: =IF(B72<>"",SUMIFS(cTABUI!$O$11:$O$109,cTABUI!$D$11:$D$109,B72),0) -> 0
B73: =IF(iCONDOMINI!B73<>"",iCONDOMINI!B73,"") -> C63 | C73: =IF(iCONDOMINI!C73<>"",iCONDOMINI!C73,"") ->  | D73: =IF(B73<>"",SUMIFS(cTABUI!$F$11:$F$109,cTABUI!$D$11:$D$109,B73),0) -> 0 | E73: =IF(B73<>"",SUMIFS(cTABUI!$G$11:$G$109,cTABUI!$D$11:$D$109,B73),0) -> 0 | F73: =IF(B73<>"",SUMIFS(cTABUI!$H$11:$H$109,cTABUI!$D$11:$D$109,B73),0) -> 0 | G73: =IF(B73<>"",SUMIFS(cTABUI!$I$11:$I$109,cTABUI!$D$11:$D$109,B73),0) -> 0 | H73: =IF(B73<>"",SUMIFS(cTABUI!$J$11:$J$109,cTABUI!$D$11:$D$109,B73),0) -> 0 | I73: =IF(B73<>"",SUMIFS(cTABUI!$K$11:$K$109,cTABUI!$D$11:$D$109,B73),0) -> 0 | J73: =IF(B73<>"",SUMIFS(cTABUI!$L$11:$L$109,cTABUI!$D$11:$D$109,B73),0) -> 0 | K73: =IF(B73<>"",SUMIFS(cTABUI!$M$11:$M$109,cTABUI!$D$11:$D$109,B73),0) -> 0 | L73: =IF(B73<>"",SUMIFS(cTABUI!$N$11:$N$109,cTABUI!$D$11:$D$109,B73),0) -> 0 | M73: =IF(B73<>"",SUMIFS(cTABUI!$O$11:$O$109,cTABUI!$D$11:$D$109,B73),0) -> 0
B74: =IF(iCONDOMINI!B74<>"",iCONDOMINI!B74,"") -> C64 | C74: =IF(iCONDOMINI!C74<>"",iCONDOMINI!C74,"") ->  | D74: =IF(B74<>"",SUMIFS(cTABUI!$F$11:$F$109,cTABUI!$D$11:$D$109,B74),0) -> 0 | E74: =IF(B74<>"",SUMIFS(cTABUI!$G$11:$G$109,cTABUI!$D$11:$D$109,B74),0) -> 0 | F74: =IF(B74<>"",SUMIFS(cTABUI!$H$11:$H$109,cTABUI!$D$11:$D$109,B74),0) -> 0 | G74: =IF(B74<>"",SUMIFS(cTABUI!$I$11:$I$109,cTABUI!$D$11:$D$109,B74),0) -> 0 | H74: =IF(B74<>"",SUMIFS(cTABUI!$J$11:$J$109,cTABUI!$D$11:$D$109,B74),0) -> 0 | I74: =IF(B74<>"",SUMIFS(cTABUI!$K$11:$K$109,cTABUI!$D$11:$D$109,B74),0) -> 0 | J74: =IF(B74<>"",SUMIFS(cTABUI!$L$11:$L$109,cTABUI!$D$11:$D$109,B74),0) -> 0 | K74: =IF(B74<>"",SUMIFS(cTABUI!$M$11:$M$109,cTABUI!$D$11:$D$109,B74),0) -> 0 | L74: =IF(B74<>"",SUMIFS(cTABUI!$N$11:$N$109,cTABUI!$D$11:$D$109,B74),0) -> 0 | M74: =IF(B74<>"",SUMIFS(cTABUI!$O$11:$O$109,cTABUI!$D$11:$D$109,B74),0) -> 0
B75: =IF(iCONDOMINI!B75<>"",iCONDOMINI!B75,"") -> C65 | C75: =IF(iCONDOMINI!C75<>"",iCONDOMINI!C75,"") ->  | D75: =IF(B75<>"",SUMIFS(cTABUI!$F$11:$F$109,cTABUI!$D$11:$D$109,B75),0) -> 0 | E75: =IF(B75<>"",SUMIFS(cTABUI!$G$11:$G$109,cTABUI!$D$11:$D$109,B75),0) -> 0 | F75: =IF(B75<>"",SUMIFS(cTABUI!$H$11:$H$109,cTABUI!$D$11:$D$109,B75),0) -> 0 | G75: =IF(B75<>"",SUMIFS(cTABUI!$I$11:$I$109,cTABUI!$D$11:$D$109,B75),0) -> 0 | H75: =IF(B75<>"",SUMIFS(cTABUI!$J$11:$J$109,cTABUI!$D$11:$D$109,B75),0) -> 0 | I75: =IF(B75<>"",SUMIFS(cTABUI!$K$11:$K$109,cTABUI!$D$11:$D$109,B75),0) -> 0 | J75: =IF(B75<>"",SUMIFS(cTABUI!$L$11:$L$109,cTABUI!$D$11:$D$109,B75),0) -> 0 | K75: =IF(B75<>"",SUMIFS(cTABUI!$M$11:$M$109,cTABUI!$D$11:$D$109,B75),0) -> 0 | L75: =IF(B75<>"",SUMIFS(cTABUI!$N$11:$N$109,cTABUI!$D$11:$D$109,B75),0) -> 0 | M75: =IF(B75<>"",SUMIFS(cTABUI!$O$11:$O$109,cTABUI!$D$11:$D$109,B75),0) -> 0
B76: =IF(iCONDOMINI!B76<>"",iCONDOMINI!B76,"") -> C66 | C76: =IF(iCONDOMINI!C76<>"",iCONDOMINI!C76,"") ->  | D76: =IF(B76<>"",SUMIFS(cTABUI!$F$11:$F$109,cTABUI!$D$11:$D$109,B76),0) -> 0 | E76: =IF(B76<>"",SUMIFS(cTABUI!$G$11:$G$109,cTABUI!$D$11:$D$109,B76),0) -> 0 | F76: =IF(B76<>"",SUMIFS(cTABUI!$H$11:$H$109,cTABUI!$D$11:$D$109,B76),0) -> 0 | G76: =IF(B76<>"",SUMIFS(cTABUI!$I$11:$I$109,cTABUI!$D$11:$D$109,B76),0) -> 0 | H76: =IF(B76<>"",SUMIFS(cTABUI!$J$11:$J$109,cTABUI!$D$11:$D$109,B76),0) -> 0 | I76: =IF(B76<>"",SUMIFS(cTABUI!$K$11:$K$109,cTABUI!$D$11:$D$109,B76),0) -> 0 | J76: =IF(B76<>"",SUMIFS(cTABUI!$L$11:$L$109,cTABUI!$D$11:$D$109,B76),0) -> 0 | K76: =IF(B76<>"",SUMIFS(cTABUI!$M$11:$M$109,cTABUI!$D$11:$D$109,B76),0) -> 0 | L76: =IF(B76<>"",SUMIFS(cTABUI!$N$11:$N$109,cTABUI!$D$11:$D$109,B76),0) -> 0 | M76: =IF(B76<>"",SUMIFS(cTABUI!$O$11:$O$109,cTABUI!$D$11:$D$109,B76),0) -> 0
B77: =IF(iCONDOMINI!B77<>"",iCONDOMINI!B77,"") -> C67 | C77: =IF(iCONDOMINI!C77<>"",iCONDOMINI!C77,"") ->  | D77: =IF(B77<>"",SUMIFS(cTABUI!$F$11:$F$109,cTABUI!$D$11:$D$109,B77),0) -> 0 | E77: =IF(B77<>"",SUMIFS(cTABUI!$G$11:$G$109,cTABUI!$D$11:$D$109,B77),0) -> 0 | F77: =IF(B77<>"",SUMIFS(cTABUI!$H$11:$H$109,cTABUI!$D$11:$D$109,B77),0) -> 0 | G77: =IF(B77<>"",SUMIFS(cTABUI!$I$11:$I$109,cTABUI!$D$11:$D$109,B77),0) -> 0 | H77: =IF(B77<>"",SUMIFS(cTABUI!$J$11:$J$109,cTABUI!$D$11:$D$109,B77),0) -> 0 | I77: =IF(B77<>"",SUMIFS(cTABUI!$K$11:$K$109,cTABUI!$D$11:$D$109,B77),0) -> 0 | J77: =IF(B77<>"",SUMIFS(cTABUI!$L$11:$L$109,cTABUI!$D$11:$D$109,B77),0) -> 0 | K77: =IF(B77<>"",SUMIFS(cTABUI!$M$11:$M$109,cTABUI!$D$11:$D$109,B77),0) -> 0 | L77: =IF(B77<>"",SUMIFS(cTABUI!$N$11:$N$109,cTABUI!$D$11:$D$109,B77),0) -> 0 | M77: =IF(B77<>"",SUMIFS(cTABUI!$O$11:$O$109,cTABUI!$D$11:$D$109,B77),0) -> 0
B78: =IF(iCONDOMINI!B78<>"",iCONDOMINI!B78,"") -> C68 | C78: =IF(iCONDOMINI!C78<>"",iCONDOMINI!C78,"") ->  | D78: =IF(B78<>"",SUMIFS(cTABUI!$F$11:$F$109,cTABUI!$D$11:$D$109,B78),0) -> 0 | E78: =IF(B78<>"",SUMIFS(cTABUI!$G$11:$G$109,cTABUI!$D$11:$D$109,B78),0) -> 0 | F78: =IF(B78<>"",SUMIFS(cTABUI!$H$11:$H$109,cTABUI!$D$11:$D$109,B78),0) -> 0 | G78: =IF(B78<>"",SUMIFS(cTABUI!$I$11:$I$109,cTABUI!$D$11:$D$109,B78),0) -> 0 | H78: =IF(B78<>"",SUMIFS(cTABUI!$J$11:$J$109,cTABUI!$D$11:$D$109,B78),0) -> 0 | I78: =IF(B78<>"",SUMIFS(cTABUI!$K$11:$K$109,cTABUI!$D$11:$D$109,B78),0) -> 0 | J78: =IF(B78<>"",SUMIFS(cTABUI!$L$11:$L$109,cTABUI!$D$11:$D$109,B78),0) -> 0 | K78: =IF(B78<>"",SUMIFS(cTABUI!$M$11:$M$109,cTABUI!$D$11:$D$109,B78),0) -> 0 | L78: =IF(B78<>"",SUMIFS(cTABUI!$N$11:$N$109,cTABUI!$D$11:$D$109,B78),0) -> 0 | M78: =IF(B78<>"",SUMIFS(cTABUI!$O$11:$O$109,cTABUI!$D$11:$D$109,B78),0) -> 0
B79: =IF(iCONDOMINI!B79<>"",iCONDOMINI!B79,"") -> C69 | C79: =IF(iCONDOMINI!C79<>"",iCONDOMINI!C79,"") ->  | D79: =IF(B79<>"",SUMIFS(cTABUI!$F$11:$F$109,cTABUI!$D$11:$D$109,B79),0) -> 0 | E79: =IF(B79<>"",SUMIFS(cTABUI!$G$11:$G$109,cTABUI!$D$11:$D$109,B79),0) -> 0 | F79: =IF(B79<>"",SUMIFS(cTABUI!$H$11:$H$109,cTABUI!$D$11:$D$109,B79),0) -> 0 | G79: =IF(B79<>"",SUMIFS(cTABUI!$I$11:$I$109,cTABUI!$D$11:$D$109,B79),0) -> 0 | H79: =IF(B79<>"",SUMIFS(cTABUI!$J$11:$J$109,cTABUI!$D$11:$D$109,B79),0) -> 0 | I79: =IF(B79<>"",SUMIFS(cTABUI!$K$11:$K$109,cTABUI!$D$11:$D$109,B79),0) -> 0 | J79: =IF(B79<>"",SUMIFS(cTABUI!$L$11:$L$109,cTABUI!$D$11:$D$109,B79),0) -> 0 | K79: =IF(B79<>"",SUMIFS(cTABUI!$M$11:$M$109,cTABUI!$D$11:$D$109,B79),0) -> 0 | L79: =IF(B79<>"",SUMIFS(cTABUI!$N$11:$N$109,cTABUI!$D$11:$D$109,B79),0) -> 0 | M79: =IF(B79<>"",SUMIFS(cTABUI!$O$11:$O$109,cTABUI!$D$11:$D$109,B79),0) -> 0
B80: =IF(iCONDOMINI!B80<>"",iCONDOMINI!B80,"") -> C70 | C80: =IF(iCONDOMINI!C80<>"",iCONDOMINI!C80,"") ->  | D80: =IF(B80<>"",SUMIFS(cTABUI!$F$11:$F$109,cTABUI!$D$11:$D$109,B80),0) -> 0 | E80: =IF(B80<>"",SUMIFS(cTABUI!$G$11:$G$109,cTABUI!$D$11:$D$109,B80),0) -> 0 | F80: =IF(B80<>"",SUMIFS(cTABUI!$H$11:$H$109,cTABUI!$D$11:$D$109,B80),0) -> 0 | G80: =IF(B80<>"",SUMIFS(cTABUI!$I$11:$I$109,cTABUI!$D$11:$D$109,B80),0) -> 0 | H80: =IF(B80<>"",SUMIFS(cTABUI!$J$11:$J$109,cTABUI!$D$11:$D$109,B80),0) -> 0 | I80: =IF(B80<>"",SUMIFS(cTABUI!$K$11:$K$109,cTABUI!$D$11:$D$109,B80),0) -> 0 | J80: =IF(B80<>"",SUMIFS(cTABUI!$L$11:$L$109,cTABUI!$D$11:$D$109,B80),0) -> 0 | K80: =IF(B80<>"",SUMIFS(cTABUI!$M$11:$M$109,cTABUI!$D$11:$D$109,B80),0) -> 0 | L80: =IF(B80<>"",SUMIFS(cTABUI!$N$11:$N$109,cTABUI!$D$11:$D$109,B80),0) -> 0 | M80: =IF(B80<>"",SUMIFS(cTABUI!$O$11:$O$109,cTABUI!$D$11:$D$109,B80),0) -> 0
B81: =IF(iCONDOMINI!B81<>"",iCONDOMINI!B81,"") -> C71 | C81: =IF(iCONDOMINI!C81<>"",iCONDOMINI!C81,"") ->  | D81: =IF(B81<>"",SUMIFS(cTABUI!$F$11:$F$109,cTABUI!$D$11:$D$109,B81),0) -> 0 | E81: =IF(B81<>"",SUMIFS(cTABUI!$G$11:$G$109,cTABUI!$D$11:$D$109,B81),0) -> 0 | F81: =IF(B81<>"",SUMIFS(cTABUI!$H$11:$H$109,cTABUI!$D$11:$D$109,B81),0) -> 0 | G81: =IF(B81<>"",SUMIFS(cTABUI!$I$11:$I$109,cTABUI!$D$11:$D$109,B81),0) -> 0 | H81: =IF(B81<>"",SUMIFS(cTABUI!$J$11:$J$109,cTABUI!$D$11:$D$109,B81),0) -> 0 | I81: =IF(B81<>"",SUMIFS(cTABUI!$K$11:$K$109,cTABUI!$D$11:$D$109,B81),0) -> 0 | J81: =IF(B81<>"",SUMIFS(cTABUI!$L$11:$L$109,cTABUI!$D$11:$D$109,B81),0) -> 0 | K81: =IF(B81<>"",SUMIFS(cTABUI!$M$11:$M$109,cTABUI!$D$11:$D$109,B81),0) -> 0 | L81: =IF(B81<>"",SUMIFS(cTABUI!$N$11:$N$109,cTABUI!$D$11:$D$109,B81),0) -> 0 | M81: =IF(B81<>"",SUMIFS(cTABUI!$O$11:$O$109,cTABUI!$D$11:$D$109,B81),0) -> 0
B82: =IF(iCONDOMINI!B82<>"",iCONDOMINI!B82,"") -> C72 | C82: =IF(iCONDOMINI!C82<>"",iCONDOMINI!C82,"") ->  | D82: =IF(B82<>"",SUMIFS(cTABUI!$F$11:$F$109,cTABUI!$D$11:$D$109,B82),0) -> 0 | E82: =IF(B82<>"",SUMIFS(cTABUI!$G$11:$G$109,cTABUI!$D$11:$D$109,B82),0) -> 0 | F82: =IF(B82<>"",SUMIFS(cTABUI!$H$11:$H$109,cTABUI!$D$11:$D$109,B82),0) -> 0 | G82: =IF(B82<>"",SUMIFS(cTABUI!$I$11:$I$109,cTABUI!$D$11:$D$109,B82),0) -> 0 | H82: =IF(B82<>"",SUMIFS(cTABUI!$J$11:$J$109,cTABUI!$D$11:$D$109,B82),0) -> 0 | I82: =IF(B82<>"",SUMIFS(cTABUI!$K$11:$K$109,cTABUI!$D$11:$D$109,B82),0) -> 0 | J82: =IF(B82<>"",SUMIFS(cTABUI!$L$11:$L$109,cTABUI!$D$11:$D$109,B82),0) -> 0 | K82: =IF(B82<>"",SUMIFS(cTABUI!$M$11:$M$109,cTABUI!$D$11:$D$109,B82),0) -> 0 | L82: =IF(B82<>"",SUMIFS(cTABUI!$N$11:$N$109,cTABUI!$D$11:$D$109,B82),0) -> 0 | M82: =IF(B82<>"",SUMIFS(cTABUI!$O$11:$O$109,cTABUI!$D$11:$D$109,B82),0) -> 0
B83: =IF(iCONDOMINI!B83<>"",iCONDOMINI!B83,"") -> C73 | C83: =IF(iCONDOMINI!C83<>"",iCONDOMINI!C83,"") ->  | D83: =IF(B83<>"",SUMIFS(cTABUI!$F$11:$F$109,cTABUI!$D$11:$D$109,B83),0) -> 0 | E83: =IF(B83<>"",SUMIFS(cTABUI!$G$11:$G$109,cTABUI!$D$11:$D$109,B83),0) -> 0 | F83: =IF(B83<>"",SUMIFS(cTABUI!$H$11:$H$109,cTABUI!$D$11:$D$109,B83),0) -> 0 | G83: =IF(B83<>"",SUMIFS(cTABUI!$I$11:$I$109,cTABUI!$D$11:$D$109,B83),0) -> 0 | H83: =IF(B83<>"",SUMIFS(cTABUI!$J$11:$J$109,cTABUI!$D$11:$D$109,B83),0) -> 0 | I83: =IF(B83<>"",SUMIFS(cTABUI!$K$11:$K$109,cTABUI!$D$11:$D$109,B83),0) -> 0 | J83: =IF(B83<>"",SUMIFS(cTABUI!$L$11:$L$109,cTABUI!$D$11:$D$109,B83),0) -> 0 | K83: =IF(B83<>"",SUMIFS(cTABUI!$M$11:$M$109,cTABUI!$D$11:$D$109,B83),0) -> 0 | L83: =IF(B83<>"",SUMIFS(cTABUI!$N$11:$N$109,cTABUI!$D$11:$D$109,B83),0) -> 0 | M83: =IF(B83<>"",SUMIFS(cTABUI!$O$11:$O$109,cTABUI!$D$11:$D$109,B83),0) -> 0
B84: =IF(iCONDOMINI!B84<>"",iCONDOMINI!B84,"") -> C74 | C84: =IF(iCONDOMINI!C84<>"",iCONDOMINI!C84,"") ->  | D84: =IF(B84<>"",SUMIFS(cTABUI!$F$11:$F$109,cTABUI!$D$11:$D$109,B84),0) -> 0 | E84: =IF(B84<>"",SUMIFS(cTABUI!$G$11:$G$109,cTABUI!$D$11:$D$109,B84),0) -> 0 | F84: =IF(B84<>"",SUMIFS(cTABUI!$H$11:$H$109,cTABUI!$D$11:$D$109,B84),0) -> 0 | G84: =IF(B84<>"",SUMIFS(cTABUI!$I$11:$I$109,cTABUI!$D$11:$D$109,B84),0) -> 0 | H84: =IF(B84<>"",SUMIFS(cTABUI!$J$11:$J$109,cTABUI!$D$11:$D$109,B84),0) -> 0 | I84: =IF(B84<>"",SUMIFS(cTABUI!$K$11:$K$109,cTABUI!$D$11:$D$109,B84),0) -> 0 | J84: =IF(B84<>"",SUMIFS(cTABUI!$L$11:$L$109,cTABUI!$D$11:$D$109,B84),0) -> 0 | K84: =IF(B84<>"",SUMIFS(cTABUI!$M$11:$M$109,cTABUI!$D$11:$D$109,B84),0) -> 0 | L84: =IF(B84<>"",SUMIFS(cTABUI!$N$11:$N$109,cTABUI!$D$11:$D$109,B84),0) -> 0 | M84: =IF(B84<>"",SUMIFS(cTABUI!$O$11:$O$109,cTABUI!$D$11:$D$109,B84),0) -> 0
B85: =IF(iCONDOMINI!B85<>"",iCONDOMINI!B85,"") -> C75 | C85: =IF(iCONDOMINI!C85<>"",iCONDOMINI!C85,"") ->  | D85: =IF(B85<>"",SUMIFS(cTABUI!$F$11:$F$109,cTABUI!$D$11:$D$109,B85),0) -> 0 | E85: =IF(B85<>"",SUMIFS(cTABUI!$G$11:$G$109,cTABUI!$D$11:$D$109,B85),0) -> 0 | F85: =IF(B85<>"",SUMIFS(cTABUI!$H$11:$H$109,cTABUI!$D$11:$D$109,B85),0) -> 0 | G85: =IF(B85<>"",SUMIFS(cTABUI!$I$11:$I$109,cTABUI!$D$11:$D$109,B85),0) -> 0 | H85: =IF(B85<>"",SUMIFS(cTABUI!$J$11:$J$109,cTABUI!$D$11:$D$109,B85),0) -> 0 | I85: =IF(B85<>"",SUMIFS(cTABUI!$K$11:$K$109,cTABUI!$D$11:$D$109,B85),0) -> 0 | J85: =IF(B85<>"",SUMIFS(cTABUI!$L$11:$L$109,cTABUI!$D$11:$D$109,B85),0) -> 0 | K85: =IF(B85<>"",SUMIFS(cTABUI!$M$11:$M$109,cTABUI!$D$11:$D$109,B85),0) -> 0 | L85: =IF(B85<>"",SUMIFS(cTABUI!$N$11:$N$109,cTABUI!$D$11:$D$109,B85),0) -> 0 | M85: =IF(B85<>"",SUMIFS(cTABUI!$O$11:$O$109,cTABUI!$D$11:$D$109,B85),0) -> 0
B86: =IF(iCONDOMINI!B86<>"",iCONDOMINI!B86,"") -> C76 | C86: =IF(iCONDOMINI!C86<>"",iCONDOMINI!C86,"") ->  | D86: =IF(B86<>"",SUMIFS(cTABUI!$F$11:$F$109,cTABUI!$D$11:$D$109,B86),0) -> 0 | E86: =IF(B86<>"",SUMIFS(cTABUI!$G$11:$G$109,cTABUI!$D$11:$D$109,B86),0) -> 0 | F86: =IF(B86<>"",SUMIFS(cTABUI!$H$11:$H$109,cTABUI!$D$11:$D$109,B86),0) -> 0 | G86: =IF(B86<>"",SUMIFS(cTABUI!$I$11:$I$109,cTABUI!$D$11:$D$109,B86),0) -> 0 | H86: =IF(B86<>"",SUMIFS(cTABUI!$J$11:$J$109,cTABUI!$D$11:$D$109,B86),0) -> 0 | I86: =IF(B86<>"",SUMIFS(cTABUI!$K$11:$K$109,cTABUI!$D$11:$D$109,B86),0) -> 0 | J86: =IF(B86<>"",SUMIFS(cTABUI!$L$11:$L$109,cTABUI!$D$11:$D$109,B86),0) -> 0 | K86: =IF(B86<>"",SUMIFS(cTABUI!$M$11:$M$109,cTABUI!$D$11:$D$109,B86),0) -> 0 | L86: =IF(B86<>"",SUMIFS(cTABUI!$N$11:$N$109,cTABUI!$D$11:$D$109,B86),0) -> 0 | M86: =IF(B86<>"",SUMIFS(cTABUI!$O$11:$O$109,cTABUI!$D$11:$D$109,B86),0) -> 0
B87: =IF(iCONDOMINI!B87<>"",iCONDOMINI!B87,"") -> C77 | C87: =IF(iCONDOMINI!C87<>"",iCONDOMINI!C87,"") ->  | D87: =IF(B87<>"",SUMIFS(cTABUI!$F$11:$F$109,cTABUI!$D$11:$D$109,B87),0) -> 0 | E87: =IF(B87<>"",SUMIFS(cTABUI!$G$11:$G$109,cTABUI!$D$11:$D$109,B87),0) -> 0 | F87: =IF(B87<>"",SUMIFS(cTABUI!$H$11:$H$109,cTABUI!$D$11:$D$109,B87),0) -> 0 | G87: =IF(B87<>"",SUMIFS(cTABUI!$I$11:$I$109,cTABUI!$D$11:$D$109,B87),0) -> 0 | H87: =IF(B87<>"",SUMIFS(cTABUI!$J$11:$J$109,cTABUI!$D$11:$D$109,B87),0) -> 0 | I87: =IF(B87<>"",SUMIFS(cTABUI!$K$11:$K$109,cTABUI!$D$11:$D$109,B87),0) -> 0 | J87: =IF(B87<>"",SUMIFS(cTABUI!$L$11:$L$109,cTABUI!$D$11:$D$109,B87),0) -> 0 | K87: =IF(B87<>"",SUMIFS(cTABUI!$M$11:$M$109,cTABUI!$D$11:$D$109,B87),0) -> 0 | L87: =IF(B87<>"",SUMIFS(cTABUI!$N$11:$N$109,cTABUI!$D$11:$D$109,B87),0) -> 0 | M87: =IF(B87<>"",SUMIFS(cTABUI!$O$11:$O$109,cTABUI!$D$11:$D$109,B87),0) -> 0
B88: =IF(iCONDOMINI!B88<>"",iCONDOMINI!B88,"") -> C78 | C88: =IF(iCONDOMINI!C88<>"",iCONDOMINI!C88,"") ->  | D88: =IF(B88<>"",SUMIFS(cTABUI!$F$11:$F$109,cTABUI!$D$11:$D$109,B88),0) -> 0 | E88: =IF(B88<>"",SUMIFS(cTABUI!$G$11:$G$109,cTABUI!$D$11:$D$109,B88),0) -> 0 | F88: =IF(B88<>"",SUMIFS(cTABUI!$H$11:$H$109,cTABUI!$D$11:$D$109,B88),0) -> 0 | G88: =IF(B88<>"",SUMIFS(cTABUI!$I$11:$I$109,cTABUI!$D$11:$D$109,B88),0) -> 0 | H88: =IF(B88<>"",SUMIFS(cTABUI!$J$11:$J$109,cTABUI!$D$11:$D$109,B88),0) -> 0 | I88: =IF(B88<>"",SUMIFS(cTABUI!$K$11:$K$109,cTABUI!$D$11:$D$109,B88),0) -> 0 | J88: =IF(B88<>"",SUMIFS(cTABUI!$L$11:$L$109,cTABUI!$D$11:$D$109,B88),0) -> 0 | K88: =IF(B88<>"",SUMIFS(cTABUI!$M$11:$M$109,cTABUI!$D$11:$D$109,B88),0) -> 0 | L88: =IF(B88<>"",SUMIFS(cTABUI!$N$11:$N$109,cTABUI!$D$11:$D$109,B88),0) -> 0 | M88: =IF(B88<>"",SUMIFS(cTABUI!$O$11:$O$109,cTABUI!$D$11:$D$109,B88),0) -> 0
B89: =IF(iCONDOMINI!B89<>"",iCONDOMINI!B89,"") -> C79 | C89: =IF(iCONDOMINI!C89<>"",iCONDOMINI!C89,"") ->  | D89: =IF(B89<>"",SUMIFS(cTABUI!$F$11:$F$109,cTABUI!$D$11:$D$109,B89),0) -> 0 | E89: =IF(B89<>"",SUMIFS(cTABUI!$G$11:$G$109,cTABUI!$D$11:$D$109,B89),0) -> 0 | F89: =IF(B89<>"",SUMIFS(cTABUI!$H$11:$H$109,cTABUI!$D$11:$D$109,B89),0) -> 0 | G89: =IF(B89<>"",SUMIFS(cTABUI!$I$11:$I$109,cTABUI!$D$11:$D$109,B89),0) -> 0 | H89: =IF(B89<>"",SUMIFS(cTABUI!$J$11:$J$109,cTABUI!$D$11:$D$109,B89),0) -> 0 | I89: =IF(B89<>"",SUMIFS(cTABUI!$K$11:$K$109,cTABUI!$D$11:$D$109,B89),0) -> 0 | J89: =IF(B89<>"",SUMIFS(cTABUI!$L$11:$L$109,cTABUI!$D$11:$D$109,B89),0) -> 0 | K89: =IF(B89<>"",SUMIFS(cTABUI!$M$11:$M$109,cTABUI!$D$11:$D$109,B89),0) -> 0 | L89: =IF(B89<>"",SUMIFS(cTABUI!$N$11:$N$109,cTABUI!$D$11:$D$109,B89),0) -> 0 | M89: =IF(B89<>"",SUMIFS(cTABUI!$O$11:$O$109,cTABUI!$D$11:$D$109,B89),0) -> 0
B90: =IF(iCONDOMINI!B90<>"",iCONDOMINI!B90,"") -> C80 | C90: =IF(iCONDOMINI!C90<>"",iCONDOMINI!C90,"") ->  | D90: =IF(B90<>"",SUMIFS(cTABUI!$F$11:$F$109,cTABUI!$D$11:$D$109,B90),0) -> 0 | E90: =IF(B90<>"",SUMIFS(cTABUI!$G$11:$G$109,cTABUI!$D$11:$D$109,B90),0) -> 0 | F90: =IF(B90<>"",SUMIFS(cTABUI!$H$11:$H$109,cTABUI!$D$11:$D$109,B90),0) -> 0 | G90: =IF(B90<>"",SUMIFS(cTABUI!$I$11:$I$109,cTABUI!$D$11:$D$109,B90),0) -> 0 | H90: =IF(B90<>"",SUMIFS(cTABUI!$J$11:$J$109,cTABUI!$D$11:$D$109,B90),0) -> 0 | I90: =IF(B90<>"",SUMIFS(cTABUI!$K$11:$K$109,cTABUI!$D$11:$D$109,B90),0) -> 0 | J90: =IF(B90<>"",SUMIFS(cTABUI!$L$11:$L$109,cTABUI!$D$11:$D$109,B90),0) -> 0 | K90: =IF(B90<>"",SUMIFS(cTABUI!$M$11:$M$109,cTABUI!$D$11:$D$109,B90),0) -> 0 | L90: =IF(B90<>"",SUMIFS(cTABUI!$N$11:$N$109,cTABUI!$D$11:$D$109,B90),0) -> 0 | M90: =IF(B90<>"",SUMIFS(cTABUI!$O$11:$O$109,cTABUI!$D$11:$D$109,B90),0) -> 0
B91: =IF(iCONDOMINI!B91<>"",iCONDOMINI!B91,"") -> C81 | C91: =IF(iCONDOMINI!C91<>"",iCONDOMINI!C91,"") ->  | D91: =IF(B91<>"",SUMIFS(cTABUI!$F$11:$F$109,cTABUI!$D$11:$D$109,B91),0) -> 0 | E91: =IF(B91<>"",SUMIFS(cTABUI!$G$11:$G$109,cTABUI!$D$11:$D$109,B91),0) -> 0 | F91: =IF(B91<>"",SUMIFS(cTABUI!$H$11:$H$109,cTABUI!$D$11:$D$109,B91),0) -> 0 | G91: =IF(B91<>"",SUMIFS(cTABUI!$I$11:$I$109,cTABUI!$D$11:$D$109,B91),0) -> 0 | H91: =IF(B91<>"",SUMIFS(cTABUI!$J$11:$J$109,cTABUI!$D$11:$D$109,B91),0) -> 0 | I91: =IF(B91<>"",SUMIFS(cTABUI!$K$11:$K$109,cTABUI!$D$11:$D$109,B91),0) -> 0 | J91: =IF(B91<>"",SUMIFS(cTABUI!$L$11:$L$109,cTABUI!$D$11:$D$109,B91),0) -> 0 | K91: =IF(B91<>"",SUMIFS(cTABUI!$M$11:$M$109,cTABUI!$D$11:$D$109,B91),0) -> 0 | L91: =IF(B91<>"",SUMIFS(cTABUI!$N$11:$N$109,cTABUI!$D$11:$D$109,B91),0) -> 0 | M91: =IF(B91<>"",SUMIFS(cTABUI!$O$11:$O$109,cTABUI!$D$11:$D$109,B91),0) -> 0
B92: =IF(iCONDOMINI!B92<>"",iCONDOMINI!B92,"") -> C82 | C92: =IF(iCONDOMINI!C92<>"",iCONDOMINI!C92,"") ->  | D92: =IF(B92<>"",SUMIFS(cTABUI!$F$11:$F$109,cTABUI!$D$11:$D$109,B92),0) -> 0 | E92: =IF(B92<>"",SUMIFS(cTABUI!$G$11:$G$109,cTABUI!$D$11:$D$109,B92),0) -> 0 | F92: =IF(B92<>"",SUMIFS(cTABUI!$H$11:$H$109,cTABUI!$D$11:$D$109,B92),0) -> 0 | G92: =IF(B92<>"",SUMIFS(cTABUI!$I$11:$I$109,cTABUI!$D$11:$D$109,B92),0) -> 0 | H92: =IF(B92<>"",SUMIFS(cTABUI!$J$11:$J$109,cTABUI!$D$11:$D$109,B92),0) -> 0 | I92: =IF(B92<>"",SUMIFS(cTABUI!$K$11:$K$109,cTABUI!$D$11:$D$109,B92),0) -> 0 | J92: =IF(B92<>"",SUMIFS(cTABUI!$L$11:$L$109,cTABUI!$D$11:$D$109,B92),0) -> 0 | K92: =IF(B92<>"",SUMIFS(cTABUI!$M$11:$M$109,cTABUI!$D$11:$D$109,B92),0) -> 0 | L92: =IF(B92<>"",SUMIFS(cTABUI!$N$11:$N$109,cTABUI!$D$11:$D$109,B92),0) -> 0 | M92: =IF(B92<>"",SUMIFS(cTABUI!$O$11:$O$109,cTABUI!$D$11:$D$109,B92),0) -> 0
